Workbook

Sheet Notes (hidden)
A13: Checklist:
A14: RBC sheet: Make sure most current RBC sheet is being used
B15: Check for Acute Antimony (should be 1) and non-CAS number is C### format
A17: Risk Sheets:
B18: Check linkage to RBC sheet via cell A3
B19: Make sure has the correct number of receptors and sources in conc link (row 100)
B20: Make sure pollutant list is complete (rows 20 to 89)
B21: Set receptor select (C96) to 0.
A23: CAO_Summary:
B24: Hide un-used source rows
B25: Verify correct facility and met

Sheet DESC
A1: Clean Air Oregon Assessment Level 3/4 Spreadsheet
A2: Bridgewater Group Inc
A3: Kent Norville Ph.D.
A4: 503-961-5147
A5: Project: Owen-Brockway
A6: 2021-09-20
A8: Sheet Descriptions:
B9: Name | C9: Purpose | D9: Comments
B10: SCEN | C10: scenario definition sheet | D10: Loads and manages source list, pollutant list, and emission lists.
D11: All emissions in lb/day & lb/year for easy comparison to EI
D12: Pollutant and source lists start on row 25
D13: Emissions lists start on row 101
B15: AN_EMIS | C15: Annual emissions | D15: Linked from SCEN, provides easy review and emissions trace from risk sheets
B16: 24-hr_EMIS | C16: Daily emissions
B18: Ann Unit Conc | C18: Annual Unit Concentrations for each source
B19: 24-hr Unit Conc | C19: Daily Unit Concentrations for each source
B21: RECP_LU | C21: Receptor Exposure Class | D21: Columns P-S have 1 if receptor is that class, linked to risk sheets
B23: EL-MP | C23: MPA adjustment sheet | D23: Shows EL-MP pollutants and those in O-B CAO.
D24: Values from MPA_Calc spreadsheet included for adjusting RBCs
B26: RBC_Table | C26: RBCs | D26: DEQ's list of RBCs, and shows how MPA adjustments are incorporated
R27: TO# | S27: Organ
B28: TAR_Org | C28: DEQ target organ tables | R28: 0 | S28: All
R29: 1 | S29: Kidney
B30: R_CCR | C30: Res. Cancer Risk Calc Sheet | D30: These sheets calculate risk at each receptor for each src, on sheet per exposure class. | R30: 2 | S30: Liver
B31: NR_CCR | C31: Non-Res. Child Cancer Risk Calc Sheet | E31: Top of sheet shows summary for each source (row 7) and the max risk (Col D) for src summed on a receptor by receptor basis. | R31: 3 | S31: Blood
B32: NR_CWCR | C32: Non-Res. Worker Cancer Risk Calc Sheet | E32: Rows 9-14 show top 3 TAC for that source. | R32: 4 | S32: Endo
B33: R_CHI | C33: Res. Non-Cancer Risk Calc Sheet | E33: Row 17-90 show Q/RBC for each source and pollutant. | R33: 5 | S33: Musc
B34: NR_CCHI | C34: Non-Res. Child Non-Cancer Risk Calc Sheet | E34: Row 95-170 show pollutant risk contribuion for each source at the max impact location or at a particular receptor. | R34: 6 | S34: Eyes
B35: NR_CWHI | C35: Non-Res. Worker Non-Cancer Risk Calc Sheet | E35: Rows 176 and below are the risk at each receptor by source. The sum of sources risk that receptor is in Col D. | R35: 7 | S35: Skin
B36: A_HI | C36: Acute Risk (without target organ applied) | E36: For the Non-cancer risk values, block BY18:CQ89 has the target organ toggles | R36: 8 | S36: Nerv
E37: Cells BZ93 to CQ103 shows the max target organ calculation. | R37: 9 | S37: Cardio
E38: They should be evaluated only when the manual toggle is set (option 3), and 0's in Q13:Q15. | R38: 10 | S38: Immune
R39: 11 | S39: Resp
B40: CAO Summary | C40: Risk Summary | D40: Shows the seven risk by individual source and the source summed receptor max. | R40: 12 | S40: Gastro
E41: The source group toggle (0=all, 1=facility wo NG source, 2=NG source only). | R41: 13 | S41: Develop
E42: Three Display options set in O5: | I42: 1 | J42: Worst Case Facility Risk | R42: 14 | S42: Repro
I43: 2 | J43: WC Individual TEU Risk
I44: 3 | J44: Manual Toggle, change values in Q13:Q15

Sheet SCEN
A1: Facility: | B1: Owens Brockway
A2: Met: | B2: KPDX
A3: Revision: | B3: 2022-01-05
A5: %WDIR | B5: E:\WORK\PROJECTS\OwensB\CAO\L4
A7: %SRC | B7: SRC.TXT | C7: =ROW(I26) -> 26 | D7: =COLUMN(I26) -> 9
A8: %POL | B8: POL.TXT | C8: =ROW(B26) -> 26 | D8: =COLUMN(A26) -> 1
A9: %ANN | B9: AN_EMIS
A10: %DAY | B10: 24hr_EMIS
A11: %MAX | B11: 70 | C11: 70 | D11: 3
B12: SRC | C12: POL | D12: SCEN
A14: %SCEN
A15: EMIS4.TXT
T21: RBC table for report
V23: Chronic Cancer RBC | Y23: Chronic Non-Cancer
A24: Pollutant List | C24: 37 | I24: Source List | K24: 11 | O24: non NG? | V24: Res. | W24: Child | X24: Worker | Y24: Res. | Z24: Child | AA24: Worker | AB24: Acute
A25: Row | B25: DEQ_ID | C25: CAS num | D25: Pol Name | E25: EmisPol | F25: PM(1) | I25: Row | J25: SRC | K25: MID | L25: FLG | M25: DESC | T25: CAS# | U25: Compound | V25: µg/m3 | W25: µg/m3 | X25: µg/m3 | Y25: µg/m3 | Z25: µg/m3 | AA25: µg/m3 | AB25: µg/m3
A26: 1 | B26: 1 | C26: 75-07-0 | D26: Acetaldehyde | E26: Acetaldehyde | F26: 0 | G26: =INDEX(RBC_Table!J$10:J$270,SCEN!B26) -> HI3 | I26: 1 | J26: EU1RM1 | K26: RMBH1 | L26: 1 | M26: RMBH1 - Raw Material Handling Truck/Rail | O26: 1 | T26: =C26 -> 75-07-0 | U26: =D26 -> Acetaldehyde | V26: =INDEX(RBC_Table!C$10:C$270,SCEN!$B26) -> 0.45 | W26: =INDEX(RBC_Table!E$10:E$270,SCEN!$B26) -> 12 | X26: =INDEX(RBC_Table!G$10:G$270,SCEN!$B26) -> 5.5 | Y26: =INDEX(RBC_Table!D$10:D$270,SCEN!$B26) -> 140 | Z26: =INDEX(RBC_Table!F$10:F$270,SCEN!$B26) -> 620 | AA26: =INDEX(RBC_Table!H$10:H$270,SCEN!$B26) -> 620 | AB26: =INDEX(RBC_Table!I$10:I$270,SCEN!$B26) -> 470
A27: 2 | B27: 5 | C27: 107-02-8 | D27: Acrolein | E27: Acrolein | F27: 0 | G27: =INDEX(RBC_Table!J$10:J$270,SCEN!B27) -> HI5 | I27: 2 | J27: EU1BF | K27: BATCHF | L27: 1 | M27: Batch House Fugitive | O27: 1 | T27: =C27 -> 107-02-8 | U27: Acrolein | V27: =INDEX(RBC_Table!C$10:C$270,SCEN!$B27) -> -- | W27: =INDEX(RBC_Table!E$10:E$270,SCEN!$B27) -> -- | X27: =INDEX(RBC_Table!G$10:G$270,SCEN!$B27) -> -- | Y27: =INDEX(RBC_Table!D$10:D$270,SCEN!$B27) -> 0.35 | Z27: =INDEX(RBC_Table!F$10:F$270,SCEN!$B27) -> 1.5 | AA27: =INDEX(RBC_Table!H$10:H$270,SCEN!$B27) -> 1.5 | AB27: =INDEX(RBC_Table!I$10:I$270,SCEN!$B27) -> 6.9
A28: 3 | B28: 12 | C28: 7664-41-7 | D28: Ammonia | E28: Ammonia | F28: 0 | G28: =INDEX(RBC_Table!J$10:J$270,SCEN!B28) -> HI3 | I28: 3 | J28: EU1RM2 | K28: RMBH2 | L28: 1 | M28: RMBH2 - Raw Material Handling Batch House | O28: 1 | T28: 7664-41-7 | U28: Ammonia | V28: =INDEX(RBC_Table!C$10:C$270,SCEN!$B28) -> -- | W28: =INDEX(RBC_Table!E$10:E$270,SCEN!$B28) -> -- | X28: =INDEX(RBC_Table!G$10:G$270,SCEN!$B28) -> -- | Y28: =INDEX(RBC_Table!D$10:D$270,SCEN!$B28) -> 500 | Z28: =INDEX(RBC_Table!F$10:F$270,SCEN!$B28) -> 2200 | AA28: =INDEX(RBC_Table!H$10:H$270,SCEN!$B28) -> 2200 | AB28: =INDEX(RBC_Table!I$10:I$270,SCEN!$B28) -> 1200
A29: 4 | B29: 14 | C29: 7440-36-0 | D29: Antimony and compounds | E29: Antimony and compounds | F29: 1 | G29: =INDEX(RBC_Table!J$10:J$270,SCEN!B29) -> HI3 | I29: 4 | J29: EU4 | K29: EU4 | L29: 1 | M29: Furnace D Glass | O29: 1 | T29: 7440-36-0 | U29: Antimony and compounds | V29: =INDEX(RBC_Table!C$10:C$270,SCEN!$B29) -> -- | W29: =INDEX(RBC_Table!E$10:E$270,SCEN!$B29) -> -- | X29: =INDEX(RBC_Table!G$10:G$270,SCEN!$B29) -> -- | Y29: =INDEX(RBC_Table!D$10:D$270,SCEN!$B29) -> 0.3 | Z29: =INDEX(RBC_Table!F$10:F$270,SCEN!$B29) -> 1.3 | AA29: =INDEX(RBC_Table!H$10:H$270,SCEN!$B29) -> 1.3 | AB29: =INDEX(RBC_Table!I$10:I$270,SCEN!$B29) -> 1
A30: 5 | B30: 16 | C30: 7440-38-2 | D30: Arsenic and compounds | E30: Arsenic and compounds | F30: 1 | G30: =INDEX(RBC_Table!J$10:J$270,SCEN!B30) -> HI3 | I30: 5 | J30: EU4NG | K30: EU4 | L30: 1 | M30: Furnace D Nat Gas | O30: 0 | T30: 7440-38-2 | U30: Arsenic and compounds | V30: =INDEX(RBC_Table!C$10:C$270,SCEN!$B30) -> 9.1e-05 | W30: =INDEX(RBC_Table!E$10:E$270,SCEN!$B30) -> 0.0036 | X30: =INDEX(RBC_Table!G$10:G$270,SCEN!$B30) -> 0.0017 | Y30: =INDEX(RBC_Table!D$10:D$270,SCEN!$B30) -> 0.0019 | Z30: =INDEX(RBC_Table!F$10:F$270,SCEN!$B30) -> 0.015 | AA30: =INDEX(RBC_Table!H$10:H$270,SCEN!$B30) -> 0.015 | AB30: =INDEX(RBC_Table!I$10:I$270,SCEN!$B30) -> 0.2
A31: 6 | B31: 20 | C31: 71-43-2 | D31: Benzene | E31: Benzene | F31: 0 | G31: =INDEX(RBC_Table!J$10:J$270,SCEN!B31) -> HI3 | I31: 6 | J31: EU5 | K31: ROOF | L31: 1 | M31: Hot End Surface Treatment | O31: 1 | T31: 71-43-2 | U31: Benzene | V31: =INDEX(RBC_Table!C$10:C$270,SCEN!$B31) -> 0.13 | W31: =INDEX(RBC_Table!E$10:E$270,SCEN!$B31) -> 3.3 | X31: =INDEX(RBC_Table!G$10:G$270,SCEN!$B31) -> 1.5 | Y31: =INDEX(RBC_Table!D$10:D$270,SCEN!$B31) -> 3 | Z31: =INDEX(RBC_Table!F$10:F$270,SCEN!$B31) -> 13 | AA31: =INDEX(RBC_Table!H$10:H$270,SCEN!$B31) -> 13 | AB31: =INDEX(RBC_Table!I$10:I$270,SCEN!$B31) -> 29
A32: 7 | B32: 23 | C32: 7440-41-7 | D32: Beryllium and compounds | E32: Beryllium and compounds | F32: 1 | G32: =INDEX(RBC_Table!J$10:J$270,SCEN!B32) -> HI3 | I32: 7 | J32: EU6 | K32: ROOF | L32: 1 | M32: Misc Fuel Burning NG | O32: 0 | T32: 7440-41-7 | U32: Beryllium and compounds | V32: =INDEX(RBC_Table!C$10:C$270,SCEN!$B32) -> 0.00042 | W32: =INDEX(RBC_Table!E$10:E$270,SCEN!$B32) -> 0.011 | X32: =INDEX(RBC_Table!G$10:G$270,SCEN!$B32) -> 0.005 | Y32: =INDEX(RBC_Table!D$10:D$270,SCEN!$B32) -> 0.007 | Z32: =INDEX(RBC_Table!F$10:F$270,SCEN!$B32) -> 0.031 | AA32: =INDEX(RBC_Table!H$10:H$270,SCEN!$B32) -> 0.031 | AB32: =INDEX(RBC_Table!I$10:I$270,SCEN!$B32) -> 0.02
A33: 8 | B33: 31 | C33: 78-93-3 | D33: 2-Butanone (Methyl ethyl ketone) | E33: 2-Butanone (Methyl ethyl ketone) | F33: 0 | G33: =INDEX(RBC_Table!J$10:J$270,SCEN!B33) -> HI3 | I33: 8 | J33: EU7 | K33: EU7 | L33: 1 | M33: Boiler NG | O33: 0 | T33: 78-93-3 | U33: 2-Butanone (Methyl ethyl ketone) | V33: =INDEX(RBC_Table!C$10:C$270,SCEN!$B33) -> -- | W33: =INDEX(RBC_Table!E$10:E$270,SCEN!$B33) -> -- | X33: =INDEX(RBC_Table!G$10:G$270,SCEN!$B33) -> -- | Y33: =INDEX(RBC_Table!D$10:D$270,SCEN!$B33) -> 5000 | Z33: =INDEX(RBC_Table!F$10:F$270,SCEN!$B33) -> 22000 | AA33: =INDEX(RBC_Table!H$10:H$270,SCEN!$B33) -> 22000 | AB33: =INDEX(RBC_Table!I$10:I$270,SCEN!$B33) -> 5000
A34: 9 | B34: 33 | C34: 7440-43-9 | D34: Cadmium and compounds | E34: Cadmium and compounds | F34: 1 | G34: =INDEX(RBC_Table!J$10:J$270,SCEN!B34) -> HI3 | I34: 9 | J34: EU10 | K34: MBD1 | L34: 1 | M34: Welding | O34: 1 | T34: 7440-43-9 | U34: Cadmium and compounds | V34: =INDEX(RBC_Table!C$10:C$270,SCEN!$B34) -> 0.00056 | W34: =INDEX(RBC_Table!E$10:E$270,SCEN!$B34) -> 0.014 | X34: =INDEX(RBC_Table!G$10:G$270,SCEN!$B34) -> 0.0067 | Y34: =INDEX(RBC_Table!D$10:D$270,SCEN!$B34) -> 0.0085 | Z34: =INDEX(RBC_Table!F$10:F$270,SCEN!$B34) -> 0.043 | AA34: =INDEX(RBC_Table!H$10:H$270,SCEN!$B34) -> 0.043 | AB34: =INDEX(RBC_Table!I$10:I$270,SCEN!$B34) -> 0.03
A35: 10 | B35: 53 | C35: 18540-29-9 | D35: Chromium VI, chromate and dichromate particulate | E35: Chromium VI, chromate, and dichromate particulate | F35: 1 | G35: =INDEX(RBC_Table!J$10:J$270,SCEN!B35) -> HI3 | I35: 10 | J35: IMAGE | K35: IMAGE | L35: 1 | M35: Image printing | O35: 1 | T35: 18540-29-9 | U35: Chromium VI, chromate and dichromate particulate | V35: =INDEX(RBC_Table!C$10:C$270,SCEN!$B35) -> 4.5e-05 | W35: =INDEX(RBC_Table!E$10:E$270,SCEN!$B35) -> 0.00052 | X35: =INDEX(RBC_Table!G$10:G$270,SCEN!$B35) -> 0.001 | Y35: =INDEX(RBC_Table!D$10:D$270,SCEN!$B35) -> 0.16 | Z35: =INDEX(RBC_Table!F$10:F$270,SCEN!$B35) -> 0.88 | AA35: =INDEX(RBC_Table!H$10:H$270,SCEN!$B35) -> 0.88 | AB35: =INDEX(RBC_Table!I$10:I$270,SCEN!$B35) -> 0.3
A36: 11 | B36: 55 | C36: 7440-48-4 | D36: Cobalt and compounds | E36: Cobalt and compounds | F36: 1 | G36: =INDEX(RBC_Table!J$10:J$270,SCEN!B36) -> HI3 | I36: 11 | J36: SFL | K36: ROOF | L36: 1 | M36: Solid film lubrication (mold prep) | O36: 1 | T36: 7440-48-4 | U36: Cobalt and compounds | V36: =INDEX(RBC_Table!C$10:C$270,SCEN!$B36) -> -- | W36: =INDEX(RBC_Table!E$10:E$270,SCEN!$B36) -> -- | X36: =INDEX(RBC_Table!G$10:G$270,SCEN!$B36) -> -- | Y36: =INDEX(RBC_Table!D$10:D$270,SCEN!$B36) -> 0.1 | Z36: =INDEX(RBC_Table!F$10:F$270,SCEN!$B36) -> 0.44 | AA36: =INDEX(RBC_Table!H$10:H$270,SCEN!$B36) -> 0.44 | AB36: =INDEX(RBC_Table!I$10:I$270,SCEN!$B36) -> --
A37: 12 | B37: 57 | C37: 7440-50-8 | D37: Copper and compounds | E37: Copper and compounds | F37: 1 | G37: =INDEX(RBC_Table!J$10:J$270,SCEN!B37) -> HI3 | I37: 12 | T37: 7440-50-8 | U37: Copper and compounds | V37: =INDEX(RBC_Table!C$10:C$270,SCEN!$B37) -> -- | W37: =INDEX(RBC_Table!E$10:E$270,SCEN!$B37) -> -- | X37: =INDEX(RBC_Table!G$10:G$270,SCEN!$B37) -> -- | Y37: =INDEX(RBC_Table!D$10:D$270,SCEN!$B37) -> -- | Z37: =INDEX(RBC_Table!F$10:F$270,SCEN!$B37) -> -- | AA37: =INDEX(RBC_Table!H$10:H$270,SCEN!$B37) -> -- | AB37: =INDEX(RBC_Table!I$10:I$270,SCEN!$B37) -> 100
A38: 13 | B38: 95 | C38: 100-41-4 | D38: Ethyl benzene | E38: Ethyl benzene | F38: 0 | G38: =INDEX(RBC_Table!J$10:J$270,SCEN!B38) -> HI3 | I38: 13 | T38: 100-41-4 | U38: Ethyl benzene | V38: =INDEX(RBC_Table!C$10:C$270,SCEN!$B38) -> 0.4 | W38: =INDEX(RBC_Table!E$10:E$270,SCEN!$B38) -> 10 | X38: =INDEX(RBC_Table!G$10:G$270,SCEN!$B38) -> 4.8 | Y38: =INDEX(RBC_Table!D$10:D$270,SCEN!$B38) -> 260 | Z38: =INDEX(RBC_Table!F$10:F$270,SCEN!$B38) -> 1100 | AA38: =INDEX(RBC_Table!H$10:H$270,SCEN!$B38) -> 1100 | AB38: =INDEX(RBC_Table!I$10:I$270,SCEN!$B38) -> 22000
A39: 14 | B39: 108 | C39: 50-00-0 | D39: Formaldehyde | E39: Formaldehyde | F39: 0 | G39: =INDEX(RBC_Table!J$10:J$270,SCEN!B39) -> HI3 | I39: 14 | T39: 50-00-0 | U39: Formaldehyde | V39: =INDEX(RBC_Table!C$10:C$270,SCEN!$B39) -> 0.17 | W39: =INDEX(RBC_Table!E$10:E$270,SCEN!$B39) -> 4.3 | X39: =INDEX(RBC_Table!G$10:G$270,SCEN!$B39) -> 2 | Y39: =INDEX(RBC_Table!D$10:D$270,SCEN!$B39) -> 9 | Z39: =INDEX(RBC_Table!F$10:F$270,SCEN!$B39) -> 40 | AA39: =INDEX(RBC_Table!H$10:H$270,SCEN!$B39) -> 40 | AB39: =INDEX(RBC_Table!I$10:I$270,SCEN!$B39) -> 49
A40: 15 | B40: 121 | C40: 110-54-3 | D40: Hexane | E40: Hexane | F40: 0 | G40: =INDEX(RBC_Table!J$10:J$270,SCEN!B40) -> HI3 | I40: 15 | T40: 110-54-3 | U40: Hexane | V40: =INDEX(RBC_Table!C$10:C$270,SCEN!$B40) -> -- | W40: =INDEX(RBC_Table!E$10:E$270,SCEN!$B40) -> -- | X40: =INDEX(RBC_Table!G$10:G$270,SCEN!$B40) -> -- | Y40: =INDEX(RBC_Table!D$10:D$270,SCEN!$B40) -> 700 | Z40: =INDEX(RBC_Table!F$10:F$270,SCEN!$B40) -> 3100 | AA40: =INDEX(RBC_Table!H$10:H$270,SCEN!$B40) -> 3100 | AB40: =INDEX(RBC_Table!I$10:I$270,SCEN!$B40) -> --
A41: 16 | B41: 123 | C41: 7647-01-0 | D41: Hydrochloric acid | E41: Hydrochloric acid | F41: 0 | G41: =INDEX(RBC_Table!J$10:J$270,SCEN!B41) -> HI3 | I41: 16 | T41: 7647-01-0 | U41: Hydrochloric acid | V41: =INDEX(RBC_Table!C$10:C$270,SCEN!$B41) -> -- | W41: =INDEX(RBC_Table!E$10:E$270,SCEN!$B41) -> -- | X41: =INDEX(RBC_Table!G$10:G$270,SCEN!$B41) -> -- | Y41: =INDEX(RBC_Table!D$10:D$270,SCEN!$B41) -> 20 | Z41: =INDEX(RBC_Table!F$10:F$270,SCEN!$B41) -> 88 | AA41: =INDEX(RBC_Table!H$10:H$270,SCEN!$B41) -> 88 | AB41: =INDEX(RBC_Table!I$10:I$270,SCEN!$B41) -> 2100
A42: 17 | B42: 127 | C42: 67-63-0 | D42: Isopropyl alcohol | E42: Isopropyl alcohol | F42: 0 | G42: =INDEX(RBC_Table!J$10:J$270,SCEN!B42) -> HI3 | I42: 17 | T42: 67-63-0 | U42: Isopropyl alcohol | V42: =INDEX(RBC_Table!C$10:C$270,SCEN!$B42) -> -- | W42: =INDEX(RBC_Table!E$10:E$270,SCEN!$B42) -> -- | X42: =INDEX(RBC_Table!G$10:G$270,SCEN!$B42) -> -- | Y42: =INDEX(RBC_Table!D$10:D$270,SCEN!$B42) -> 200 | Z42: =INDEX(RBC_Table!F$10:F$270,SCEN!$B42) -> 880 | AA42: =INDEX(RBC_Table!H$10:H$270,SCEN!$B42) -> 880 | AB42: =INDEX(RBC_Table!I$10:I$270,SCEN!$B42) -> 3200
A43: 18 | B43: 129 | C43: 7439-92-1 | D43: Lead and compounds | E43: Lead and compounds | F43: 1 | G43: =INDEX(RBC_Table!J$10:J$270,SCEN!B43) -> HI3 | I43: 18 | T43: 7439-92-1 | U43: Lead and compounds | V43: =INDEX(RBC_Table!C$10:C$270,SCEN!$B43) -> -- | W43: =INDEX(RBC_Table!E$10:E$270,SCEN!$B43) -> -- | X43: =INDEX(RBC_Table!G$10:G$270,SCEN!$B43) -> -- | Y43: =INDEX(RBC_Table!D$10:D$270,SCEN!$B43) -> 0.15 | Z43: =INDEX(RBC_Table!F$10:F$270,SCEN!$B43) -> 0.66 | AA43: =INDEX(RBC_Table!H$10:H$270,SCEN!$B43) -> 0.66 | AB43: =INDEX(RBC_Table!I$10:I$270,SCEN!$B43) -> 0.15
A44: 19 | B44: 131 | C44: 7439-96-5 | D44: Manganese and compounds | E44: Manganese and compounds | F44: 1 | G44: =INDEX(RBC_Table!J$10:J$270,SCEN!B44) -> HI3 | I44: 19 | T44: 7439-96-5 | U44: Manganese and compounds | V44: =INDEX(RBC_Table!C$10:C$270,SCEN!$B44) -> -- | W44: =INDEX(RBC_Table!E$10:E$270,SCEN!$B44) -> -- | X44: =INDEX(RBC_Table!G$10:G$270,SCEN!$B44) -> -- | Y44: =INDEX(RBC_Table!D$10:D$270,SCEN!$B44) -> 0.09 | Z44: =INDEX(RBC_Table!F$10:F$270,SCEN!$B44) -> 0.4 | AA44: =INDEX(RBC_Table!H$10:H$270,SCEN!$B44) -> 0.4 | AB44: =INDEX(RBC_Table!I$10:I$270,SCEN!$B44) -> 0.3
A45: 20 | B45: 132 | C45: 7439-97-6 | D45: Mercury and compounds | E45: Mercury and compounds | F45: 1 | G45: =INDEX(RBC_Table!J$10:J$270,SCEN!B45) -> HI3 | I45: 20 | T45: 7439-97-6 | U45: Mercury and compounds | V45: =INDEX(RBC_Table!C$10:C$270,SCEN!$B45) -> -- | W45: =INDEX(RBC_Table!E$10:E$270,SCEN!$B45) -> -- | X45: =INDEX(RBC_Table!G$10:G$270,SCEN!$B45) -> -- | Y45: =INDEX(RBC_Table!D$10:D$270,SCEN!$B45) -> 0.077 | Z45: =INDEX(RBC_Table!F$10:F$270,SCEN!$B45) -> 0.63 | AA45: =INDEX(RBC_Table!H$10:H$270,SCEN!$B45) -> 0.63 | AB45: =INDEX(RBC_Table!I$10:I$270,SCEN!$B45) -> 0.6
A46: 21 | B46: 137 | C46: 108-10-1 | D46: Methyl isobutyl ketone (MIBK, Hexone) | E46: Methyl isobutyl ketone (MIBK, Hexone) | F46: 0 | G46: =INDEX(RBC_Table!J$10:J$270,SCEN!B46) -> HI3 | I46: 21 | T46: 108-10-1 | U46: Methyl isobutyl ketone (MIBK, Hexone) | V46: =INDEX(RBC_Table!C$10:C$270,SCEN!$B46) -> -- | W46: =INDEX(RBC_Table!E$10:E$270,SCEN!$B46) -> -- | X46: =INDEX(RBC_Table!G$10:G$270,SCEN!$B46) -> -- | Y46: =INDEX(RBC_Table!D$10:D$270,SCEN!$B46) -> 3000 | Z46: =INDEX(RBC_Table!F$10:F$270,SCEN!$B46) -> 13000 | AA46: =INDEX(RBC_Table!H$10:H$270,SCEN!$B46) -> 13000 | AB46: =INDEX(RBC_Table!I$10:I$270,SCEN!$B46) -> --
A47: 22 | B47: 142 | C47: 91-20-3 | D47: Naphthalene | E47: Naphthalene | F47: 0 | G47: =INDEX(RBC_Table!J$10:J$270,SCEN!B47) -> HI3 | I47: 22 | T47: 91-20-3 | U47: Naphthalene | V47: =INDEX(RBC_Table!C$10:C$270,SCEN!$B47) -> 0.029 | W47: =INDEX(RBC_Table!E$10:E$270,SCEN!$B47) -> 0.76 | X47: =INDEX(RBC_Table!G$10:G$270,SCEN!$B47) -> 0.35 | Y47: =INDEX(RBC_Table!D$10:D$270,SCEN!$B47) -> 3.7 | Z47: =INDEX(RBC_Table!F$10:F$270,SCEN!$B47) -> 16 | AA47: =INDEX(RBC_Table!H$10:H$270,SCEN!$B47) -> 16 | AB47: =INDEX(RBC_Table!I$10:I$270,SCEN!$B47) -> 200
A48: 23 | B48: 143 | C48: C365 | D48: Nickel compounds, insoluble | E48: Nickel and compounds | F48: 1 | G48: =INDEX(RBC_Table!J$10:J$270,SCEN!B48) -> HI3 | I48: 23 | T48: C365 | U48: Nickel compounds, insoluble | V48: =INDEX(RBC_Table!C$10:C$270,SCEN!$B48) -> 0.0038 | W48: =INDEX(RBC_Table!E$10:E$270,SCEN!$B48) -> 0.1 | X48: =INDEX(RBC_Table!G$10:G$270,SCEN!$B48) -> 0.046 | Y48: =INDEX(RBC_Table!D$10:D$270,SCEN!$B48) -> 0.014 | Z48: =INDEX(RBC_Table!F$10:F$270,SCEN!$B48) -> 0.062 | AA48: =INDEX(RBC_Table!H$10:H$270,SCEN!$B48) -> 0.062 | AB48: =INDEX(RBC_Table!I$10:I$270,SCEN!$B48) -> 0.2
A49: 24 | B49: 202 | C49: 56-55-3 | D49: Benz[a]anthracene | E49: Benz[a]anthracene | F49: 0 | G49: =INDEX(RBC_Table!J$10:J$270,SCEN!B49) -> -- | I49: 24 | T49: 56-55-3 | U49: Benz[a]anthracene | V49: =INDEX(RBC_Table!C$10:C$270,SCEN!$B49) -> 0.00021 | W49: =INDEX(RBC_Table!E$10:E$270,SCEN!$B49) -> 0.0078 | X49: =INDEX(RBC_Table!G$10:G$270,SCEN!$B49) -> 0.015 | Y49: =INDEX(RBC_Table!D$10:D$270,SCEN!$B49) -> -- | Z49: =INDEX(RBC_Table!F$10:F$270,SCEN!$B49) -> -- | AA49: =INDEX(RBC_Table!H$10:H$270,SCEN!$B49) -> -- | AB49: =INDEX(RBC_Table!I$10:I$270,SCEN!$B49) -> --
A50: 25 | B50: 203 | C50: 50-32-8 | D50: Benzo[a]pyrene | E50: Benzo[a]pyrene | F50: 0 | G50: =INDEX(RBC_Table!J$10:J$270,SCEN!B50) -> HI3 | I50: 25 | T50: 50-32-8 | U50: Benzo[a]pyrene | V50: =INDEX(RBC_Table!C$10:C$270,SCEN!$B50) -> 4.3e-05 | W50: =INDEX(RBC_Table!E$10:E$270,SCEN!$B50) -> 0.0016 | X50: =INDEX(RBC_Table!G$10:G$270,SCEN!$B50) -> 0.003 | Y50: =INDEX(RBC_Table!D$10:D$270,SCEN!$B50) -> 0.002 | Z50: =INDEX(RBC_Table!F$10:F$270,SCEN!$B50) -> 0.0088 | AA50: =INDEX(RBC_Table!H$10:H$270,SCEN!$B50) -> 0.0088 | AB50: =INDEX(RBC_Table!I$10:I$270,SCEN!$B50) -> 0.002
A51: 26 | B51: 204 | C51: 205-99-2 | D51: Benzo[b]fluoranthene | E51: Benzo[b]fluoranthene | F51: 0 | G51: =INDEX(RBC_Table!J$10:J$270,SCEN!B51) -> -- | I51: 26 | T51: 205-99-2 | U51: Benzo[b]fluoranthene | V51: =INDEX(RBC_Table!C$10:C$270,SCEN!$B51) -> 5.3e-05 | W51: =INDEX(RBC_Table!E$10:E$270,SCEN!$B51) -> 0.002 | X51: =INDEX(RBC_Table!G$10:G$270,SCEN!$B51) -> 0.0038 | Y51: =INDEX(RBC_Table!D$10:D$270,SCEN!$B51) -> -- | Z51: =INDEX(RBC_Table!F$10:F$270,SCEN!$B51) -> -- | AA51: =INDEX(RBC_Table!H$10:H$270,SCEN!$B51) -> -- | AB51: =INDEX(RBC_Table!I$10:I$270,SCEN!$B51) -> --
A52: 27 | B52: 206 | C52: 191-24-2 | D52: Benzo[g,h,i]perylene | E52: Benzo[g,h,i]perylene | F52: 0 | G52: =INDEX(RBC_Table!J$10:J$270,SCEN!B52) -> -- | I52: 27 | T52: 191-24-2 | U52: Benzo[g,h,i]perylene | V52: =INDEX(RBC_Table!C$10:C$270,SCEN!$B52) -> 0.0047 | W52: =INDEX(RBC_Table!E$10:E$270,SCEN!$B52) -> 0.17 | X52: =INDEX(RBC_Table!G$10:G$270,SCEN!$B52) -> 0.34 | Y52: =INDEX(RBC_Table!D$10:D$270,SCEN!$B52) -> -- | Z52: =INDEX(RBC_Table!F$10:F$270,SCEN!$B52) -> -- | AA52: =INDEX(RBC_Table!H$10:H$270,SCEN!$B52) -> -- | AB52: =INDEX(RBC_Table!I$10:I$270,SCEN!$B52) -> --
A53: 28 | B53: 208 | C53: 207-08-9 | D53: Benzo[k]fluoranthene | E53: Benzo[k]fluoranthene | F53: 0 | G53: =INDEX(RBC_Table!J$10:J$270,SCEN!B53) -> -- | I53: 28 | T53: 207-08-9 | U53: Benzo[k]fluoranthene | V53: =INDEX(RBC_Table!C$10:C$270,SCEN!$B53) -> 0.0014 | W53: =INDEX(RBC_Table!E$10:E$270,SCEN!$B53) -> 0.052 | X53: =INDEX(RBC_Table!G$10:G$270,SCEN!$B53) -> 0.1 | Y53: =INDEX(RBC_Table!D$10:D$270,SCEN!$B53) -> -- | Z53: =INDEX(RBC_Table!F$10:F$270,SCEN!$B53) -> -- | AA53: =INDEX(RBC_Table!H$10:H$270,SCEN!$B53) -> -- | AB53: =INDEX(RBC_Table!I$10:I$270,SCEN!$B53) -> --
A54: 29 | B54: 209 | C54: 218-01-9 | D54: Chrysene | E54: Chrysene | F54: 0 | G54: =INDEX(RBC_Table!J$10:J$270,SCEN!B54) -> -- | I54: 29 | T54: 218-01-9 | U54: Chrysene | V54: =INDEX(RBC_Table!C$10:C$270,SCEN!$B54) -> 0.00043 | W54: =INDEX(RBC_Table!E$10:E$270,SCEN!$B54) -> 0.016 | X54: =INDEX(RBC_Table!G$10:G$270,SCEN!$B54) -> 0.03 | Y54: =INDEX(RBC_Table!D$10:D$270,SCEN!$B54) -> -- | Z54: =INDEX(RBC_Table!F$10:F$270,SCEN!$B54) -> -- | AA54: =INDEX(RBC_Table!H$10:H$270,SCEN!$B54) -> -- | AB54: =INDEX(RBC_Table!I$10:I$270,SCEN!$B54) -> --
A55: 30 | B55: 216 | C55: 206-44-0 | D55: Fluoranthene | E55: Fluoranthene | F55: 0 | G55: =INDEX(RBC_Table!J$10:J$270,SCEN!B55) -> -- | I55: 30 | T55: 206-44-0 | U55: Fluoranthene | V55: =INDEX(RBC_Table!C$10:C$270,SCEN!$B55) -> 0.00053 | W55: =INDEX(RBC_Table!E$10:E$270,SCEN!$B55) -> 0.02 | X55: =INDEX(RBC_Table!G$10:G$270,SCEN!$B55) -> 0.038 | Y55: =INDEX(RBC_Table!D$10:D$270,SCEN!$B55) -> -- | Z55: =INDEX(RBC_Table!F$10:F$270,SCEN!$B55) -> -- | AA55: =INDEX(RBC_Table!H$10:H$270,SCEN!$B55) -> -- | AB55: =INDEX(RBC_Table!I$10:I$270,SCEN!$B55) -> --
A56: 31 | B56: 217 | C56: 193-39-5 | D56: Indeno[1,2,3-cd]pyrene | E56: Indeno[1,2,3-cd]pyrene | F56: 0 | G56: =INDEX(RBC_Table!J$10:J$270,SCEN!B56) -> -- | I56: 31 | T56: 193-39-5 | U56: Indeno[1,2,3-cd]pyrene | V56: =INDEX(RBC_Table!C$10:C$270,SCEN!$B56) -> 0.00061 | W56: =INDEX(RBC_Table!E$10:E$270,SCEN!$B56) -> 0.022 | X56: =INDEX(RBC_Table!G$10:G$270,SCEN!$B56) -> 0.043 | Y56: =INDEX(RBC_Table!D$10:D$270,SCEN!$B56) -> -- | Z56: =INDEX(RBC_Table!F$10:F$270,SCEN!$B56) -> -- | AA56: =INDEX(RBC_Table!H$10:H$270,SCEN!$B56) -> -- | AB56: =INDEX(RBC_Table!I$10:I$270,SCEN!$B56) -> --
A57: 32 | B57: 229 | C57: 7782-49-2 | D57: Selenium and compounds | E57: Selenium and compounds | F57: 1 | G57: =INDEX(RBC_Table!J$10:J$270,SCEN!B57) -> HI3 | I57: 32 | T57: 7782-49-2 | U57: Selenium and compounds | V57: =INDEX(RBC_Table!C$10:C$270,SCEN!$B57) -> -- | W57: =INDEX(RBC_Table!E$10:E$270,SCEN!$B57) -> -- | X57: =INDEX(RBC_Table!G$10:G$270,SCEN!$B57) -> -- | Y57: =INDEX(RBC_Table!D$10:D$270,SCEN!$B57) -> -- | Z57: =INDEX(RBC_Table!F$10:F$270,SCEN!$B57) -> -- | AA57: =INDEX(RBC_Table!H$10:H$270,SCEN!$B57) -> -- | AB57: =INDEX(RBC_Table!I$10:I$270,SCEN!$B57) -> 2
A58: 33 | B58: 230 | C58: 7631-86-9 | D58: Silica, crystalline (respirable) | E58: Silica, crystalline (respirable) | F58: 1 | G58: =INDEX(RBC_Table!J$10:J$270,SCEN!B58) -> HI5 | I58: 33 | T58: 7631-86-9 | U58: Silica, crystalline (respirable) | V58: =INDEX(RBC_Table!C$10:C$270,SCEN!$B58) -> -- | W58: =INDEX(RBC_Table!E$10:E$270,SCEN!$B58) -> -- | X58: =INDEX(RBC_Table!G$10:G$270,SCEN!$B58) -> -- | Y58: =INDEX(RBC_Table!D$10:D$270,SCEN!$B58) -> 3 | Z58: =INDEX(RBC_Table!F$10:F$270,SCEN!$B58) -> 13 | AA58: =INDEX(RBC_Table!H$10:H$270,SCEN!$B58) -> 13 | AB58: =INDEX(RBC_Table!I$10:I$270,SCEN!$B58) -> --
A59: 34 | B59: 231 | C59: 1310-73-2 | D59: Sodium hydroxide | E59: Sodium hydroxide | F59: 1 | G59: =INDEX(RBC_Table!J$10:J$270,SCEN!B59) -> HI3 | I59: 34 | T59: 1310-73-2 | U59: Sodium hydroxide | V59: =INDEX(RBC_Table!C$10:C$270,SCEN!$B59) -> -- | W59: =INDEX(RBC_Table!E$10:E$270,SCEN!$B59) -> -- | X59: =INDEX(RBC_Table!G$10:G$270,SCEN!$B59) -> -- | Y59: =INDEX(RBC_Table!D$10:D$270,SCEN!$B59) -> -- | Z59: =INDEX(RBC_Table!F$10:F$270,SCEN!$B59) -> -- | AA59: =INDEX(RBC_Table!H$10:H$270,SCEN!$B59) -> -- | AB59: =INDEX(RBC_Table!I$10:I$270,SCEN!$B59) -> 8
A60: 35 | B60: 242 | C60: 108-88-3 | D60: Toluene | E60: Toluene | F60: 0 | G60: =INDEX(RBC_Table!J$10:J$270,SCEN!B60) -> HI3 | I60: 35 | T60: 108-88-3 | U60: Toluene | V60: =INDEX(RBC_Table!C$10:C$270,SCEN!$B60) -> -- | W60: =INDEX(RBC_Table!E$10:E$270,SCEN!$B60) -> -- | X60: =INDEX(RBC_Table!G$10:G$270,SCEN!$B60) -> -- | Y60: =INDEX(RBC_Table!D$10:D$270,SCEN!$B60) -> 5000 | Z60: =INDEX(RBC_Table!F$10:F$270,SCEN!$B60) -> 22000 | AA60: =INDEX(RBC_Table!H$10:H$270,SCEN!$B60) -> 22000 | AB60: =INDEX(RBC_Table!I$10:I$270,SCEN!$B60) -> 7500
A61: 36 | B61: 255 | C61: 7440-62-2 | D61: Vanadium (fume or dust) | E61: Vanadium (fume or dust) | F61: 1 | G61: =INDEX(RBC_Table!J$10:J$270,SCEN!B61) -> HI3 | I61: 36 | T61: 7440-62-2 | U61: Vanadium (fume or dust) | V61: =INDEX(RBC_Table!C$10:C$270,SCEN!$B61) -> -- | W61: =INDEX(RBC_Table!E$10:E$270,SCEN!$B61) -> -- | X61: =INDEX(RBC_Table!G$10:G$270,SCEN!$B61) -> -- | Y61: =INDEX(RBC_Table!D$10:D$270,SCEN!$B61) -> 0.1 | Z61: =INDEX(RBC_Table!F$10:F$270,SCEN!$B61) -> 0.44 | AA61: =INDEX(RBC_Table!H$10:H$270,SCEN!$B61) -> 0.44 | AB61: =INDEX(RBC_Table!I$10:I$270,SCEN!$B61) -> 0.8
A62: 37 | B62: 261 | C62: 1330-20-7 | D62: Xylene (mixture), including m-xylene, o-xylene, p-xylene | E62: Xylene (mixture), including m-xylene, o-xylene, p-xylene | F62: 1 | G62: =INDEX(RBC_Table!J$10:J$270,SCEN!B62) -> HI3 | I62: 37 | T62: 1330-20-7 | U62: Xylene (mixture), including m-xylene, o-xylene, p-xylene | V62: =INDEX(RBC_Table!C$10:C$270,SCEN!$B62) -> -- | W62: =INDEX(RBC_Table!E$10:E$270,SCEN!$B62) -> -- | X62: =INDEX(RBC_Table!G$10:G$270,SCEN!$B62) -> -- | Y62: =INDEX(RBC_Table!D$10:D$270,SCEN!$B62) -> 220 | Z62: =INDEX(RBC_Table!F$10:F$270,SCEN!$B62) -> 970 | AA62: =INDEX(RBC_Table!H$10:H$270,SCEN!$B62) -> 970 | AB62: =INDEX(RBC_Table!I$10:I$270,SCEN!$B62) -> 8700
A63: 38 | I63: 38
A64: 39 | I64: 39
A65: 40 | I65: 40
A66: 41 | I66: 41
A67: 42 | I67: 42
A68: 43 | I68: 43
A69: 44 | I69: 44
A70: 45 | I70: 45
A71: 46 | I71: 46
A72: 47 | I72: 47
A73: 48 | I73: 48
A74: 49 | I74: 49
A75: 50 | I75: 50
A76: 51 | I76: 51
A77: 52 | I77: 52
A78: 53 | I78: 53
A79: 54 | I79: 54
A80: 55 | I80: 55
A81: 56 | I81: 56
A82: 57 | I82: 57
A83: 58 | I83: 58
A84: 59 | I84: 59
A85: 60 | I85: 60
A86: 61 | I86: 61
A87: 62 | I87: 62
A88: 63 | I88: 63
A89: =+A88+1 -> 64 | I89: 64
A90: 65 | I90: 65
A91: 66 | I91: 66
A92: 67 | I92: 67
A93: =+A92+1 -> 68 | I93: 68
A94: 69 | I94: 69
A95: 70 | I95: 70
Q98: Used to toggle between all, facility and NG only sources
A99: D_ER | B99: A_ER | D99: Index > | E99: ='CAO Summary'!O10 -> 1 | F99: < Do not edit | Q99: ='CAO Summary'!O11 -> 2 | R99: (1,2,3)
A101: %EMIS | C101: SRC | D101: POL | E101: SRCID | F101: POLID | G101: 1 | H101: 1 | I101: 2 | J101: 2 | K101: 3 | L101: 3 | M101: 4 | N101: 4 | O101: 5 | P101: 5 | Q101: 6 | R101: 6 | S101: 7 | T101: 7 | U101: 8 | V101: 8 | W101: 9 | X101: 9
A102: =INDEX($G102:$X102,2*($E$99-1)+1)*Q102 -> 0.106085 | B102: =INDEX($G102:$X102,2*($E$99-1)+2)*Q102 -> 38.92 | C102: EU4 | D102: Arsenic and compounds | E102: 4 | F102: 5 | G102: 0.106085 | H102: 38.92 | Q102: =CHOOSE(Q$99,1,INDEX(O$26:O$36,E102),1-INDEX(O$26:O$36,E102)) -> 1
A103: =INDEX($G103:$X103,2*($E$99-1)+1)*Q103 -> 2.25144e-05 | B103: =INDEX($G103:$X103,2*($E$99-1)+2)*Q103 -> 0.00826 | C103: EU4 | D103: Beryllium and compounds | E103: 4 | F103: 7 | G103: 2.25144e-05 | H103: 0.00826 | Q103: =CHOOSE(Q$99,1,INDEX(O$26:O$36,E103),1-INDEX(O$26:O$36,E103)) -> 1
A104: =INDEX($G104:$X104,2*($E$99-1)+1)*Q104 -> 0.010246 | B104: =INDEX($G104:$X104,2*($E$99-1)+2)*Q104 -> 3.759 | C104: EU4 | D104: Cadmium and compounds | E104: 4 | F104: 9 | G104: 0.010246 | H104: 3.759 | Q104: =CHOOSE(Q$99,1,INDEX(O$26:O$36,E104),1-INDEX(O$26:O$36,E104)) -> 1
A105: =INDEX($G105:$X105,2*($E$99-1)+1)*Q105 -> 9.12024e-05 | B105: =INDEX($G105:$X105,2*($E$99-1)+2)*Q105 -> 0.03346 | C105: EU4 | D105: Chromium VI, chromate, and dichromate particulate | E105: 4 | F105: 10 | G105: 9.12024e-05 | H105: 0.03346 | Q105: =CHOOSE(Q$99,1,INDEX(O$26:O$36,E105),1-INDEX(O$26:O$36,E105)) -> 1
A106: =INDEX($G106:$X106,2*($E$99-1)+1)*Q106 -> 1.24211 | B106: =INDEX($G106:$X106,2*($E$99-1)+2)*Q106 -> 455.7 | C106: EU4 | D106: Lead and compounds | E106: 4 | F106: 18 | G106: 1.24211 | H106: 455.7 | Q106: =CHOOSE(Q$99,1,INDEX(O$26:O$36,E106),1-INDEX(O$26:O$36,E106)) -> 1
A107: =INDEX($G107:$X107,2*($E$99-1)+1)*Q107 -> 0.0029574 | B107: =INDEX($G107:$X107,2*($E$99-1)+2)*Q107 -> 1.085 | C107: EU4 | D107: Manganese and compounds | E107: 4 | F107: 19 | G107: 0.0029574 | H107: 1.085 | Q107: =CHOOSE(Q$99,1,INDEX(O$26:O$36,E107),1-INDEX(O$26:O$36,E107)) -> 1
A108: =INDEX($G108:$X108,2*($E$99-1)+1)*Q108 -> 0.00173056 | B108: =INDEX($G108:$X108,2*($E$99-1)+2)*Q108 -> 0.6349 | C108: EU4 | D108: Mercury and compounds | E108: 4 | F108: 20 | G108: 0.00173056 | H108: 0.6349 | Q108: =CHOOSE(Q$99,1,INDEX(O$26:O$36,E108),1-INDEX(O$26:O$36,E108)) -> 1
A109: =INDEX($G109:$X109,2*($E$99-1)+1)*Q109 -> 0.00503712 | B109: =INDEX($G109:$X109,2*($E$99-1)+2)*Q109 -> 1.848 | C109: EU4 | D109: Nickel and compounds | E109: 4 | F109: 23 | G109: 0.00503712 | H109: 1.848 | Q109: =CHOOSE(Q$99,1,INDEX(O$26:O$36,E109),1-INDEX(O$26:O$36,E109)) -> 1
A110: =INDEX($G110:$X110,2*($E$99-1)+1)*Q110 -> 0.0692604 | B110: =INDEX($G110:$X110,2*($E$99-1)+2)*Q110 -> 25.41 | C110: EU4 | D110: Selenium and compounds | E110: 4 | F110: 32 | G110: 0.0692604 | H110: 25.41 | Q110: =CHOOSE(Q$99,1,INDEX(O$26:O$36,E110),1-INDEX(O$26:O$36,E110)) -> 1
A111: =INDEX($G111:$X111,2*($E$99-1)+1)*Q111 -> 0.00564768 | B111: =INDEX($G111:$X111,2*($E$99-1)+2)*Q111 -> 2.072 | C111: EU4 | D111: Antimony and compounds | E111: 4 | F111: 4 | G111: 0.00564768 | H111: 2.072 | Q111: =CHOOSE(Q$99,1,INDEX(O$26:O$36,E111),1-INDEX(O$26:O$36,E111)) -> 1
A112: =INDEX($G112:$X112,2*($E$99-1)+1)*Q112 -> 0.000202248 | B112: =INDEX($G112:$X112,2*($E$99-1)+2)*Q112 -> 0.0742 | C112: EU4 | D112: Cobalt and compounds | E112: 4 | F112: 11 | G112: 0.000202248 | H112: 0.0742 | Q112: =CHOOSE(Q$99,1,INDEX(O$26:O$36,E112),1-INDEX(O$26:O$36,E112)) -> 1
A113: =INDEX($G113:$X113,2*($E$99-1)+1)*Q113 -> 0.0167332 | B113: =INDEX($G113:$X113,2*($E$99-1)+2)*Q113 -> 6.139 | C113: EU4 | D113: Copper and compounds | E113: 4 | F113: 12 | G113: 0.0167332 | H113: 6.139 | Q113: =CHOOSE(Q$99,1,INDEX(O$26:O$36,E113),1-INDEX(O$26:O$36,E113)) -> 1
A114: =INDEX($G114:$X114,2*($E$99-1)+1)*Q114 -> 0.049608 | B114: =INDEX($G114:$X114,2*($E$99-1)+2)*Q114 -> 18.2 | C114: EU4 | D114: Formaldehyde | E114: 4 | F114: 14 | G114: 0.049608 | H114: 18.2 | Q114: =CHOOSE(Q$99,1,INDEX(O$26:O$36,E114),1-INDEX(O$26:O$36,E114)) -> 1
A115: =INDEX($G115:$X115,2*($E$99-1)+1)*Q115 -> 0 | B115: =INDEX($G115:$X115,2*($E$99-1)+2)*Q115 -> 0 | C115: EU4NG | D115: Acetaldehyde | E115: 5 | F115: 1 | G115: 0.0170262 | H115: 5.1788 | Q115: =CHOOSE(Q$99,1,INDEX(O$26:O$36,E115),1-INDEX(O$26:O$36,E115)) -> 0
A116: =INDEX($G116:$X116,2*($E$99-1)+1)*Q116 -> 0 | B116: =INDEX($G116:$X116,2*($E$99-1)+2)*Q116 -> 0 | C116: EU4NG | D116: Acrolein | E116: 5 | F116: 2 | G116: 1.43211e-05 | H116: 0.004356 | Q116: =CHOOSE(Q$99,1,INDEX(O$26:O$36,E116),1-INDEX(O$26:O$36,E116)) -> 0
A117: =INDEX($G117:$X117,2*($E$99-1)+1)*Q117 -> 0 | B117: =INDEX($G117:$X117,2*($E$99-1)+2)*Q117 -> 0 | C117: EU4NG | D117: Barium and compounds | E117: 5 | F117: 9999 | G117: 0.00350071 | H117: 1.0648 | Q117: =CHOOSE(Q$99,1,INDEX(O$26:O$36,E117),1-INDEX(O$26:O$36,E117)) -> 0
A118: =INDEX($G118:$X118,2*($E$99-1)+1)*Q118 -> 0 | B118: =INDEX($G118:$X118,2*($E$99-1)+2)*Q118 -> 0 | C118: EU4NG | D118: Benzene | E118: 5 | F118: 6 | G118: 0.00167079 | H118: 0.5082 | Q118: =CHOOSE(Q$99,1,INDEX(O$26:O$36,E118),1-INDEX(O$26:O$36,E118)) -> 0
A119: =INDEX($G119:$X119,2*($E$99-1)+1)*Q119 -> 0 | B119: =INDEX($G119:$X119,2*($E$99-1)+2)*Q119 -> 0 | C119: EU4NG | D119: Hexane | E119: 5 | F119: 15 | G119: 1.43211 | H119: 435.6 | Q119: =CHOOSE(Q$99,1,INDEX(O$26:O$36,E119),1-INDEX(O$26:O$36,E119)) -> 0
A120: =INDEX($G120:$X120,2*($E$99-1)+1)*Q120 -> 0 | B120: =INDEX($G120:$X120,2*($E$99-1)+2)*Q120 -> 0 | C120: EU4NG | D120: Molybdenum trioxide | E120: 5 | F120: 9999 | G120: 0.00131277 | H120: 0.3993 | Q120: =CHOOSE(Q$99,1,INDEX(O$26:O$36,E120),1-INDEX(O$26:O$36,E120)) -> 0
A121: =INDEX($G121:$X121,2*($E$99-1)+1)*Q121 -> 0 | B121: =INDEX($G121:$X121,2*($E$99-1)+2)*Q121 -> 0 | C121: EU4NG | D121: Acenaphthene | E121: 5 | F121: 9999 | G121: 1.43211e-06 | H121: 0.0004356 | Q121: =CHOOSE(Q$99,1,INDEX(O$26:O$36,E121),1-INDEX(O$26:O$36,E121)) -> 0
A122: =INDEX($G122:$X122,2*($E$99-1)+1)*Q122 -> 0 | B122: =INDEX($G122:$X122,2*($E$99-1)+2)*Q122 -> 0 | C122: EU4NG | D122: Acenaphthylene | E122: 5 | F122: 9999 | G122: 1.43211e-06 | H122: 0.0004356 | Q122: =CHOOSE(Q$99,1,INDEX(O$26:O$36,E122),1-INDEX(O$26:O$36,E122)) -> 0
A123: =INDEX($G123:$X123,2*($E$99-1)+1)*Q123 -> 0 | B123: =INDEX($G123:$X123,2*($E$99-1)+2)*Q123 -> 0 | C123: EU4NG | D123: Anthracene | E123: 5 | F123: 9999 | G123: 1.90948e-06 | H123: 0.0005808 | Q123: =CHOOSE(Q$99,1,INDEX(O$26:O$36,E123),1-INDEX(O$26:O$36,E123)) -> 0
A124: =INDEX($G124:$X124,2*($E$99-1)+1)*Q124 -> 0 | B124: =INDEX($G124:$X124,2*($E$99-1)+2)*Q124 -> 0 | C124: EU4NG | D124: Benz[a]anthracene | E124: 5 | F124: 24 | G124: 1.43211e-06 | H124: 0.0004356 | Q124: =CHOOSE(Q$99,1,INDEX(O$26:O$36,E124),1-INDEX(O$26:O$36,E124)) -> 0
A125: =INDEX($G125:$X125,2*($E$99-1)+1)*Q125 -> 0 | B125: =INDEX($G125:$X125,2*($E$99-1)+2)*Q125 -> 0 | C125: EU4NG | D125: Benzo[a]pyrene | E125: 5 | F125: 25 | G125: 9.5474e-07 | H125: 0.0002904 | Q125: =CHOOSE(Q$99,1,INDEX(O$26:O$36,E125),1-INDEX(O$26:O$36,E125)) -> 0
A126: =INDEX($G126:$X126,2*($E$99-1)+1)*Q126 -> 0 | B126: =INDEX($G126:$X126,2*($E$99-1)+2)*Q126 -> 0 | C126: EU4NG | D126: Benzo[b]fluoranthene | E126: 5 | F126: 26 | G126: 1.43211e-06 | H126: 0.0004356 | Q126: =CHOOSE(Q$99,1,INDEX(O$26:O$36,E126),1-INDEX(O$26:O$36,E126)) -> 0
A127: =INDEX($G127:$X127,2*($E$99-1)+1)*Q127 -> 0 | B127: =INDEX($G127:$X127,2*($E$99-1)+2)*Q127 -> 0 | C127: EU4NG | D127: Benzo[g,h,i]perylene | E127: 5 | F127: 27 | G127: 9.5474e-07 | H127: 0.0002904 | Q127: =CHOOSE(Q$99,1,INDEX(O$26:O$36,E127),1-INDEX(O$26:O$36,E127)) -> 0
A128: =INDEX($G128:$X128,2*($E$99-1)+1)*Q128 -> 0 | B128: =INDEX($G128:$X128,2*($E$99-1)+2)*Q128 -> 0 | C128: EU4NG | D128: Benzo[k]fluoranthene | E128: 5 | F128: 28 | G128: 1.43211e-06 | H128: 0.0004356 | Q128: =CHOOSE(Q$99,1,INDEX(O$26:O$36,E128),1-INDEX(O$26:O$36,E128)) -> 0
A129: =INDEX($G129:$X129,2*($E$99-1)+1)*Q129 -> 0 | B129: =INDEX($G129:$X129,2*($E$99-1)+2)*Q129 -> 0 | C129: EU4NG | D129: Chrysene | E129: 5 | F129: 29 | G129: 1.43211e-06 | H129: 0.0004356 | Q129: =CHOOSE(Q$99,1,INDEX(O$26:O$36,E129),1-INDEX(O$26:O$36,E129)) -> 0
A130: =INDEX($G130:$X130,2*($E$99-1)+1)*Q130 -> 0 | B130: =INDEX($G130:$X130,2*($E$99-1)+2)*Q130 -> 0 | C130: EU4NG | D130: Fluoranthene | E130: 5 | F130: 30 | G130: 2.38685e-06 | H130: 0.000726 | Q130: =CHOOSE(Q$99,1,INDEX(O$26:O$36,E130),1-INDEX(O$26:O$36,E130)) -> 0
A131: =INDEX($G131:$X131,2*($E$99-1)+1)*Q131 -> 0 | B131: =INDEX($G131:$X131,2*($E$99-1)+2)*Q131 -> 0 | C131: EU4NG | D131: Fluorene | E131: 5 | F131: 9999 | G131: 2.22773e-06 | H131: 0.0006776 | Q131: =CHOOSE(Q$99,1,INDEX(O$26:O$36,E131),1-INDEX(O$26:O$36,E131)) -> 0
A132: =INDEX($G132:$X132,2*($E$99-1)+1)*Q132 -> 0 | B132: =INDEX($G132:$X132,2*($E$99-1)+2)*Q132 -> 0 | C132: EU4NG | D132: Indeno[1,2,3-cd]pyrene | E132: 5 | F132: 31 | G132: 1.43211e-06 | H132: 0.0004356 | Q132: =CHOOSE(Q$99,1,INDEX(O$26:O$36,E132),1-INDEX(O$26:O$36,E132)) -> 0
A133: =INDEX($G133:$X133,2*($E$99-1)+1)*Q133 -> 0 | B133: =INDEX($G133:$X133,2*($E$99-1)+2)*Q133 -> 0 | C133: EU4NG | D133: 2-Methyl naphthalene | E133: 5 | F133: 9999 | G133: 1.90948e-05 | H133: 0.005808 | Q133: =CHOOSE(Q$99,1,INDEX(O$26:O$36,E133),1-INDEX(O$26:O$36,E133)) -> 0
A134: =INDEX($G134:$X134,2*($E$99-1)+1)*Q134 -> 0 | B134: =INDEX($G134:$X134,2*($E$99-1)+2)*Q134 -> 0 | C134: EU4NG | D134: Naphthalene | E134: 5 | F134: 22 | G134: 0.000485326 | H134: 0.14762 | Q134: =CHOOSE(Q$99,1,INDEX(O$26:O$36,E134),1-INDEX(O$26:O$36,E134)) -> 0
A135: =INDEX($G135:$X135,2*($E$99-1)+1)*Q135 -> 0 | B135: =INDEX($G135:$X135,2*($E$99-1)+2)*Q135 -> 0 | C135: EU4NG | D135: Phenanthrene | E135: 5 | F135: 9999 | G135: 1.35255e-05 | H135: 0.004114 | Q135: =CHOOSE(Q$99,1,INDEX(O$26:O$36,E135),1-INDEX(O$26:O$36,E135)) -> 0
A136: =INDEX($G136:$X136,2*($E$99-1)+1)*Q136 -> 0 | B136: =INDEX($G136:$X136,2*($E$99-1)+2)*Q136 -> 0 | C136: EU4NG | D136: Pyrene | E136: 5 | F136: 9999 | G136: 3.97808e-06 | H136: 0.00121 | Q136: =CHOOSE(Q$99,1,INDEX(O$26:O$36,E136),1-INDEX(O$26:O$36,E136)) -> 0
A137: =INDEX($G137:$X137,2*($E$99-1)+1)*Q137 -> 0 | B137: =INDEX($G137:$X137,2*($E$99-1)+2)*Q137 -> 0 | C137: EU4NG | D137: 7,12-Dimethylbenz[a]anthracene | E137: 5 | F137: 9999 | G137: 1.27299e-05 | H137: 0.003872 | Q137: =CHOOSE(Q$99,1,INDEX(O$26:O$36,E137),1-INDEX(O$26:O$36,E137)) -> 0
A138: =INDEX($G138:$X138,2*($E$99-1)+1)*Q138 -> 0 | B138: =INDEX($G138:$X138,2*($E$99-1)+2)*Q138 -> 0 | C138: EU4NG | D138: 3-Methylcholanthrene | E138: 5 | F138: 9999 | G138: 1.43211e-06 | H138: 0.0004356 | Q138: =CHOOSE(Q$99,1,INDEX(O$26:O$36,E138),1-INDEX(O$26:O$36,E138)) -> 0
A139: =INDEX($G139:$X139,2*($E$99-1)+1)*Q139 -> 0 | B139: =INDEX($G139:$X139,2*($E$99-1)+2)*Q139 -> 0 | C139: EU4NG | D139: Selenium and compounds | E139: 5 | F139: 32 | G139: 1.90948e-05 | H139: 0.005808 | Q139: =CHOOSE(Q$99,1,INDEX(O$26:O$36,E139),1-INDEX(O$26:O$36,E139)) -> 0
A140: =INDEX($G140:$X140,2*($E$99-1)+1)*Q140 -> 0 | B140: =INDEX($G140:$X140,2*($E$99-1)+2)*Q140 -> 0 | C140: EU4NG | D140: Toluene | E140: 5 | F140: 35 | G140: 0.0027051 | H140: 0.8228 | Q140: =CHOOSE(Q$99,1,INDEX(O$26:O$36,E140),1-INDEX(O$26:O$36,E140)) -> 0
A141: =INDEX($G141:$X141,2*($E$99-1)+1)*Q141 -> 0 | B141: =INDEX($G141:$X141,2*($E$99-1)+2)*Q141 -> 0 | C141: EU4NG | D141: Vanadium (fume or dust) | E141: 5 | F141: 36 | G141: 0.00182992 | H141: 0.5566 | Q141: =CHOOSE(Q$99,1,INDEX(O$26:O$36,E141),1-INDEX(O$26:O$36,E141)) -> 0
A142: =INDEX($G142:$X142,2*($E$99-1)+1)*Q142 -> 0 | B142: =INDEX($G142:$X142,2*($E$99-1)+2)*Q142 -> 0 | C142: EU4NG | D142: Zinc and compounds | E142: 5 | F142: 9999 | G142: 0.0230729 | H142: 7.018 | Q142: =CHOOSE(Q$99,1,INDEX(O$26:O$36,E142),1-INDEX(O$26:O$36,E142)) -> 0
A143: =INDEX($G143:$X143,2*($E$99-1)+1)*Q143 -> 0 | B143: =INDEX($G143:$X143,2*($E$99-1)+2)*Q143 -> 0 | C143: EU4NG | D143: Ammonia | E143: 5 | F143: 3 | G143: 2.54597 | H143: 774.4 | Q143: =CHOOSE(Q$99,1,INDEX(O$26:O$36,E143),1-INDEX(O$26:O$36,E143)) -> 0
A144: =INDEX($G144:$X144,2*($E$99-1)+1)*Q144 -> 0 | B144: =INDEX($G144:$X144,2*($E$99-1)+2)*Q144 -> 0 | C144: EU6 | D144: Acetaldehyde | E144: 7 | F144: 1 | G144: 0.00612099 | H144: 1.8618 | Q144: =CHOOSE(Q$99,1,INDEX(O$26:O$36,E144),1-INDEX(O$26:O$36,E144)) -> 0
A145: =INDEX($G145:$X145,2*($E$99-1)+1)*Q145 -> 0 | B145: =INDEX($G145:$X145,2*($E$99-1)+2)*Q145 -> 0 | C145: EU6 | D145: Acrolein | E145: 7 | F145: 2 | G145: 5.14849e-06 | H145: 0.001566 | Q145: =CHOOSE(Q$99,1,INDEX(O$26:O$36,E145),1-INDEX(O$26:O$36,E145)) -> 0
A146: =INDEX($G146:$X146,2*($E$99-1)+1)*Q146 -> 0 | B146: =INDEX($G146:$X146,2*($E$99-1)+2)*Q146 -> 0 | C146: EU6 | D146: Arsenic and compounds | E146: 7 | F146: 5 | G146: 5.72055e-05 | H146: 0.0174 | Q146: =CHOOSE(Q$99,1,INDEX(O$26:O$36,E146),1-INDEX(O$26:O$36,E146)) -> 0
A147: =INDEX($G147:$X147,2*($E$99-1)+1)*Q147 -> 0 | B147: =INDEX($G147:$X147,2*($E$99-1)+2)*Q147 -> 0 | C147: EU6 | D147: Barium and compounds | E147: 7 | F147: 9999 | G147: 0.00125852 | H147: 0.3828 | Q147: =CHOOSE(Q$99,1,INDEX(O$26:O$36,E147),1-INDEX(O$26:O$36,E147)) -> 0
A148: =INDEX($G148:$X148,2*($E$99-1)+1)*Q148 -> 0 | B148: =INDEX($G148:$X148,2*($E$99-1)+2)*Q148 -> 0 | C148: EU6 | D148: Benzene | E148: 7 | F148: 6 | G148: 0.000600658 | H148: 0.1827 | Q148: =CHOOSE(Q$99,1,INDEX(O$26:O$36,E148),1-INDEX(O$26:O$36,E148)) -> 0
A149: =INDEX($G149:$X149,2*($E$99-1)+1)*Q149 -> 0 | B149: =INDEX($G149:$X149,2*($E$99-1)+2)*Q149 -> 0 | C149: EU6 | D149: Beryllium and compounds | E149: 7 | F149: 7 | G149: 3.43233e-06 | H149: 0.001044 | Q149: =CHOOSE(Q$99,1,INDEX(O$26:O$36,E149),1-INDEX(O$26:O$36,E149)) -> 0
A150: =INDEX($G150:$X150,2*($E$99-1)+1)*Q150 -> 0 | B150: =INDEX($G150:$X150,2*($E$99-1)+2)*Q150 -> 0 | C150: EU6 | D150: Cadmium and compounds | E150: 7 | F150: 9 | G150: 0.00031463 | H150: 0.0957 | Q150: =CHOOSE(Q$99,1,INDEX(O$26:O$36,E150),1-INDEX(O$26:O$36,E150)) -> 0
A151: =INDEX($G151:$X151,2*($E$99-1)+1)*Q151 -> 0 | B151: =INDEX($G151:$X151,2*($E$99-1)+2)*Q151 -> 0 | C151: EU6 | D151: Chromium VI, chromate, and dichromate particulate | E151: 7 | F151: 10 | G151: 0.000400438 | H151: 0.1218 | Q151: =CHOOSE(Q$99,1,INDEX(O$26:O$36,E151),1-INDEX(O$26:O$36,E151)) -> 0
A152: =INDEX($G152:$X152,2*($E$99-1)+1)*Q152 -> 0 | B152: =INDEX($G152:$X152,2*($E$99-1)+2)*Q152 -> 0 | C152: EU6 | D152: Cobalt and compounds | E152: 7 | F152: 11 | G152: 2.40263e-05 | H152: 0.007308 | Q152: =CHOOSE(Q$99,1,INDEX(O$26:O$36,E152),1-INDEX(O$26:O$36,E152)) -> 0
A153: =INDEX($G153:$X153,2*($E$99-1)+1)*Q153 -> 0 | B153: =INDEX($G153:$X153,2*($E$99-1)+2)*Q153 -> 0 | C153: EU6 | D153: Copper and compounds | E153: 7 | F153: 12 | G153: 0.000243123 | H153: 0.07395 | Q153: =CHOOSE(Q$99,1,INDEX(O$26:O$36,E153),1-INDEX(O$26:O$36,E153)) -> 0
A154: =INDEX($G154:$X154,2*($E$99-1)+1)*Q154 -> 0 | B154: =INDEX($G154:$X154,2*($E$99-1)+2)*Q154 -> 0 | C154: EU6 | D154: Formaldehyde | E154: 7 | F154: 14 | G154: 0.0214521 | H154: 6.525 | Q154: =CHOOSE(Q$99,1,INDEX(O$26:O$36,E154),1-INDEX(O$26:O$36,E154)) -> 0
A155: =INDEX($G155:$X155,2*($E$99-1)+1)*Q155 -> 0 | B155: =INDEX($G155:$X155,2*($E$99-1)+2)*Q155 -> 0 | C155: EU6 | D155: Hexane | E155: 7 | F155: 15 | G155: 0.514849 | H155: 156.6 | Q155: =CHOOSE(Q$99,1,INDEX(O$26:O$36,E155),1-INDEX(O$26:O$36,E155)) -> 0
A156: =INDEX($G156:$X156,2*($E$99-1)+1)*Q156 -> 0 | B156: =INDEX($G156:$X156,2*($E$99-1)+2)*Q156 -> 0 | C156: EU6 | D156: Manganese and compounds | E156: 7 | F156: 19 | G156: 0.00010869 | H156: 0.03306 | Q156: =CHOOSE(Q$99,1,INDEX(O$26:O$36,E156),1-INDEX(O$26:O$36,E156)) -> 0
A157: =INDEX($G157:$X157,2*($E$99-1)+1)*Q157 -> 0 | B157: =INDEX($G157:$X157,2*($E$99-1)+2)*Q157 -> 0 | C157: EU6 | D157: Mercury and compounds | E157: 7 | F157: 20 | G157: 7.43671e-05 | H157: 0.02262 | Q157: =CHOOSE(Q$99,1,INDEX(O$26:O$36,E157),1-INDEX(O$26:O$36,E157)) -> 0
A158: =INDEX($G158:$X158,2*($E$99-1)+1)*Q158 -> 0 | B158: =INDEX($G158:$X158,2*($E$99-1)+2)*Q158 -> 0 | C158: EU6 | D158: Molybdenum trioxide | E158: 7 | F158: 9999 | G158: 0.000471945 | H158: 0.14355 | Q158: =CHOOSE(Q$99,1,INDEX(O$26:O$36,E158),1-INDEX(O$26:O$36,E158)) -> 0
A159: =INDEX($G159:$X159,2*($E$99-1)+1)*Q159 -> 0 | B159: =INDEX($G159:$X159,2*($E$99-1)+2)*Q159 -> 0 | C159: EU6 | D159: Nickel and compounds | E159: 7 | F159: 23 | G159: 0.000600658 | H159: 0.1827 | Q159: =CHOOSE(Q$99,1,INDEX(O$26:O$36,E159),1-INDEX(O$26:O$36,E159)) -> 0
A160: =INDEX($G160:$X160,2*($E$99-1)+1)*Q160 -> 0 | B160: =INDEX($G160:$X160,2*($E$99-1)+2)*Q160 -> 0 | C160: EU6 | D160: Acenaphthene | E160: 7 | F160: 9999 | G160: 5.14849e-07 | H160: 0.0001566 | Q160: =CHOOSE(Q$99,1,INDEX(O$26:O$36,E160),1-INDEX(O$26:O$36,E160)) -> 0
A161: =INDEX($G161:$X161,2*($E$99-1)+1)*Q161 -> 0 | B161: =INDEX($G161:$X161,2*($E$99-1)+2)*Q161 -> 0 | C161: EU6 | D161: Acenaphthylene | E161: 7 | F161: 9999 | G161: 5.14849e-07 | H161: 0.0001566 | Q161: =CHOOSE(Q$99,1,INDEX(O$26:O$36,E161),1-INDEX(O$26:O$36,E161)) -> 0
A162: =INDEX($G162:$X162,2*($E$99-1)+1)*Q162 -> 0 | B162: =INDEX($G162:$X162,2*($E$99-1)+2)*Q162 -> 0 | C162: EU6 | D162: Anthracene | E162: 7 | F162: 9999 | G162: 6.86466e-07 | H162: 0.0002088 | Q162: =CHOOSE(Q$99,1,INDEX(O$26:O$36,E162),1-INDEX(O$26:O$36,E162)) -> 0
A163: =INDEX($G163:$X163,2*($E$99-1)+1)*Q163 -> 0 | B163: =INDEX($G163:$X163,2*($E$99-1)+2)*Q163 -> 0 | C163: EU6 | D163: Benz[a]anthracene | E163: 7 | F163: 24 | G163: 5.14849e-07 | H163: 0.0001566 | Q163: =CHOOSE(Q$99,1,INDEX(O$26:O$36,E163),1-INDEX(O$26:O$36,E163)) -> 0
A164: =INDEX($G164:$X164,2*($E$99-1)+1)*Q164 -> 0 | B164: =INDEX($G164:$X164,2*($E$99-1)+2)*Q164 -> 0 | C164: EU6 | D164: Benzo[a]pyrene | E164: 7 | F164: 25 | G164: 3.43233e-07 | H164: 0.0001044 | Q164: =CHOOSE(Q$99,1,INDEX(O$26:O$36,E164),1-INDEX(O$26:O$36,E164)) -> 0
A165: =INDEX($G165:$X165,2*($E$99-1)+1)*Q165 -> 0 | B165: =INDEX($G165:$X165,2*($E$99-1)+2)*Q165 -> 0 | C165: EU6 | D165: Benzo[b]fluoranthene | E165: 7 | F165: 26 | G165: 5.14849e-07 | H165: 0.0001566 | Q165: =CHOOSE(Q$99,1,INDEX(O$26:O$36,E165),1-INDEX(O$26:O$36,E165)) -> 0
A166: =INDEX($G166:$X166,2*($E$99-1)+1)*Q166 -> 0 | B166: =INDEX($G166:$X166,2*($E$99-1)+2)*Q166 -> 0 | C166: EU6 | D166: Benzo[g,h,i]perylene | E166: 7 | F166: 27 | G166: 3.43233e-07 | H166: 0.0001044 | Q166: =CHOOSE(Q$99,1,INDEX(O$26:O$36,E166),1-INDEX(O$26:O$36,E166)) -> 0
A167: =INDEX($G167:$X167,2*($E$99-1)+1)*Q167 -> 0 | B167: =INDEX($G167:$X167,2*($E$99-1)+2)*Q167 -> 0 | C167: EU6 | D167: Benzo[k]fluoranthene | E167: 7 | F167: 28 | G167: 5.14849e-07 | H167: 0.0001566 | Q167: =CHOOSE(Q$99,1,INDEX(O$26:O$36,E167),1-INDEX(O$26:O$36,E167)) -> 0
A168: =INDEX($G168:$X168,2*($E$99-1)+1)*Q168 -> 0 | B168: =INDEX($G168:$X168,2*($E$99-1)+2)*Q168 -> 0 | C168: EU6 | D168: Chrysene | E168: 7 | F168: 29 | G168: 5.14849e-07 | H168: 0.0001566 | Q168: =CHOOSE(Q$99,1,INDEX(O$26:O$36,E168),1-INDEX(O$26:O$36,E168)) -> 0
A169: =INDEX($G169:$X169,2*($E$99-1)+1)*Q169 -> 0 | B169: =INDEX($G169:$X169,2*($E$99-1)+2)*Q169 -> 0 | C169: EU6 | D169: Fluoranthene | E169: 7 | F169: 30 | G169: 8.58082e-07 | H169: 0.000261 | Q169: =CHOOSE(Q$99,1,INDEX(O$26:O$36,E169),1-INDEX(O$26:O$36,E169)) -> 0
A170: =INDEX($G170:$X170,2*($E$99-1)+1)*Q170 -> 0 | B170: =INDEX($G170:$X170,2*($E$99-1)+2)*Q170 -> 0 | C170: EU6 | D170: Fluorene | E170: 7 | F170: 9999 | G170: 8.00877e-07 | H170: 0.0002436 | Q170: =CHOOSE(Q$99,1,INDEX(O$26:O$36,E170),1-INDEX(O$26:O$36,E170)) -> 0
A171: =INDEX($G171:$X171,2*($E$99-1)+1)*Q171 -> 0 | B171: =INDEX($G171:$X171,2*($E$99-1)+2)*Q171 -> 0 | C171: EU6 | D171: Indeno[1,2,3-cd]pyrene | E171: 7 | F171: 31 | G171: 5.14849e-07 | H171: 0.0001566 | Q171: =CHOOSE(Q$99,1,INDEX(O$26:O$36,E171),1-INDEX(O$26:O$36,E171)) -> 0
A172: =INDEX($G172:$X172,2*($E$99-1)+1)*Q172 -> 0 | B172: =INDEX($G172:$X172,2*($E$99-1)+2)*Q172 -> 0 | C172: EU6 | D172: 2-Methyl naphthalene | E172: 7 | F172: 9999 | G172: 6.86466e-06 | H172: 0.002088 | Q172: =CHOOSE(Q$99,1,INDEX(O$26:O$36,E172),1-INDEX(O$26:O$36,E172)) -> 0
A173: =INDEX($G173:$X173,2*($E$99-1)+1)*Q173 -> 0 | B173: =INDEX($G173:$X173,2*($E$99-1)+2)*Q173 -> 0 | C173: EU6 | D173: Naphthalene | E173: 7 | F173: 22 | G173: 0.000174477 | H173: 0.05307 | Q173: =CHOOSE(Q$99,1,INDEX(O$26:O$36,E173),1-INDEX(O$26:O$36,E173)) -> 0
A174: =INDEX($G174:$X174,2*($E$99-1)+1)*Q174 -> 0 | B174: =INDEX($G174:$X174,2*($E$99-1)+2)*Q174 -> 0 | C174: EU6 | D174: Phenanthrene | E174: 7 | F174: 9999 | G174: 4.86247e-06 | H174: 0.001479 | Q174: =CHOOSE(Q$99,1,INDEX(O$26:O$36,E174),1-INDEX(O$26:O$36,E174)) -> 0
A175: =INDEX($G175:$X175,2*($E$99-1)+1)*Q175 -> 0 | B175: =INDEX($G175:$X175,2*($E$99-1)+2)*Q175 -> 0 | C175: EU6 | D175: Pyrene | E175: 7 | F175: 9999 | G175: 1.43014e-06 | H175: 0.000435 | Q175: =CHOOSE(Q$99,1,INDEX(O$26:O$36,E175),1-INDEX(O$26:O$36,E175)) -> 0
A176: =INDEX($G176:$X176,2*($E$99-1)+1)*Q176 -> 0 | B176: =INDEX($G176:$X176,2*($E$99-1)+2)*Q176 -> 0 | C176: EU6 | D176: 7,12-Dimethylbenz[a]anthracene | E176: 7 | F176: 9999 | G176: 4.57644e-06 | H176: 0.001392 | Q176: =CHOOSE(Q$99,1,INDEX(O$26:O$36,E176),1-INDEX(O$26:O$36,E176)) -> 0
A177: =INDEX($G177:$X177,2*($E$99-1)+1)*Q177 -> 0 | B177: =INDEX($G177:$X177,2*($E$99-1)+2)*Q177 -> 0 | C177: EU6 | D177: 3-Methylcholanthrene | E177: 7 | F177: 9999 | G177: 5.14849e-07 | H177: 0.0001566 | Q177: =CHOOSE(Q$99,1,INDEX(O$26:O$36,E177),1-INDEX(O$26:O$36,E177)) -> 0
A178: =INDEX($G178:$X178,2*($E$99-1)+1)*Q178 -> 0 | B178: =INDEX($G178:$X178,2*($E$99-1)+2)*Q178 -> 0 | C178: EU6 | D178: Selenium and compounds | E178: 7 | F178: 32 | G178: 6.86466e-06 | H178: 0.002088 | Q178: =CHOOSE(Q$99,1,INDEX(O$26:O$36,E178),1-INDEX(O$26:O$36,E178)) -> 0
A179: =INDEX($G179:$X179,2*($E$99-1)+1)*Q179 -> 0 | B179: =INDEX($G179:$X179,2*($E$99-1)+2)*Q179 -> 0 | C179: EU6 | D179: Toluene | E179: 7 | F179: 35 | G179: 0.000972493 | H179: 0.2958 | Q179: =CHOOSE(Q$99,1,INDEX(O$26:O$36,E179),1-INDEX(O$26:O$36,E179)) -> 0
A180: =INDEX($G180:$X180,2*($E$99-1)+1)*Q180 -> 0 | B180: =INDEX($G180:$X180,2*($E$99-1)+2)*Q180 -> 0 | C180: EU6 | D180: Vanadium (fume or dust) | E180: 7 | F180: 36 | G180: 0.000657863 | H180: 0.2001 | Q180: =CHOOSE(Q$99,1,INDEX(O$26:O$36,E180),1-INDEX(O$26:O$36,E180)) -> 0
A181: =INDEX($G181:$X181,2*($E$99-1)+1)*Q181 -> 0 | B181: =INDEX($G181:$X181,2*($E$99-1)+2)*Q181 -> 0 | C181: EU6 | D181: Zinc and compounds | E181: 7 | F181: 9999 | G181: 0.00829479 | H181: 2.523 | Q181: =CHOOSE(Q$99,1,INDEX(O$26:O$36,E181),1-INDEX(O$26:O$36,E181)) -> 0
A182: =INDEX($G182:$X182,2*($E$99-1)+1)*Q182 -> 0 | B182: =INDEX($G182:$X182,2*($E$99-1)+2)*Q182 -> 0 | C182: EU6 | D182: Ammonia | E182: 7 | F182: 3 | G182: 0.915288 | H182: 278.4 | Q182: =CHOOSE(Q$99,1,INDEX(O$26:O$36,E182),1-INDEX(O$26:O$36,E182)) -> 0
A183: =INDEX($G183:$X183,2*($E$99-1)+1)*Q183 -> 0 | B183: =INDEX($G183:$X183,2*($E$99-1)+2)*Q183 -> 0 | C183: EU7 | D183: Acetaldehyde | E183: 8 | F183: 1 | G183: 0.00334192 | H183: 0.8132 | Q183: =CHOOSE(Q$99,1,INDEX(O$26:O$36,E183),1-INDEX(O$26:O$36,E183)) -> 0
A184: =INDEX($G184:$X184,2*($E$99-1)+1)*Q184 -> 0 | B184: =INDEX($G184:$X184,2*($E$99-1)+2)*Q184 -> 0 | C184: EU7 | D184: Acrolein | E184: 8 | F184: 2 | G184: 2.81096e-06 | H184: 0.000684 | Q184: =CHOOSE(Q$99,1,INDEX(O$26:O$36,E184),1-INDEX(O$26:O$36,E184)) -> 0
A185: =INDEX($G185:$X185,2*($E$99-1)+1)*Q185 -> 0 | B185: =INDEX($G185:$X185,2*($E$99-1)+2)*Q185 -> 0 | C185: EU7 | D185: Arsenic and compounds | E185: 8 | F185: 5 | G185: 3.12329e-05 | H185: 0.0076 | Q185: =CHOOSE(Q$99,1,INDEX(O$26:O$36,E185),1-INDEX(O$26:O$36,E185)) -> 0
A186: =INDEX($G186:$X186,2*($E$99-1)+1)*Q186 -> 0 | B186: =INDEX($G186:$X186,2*($E$99-1)+2)*Q186 -> 0 | C186: EU7 | D186: Barium and compounds | E186: 8 | F186: 9999 | G186: 0.000687123 | H186: 0.1672 | Q186: =CHOOSE(Q$99,1,INDEX(O$26:O$36,E186),1-INDEX(O$26:O$36,E186)) -> 0
A187: =INDEX($G187:$X187,2*($E$99-1)+1)*Q187 -> 0 | B187: =INDEX($G187:$X187,2*($E$99-1)+2)*Q187 -> 0 | C187: EU7 | D187: Benzene | E187: 8 | F187: 6 | G187: 0.000327945 | H187: 0.0798 | Q187: =CHOOSE(Q$99,1,INDEX(O$26:O$36,E187),1-INDEX(O$26:O$36,E187)) -> 0
A188: =INDEX($G188:$X188,2*($E$99-1)+1)*Q188 -> 0 | B188: =INDEX($G188:$X188,2*($E$99-1)+2)*Q188 -> 0 | C188: EU7 | D188: Beryllium and compounds | E188: 8 | F188: 7 | G188: 1.87397e-06 | H188: 0.000456 | Q188: =CHOOSE(Q$99,1,INDEX(O$26:O$36,E188),1-INDEX(O$26:O$36,E188)) -> 0
A189: =INDEX($G189:$X189,2*($E$99-1)+1)*Q189 -> 0 | B189: =INDEX($G189:$X189,2*($E$99-1)+2)*Q189 -> 0 | C189: EU7 | D189: Cadmium and compounds | E189: 8 | F189: 9 | G189: 0.000171781 | H189: 0.0418 | Q189: =CHOOSE(Q$99,1,INDEX(O$26:O$36,E189),1-INDEX(O$26:O$36,E189)) -> 0
A190: =INDEX($G190:$X190,2*($E$99-1)+1)*Q190 -> 0 | B190: =INDEX($G190:$X190,2*($E$99-1)+2)*Q190 -> 0 | C190: EU7 | D190: Chromium VI, chromate, and dichromate particulate | E190: 8 | F190: 10 | G190: 0.00021863 | H190: 0.0532 | Q190: =CHOOSE(Q$99,1,INDEX(O$26:O$36,E190),1-INDEX(O$26:O$36,E190)) -> 0
A191: =INDEX($G191:$X191,2*($E$99-1)+1)*Q191 -> 0 | B191: =INDEX($G191:$X191,2*($E$99-1)+2)*Q191 -> 0 | C191: EU7 | D191: Cobalt and compounds | E191: 8 | F191: 11 | G191: 1.31178e-05 | H191: 0.003192 | Q191: =CHOOSE(Q$99,1,INDEX(O$26:O$36,E191),1-INDEX(O$26:O$36,E191)) -> 0
A192: =INDEX($G192:$X192,2*($E$99-1)+1)*Q192 -> 0 | B192: =INDEX($G192:$X192,2*($E$99-1)+2)*Q192 -> 0 | C192: EU7 | D192: Copper and compounds | E192: 8 | F192: 12 | G192: 0.00013274 | H192: 0.0323 | Q192: =CHOOSE(Q$99,1,INDEX(O$26:O$36,E192),1-INDEX(O$26:O$36,E192)) -> 0
A193: =INDEX($G193:$X193,2*($E$99-1)+1)*Q193 -> 0 | B193: =INDEX($G193:$X193,2*($E$99-1)+2)*Q193 -> 0 | C193: EU7 | D193: Formaldehyde | E193: 8 | F193: 14 | G193: 0.0117123 | H193: 2.85 | Q193: =CHOOSE(Q$99,1,INDEX(O$26:O$36,E193),1-INDEX(O$26:O$36,E193)) -> 0
A194: =INDEX($G194:$X194,2*($E$99-1)+1)*Q194 -> 0 | B194: =INDEX($G194:$X194,2*($E$99-1)+2)*Q194 -> 0 | C194: EU7 | D194: Hexane | E194: 8 | F194: 15 | G194: 0.281096 | H194: 68.4 | Q194: =CHOOSE(Q$99,1,INDEX(O$26:O$36,E194),1-INDEX(O$26:O$36,E194)) -> 0
A195: =INDEX($G195:$X195,2*($E$99-1)+1)*Q195 -> 0 | B195: =INDEX($G195:$X195,2*($E$99-1)+2)*Q195 -> 0 | C195: EU7 | D195: Manganese and compounds | E195: 8 | F195: 19 | G195: 5.93425e-05 | H195: 0.01444 | Q195: =CHOOSE(Q$99,1,INDEX(O$26:O$36,E195),1-INDEX(O$26:O$36,E195)) -> 0
A196: =INDEX($G196:$X196,2*($E$99-1)+1)*Q196 -> 0 | B196: =INDEX($G196:$X196,2*($E$99-1)+2)*Q196 -> 0 | C196: EU7 | D196: Mercury and compounds | E196: 8 | F196: 20 | G196: 4.06027e-05 | H196: 0.00988 | Q196: =CHOOSE(Q$99,1,INDEX(O$26:O$36,E196),1-INDEX(O$26:O$36,E196)) -> 0
A197: =INDEX($G197:$X197,2*($E$99-1)+1)*Q197 -> 0 | B197: =INDEX($G197:$X197,2*($E$99-1)+2)*Q197 -> 0 | C197: EU7 | D197: Molybdenum trioxide | E197: 8 | F197: 9999 | G197: 0.000257671 | H197: 0.0627 | Q197: =CHOOSE(Q$99,1,INDEX(O$26:O$36,E197),1-INDEX(O$26:O$36,E197)) -> 0
A198: =INDEX($G198:$X198,2*($E$99-1)+1)*Q198 -> 0 | B198: =INDEX($G198:$X198,2*($E$99-1)+2)*Q198 -> 0 | C198: EU7 | D198: Nickel and compounds | E198: 8 | F198: 23 | G198: 0.000327945 | H198: 0.0798 | Q198: =CHOOSE(Q$99,1,INDEX(O$26:O$36,E198),1-INDEX(O$26:O$36,E198)) -> 0
A199: =INDEX($G199:$X199,2*($E$99-1)+1)*Q199 -> 0 | B199: =INDEX($G199:$X199,2*($E$99-1)+2)*Q199 -> 0 | C199: EU7 | D199: Acenaphthene | E199: 8 | F199: 9999 | G199: 2.81096e-07 | H199: 6.84e-05 | Q199: =CHOOSE(Q$99,1,INDEX(O$26:O$36,E199),1-INDEX(O$26:O$36,E199)) -> 0
A200: =INDEX($G200:$X200,2*($E$99-1)+1)*Q200 -> 0 | B200: =INDEX($G200:$X200,2*($E$99-1)+2)*Q200 -> 0 | C200: EU7 | D200: Acenaphthylene | E200: 8 | F200: 9999 | G200: 2.81096e-07 | H200: 6.84e-05 | Q200: =CHOOSE(Q$99,1,INDEX(O$26:O$36,E200),1-INDEX(O$26:O$36,E200)) -> 0
A201: =INDEX($G201:$X201,2*($E$99-1)+1)*Q201 -> 0 | B201: =INDEX($G201:$X201,2*($E$99-1)+2)*Q201 -> 0 | C201: EU7 | D201: Anthracene | E201: 8 | F201: 9999 | G201: 3.74795e-07 | H201: 9.12e-05 | Q201: =CHOOSE(Q$99,1,INDEX(O$26:O$36,E201),1-INDEX(O$26:O$36,E201)) -> 0
A202: =INDEX($G202:$X202,2*($E$99-1)+1)*Q202 -> 0 | B202: =INDEX($G202:$X202,2*($E$99-1)+2)*Q202 -> 0 | C202: EU7 | D202: Benz[a]anthracene | E202: 8 | F202: 24 | G202: 2.81096e-07 | H202: 6.84e-05 | Q202: =CHOOSE(Q$99,1,INDEX(O$26:O$36,E202),1-INDEX(O$26:O$36,E202)) -> 0
A203: =INDEX($G203:$X203,2*($E$99-1)+1)*Q203 -> 0 | B203: =INDEX($G203:$X203,2*($E$99-1)+2)*Q203 -> 0 | C203: EU7 | D203: Benzo[a]pyrene | E203: 8 | F203: 25 | G203: 1.87397e-07 | H203: 4.56e-05 | Q203: =CHOOSE(Q$99,1,INDEX(O$26:O$36,E203),1-INDEX(O$26:O$36,E203)) -> 0
A204: =INDEX($G204:$X204,2*($E$99-1)+1)*Q204 -> 0 | B204: =INDEX($G204:$X204,2*($E$99-1)+2)*Q204 -> 0 | C204: EU7 | D204: Benzo[b]fluoranthene | E204: 8 | F204: 26 | G204: 2.81096e-07 | H204: 6.84e-05 | Q204: =CHOOSE(Q$99,1,INDEX(O$26:O$36,E204),1-INDEX(O$26:O$36,E204)) -> 0
A205: =INDEX($G205:$X205,2*($E$99-1)+1)*Q205 -> 0 | B205: =INDEX($G205:$X205,2*($E$99-1)+2)*Q205 -> 0 | C205: EU7 | D205: Benzo[g,h,i]perylene | E205: 8 | F205: 27 | G205: 1.87397e-07 | H205: 4.56e-05 | Q205: =CHOOSE(Q$99,1,INDEX(O$26:O$36,E205),1-INDEX(O$26:O$36,E205)) -> 0
A206: =INDEX($G206:$X206,2*($E$99-1)+1)*Q206 -> 0 | B206: =INDEX($G206:$X206,2*($E$99-1)+2)*Q206 -> 0 | C206: EU7 | D206: Benzo[k]fluoranthene | E206: 8 | F206: 28 | G206: 2.81096e-07 | H206: 6.84e-05 | Q206: =CHOOSE(Q$99,1,INDEX(O$26:O$36,E206),1-INDEX(O$26:O$36,E206)) -> 0
A207: =INDEX($G207:$X207,2*($E$99-1)+1)*Q207 -> 0 | B207: =INDEX($G207:$X207,2*($E$99-1)+2)*Q207 -> 0 | C207: EU7 | D207: Chrysene | E207: 8 | F207: 29 | G207: 2.81096e-07 | H207: 6.84e-05 | Q207: =CHOOSE(Q$99,1,INDEX(O$26:O$36,E207),1-INDEX(O$26:O$36,E207)) -> 0
A208: =INDEX($G208:$X208,2*($E$99-1)+1)*Q208 -> 0 | B208: =INDEX($G208:$X208,2*($E$99-1)+2)*Q208 -> 0 | C208: EU7 | D208: Fluoranthene | E208: 8 | F208: 30 | G208: 4.68493e-07 | H208: 0.000114 | Q208: =CHOOSE(Q$99,1,INDEX(O$26:O$36,E208),1-INDEX(O$26:O$36,E208)) -> 0
A209: =INDEX($G209:$X209,2*($E$99-1)+1)*Q209 -> 0 | B209: =INDEX($G209:$X209,2*($E$99-1)+2)*Q209 -> 0 | C209: EU7 | D209: Fluorene | E209: 8 | F209: 9999 | G209: 4.3726e-07 | H209: 0.0001064 | Q209: =CHOOSE(Q$99,1,INDEX(O$26:O$36,E209),1-INDEX(O$26:O$36,E209)) -> 0
A210: =INDEX($G210:$X210,2*($E$99-1)+1)*Q210 -> 0 | B210: =INDEX($G210:$X210,2*($E$99-1)+2)*Q210 -> 0 | C210: EU7 | D210: Indeno[1,2,3-cd]pyrene | E210: 8 | F210: 31 | G210: 2.81096e-07 | H210: 6.84e-05 | Q210: =CHOOSE(Q$99,1,INDEX(O$26:O$36,E210),1-INDEX(O$26:O$36,E210)) -> 0
A211: =INDEX($G211:$X211,2*($E$99-1)+1)*Q211 -> 0 | B211: =INDEX($G211:$X211,2*($E$99-1)+2)*Q211 -> 0 | C211: EU7 | D211: 2-Methyl naphthalene | E211: 8 | F211: 9999 | G211: 3.74795e-06 | H211: 0.000912 | Q211: =CHOOSE(Q$99,1,INDEX(O$26:O$36,E211),1-INDEX(O$26:O$36,E211)) -> 0
A212: =INDEX($G212:$X212,2*($E$99-1)+1)*Q212 -> 0 | B212: =INDEX($G212:$X212,2*($E$99-1)+2)*Q212 -> 0 | C212: EU7 | D212: Naphthalene | E212: 8 | F212: 22 | G212: 9.52603e-05 | H212: 0.02318 | Q212: =CHOOSE(Q$99,1,INDEX(O$26:O$36,E212),1-INDEX(O$26:O$36,E212)) -> 0
... 28 more rows

Sheet CAO Summary
A1: Attorney-Client Work Product | N1: Note:
N2: Worst Case Risk: Set Display Options to 1 (Max Receptor Risk in Table 4-8)
A3: ="Level 4 CAO Summary: "&SCEN!B1&" >"&SCEN!A2&" "&SCEN!B2&", ("&SCEN!A3&" " &SCEN!B3&")" -> Level 4 CAO Summary: Owens Brockway >Met: KPDX, (Revision: 2022-01-05) | N3: Max Source Specific Risk: Set Display to 2 (Individual Source risk in Tabl 4-8)
A4: Source | B4: Descritpion | C4: =INDIRECT(C79&"!A2") -> Residential Chronic Cancer | D4: =INDIRECT(D79&"!A2") -> Non-Residential Chronic Child Cancer | E4: =INDIRECT(E79&"!A2") -> Non-Residential Chronic Worker Cancer | F4: =INDIRECT(F79&"!A2") -> Residential Chronic Non- cancer | G4: =INDIRECT(G79&"!A2") -> Non-Residential Chronic Child Non- cancer | H4: =INDIRECT(H79&"!A2") -> Non-Residential Chronic Worker Non- cancer | I4: Acute Non- cancer | J4: Top Pollutant Cancer | K4: Top Pollutant Non Cancer | L4: Acute
A5: =SCEN!J26 -> EU1RM1 | B5: =SCEN!M26 -> RMBH1 - Raw Material Handling Truck/Rail | C5: =INDEX(INDIRECT(C$79&"!"&C$81&C$80&":"&C$82&C$80),$M5) -> 0 | D5: 0 | E5: 0 | F5: 0 | G5: 0 | H5: 0 | I5: 0 | J5: =INDEX(R_CCR!$F$10:$BW$10,'CAO Summary'!M5) -> - | K5: =INDEX(R_CHI!F$10:BW$10,'CAO Summary'!M5) -> - | L5: =INDEX(A_HI!$F$10:$BW$10,M5) -> - | M5: 1 | N5: Display Option | O5: 1 | P5: =INDEX(T5:T7,O5) -> Worst Case Facility Risk | S5: 1 | T5: Worst Case Facility Risk
A6: =SCEN!J27 -> EU1BF | B6: =SCEN!M27 -> Batch House Fugitive | C6: 0 | D6: 0 | E6: 0 | F6: 0 | G6: 0 | H6: 0 | I6: 0 | J6: =INDEX(R_CCR!$F$10:$BW$10,'CAO Summary'!M6) -> - | K6: =INDEX(R_CHI!F$10:BW$10,'CAO Summary'!M6) -> - | L6: =INDEX(A_HI!$F$10:$BW$10,M6) -> - | M6: 2 | N6: (1 or 2) | S6: 2 | T6: WC Src Specific Risk
A7: =SCEN!J28 -> EU1RM2 | B7: =SCEN!M28 -> RMBH2 - Raw Material Handling Batch House | C7: 0 | D7: 0 | E7: 0 | F7: 0 | G7: 0 | H7: 0 | I7: 0 | J7: =INDEX(R_CCR!$F$10:$BW$10,'CAO Summary'!M7) -> - | K7: =INDEX(R_CHI!F$10:BW$10,'CAO Summary'!M7) -> - | L7: =INDEX(A_HI!$F$10:$BW$10,M7) -> - | M7: =M6+1 -> 3 | S7: 3 | T7: Manual Toggle
A8: =SCEN!J29 -> EU4 | B8: =SCEN!M29 -> Furnace D Glass | C8: 10.10208068 | D8: 0.06854330743 | E8: 0.9886136294 | F8: 0.475347811 | G8: 0.01594835902 | H8: 0.1091270194 | I8: 0.9470134168 | J8: =INDEX(R_CCR!$F$10:$BW$10,'CAO Summary'!M8) -> Arsenic and compounds | K8: =INDEX(R_CHI!F$10:BW$10,'CAO Summary'!M8) -> Arsenic and compounds | L8: =INDEX(A_HI!$F$10:$BW$10,M8) -> Lead and compounds | M8: =M7+1 -> 4
A9: =SCEN!J30 -> EU4NG | B9: =SCEN!M30 -> Furnace D Nat Gas | C9: 0 | D9: 0 | E9: 0 | F9: 0 | G9: 0 | H9: 0 | I9: 0 | J9: =INDEX(R_CCR!$F$10:$BW$10,'CAO Summary'!M9) -> - | K9: =INDEX(R_CHI!F$10:BW$10,'CAO Summary'!M9) -> - | L9: =INDEX(A_HI!$F$10:$BW$10,M9) -> - | M9: 5 | N9: Toggles:
A10: =SCEN!J31 -> EU5 | B10: =SCEN!M31 -> Hot End Surface Treatment | C10: 0 | D10: 0 | E10: 0 | F10: 0 | G10: 0 | H10: 0 | I10: 0 | J10: =INDEX(R_CCR!$F$10:$BW$10,'CAO Summary'!M10) -> - | K10: =INDEX(R_CHI!F$10:BW$10,'CAO Summary'!M10) -> - | L10: =INDEX(A_HI!$F$10:$BW$10,M10) -> - | M10: 6 | N10: Scen: | O10: 1 | P10: < Do not change
A11: =SCEN!J32 -> EU6 | B11: =SCEN!M32 -> Misc Fuel Burning NG | C11: 0 | D11: 0 | E11: 0 | F11: =INDEX(INDIRECT(F$79&"!"&F$81&F$80&":"&F$82&F$80),$M11) -> 0 | G11: 0 | H11: 0 | I11: 0 | J11: =INDEX(R_CCR!$F$10:$BW$10,'CAO Summary'!M11) -> - | K11: =INDEX(R_CHI!F$10:BW$10,'CAO Summary'!M11) -> - | L11: =INDEX(A_HI!$F$10:$BW$10,M11) -> - | M11: 7 | N11: Group toggle | O11: 2 | P11: (1,2,3) | Q11: All, Fac,NG only
A12: =SCEN!J33 -> EU7 | B12: =SCEN!M33 -> Boiler NG | C12: 0 | D12: 0 | E12: 0 | F12: 0 | G12: 0 | H12: 0 | I12: 0 | J12: =INDEX(R_CCR!$F$10:$BW$10,'CAO Summary'!M12) -> - | K12: =INDEX(R_CHI!F$10:BW$10,'CAO Summary'!M12) -> - | L12: =INDEX(A_HI!$F$10:$BW$10,M12) -> - | M12: 8 | Q12: Manual toggle
A13: =SCEN!J34 -> EU10 | B13: =SCEN!M34 -> Welding | C13: 0.007810452172 | D13: 7.675784317e-05 | E13: 0.002578306687 | F13: 1.105156382e-05 | G13: 6.105288722e-07 | H13: 1.012914497e-05 | I13: 0 | J13: =INDEX(R_CCR!$F$10:$BW$10,'CAO Summary'!M13) -> Nickel compounds, insoluble | K13: =INDEX(R_CHI!F$10:BW$10,'CAO Summary'!M13) -> Manganese and compounds | L13: =INDEX(A_HI!$F$10:$BW$10,M13) -> - | M13: 9 | N13: ChronicTarget Organ | O13: 8 | P13: (0-14) | Q13: 0
A14: =SCEN!J35 -> IMAGE | B14: =SCEN!M35 -> Image printing | C14: 0.007646895814 | D14: 3.718904491e-05 | E14: 0.002250727695 | F14: 5.993512935e-05 | G14: 1.766479633e-06 | H14: 4.923466833e-05 | I14: 0.0004894503936 | J14: =INDEX(R_CCR!$F$10:$BW$10,'CAO Summary'!M14) -> Naphthalene | K14: =INDEX(R_CHI!F$10:BW$10,'CAO Summary'!M14) -> Naphthalene | L14: =INDEX(A_HI!$F$10:$BW$10,M14) -> 2-Butanone (Methyl ethyl ketone) | M14: 10 | N14: Acute Target Organ | O14: 13 | P14: (0-14) | Q14: 0
A15: =SCEN!J36 -> SFL | B15: =SCEN!M36 -> Solid film lubrication (mold prep) | C15: =INDEX(INDIRECT(C$79&"!"&C$81&C$80&":"&C$82&C$80),$M15) -> 0.0003071311808 | D15: 3.783421042e-06 | E15: 7.402376675e-05 | F15: 2.652494706e-06 | G15: 1.852704884e-07 | H15: 1.739938867e-06 | I15: 0 | J15: =INDEX(R_CCR!$F$10:$BW$10,'CAO Summary'!M15) -> Ethyl benzene | K15: =INDEX(R_CHI!F$10:BW$10,'CAO Summary'!M15) -> Xylene (mixture), including m-xylene, o-xylene, p-xylene | L15: =INDEX(A_HI!$F$10:$BW$10,M15) -> - | M15: 11 | N15: Src Spec. TO | O15: 0 | P15: (0,1) | Q15: 0
A16: =SCEN!J37 -> 0 | B16: =SCEN!M37 -> 0 | C16: 0 | D16: 0 | E16: 0 | F16: 0 | G16: 0 | H16: 0 | I16: 0 | J16: =INDEX(R_CCR!$F$10:$BW$10,'CAO Summary'!M16) -> - | K16: =INDEX(R_CHI!F$10:BW$10,'CAO Summary'!M16) -> - | L16: =INDEX(A_HI!$F$10:$BW$10,M16) -> - | M16: 12 | N16: L-4 adj on/off | O16: 1 | P16: (0-off, 1-on)
A17: =SCEN!J38 -> 0 | B17: =SCEN!M38 -> 0 | C17: 0 | D17: 0 | E17: 0 | F17: 0 | G17: 0 | H17: 0 | I17: 0 | J17: =INDEX(R_CCR!$F$10:$BW$10,'CAO Summary'!M17) -> - | K17: =INDEX(R_CHI!F$10:BW$10,'CAO Summary'!M17) -> - | L17: =INDEX(A_HI!$F$10:$BW$10,M17) -> - | M17: 13
A18: =SCEN!J39 -> 0 | B18: =SCEN!M39 -> 0 | C18: 0 | D18: 0 | E18: 0 | F18: 0 | G18: 0 | H18: 0 | I18: 0 | J18: =INDEX(R_CCR!$F$10:$BW$10,'CAO Summary'!M18) -> - | K18: =INDEX(R_CHI!F$10:BW$10,'CAO Summary'!M18) -> - | L18: =INDEX(A_HI!$F$10:$BW$10,M18) -> - | M18: 14
A19: =SCEN!J40 -> 0 | B19: =SCEN!M40 -> 0 | C19: 0 | D19: 0 | E19: 0 | F19: 0 | G19: 0 | H19: 0 | I19: 0 | J19: =INDEX(R_CCR!$F$10:$BW$10,'CAO Summary'!M19) -> - | K19: =INDEX(R_CHI!F$10:BW$10,'CAO Summary'!M19) -> - | L19: =INDEX(A_HI!$F$10:$BW$10,M19) -> - | M19: 15
A20: =SCEN!J41 -> 0 | B20: =SCEN!M41 -> 0 | C20: 0 | D20: 0 | E20: 0 | F20: 0 | G20: 0 | H20: 0 | I20: 0 | J20: =INDEX(R_CCR!$F$10:$BW$10,'CAO Summary'!M20) -> - | K20: =INDEX(R_CHI!F$10:BW$10,'CAO Summary'!M20) -> - | L20: =INDEX(A_HI!$F$10:$BW$10,M20) -> - | M20: 16
A21: =SCEN!J42 -> 0 | B21: =SCEN!M42 -> 0 | C21: 0 | D21: 0 | E21: 0 | F21: 0 | G21: 0 | H21: 0 | I21: 0 | J21: =INDEX(R_CCR!$F$10:$BW$10,'CAO Summary'!M21) -> - | K21: =INDEX(R_CHI!F$10:BW$10,'CAO Summary'!M21) -> - | L21: =INDEX(A_HI!$F$10:$BW$10,M21) -> - | M21: 17
A22: =SCEN!J43 -> 0 | B22: =SCEN!M43 -> 0 | C22: 0 | D22: 0 | E22: 0 | F22: 0 | G22: 0 | H22: 0 | I22: 0 | J22: =INDEX(R_CCR!$F$10:$BW$10,'CAO Summary'!M22) -> - | K22: =INDEX(R_CHI!F$10:BW$10,'CAO Summary'!M22) -> - | L22: =INDEX(A_HI!$F$10:$BW$10,M22) -> - | M22: 18
A23: =SCEN!J44 -> 0 | B23: =SCEN!M44 -> 0 | C23: 0 | D23: 0 | E23: 0 | F23: 0 | G23: 0 | H23: 0 | I23: 0 | J23: =INDEX(R_CCR!$F$10:$BW$10,'CAO Summary'!M23) -> - | K23: =INDEX(R_CHI!F$10:BW$10,'CAO Summary'!M23) -> - | L23: =INDEX(A_HI!$F$10:$BW$10,M23) -> - | M23: 19
A24: =SCEN!J45 -> 0 | B24: =SCEN!M45 -> 0 | C24: 0 | D24: 0 | E24: 0 | F24: 0 | G24: 0 | H24: 0 | I24: 0 | J24: =INDEX(R_CCR!$F$10:$BW$10,'CAO Summary'!M24) -> - | K24: =INDEX(R_CHI!F$10:BW$10,'CAO Summary'!M24) -> - | L24: =INDEX(A_HI!$F$10:$BW$10,M24) -> - | M24: 20
A25: =SCEN!J46 -> 0 | B25: =SCEN!M46 -> 0 | C25: =INDEX(INDIRECT(C$79&"!"&C$81&C$80&":"&C$82&C$80),$M25) -> 0 | D25: 0 | E25: 0 | F25: 0 | G25: 0 | H25: 0 | I25: 0 | J25: =INDEX(R_CCR!$F$10:$BW$10,'CAO Summary'!M25) -> - | K25: =INDEX(R_CHI!F$10:BW$10,'CAO Summary'!M25) -> - | L25: =INDEX(A_HI!$F$10:$BW$10,M25) -> - | M25: 21
A26: =SCEN!J47 -> 0 | B26: =SCEN!M47 -> 0 | C26: 0 | D26: 0 | E26: 0 | F26: 0 | G26: 0 | H26: 0 | I26: 0 | J26: =INDEX(R_CCR!$F$10:$BW$10,'CAO Summary'!M26) -> - | K26: =INDEX(R_CHI!F$10:BW$10,'CAO Summary'!M26) -> - | L26: =INDEX(A_HI!$F$10:$BW$10,M26) -> - | M26: 22
A27: =SCEN!J48 -> 0 | B27: =SCEN!M48 -> 0 | C27: 0 | D27: 0 | E27: 0 | F27: 0 | G27: 0 | H27: 0 | I27: 0 | J27: =INDEX(R_CCR!$F$10:$BW$10,'CAO Summary'!M27) -> - | K27: =INDEX(R_CHI!F$10:BW$10,'CAO Summary'!M27) -> - | L27: =INDEX(A_HI!$F$10:$BW$10,M27) -> - | M27: 23
A28: =SCEN!J49 -> 0 | B28: =SCEN!M49 -> 0 | C28: 0 | D28: 0 | E28: 0 | F28: 0 | G28: 0 | H28: 0 | I28: 0 | J28: =INDEX(R_CCR!$F$10:$BW$10,'CAO Summary'!M28) -> - | K28: =INDEX(R_CHI!F$10:BW$10,'CAO Summary'!M28) -> - | L28: =INDEX(A_HI!$F$10:$BW$10,M28) -> - | M28: 24
A29: =SCEN!J50 -> 0 | B29: =SCEN!M50 -> 0 | C29: 0 | D29: 0 | E29: 0 | F29: 0 | G29: 0 | H29: 0 | I29: 0 | J29: =INDEX(R_CCR!$F$10:$BW$10,'CAO Summary'!M29) -> - | K29: =INDEX(R_CHI!F$10:BW$10,'CAO Summary'!M29) -> - | L29: =INDEX(A_HI!$F$10:$BW$10,M29) -> - | M29: 25
A30: =SCEN!J51 -> 0 | B30: =SCEN!M51 -> 0 | C30: 0 | D30: 0 | E30: 0 | F30: 0 | G30: 0 | H30: 0 | I30: 0 | J30: =INDEX(R_CCR!$F$10:$BW$10,'CAO Summary'!M30) -> - | K30: =INDEX(R_CHI!F$10:BW$10,'CAO Summary'!M30) -> - | L30: =INDEX(A_HI!$F$10:$BW$10,M30) -> - | M30: 26
A31: =SCEN!J52 -> 0 | B31: =SCEN!M52 -> 0 | C31: 0 | D31: 0 | E31: 0 | F31: 0 | G31: 0 | H31: 0 | I31: 0 | J31: =INDEX(R_CCR!$F$10:$BW$10,'CAO Summary'!M31) -> - | K31: =INDEX(R_CHI!F$10:BW$10,'CAO Summary'!M31) -> - | L31: =INDEX(A_HI!$F$10:$BW$10,M31) -> - | M31: 27
A32: =SCEN!J53 -> 0 | B32: =SCEN!M53 -> 0 | C32: 0 | D32: 0 | E32: 0 | F32: 0 | G32: 0 | H32: 0 | I32: 0 | J32: =INDEX(R_CCR!$F$10:$BW$10,'CAO Summary'!M32) -> - | K32: =INDEX(R_CHI!F$10:BW$10,'CAO Summary'!M32) -> - | L32: =INDEX(A_HI!$F$10:$BW$10,M32) -> - | M32: 28
A33: =SCEN!J54 -> 0 | B33: =SCEN!M54 -> 0 | C33: 0 | D33: 0 | E33: 0 | F33: 0 | G33: 0 | H33: 0 | I33: 0 | J33: =INDEX(R_CCR!$F$10:$BW$10,'CAO Summary'!M33) -> - | K33: =INDEX(R_CHI!F$10:BW$10,'CAO Summary'!M33) -> - | L33: =INDEX(A_HI!$F$10:$BW$10,M33) -> - | M33: 29
A34: =SCEN!J55 -> 0 | B34: =SCEN!M55 -> 0 | C34: 0 | D34: 0 | E34: 0 | F34: 0 | G34: 0 | H34: 0 | I34: 0 | J34: =INDEX(R_CCR!$F$10:$BW$10,'CAO Summary'!M34) -> - | K34: =INDEX(R_CHI!F$10:BW$10,'CAO Summary'!M34) -> - | L34: =INDEX(A_HI!$F$10:$BW$10,M34) -> - | M34: 30
A35: =SCEN!J56 -> 0 | B35: =SCEN!M56 -> 0 | C35: =INDEX(INDIRECT(C$79&"!"&C$81&C$80&":"&C$82&C$80),$M35) -> 0 | D35: 0 | E35: 0 | F35: 0 | G35: 0 | H35: 0 | I35: 0 | J35: =INDEX(R_CCR!$F$10:$BW$10,'CAO Summary'!M35) -> - | K35: =INDEX(R_CHI!F$10:BW$10,'CAO Summary'!M35) -> - | L35: =INDEX(A_HI!$F$10:$BW$10,M35) -> - | M35: 31
A36: =SCEN!J57 -> 0 | B36: =SCEN!M57 -> 0 | C36: 0 | D36: 0 | E36: 0 | F36: 0 | G36: 0 | H36: 0 | I36: 0 | J36: =INDEX(R_CCR!$F$10:$BW$10,'CAO Summary'!M36) -> - | K36: =INDEX(R_CHI!F$10:BW$10,'CAO Summary'!M36) -> - | L36: =INDEX(A_HI!$F$10:$BW$10,M36) -> - | M36: 32
A37: =SCEN!J58 -> 0 | B37: =SCEN!M58 -> 0 | C37: 0 | D37: 0 | E37: 0 | F37: 0 | G37: 0 | H37: 0 | I37: 0 | J37: =INDEX(R_CCR!$F$10:$BW$10,'CAO Summary'!M37) -> - | K37: =INDEX(R_CHI!F$10:BW$10,'CAO Summary'!M37) -> - | L37: =INDEX(A_HI!$F$10:$BW$10,M37) -> - | M37: 33
A38: =SCEN!J59 -> 0 | B38: =SCEN!M59 -> 0 | C38: 0 | D38: 0 | E38: 0 | F38: 0 | G38: 0 | H38: 0 | I38: 0 | J38: =INDEX(R_CCR!$F$10:$BW$10,'CAO Summary'!M38) -> - | K38: =INDEX(R_CHI!F$10:BW$10,'CAO Summary'!M38) -> - | L38: =INDEX(A_HI!$F$10:$BW$10,M38) -> - | M38: 34
A39: =SCEN!J60 -> 0 | B39: =SCEN!M60 -> 0 | C39: 0 | D39: 0 | E39: 0 | F39: 0 | G39: 0 | H39: 0 | I39: 0 | J39: =INDEX(R_CCR!$F$10:$BW$10,'CAO Summary'!M39) -> - | K39: =INDEX(R_CHI!F$10:BW$10,'CAO Summary'!M39) -> - | L39: =INDEX(A_HI!$F$10:$BW$10,M39) -> - | M39: 35
A40: =SCEN!J61 -> 0 | B40: =SCEN!M61 -> 0 | C40: 0 | D40: 0 | E40: 0 | F40: 0 | G40: 0 | H40: 0 | I40: 0 | J40: =INDEX(R_CCR!$F$10:$BW$10,'CAO Summary'!M40) -> - | K40: =INDEX(R_CHI!F$10:BW$10,'CAO Summary'!M40) -> - | L40: =INDEX(A_HI!$F$10:$BW$10,M40) -> - | M40: 36
A41: =SCEN!J62 -> 0 | B41: =SCEN!M62 -> 0 | C41: 0 | D41: 0 | E41: 0 | F41: 0 | G41: 0 | H41: 0 | I41: 0 | J41: =INDEX(R_CCR!$F$10:$BW$10,'CAO Summary'!M41) -> - | K41: =INDEX(R_CHI!F$10:BW$10,'CAO Summary'!M41) -> - | L41: =INDEX(A_HI!$F$10:$BW$10,M41) -> - | M41: 37
A42: =SCEN!J63 -> 0 | B42: =SCEN!M63 -> 0 | C42: 0 | D42: 0 | E42: 0 | F42: 0 | G42: 0 | H42: 0 | I42: 0 | J42: =INDEX(R_CCR!$F$10:$BW$10,'CAO Summary'!M42) -> - | K42: =INDEX(R_CHI!F$10:BW$10,'CAO Summary'!M42) -> - | L42: =INDEX(A_HI!$F$10:$BW$10,M42) -> - | M42: 38
A43: =SCEN!J64 -> 0 | B43: =SCEN!M64 -> 0 | C43: 0 | D43: 0 | E43: 0 | F43: 0 | G43: 0 | H43: 0 | I43: 0 | J43: =INDEX(R_CCR!$F$10:$BW$10,'CAO Summary'!M43) -> - | K43: =INDEX(R_CHI!F$10:BW$10,'CAO Summary'!M43) -> - | L43: =INDEX(A_HI!$F$10:$BW$10,M43) -> - | M43: 39
A44: =SCEN!J65 -> 0 | B44: =SCEN!M65 -> 0 | C44: 0 | D44: 0 | E44: 0 | F44: 0 | G44: 0 | H44: 0 | I44: 0 | J44: =INDEX(R_CCR!$F$10:$BW$10,'CAO Summary'!M44) -> - | K44: =INDEX(R_CHI!F$10:BW$10,'CAO Summary'!M44) -> - | L44: =INDEX(A_HI!$F$10:$BW$10,M44) -> - | M44: 40
A45: =SCEN!J66 -> 0 | B45: =SCEN!M66 -> 0 | C45: =INDEX(INDIRECT(C$79&"!"&C$81&C$80&":"&C$82&C$80),$M45) -> 0 | D45: 0 | E45: 0 | F45: 0 | G45: 0 | H45: 0 | I45: 0 | J45: =INDEX(R_CCR!$F$10:$BW$10,'CAO Summary'!M45) -> - | K45: =INDEX(R_CHI!F$10:BW$10,'CAO Summary'!M45) -> - | L45: =INDEX(A_HI!$F$10:$BW$10,M45) -> - | M45: 41
A46: =SCEN!J67 -> 0 | B46: =SCEN!M67 -> 0 | C46: 0 | D46: 0 | E46: 0 | F46: 0 | G46: 0 | H46: 0 | I46: 0 | J46: =INDEX(R_CCR!$F$10:$BW$10,'CAO Summary'!M46) -> - | K46: =INDEX(R_CHI!F$10:BW$10,'CAO Summary'!M46) -> - | L46: =INDEX(A_HI!$F$10:$BW$10,M46) -> - | M46: 42
A47: =SCEN!J68 -> 0 | B47: =SCEN!M68 -> 0 | C47: 0 | D47: 0 | E47: 0 | F47: 0 | G47: 0 | H47: 0 | I47: 0 | J47: =INDEX(R_CCR!$F$10:$BW$10,'CAO Summary'!M47) -> - | K47: =INDEX(R_CHI!F$10:BW$10,'CAO Summary'!M47) -> - | L47: =INDEX(A_HI!$F$10:$BW$10,M47) -> - | M47: 43
A48: =SCEN!J69 -> 0 | B48: =SCEN!M69 -> 0 | C48: 0 | D48: 0 | E48: 0 | F48: 0 | G48: 0 | H48: 0 | I48: 0 | J48: =INDEX(R_CCR!$F$10:$BW$10,'CAO Summary'!M48) -> - | K48: =INDEX(R_CHI!F$10:BW$10,'CAO Summary'!M48) -> - | L48: =INDEX(A_HI!$F$10:$BW$10,M48) -> - | M48: 44
A49: =SCEN!J70 -> 0 | B49: =SCEN!M70 -> 0 | C49: 0 | D49: 0 | E49: 0 | F49: 0 | G49: 0 | H49: 0 | I49: 0 | J49: =INDEX(R_CCR!$F$10:$BW$10,'CAO Summary'!M49) -> - | K49: =INDEX(R_CHI!F$10:BW$10,'CAO Summary'!M49) -> - | L49: =INDEX(A_HI!$F$10:$BW$10,M49) -> - | M49: 45
A50: =SCEN!J71 -> 0 | B50: =SCEN!M71 -> 0 | C50: 0 | D50: 0 | E50: 0 | F50: 0 | G50: 0 | H50: 0 | I50: 0 | J50: =INDEX(R_CCR!$F$10:$BW$10,'CAO Summary'!M50) -> - | K50: =INDEX(R_CHI!F$10:BW$10,'CAO Summary'!M50) -> - | L50: =INDEX(A_HI!$F$10:$BW$10,M50) -> - | M50: 46
A51: =SCEN!J72 -> 0 | B51: =SCEN!M72 -> 0 | C51: 0 | D51: 0 | E51: 0 | F51: 0 | G51: 0 | H51: 0 | I51: 0 | J51: =INDEX(R_CCR!$F$10:$BW$10,'CAO Summary'!M51) -> - | K51: =INDEX(R_CHI!F$10:BW$10,'CAO Summary'!M51) -> - | L51: =INDEX(A_HI!$F$10:$BW$10,M51) -> - | M51: 47
A52: =SCEN!J73 -> 0 | B52: =SCEN!M73 -> 0 | C52: 0 | D52: 0 | E52: 0 | F52: 0 | G52: 0 | H52: 0 | I52: 0 | J52: =INDEX(R_CCR!$F$10:$BW$10,'CAO Summary'!M52) -> - | K52: =INDEX(R_CHI!F$10:BW$10,'CAO Summary'!M52) -> - | L52: =INDEX(A_HI!$F$10:$BW$10,M52) -> - | M52: 48
A53: =SCEN!J74 -> 0 | B53: =SCEN!M74 -> 0 | C53: 0 | D53: 0 | E53: 0 | F53: 0 | G53: 0 | H53: 0 | I53: 0 | J53: =INDEX(R_CCR!$F$10:$BW$10,'CAO Summary'!M53) -> - | K53: =INDEX(R_CHI!F$10:BW$10,'CAO Summary'!M53) -> - | L53: =INDEX(A_HI!$F$10:$BW$10,M53) -> - | M53: 49
A54: =SCEN!J75 -> 0 | B54: =SCEN!M75 -> 0 | C54: 0 | D54: 0 | E54: 0 | F54: 0 | G54: 0 | H54: 0 | I54: 0 | J54: =INDEX(R_CCR!$F$10:$BW$10,'CAO Summary'!M54) -> - | K54: =INDEX(R_CHI!F$10:BW$10,'CAO Summary'!M54) -> - | L54: =INDEX(A_HI!$F$10:$BW$10,M54) -> - | M54: 50
A55: =SCEN!J76 -> 0 | B55: =SCEN!M76 -> 0 | C55: =INDEX(INDIRECT(C$79&"!"&C$81&C$80&":"&C$82&C$80),$M55) -> 0 | D55: 0 | E55: 0 | F55: 0 | G55: 0 | H55: 0 | I55: 0 | J55: =INDEX(R_CCR!$F$10:$BW$10,'CAO Summary'!M55) -> - | K55: =INDEX(R_CHI!F$10:BW$10,'CAO Summary'!M55) -> - | L55: =INDEX(A_HI!$F$10:$BW$10,M55) -> - | M55: 51
A56: =SCEN!J77 -> 0 | B56: =SCEN!M77 -> 0 | C56: 0 | D56: 0 | E56: 0 | F56: 0 | G56: 0 | H56: 0 | I56: 0 | J56: =INDEX(R_CCR!$F$10:$BW$10,'CAO Summary'!M56) -> - | K56: =INDEX(R_CHI!F$10:BW$10,'CAO Summary'!M56) -> - | L56: =INDEX(A_HI!$F$10:$BW$10,M56) -> - | M56: 52
A57: =SCEN!J78 -> 0 | B57: =SCEN!M78 -> 0 | C57: 0 | D57: 0 | E57: 0 | F57: 0 | G57: 0 | H57: 0 | I57: 0 | J57: =INDEX(R_CCR!$F$10:$BW$10,'CAO Summary'!M57) -> - | K57: =INDEX(R_CHI!F$10:BW$10,'CAO Summary'!M57) -> - | L57: =INDEX(A_HI!$F$10:$BW$10,M57) -> - | M57: 53
A58: =SCEN!J79 -> 0 | B58: =SCEN!M79 -> 0 | C58: 0 | D58: 0 | E58: 0 | F58: 0 | G58: 0 | H58: 0 | I58: 0 | J58: =INDEX(R_CCR!$F$10:$BW$10,'CAO Summary'!M58) -> - | K58: =INDEX(R_CHI!F$10:BW$10,'CAO Summary'!M58) -> - | L58: =INDEX(A_HI!$F$10:$BW$10,M58) -> - | M58: 54
A59: =SCEN!J80 -> 0 | B59: =SCEN!M80 -> 0 | C59: 0 | D59: 0 | E59: 0 | F59: 0 | G59: 0 | H59: 0 | I59: 0 | J59: =INDEX(R_CCR!$F$10:$BW$10,'CAO Summary'!M59) -> - | K59: =INDEX(R_CHI!F$10:BW$10,'CAO Summary'!M59) -> - | L59: =INDEX(A_HI!$F$10:$BW$10,M59) -> - | M59: 55
A60: =SCEN!J81 -> 0 | B60: =SCEN!M81 -> 0 | C60: 0 | D60: 0 | E60: 0 | F60: 0 | G60: 0 | H60: 0 | I60: 0 | J60: =INDEX(R_CCR!$F$10:$BW$10,'CAO Summary'!M60) -> - | K60: =INDEX(R_CHI!F$10:BW$10,'CAO Summary'!M60) -> - | L60: =INDEX(A_HI!$F$10:$BW$10,M60) -> - | M60: 56
A61: =SCEN!J82 -> 0 | B61: =SCEN!M82 -> 0 | C61: 0 | D61: 0 | E61: 0 | F61: 0 | G61: 0 | H61: 0 | I61: 0 | J61: =INDEX(R_CCR!$F$10:$BW$10,'CAO Summary'!M61) -> - | K61: =INDEX(R_CHI!F$10:BW$10,'CAO Summary'!M61) -> - | L61: =INDEX(A_HI!$F$10:$BW$10,M61) -> - | M61: 57
A62: =SCEN!J83 -> 0 | B62: =SCEN!M83 -> 0 | C62: 0 | D62: 0 | E62: 0 | F62: 0 | G62: 0 | H62: 0 | I62: 0 | J62: =INDEX(R_CCR!$F$10:$BW$10,'CAO Summary'!M62) -> - | K62: =INDEX(R_CHI!F$10:BW$10,'CAO Summary'!M62) -> - | L62: =INDEX(A_HI!$F$10:$BW$10,M62) -> - | M62: 58
A63: =SCEN!J84 -> 0 | B63: =SCEN!M84 -> 0 | C63: 0 | D63: 0 | E63: 0 | F63: 0 | G63: 0 | H63: 0 | I63: 0 | J63: =INDEX(R_CCR!$F$10:$BW$10,'CAO Summary'!M63) -> - | K63: =INDEX(R_CHI!F$10:BW$10,'CAO Summary'!M63) -> - | L63: =INDEX(A_HI!$F$10:$BW$10,M63) -> - | M63: 59
A64: =SCEN!J85 -> 0 | B64: =SCEN!M85 -> 0 | C64: 0 | D64: 0 | E64: 0 | F64: 0 | G64: 0 | H64: 0 | I64: 0 | J64: =INDEX(R_CCR!$F$10:$BW$10,'CAO Summary'!M64) -> - | K64: =INDEX(R_CHI!F$10:BW$10,'CAO Summary'!M64) -> - | L64: =INDEX(A_HI!$F$10:$BW$10,M64) -> - | M64: 60
A65: =SCEN!J86 -> 0 | B65: =SCEN!M86 -> 0 | C65: =INDEX(INDIRECT(C$79&"!"&C$81&C$80&":"&C$82&C$80),$M65) -> 0 | D65: 0 | E65: 0 | F65: 0 | G65: 0 | H65: 0 | I65: 0 | J65: =INDEX(R_CCR!$F$10:$BW$10,'CAO Summary'!M65) -> - | K65: =INDEX(R_CHI!F$10:BW$10,'CAO Summary'!M65) -> - | L65: =INDEX(A_HI!$F$10:$BW$10,M65) -> - | M65: 61
A66: =SCEN!J87 -> 0 | B66: =SCEN!M87 -> 0 | C66: 0 | D66: 0 | E66: 0 | F66: 0 | G66: 0 | H66: 0 | I66: 0 | J66: =INDEX(R_CCR!$F$10:$BW$10,'CAO Summary'!M66) -> - | K66: =INDEX(R_CHI!F$10:BW$10,'CAO Summary'!M66) -> - | L66: =INDEX(A_HI!$F$10:$BW$10,M66) -> - | M66: 62
A67: =SCEN!J88 -> 0 | B67: =SCEN!M88 -> 0 | C67: 0 | D67: 0 | E67: 0 | F67: 0 | G67: 0 | H67: 0 | I67: 0 | J67: =INDEX(R_CCR!$F$10:$BW$10,'CAO Summary'!M67) -> - | K67: =INDEX(R_CHI!F$10:BW$10,'CAO Summary'!M67) -> - | L67: =INDEX(A_HI!$F$10:$BW$10,M67) -> - | M67: 63
A68: =SCEN!J89 -> 0 | B68: =SCEN!M89 -> 0 | C68: 0 | D68: 0 | E68: 0 | F68: 0 | G68: 0 | H68: 0 | I68: 0 | J68: =INDEX(R_CCR!$F$10:$BW$10,'CAO Summary'!M68) -> - | K68: =INDEX(R_CHI!F$10:BW$10,'CAO Summary'!M68) -> - | L68: =INDEX(A_HI!$F$10:$BW$10,M68) -> - | M68: 64
A69: =SCEN!J90 -> 0 | B69: =SCEN!M90 -> 0 | C69: 0 | D69: 0 | E69: 0 | F69: 0 | G69: 0 | H69: 0 | I69: 0 | J69: =INDEX(R_CCR!$F$10:$BW$10,'CAO Summary'!M69) -> - | K69: =INDEX(R_CHI!F$10:BW$10,'CAO Summary'!M69) -> - | L69: =INDEX(A_HI!$F$10:$BW$10,M69) -> - | M69: 65
A70: =SCEN!J91 -> 0 | B70: =SCEN!M91 -> 0 | C70: 0 | D70: 0 | E70: 0 | F70: 0 | G70: 0 | H70: 0 | I70: 0 | J70: =INDEX(R_CCR!$F$10:$BW$10,'CAO Summary'!M70) -> - | K70: =INDEX(R_CHI!F$10:BW$10,'CAO Summary'!M70) -> - | L70: =INDEX(A_HI!$F$10:$BW$10,M70) -> - | M70: 66
A71: =SCEN!J92 -> 0 | B71: =SCEN!M92 -> 0 | C71: 0 | D71: 0 | E71: 0 | F71: 0 | G71: 0 | H71: 0 | I71: 0 | J71: =INDEX(R_CCR!$F$10:$BW$10,'CAO Summary'!M71) -> - | K71: =INDEX(R_CHI!F$10:BW$10,'CAO Summary'!M71) -> - | L71: =INDEX(A_HI!$F$10:$BW$10,M71) -> - | M71: 67
A72: =SCEN!J93 -> 0 | B72: =SCEN!M93 -> 0 | C72: 0 | D72: 0 | E72: 0 | F72: 0 | G72: 0 | H72: 0 | I72: 0 | J72: =INDEX(R_CCR!$F$10:$BW$10,'CAO Summary'!M72) -> - | K72: =INDEX(R_CHI!F$10:BW$10,'CAO Summary'!M72) -> - | L72: =INDEX(A_HI!$F$10:$BW$10,M72) -> - | M72: =M71+1 -> 68
A73: =SCEN!J94 -> 0 | B73: =SCEN!M94 -> 0 | C73: 0 | D73: 0 | E73: 0 | F73: 0 | G73: 0 | H73: 0 | I73: 0 | J73: =INDEX(R_CCR!$F$10:$BW$10,'CAO Summary'!M73) -> 0 | K73: =INDEX(R_CHI!F$10:BW$10,'CAO Summary'!M73) -> 0 | L73: =INDEX(A_HI!$F$10:$BW$10,M73) -> 0 | M73: 69
A74: =SCEN!J95 -> 0 | B74: =SCEN!M95 -> 0 | C74: 0 | D74: 0 | E74: 0 | F74: 0 | G74: 0 | H74: 0 | I74: 0 | J74: =INDEX(R_CCR!$F$10:$BW$10,'CAO Summary'!M74) -> 0 | K74: =INDEX(R_CHI!F$10:BW$10,'CAO Summary'!M74) -> 0 | L74: =INDEX(A_HI!$F$10:$BW$10,M74) -> 0 | M74: 70
A75: Max Receptor Risk > | C75: =IF($O$15=1,0,_xlfn.SINGLE(INDIRECT(C79&"!D"&C80))) -> 10.11140938 | D75: =IF($O$15=1,0,_xlfn.SINGLE(INDIRECT(D79&"!D"&D80))) -> 0.06866103774 | E75: 0.9915627141 | F75: 0.4753857351 | G75: 0.0159509213 | H75: 0.1091588969 | I75: 0.9472633601
A76: Sum of Max > | C76: =SUM(C5:C74) -> 10.11784515 | D76: 0.06866103774 | E76: 0.9935166875 | F76: 0.4754214502 | G76: 0.0159509213 | H76: =SUM(H5:H74) -> 0.1091881231 | I76: 0.9475028672
A77: Max Receptor > | C77: =INDIRECT(C79&"!D"&C80+1) -> 1784 | D77: =INDIRECT(D79&"!D"&D80+1) -> 8684 | E77: =INDIRECT(E79&"!D"&E80+1) -> 22 | F77: =INDIRECT(F79&"!D"&F80+1) -> 1784 | G77: =INDIRECT(G79&"!D"&G80+1) -> 8684 | H77: =INDIRECT(H79&"!D"&H80+1) -> 22 | I77: 22
C79: R_CCR | D79: NR_CCCR | E79: NR_CWCR | F79: R_CHI | G79: NR_CCHI | H79: NR_CWHI | I79: A_HI
C80: =ROW(R_CCR!D7) -> 7 | D80: =F80 -> 7 | E80: =G80 -> 7 | F80: =C80 -> 7 | G80: =D80 -> 7 | H80: =G80 -> 7 | I80: =H80 -> 7
C81: F | D81: F | E81: F | F81: F | G81: F | H81: F | I81: F
C82: BW | D82: BW | E82: BW | F82: BW | G82: BW | H82: BW | I82: BW
B83: Community Engagement Level | D83: 25 | G83: 1 | I83: 1
B84: TBACT Level | D84: 50 | G84: 5/3 | I84: 5/3
A85: Natural Gas Only Sources: | C85: 0.2012805235 | D85: 0.00563481244 | E85: 0.0247493664 | F85: 0.002632146357 | G85: 0.0001746923702 | H85: 0.001235587096 | I85: 0.005379529137
A88: Individual Pollutant Risk Values | N88: Acute Target Organ
P89: Target Organ
A90: =AN_EMIS!B5 -> 75-07-0 | B90: =AN_EMIS!C5 -> Acetaldehyde | C90: =SUM(INDIRECT(C$79&"!"&C$81&$N90&":"&C$82&$N90)) -> 0 | D90: 0 | E90: 0 | F90: 0 | G90: 0 | H90: 0 | I90: 0 | M90: 1 | N90: 100 | O90: 0 | P90: All
A91: =AN_EMIS!B6 -> 107-02-8 | B91: =AN_EMIS!C6 -> Acrolein | C91: 0 | D91: 0 | E91: 0 | F91: 0 | G91: 0 | H91: 0 | I91: 0 | M91: =M90+1 -> 2 | N91: =N90+1 -> 101 | O91: 1 | P91: =INDEX(R_CHI!CC$17:CP$17,O91+1) -> Kidney
A92: =AN_EMIS!B7 -> 7664-41-7 | B92: =AN_EMIS!C7 -> Ammonia | C92: 0 | D92: 0 | E92: 0 | F92: 0 | G92: 0 | H92: 0 | I92: 0 | M92: =M91+1 -> 3 | N92: 102 | O92: 2 | P92: =INDEX(R_CHI!CC$17:CP$17,O92+1) -> Liver
A93: =AN_EMIS!B8 -> 7440-36-0 | B93: =AN_EMIS!C8 -> Antimony and compounds | C93: 0 | D93: 0 | E93: 0 | F93: 0 | G93: 0 | H93: 0 | I93: 0 | M93: 4 | N93: 103 | O93: 3 | P93: =INDEX(R_CHI!CC$17:CP$17,O93+1) -> Blood
A94: =AN_EMIS!B9 -> 7440-38-2 | B94: =AN_EMIS!C9 -> Arsenic and compounds | C94: 9.915018062 | D94: 0.06635635303 | E94: 0.9615068401 | F94: 0.4748771809 | G94: 0.01592552473 | H94: 0.1089707752 | I94: 0.05699082866 | M94: 5 | N94: 104 | O94: 4 | P94: =INDEX(R_CHI!CC$17:CP$17,O94+1) -> Endo
A95: =AN_EMIS!B10 -> 71-43-2 | B95: =AN_EMIS!C10 -> Benzene | C95: 0 | D95: 0 | E95: 0 | F95: 0 | G95: 0 | H95: 0 | I95: 0 | M95: 6 | N95: 105 | O95: 5 | P95: =INDEX(R_CHI!CC$17:CP$17,O95+1) -> Musc
A96: =AN_EMIS!B11 -> 7440-41-7 | B96: =AN_EMIS!C11 -> Beryllium and compounds | C96: 0.0004559243917 | D96: 4.608923932e-06 | E96: 6.938067343e-05 | F96: 0 | G96: 0 | H96: 0 | I96: 0 | M96: 7 | N96: 106 | O96: 6 | P96: =INDEX(R_CHI!CC$17:CP$17,O96+1) -> Eyes
A97: =AN_EMIS!B12 -> 78-93-3 | B97: =AN_EMIS!C12 -> 2-Butanone (Methyl ethyl ketone) | C97: 0 | D97: 0 | E97: 0 | F97: 0 | G97: 0 | H97: 0 | I97: 0.0004894503936 | M97: 8 | N97: 107 | O97: 7 | P97: =INDEX(R_CHI!CC$17:CP$17,O97+1) -> Skin
A98: =AN_EMIS!B13 -> 7440-43-9 | B98: =AN_EMIS!C13 -> Cadmium and compounds | C98: 0.1556131769 | D98: 0.001647997195 | E98: 0.02356275084 | F98: 0 | G98: 0 | H98: 0 | I98: 0 | M98: 9 | N98: 108 | O98: 8 | P98: =INDEX(R_CHI!CC$17:CP$17,O98+1) -> Nerv
A99: =AN_EMIS!B14 -> 18540-29-9 | B99: =AN_EMIS!C14 -> Chromium VI, chromate and dichromate particulate | C99: 0.01756362308 | D99: 0.0004018716155 | E99: 0.001465024433 | F99: 0 | G99: 0 | H99: 0 | I99: 0 | M99: 10 | N99: 109 | O99: 9 | P99: =INDEX(R_CHI!CC$17:CP$17,O99+1) -> Cardio
A100: =AN_EMIS!B15 -> 7440-48-4 | B100: =AN_EMIS!C15 -> Cobalt and compounds | C100: =SUM(INDIRECT(C$79&"!"&C$81&$N100&":"&C$82&$N100)) -> 0 | D100: 0 | E100: 0 | F100: 0 | G100: 0 | H100: 0 | I100: 0 | M100: 11 | N100: 110 | O100: 10 | P100: =INDEX(R_CHI!CC$17:CP$17,O100+1) -> Immune
A101: =AN_EMIS!B16 -> 7440-50-8 | B101: =AN_EMIS!C16 -> Copper and compounds | C101: 0 | D101: 0 | E101: 0 | F101: 0 | G101: 0 | H101: 0 | I101: 0 | M101: 12 | N101: 111 | O101: 11 | P101: =INDEX(R_CHI!CC$17:CP$17,O101+1) -> Resp
A102: =AN_EMIS!B17 -> 100-41-4 | B102: =AN_EMIS!C17 -> Ethyl benzene | C102: 0.0003071311808 | D102: 3.783421042e-06 | E102: 7.402376675e-05 | F102: 0 | G102: 0 | H102: 0 | I102: 0 | M102: 13 | N102: 112 | O102: 12 | P102: =INDEX(R_CHI!CC$17:CP$17,O102+1) -> Gastro
A103: =AN_EMIS!B18 -> 50-00-0 | B103: =AN_EMIS!C18 -> Formaldehyde | C103: 0.002481901474 | D103: 2.597856217e-05 | E103: 0.0003821816757 | F103: 0 | G103: 0 | H103: 0 | I103: 0 | M103: 14 | N103: 113 | O103: 13 | P103: =INDEX(R_CHI!CC$17:CP$17,O103+1) -> Develop
A104: =AN_EMIS!B19 -> 110-54-3 | B104: =AN_EMIS!C19 -> Hexane | C104: 0 | D104: 0 | E104: 0 | F104: 0 | G104: 0 | H104: 0 | I104: 0 | M104: 15 | N104: 114
A105: =AN_EMIS!B20 -> 7647-01-0 | B105: =AN_EMIS!C20 -> Hydrochloric acid | C105: 0 | D105: 0 | E105: 0 | F105: 0 | G105: 0 | H105: 0 | I105: 0 | M105: 16 | N105: 115
A106: =AN_EMIS!B21 -> 67-63-0 | B106: =AN_EMIS!C21 -> Isopropyl alcohol | C106: 0 | D106: 0 | E106: 0 | F106: 0 | G106: 0 | H106: 0 | I106: 0 | M106: 17 | N106: 116
A107: =AN_EMIS!B22 -> 7439-92-1 | B107: =AN_EMIS!C22 -> Lead and compounds | C107: 0 | D107: 0 | E107: 0 | F107: 0 | G107: 0 | H107: 0 | I107: 0.8897126919 | M107: 18 | N107: 117
A108: =AN_EMIS!B23 -> 7439-96-5 | B108: =AN_EMIS!C23 -> Manganese and compounds | C108: 0 | D108: 0 | E108: 0 | F108: 0.0002905306401 | G108: 1.725929011e-05 | H108: 0.0001240486829 | I108: 0 | M108: 19 | N108: 118
A109: =AN_EMIS!B24 -> 7439-97-6 | B109: =AN_EMIS!C24 -> Mercury and compounds | C109: 0 | D109: 0 | E109: 0 | F109: 0.0001911510431 | G109: 6.185530545e-06 | H109: 4.232463734e-05 | I109: 0.0003098963047 | M109: 20 | N109: 119
A110: =AN_EMIS!B25 -> 108-10-1 | B110: =AN_EMIS!C25 -> Methyl isobutyl ketone (MIBK, Hexone) | C110: =SUM(INDIRECT(C$79&"!"&C$81&$N110&":"&C$82&$N110)) -> 0 | D110: 0 | E110: 0 | F110: 0 | G110: 0 | H110: 0 | I110: 0 | M110: 21 | N110: 120
A111: =AN_EMIS!B26 -> 91-20-3 | B111: =AN_EMIS!C26 -> Naphthalene | C111: 0.007646895814 | D111: 3.718904491e-05 | E111: 0.002250727695 | F111: 5.993512935e-05 | G111: 1.766479633e-06 | H111: 4.923466833e-05 | I111: 0 | M111: 22 | N111: 121
A112: =AN_EMIS!B27 -> C365 | B112: =AN_EMIS!C27 -> Nickel compounds, insoluble | C112: 0.01875843985 | D112: 0.0001832559455 | E112: 0.004205758329 | F112: 0 | G112: 0 | H112: 0 | I112: 0 | M112: 23 | N112: 122
A113: =AN_EMIS!B28 -> 56-55-3 | B113: =AN_EMIS!C28 -> Benz[a]anthracene | C113: 0 | D113: 0 | E113: 0 | F113: 0 | G113: 0 | H113: 0 | I113: 0 | M113: 24 | N113: 123
A114: =AN_EMIS!B29 -> 50-32-8 | B114: =AN_EMIS!C29 -> Benzo[a]pyrene | C114: 0 | D114: 0 | E114: 0 | F114: 0 | G114: 0 | H114: 0 | I114: 0 | M114: 25 | N114: 124
A115: =AN_EMIS!B30 -> 205-99-2 | B115: =AN_EMIS!C30 -> Benzo[b]fluoranthene | C115: 0 | D115: 0 | E115: 0 | F115: 0 | G115: 0 | H115: 0 | I115: 0 | M115: 26 | N115: 125
A116: =AN_EMIS!B31 -> 191-24-2 | B116: =AN_EMIS!C31 -> Benzo[g,h,i]perylene | C116: 0 | D116: 0 | E116: 0 | F116: 0 | G116: 0 | H116: 0 | I116: 0 | M116: 27 | N116: 126
A117: =AN_EMIS!B32 -> 207-08-9 | B117: =AN_EMIS!C32 -> Benzo[k]fluoranthene | C117: 0 | D117: 0 | E117: 0 | F117: 0 | G117: 0 | H117: 0 | I117: 0 | M117: 28 | N117: 127
A118: =AN_EMIS!B33 -> 218-01-9 | B118: =AN_EMIS!C33 -> Chrysene | C118: 0 | D118: 0 | E118: 0 | F118: 0 | G118: 0 | H118: 0 | I118: 0 | M118: 29 | N118: 128
A119: =AN_EMIS!B34 -> 206-44-0 | B119: =AN_EMIS!C34 -> Fluoranthene | C119: 0 | D119: 0 | E119: 0 | F119: 0 | G119: 0 | H119: 0 | I119: 0 | M119: 30 | N119: 129
A120: =AN_EMIS!B35 -> 193-39-5 | B120: =AN_EMIS!C35 -> Indeno[1,2,3-cd]pyrene | C120: =SUM(INDIRECT(C$79&"!"&C$81&$N120&":"&C$82&$N120)) -> 0 | D120: 0 | E120: 0 | F120: 0 | G120: 0 | H120: 0 | I120: 0 | M120: 31 | N120: 130
A121: =AN_EMIS!B36 -> 7782-49-2 | B121: =AN_EMIS!C36 -> Selenium and compounds | C121: 0 | D121: 0 | E121: 0 | F121: 0 | G121: 0 | H121: 0 | I121: 0 | M121: 32 | N121: 131
A122: =AN_EMIS!B37 -> 7631-86-9 | B122: =AN_EMIS!C37 -> Silica, crystalline (respirable) | C122: 0 | D122: 0 | E122: 0 | F122: 0 | G122: 0 | H122: 0 | I122: 0 | M122: 33 | N122: 132
A123: =AN_EMIS!B38 -> 1310-73-2 | B123: =AN_EMIS!C38 -> Sodium hydroxide | C123: 0 | D123: 0 | E123: 0 | F123: 0 | G123: 0 | H123: 0 | I123: 0 | M123: 34 | N123: 133
A124: =AN_EMIS!B39 -> 108-88-3 | B124: =AN_EMIS!C39 -> Toluene | C124: 0 | D124: 0 | E124: 0 | F124: 0 | G124: 0 | H124: 0 | I124: 0 | M124: 35 | N124: 134
A125: =AN_EMIS!B40 -> 7440-62-2 | B125: =AN_EMIS!C40 -> Vanadium (fume or dust) | C125: 0 | D125: 0 | E125: 0 | F125: 0 | G125: 0 | H125: 0 | I125: 0 | M125: 36 | N125: 135
A126: =AN_EMIS!B41 -> 1330-20-7 | B126: =AN_EMIS!C41 -> Xylene (mixture), including m-xylene, o-xylene, p-xylene | C126: 0 | D126: 0 | E126: 0 | F126: 2.652494706e-06 | G126: 1.852704884e-07 | H126: 1.739938867e-06 | I126: 0 | M126: 37 | N126: 136
A127: =AN_EMIS!B42 -> 0 | B127: =AN_EMIS!C42 -> 0 | C127: 0 | D127: 0 | E127: 0 | F127: 0 | G127: 0 | H127: 0 | I127: 0 | M127: 38 | N127: 137
A128: =AN_EMIS!B43 -> 0 | B128: =AN_EMIS!C43 -> 0 | C128: 0 | D128: 0 | E128: 0 | F128: 0 | G128: 0 | H128: 0 | I128: 0 | M128: 39 | N128: 138
A129: =AN_EMIS!B44 -> 0 | B129: =AN_EMIS!C44 -> 0 | C129: 0 | D129: 0 | E129: 0 | F129: 0 | G129: 0 | H129: 0 | I129: 0 | M129: 40 | N129: 139
A130: =AN_EMIS!B45 -> 0 | B130: =AN_EMIS!C45 -> 0 | C130: =SUM(INDIRECT(C$79&"!"&C$81&$N130&":"&C$82&$N130)) -> 0 | D130: 0 | E130: 0 | F130: 0 | G130: 0 | H130: 0 | I130: 0 | M130: 41 | N130: 140
A131: =AN_EMIS!B46 -> 0 | B131: =AN_EMIS!C46 -> 0 | C131: 0 | D131: 0 | E131: 0 | F131: 0 | G131: 0 | H131: 0 | I131: 0 | M131: 42 | N131: 141
A132: =AN_EMIS!B47 -> 0 | B132: =AN_EMIS!C47 -> 0 | C132: 0 | D132: 0 | E132: 0 | F132: 0 | G132: 0 | H132: 0 | I132: 0 | M132: 43 | N132: 142
A133: =AN_EMIS!B48 -> 0 | B133: =AN_EMIS!C48 -> 0 | C133: 0 | D133: 0 | E133: 0 | F133: 0 | G133: 0 | H133: 0 | I133: 0 | M133: 44 | N133: 143
A134: =AN_EMIS!B49 -> 0 | B134: =AN_EMIS!C49 -> 0 | C134: 0 | D134: 0 | E134: 0 | F134: 0 | G134: 0 | H134: 0 | I134: 0 | M134: 45 | N134: 144
A135: =AN_EMIS!B50 -> 0 | B135: =AN_EMIS!C50 -> 0 | C135: 0 | D135: 0 | E135: 0 | F135: 0 | G135: 0 | H135: 0 | I135: 0 | M135: 46 | N135: 145
A136: =AN_EMIS!B51 -> 0 | B136: =AN_EMIS!C51 -> 0 | C136: 0 | D136: 0 | E136: 0 | F136: 0 | G136: 0 | H136: 0 | I136: 0 | M136: 47 | N136: 146
A137: =AN_EMIS!B52 -> 0 | B137: =AN_EMIS!C52 -> 0 | C137: 0 | D137: 0 | E137: 0 | F137: 0 | G137: 0 | H137: 0 | I137: 0 | M137: 48 | N137: 147
A138: =AN_EMIS!B53 -> 0 | B138: =AN_EMIS!C53 -> 0 | C138: 0 | D138: 0 | E138: 0 | F138: 0 | G138: 0 | H138: 0 | I138: 0 | M138: 49 | N138: 148
A139: =AN_EMIS!B54 -> 0 | B139: =AN_EMIS!C54 -> 0 | C139: 0 | D139: 0 | E139: 0 | F139: 0 | G139: 0 | H139: 0 | I139: 0 | M139: 50 | N139: 149
A140: =AN_EMIS!B55 -> 0 | B140: =AN_EMIS!C55 -> 0 | C140: =SUM(INDIRECT(C$79&"!"&C$81&$N140&":"&C$82&$N140)) -> 0 | D140: 0 | E140: 0 | F140: 0 | G140: 0 | H140: 0 | I140: 0 | M140: 51 | N140: 150
A141: =AN_EMIS!B56 -> 0 | B141: =AN_EMIS!C56 -> 0 | C141: 0 | D141: 0 | E141: 0 | F141: 0 | G141: 0 | H141: 0 | I141: 0 | M141: 52 | N141: 151
A142: =AN_EMIS!B57 -> 0 | B142: =AN_EMIS!C57 -> 0 | C142: 0 | D142: 0 | E142: 0 | F142: 0 | G142: 0 | H142: 0 | I142: 0 | M142: 53 | N142: 152
A143: =AN_EMIS!B58 -> 0 | B143: =AN_EMIS!C58 -> 0 | C143: 0 | D143: 0 | E143: 0 | F143: 0 | G143: 0 | H143: 0 | I143: 0 | M143: 54 | N143: 153
A144: =AN_EMIS!B59 -> 0 | B144: =AN_EMIS!C59 -> 0 | C144: 0 | D144: 0 | E144: 0 | F144: 0 | G144: 0 | H144: 0 | I144: 0 | M144: 55 | N144: 154
A145: =AN_EMIS!B60 -> 0 | B145: =AN_EMIS!C60 -> 0 | C145: 0 | D145: 0 | E145: 0 | F145: 0 | G145: 0 | H145: 0 | I145: 0 | M145: 56 | N145: 155
A146: =AN_EMIS!B61 -> 0 | B146: =AN_EMIS!C61 -> 0 | C146: 0 | D146: 0 | E146: 0 | F146: 0 | G146: 0 | H146: 0 | I146: 0 | M146: 57 | N146: 156
A147: =AN_EMIS!B62 -> 0 | B147: =AN_EMIS!C62 -> 0 | C147: 0 | D147: 0 | E147: 0 | F147: 0 | G147: 0 | H147: 0 | I147: 0 | M147: 58 | N147: 157
A148: =AN_EMIS!B63 -> 0 | B148: =AN_EMIS!C63 -> 0 | C148: 0 | D148: 0 | E148: 0 | F148: 0 | G148: 0 | H148: 0 | I148: 0 | M148: 59 | N148: 158
A149: =AN_EMIS!B64 -> 0 | B149: =AN_EMIS!C64 -> 0 | C149: 0 | D149: 0 | E149: 0 | F149: 0 | G149: 0 | H149: 0 | I149: 0 | M149: 60 | N149: 159
A150: =AN_EMIS!B65 -> 0 | B150: =AN_EMIS!C65 -> 0 | C150: 0 | D150: 0 | E150: 0 | F150: 0 | G150: 0 | H150: 0 | I150: 0 | M150: 61 | N150: 160
A151: =AN_EMIS!B66 -> 0 | B151: =AN_EMIS!C66 -> 0 | C151: 0 | D151: 0 | E151: 0 | F151: 0 | G151: 0 | H151: 0 | I151: 0 | M151: 62 | N151: 161
N152: To get maximium source specific TO risk , set:
N153: Src Spec TO = 1
N154: ChronicTarget Organ = 0
N155: Acute Target Organ = 0
B156: Target Organ Risk Values | C156: Residential Chronic Cancer | D156: Non-Residential Chronic Child Cancer | E156: Non-Residential Chronic Worker Cancer | F156: Residential Chronic Non- cancer | G156: Non-Residential Chronic Child Non- cancer | H156: Non-Residential Chronic Worker Non- cancer | I156: Acute Non- cancer
B157: All | C157: 10.11140938 | D157: 0.06866103774 | E157: 0.9915627141 | F157: 0.519953552 | G157: 0.0213424637 | H157: 0.1489611937 | I157: 1.00921445 | K157: 0 | N157: To get max facility TO risk, set:
B158: Kidney | F158: 0.01025258978 | G158: 0.0005365916211 | H158: 0.003671703704 | I158: 0 | K158: 1 | N158: Src Spec TO = 0
B159: Liver | F159: 0 | G159: 0 | H159: 0 | I159: 0 | K159: =K158+1 -> 2 | N159: ChronicTarget Organ = 8
B160: Blood | F160: 0 | G160: 0 | H160: 0 | I160: 0 | K160: =K159+1 -> 3 | N160: Acute Target Organ = 13
B161: Endo | F161: 0 | G161: 0 | H161: 0 | I161: 0 | K161: 4
B162: Musc | F162: 0 | G162: 0 | H162: 0 | I162: 0 | K162: 5
B163: Eyes | F163: 2.652494706e-06 | G163: 1.852704884e-07 | H163: 1.739938867e-06 | I163: 0.01189600215 | K163: 6
B164: Skin | F164: 0 | G164: 0 | H164: 0 | I164: 0.003796589199 | K164: 7
B165: Nerv | F165: 0.4301593369 | G165: 0.0159509213 | H165: 0.1091588969 | I165: 0.01375925532 | K165: 8 | L165: Chronic
B166: Cardio | F166: 0 | G166: 0 | H166: 0 | I166: 0 | K166: 9
B167: Immune | F167: 0.00452159043 | G167: 0.0002972095303 | H167: 0.002593698889 | I167: 0.005347180022 | K167: 10
B168: Resp | F168: 0.009139538504 | G168: 0.0006180372144 | H168: 0.009781051023 | I168: 0.04952094883 | K168: 11
B169: Gastro | F169: 0 | G169: 0 | H169: 0 | I169: 0 | K169: 12
B170: Develop | F170: 0.07044416041 | G170: 0.004238833195 | H170: 0.02901034317 | I170: 0.9472633601 | K170: 13 | L170: Acute
B171: Repro | F171: 0 | G171: 0 | H171: 0 | I171: 0 | K171: 14
E172: Max | F172: =MAX(F157:F170) -> 0.519953552 | I172: =MAX(I157:I170) -> 1.00921445
E173: % 0F ALL | F173: =MAX(F158:F170)/F157 -> 0.8273033913 | I173: =MAX(I158:I170)/I157 -> 0.9386145434

Sheet R_CCR
A1: Clean Air Oregon Assessment Level 3/4 Spreadsheet
A2: =B3 -> Residential Chronic Cancer
A3: 3 | B3: =INDEX(RBC_Table!A4:W4,A3) -> Residential Chronic Cancer | D3: =INDEX(RBC_Table!A3:P3,A3) -> R_CCR
C5: Risk Summary | F5: 1 | G5: =F5+1 -> 2 | H5: =G5+1 -> 3 | I5: 4 | J5: 5 | K5: 6 | L5: 7 | M5: 8 | N5: 9 | O5: 10 | P5: 11 | Q5: 12 | R5: 13 | S5: 14 | T5: 15 | U5: 16 | V5: 17 | W5: 18 | X5: 19 | Y5: 20 | Z5: 21 | AA5: 22 | AB5: 23 | AC5: 24 | AD5: 25 | AE5: 26 | AF5: 27 | AG5: 28 | AH5: 29 | AI5: 30 | AJ5: 31 | AK5: 32 | AL5: 33 | AM5: 34 | AN5: 35 | AO5: 36 | AP5: 37 | AQ5: 38 | AR5: 39 | AS5: 40 | AT5: 41 | AU5: 42 | AV5: 43 | AW5: 44 | AX5: 45 | AY5: 46 | AZ5: 47 | BA5: 48 | BB5: 49 | BC5: 50 | BD5: 51 | BE5: 52 | BF5: 53 | BG5: 54 | BH5: 55 | BI5: 56 | BJ5: 57 | BK5: 58 | BL5: 59 | BM5: 60 | BN5: 61 | BO5: 62 | BP5: 63 | BQ5: 64 | BR5: 65 | BS5: 66 | BT5: =BS5+1 -> 67 | BU5: 68
F6: =INDEX(SCEN!$J$26:$J$95,F5) -> EU1RM1 | G6: =INDEX(SCEN!$J$26:$J$95,G5) -> EU1BF | H6: =INDEX(SCEN!$J$26:$J$95,H5) -> EU1RM2 | I6: =INDEX(SCEN!$J$26:$J$95,I5) -> EU4 | J6: =INDEX(SCEN!$J$26:$J$95,J5) -> EU4NG | K6: =INDEX(SCEN!$J$26:$J$95,K5) -> EU5 | L6: =INDEX(SCEN!$J$26:$J$95,L5) -> EU6 | M6: =INDEX(SCEN!$J$26:$J$95,M5) -> EU7 | N6: =INDEX(SCEN!$J$26:$J$95,N5) -> EU10 | O6: =INDEX(SCEN!$J$26:$J$95,O5) -> IMAGE | P6: =INDEX(SCEN!$J$26:$J$95,P5) -> SFL | Q6: =INDEX(SCEN!$J$26:$J$95,Q5) -> 0 | R6: =INDEX(SCEN!$J$26:$J$95,R5) -> 0 | S6: =INDEX(SCEN!$J$26:$J$95,S5) -> 0 | T6: =INDEX(SCEN!$J$26:$J$95,T5) -> 0 | U6: =INDEX(SCEN!$J$26:$J$95,U5) -> 0 | V6: =INDEX(SCEN!$J$26:$J$95,V5) -> 0 | W6: =INDEX(SCEN!$J$26:$J$95,W5) -> 0 | X6: =INDEX(SCEN!$J$26:$J$95,X5) -> 0 | Y6: =INDEX(SCEN!$J$26:$J$95,Y5) -> 0 | Z6: =INDEX(SCEN!$J$26:$J$95,Z5) -> 0 | AA6: =INDEX(SCEN!$J$26:$J$95,AA5) -> 0 | AB6: =INDEX(SCEN!$J$26:$J$95,AB5) -> 0 | AC6: =INDEX(SCEN!$J$26:$J$95,AC5) -> 0 | AD6: =INDEX(SCEN!$J$26:$J$95,AD5) -> 0 | AE6: =INDEX(SCEN!$J$26:$J$95,AE5) -> 0 | AF6: =INDEX(SCEN!$J$26:$J$95,AF5) -> 0 | AG6: =INDEX(SCEN!$J$26:$J$95,AG5) -> 0 | AH6: =INDEX(SCEN!$J$26:$J$95,AH5) -> 0 | AI6: =INDEX(SCEN!$J$26:$J$95,AI5) -> 0 | AJ6: =INDEX(SCEN!$J$26:$J$95,AJ5) -> 0 | AK6: =INDEX(SCEN!$J$26:$J$95,AK5) -> 0 | AL6: =INDEX(SCEN!$J$26:$J$95,AL5) -> 0 | AM6: =INDEX(SCEN!$J$26:$J$95,AM5) -> 0 | AN6: =INDEX(SCEN!$J$26:$J$95,AN5) -> 0 | AO6: =INDEX(SCEN!$J$26:$J$95,AO5) -> 0 | AP6: =INDEX(SCEN!$J$26:$J$95,AP5) -> 0 | AQ6: =INDEX(SCEN!$J$26:$J$95,AQ5) -> 0 | AR6: =INDEX(SCEN!$J$26:$J$95,AR5) -> 0 | AS6: =INDEX(SCEN!$J$26:$J$95,AS5) -> 0 | AT6: =INDEX(SCEN!$J$26:$J$95,AT5) -> 0 | AU6: =INDEX(SCEN!$J$26:$J$95,AU5) -> 0 | AV6: =INDEX(SCEN!$J$26:$J$95,AV5) -> 0 | AW6: =INDEX(SCEN!$J$26:$J$95,AW5) -> 0 | AX6: =INDEX(SCEN!$J$26:$J$95,AX5) -> 0 | AY6: =INDEX(SCEN!$J$26:$J$95,AY5) -> 0 | AZ6: =INDEX(SCEN!$J$26:$J$95,AZ5) -> 0 | BA6: =INDEX(SCEN!$J$26:$J$95,BA5) -> 0 | BB6: =INDEX(SCEN!$J$26:$J$95,BB5) -> 0 | BC6: =INDEX(SCEN!$J$26:$J$95,BC5) -> 0 | BD6: =INDEX(SCEN!$J$26:$J$95,BD5) -> 0 | BE6: =INDEX(SCEN!$J$26:$J$95,BE5) -> 0 | BF6: =INDEX(SCEN!$J$26:$J$95,BF5) -> 0 | BG6: =INDEX(SCEN!$J$26:$J$95,BG5) -> 0 | BH6: =INDEX(SCEN!$J$26:$J$95,BH5) -> 0 | BI6: =INDEX(SCEN!$J$26:$J$95,BI5) -> 0 | BJ6: =INDEX(SCEN!$J$26:$J$95,BJ5) -> 0 | BK6: =INDEX(SCEN!$J$26:$J$95,BK5) -> 0 | BL6: =INDEX(SCEN!$J$26:$J$95,BL5) -> 0 | BM6: =INDEX(SCEN!$J$26:$J$95,BM5) -> 0 | BN6: =INDEX(SCEN!$J$26:$J$95,BN5) -> 0 | BO6: =INDEX(SCEN!$J$26:$J$95,BO5) -> 0 | BP6: =INDEX(SCEN!$J$26:$J$95,BP5) -> 0 | BQ6: =INDEX(SCEN!$J$26:$J$95,BQ5) -> 0 | BR6: =INDEX(SCEN!$J$26:$J$95,BR5) -> 0 | BS6: =INDEX(SCEN!$J$26:$J$95,BS5) -> 0 | BT6: =INDEX(SCEN!$J$26:$J$95,BT5) -> 0 | BU6: =INDEX(SCEN!$J$26:$J$95,BU5) -> 0
C7: Max Risk > | D7: =MAX(D180:D17924) -> 10.11140938 | F7: =MAX(F180:F17924) -> 0 | G7: =MAX(G180:G17924) -> 0 | H7: 0 | I7: 10.10208068 | J7: 0 | K7: 0 | L7: 0 | M7: 0 | N7: 0.007810452172 | O7: 0.007646895814 | P7: 0.0003071311808 | Q7: 0 | R7: 0 | S7: 0 | T7: 0 | U7: 0 | V7: 0 | W7: 0 | X7: 0 | Y7: 0 | Z7: 0 | AA7: 0 | AB7: 0 | AC7: 0 | AD7: 0 | AE7: 0 | AF7: 0 | AG7: 0 | AH7: 0 | AI7: 0 | AJ7: 0 | AK7: 0 | AL7: 0 | AM7: 0 | AN7: 0 | AO7: 0 | AP7: 0 | AQ7: 0 | AR7: 0 | AS7: 0 | AT7: 0 | AU7: 0 | AV7: 0 | AW7: 0 | AX7: 0 | AY7: 0 | AZ7: 0 | BA7: 0 | BB7: 0 | BC7: 0 | BD7: 0 | BE7: 0 | BF7: 0 | BG7: 0 | BH7: 0 | BI7: 0 | BJ7: 0 | BK7: 0 | BL7: 0 | BM7: 0 | BN7: 0 | BO7: 0 | BP7: 0 | BQ7: 0 | BR7: 0 | BS7: =MAX(BS180:BS17924) -> 0 | BT7: 0 | BU7: 0
C8: Max Recp Row > | D8: =IF(D7=0,0,MATCH(D7,D180:D17924,0)) -> 1784 | F8: =IF(F7=0,0,MATCH(F7,F180:F17924,0)) -> 0 | G8: 0 | H8: 0 | I8: 1784 | J8: 0 | K8: 0 | L8: 0 | M8: 0 | N8: 95 | O8: 112 | P8: 95 | Q8: 0 | R8: 0 | S8: 0 | T8: 0 | U8: 0 | V8: 0 | W8: 0 | X8: 0 | Y8: 0 | Z8: 0 | AA8: 0 | AB8: 0 | AC8: 0 | AD8: 0 | AE8: 0 | AF8: 0 | AG8: 0 | AH8: 0 | AI8: 0 | AJ8: 0 | AK8: 0 | AL8: =IF(AL7=0,0,MATCH(AL7,AL180:AL17924,0)) -> 0 | AM8: 0 | AN8: 0 | AO8: 0 | AP8: 0 | AQ8: 0 | AR8: 0 | AS8: 0 | AT8: 0 | AU8: 0 | AV8: 0 | AW8: 0 | AX8: 0 | AY8: 0 | AZ8: 0 | BA8: 0 | BB8: 0 | BC8: 0 | BD8: 0 | BE8: 0 | BF8: 0 | BG8: 0 | BH8: 0 | BI8: 0 | BJ8: 0 | BK8: 0 | BL8: 0 | BM8: 0 | BN8: 0 | BO8: 0 | BP8: 0 | BQ8: 0 | BR8: =IF(BR7=0,0,MATCH(BR7,BR180:BR17924,0)) -> 0 | BS8: 0 | BT8: 0 | BU8: 0
C9: Ind Risk #1> | F9: =IF(F8=0,0,LARGE(F100:F166,1)) -> 0 | G9: =IF(G8=0,0,LARGE(G100:G166,1)) -> 0 | H9: =IF(H8=0,0,LARGE(H100:H166,1)) -> 0 | I9: =IF(I8=0,0,LARGE(I100:I166,1)) -> 9.915018062 | J9: 0 | K9: 0 | L9: 0 | M9: 0 | N9: 0.00748437728 | O9: 0.007646895814 | P9: 0.0003071311808 | Q9: 0 | R9: 0 | S9: 0 | T9: 0 | U9: 0 | V9: 0 | W9: 0 | X9: 0 | Y9: 0 | Z9: 0 | AA9: 0 | AB9: 0 | AC9: 0 | AD9: 0 | AE9: 0 | AF9: 0 | AG9: 0 | AH9: 0 | AI9: 0 | AJ9: 0 | AK9: 0 | AL9: 0 | AM9: 0 | AN9: 0 | AO9: 0 | AP9: 0 | AQ9: 0 | AR9: 0 | AS9: 0 | AT9: 0 | AU9: 0 | AV9: 0 | AW9: 0 | AX9: 0 | AY9: 0 | AZ9: 0 | BA9: 0 | BB9: 0 | BC9: 0 | BD9: 0 | BE9: 0 | BF9: 0 | BG9: 0 | BH9: 0 | BI9: 0 | BJ9: 0 | BK9: 0 | BL9: 0 | BM9: 0 | BN9: 0 | BO9: 0 | BP9: 0 | BQ9: 0 | BR9: 0 | BS9: 0 | BT9: 0 | BU9: =IF(BU8=0,0,LARGE(BU100:BU166,1)) -> 0
F10: =IF(F9>0,INDEX($C$100:$C$166,MATCH(F9,F100:F166,0)),"-") -> - | G10: =IF(G9>0,INDEX($C$100:$C$166,MATCH(G9,G100:G166,0)),"-") -> - | H10: =IF(H9>0,INDEX($C$100:$C$166,MATCH(H9,H100:H166,0)),"-") -> - | I10: =IF(I9>0,INDEX($C$100:$C$166,MATCH(I9,I100:I166,0)),"-") -> Arsenic and compounds | J10: =IF(J9>0,INDEX($C$100:$C$166,MATCH(J9,J100:J166,0)),"-") -> - | K10: - | L10: - | M10: - | N10: Nickel compounds, insoluble | O10: Naphthalene | P10: Ethyl benzene | Q10: - | R10: - | S10: - | T10: - | U10: - | V10: - | W10: - | X10: - | Y10: - | Z10: - | AA10: - | AB10: - | AC10: - | AD10: - | AE10: - | AF10: - | AG10: - | AH10: - | AI10: - | AJ10: - | AK10: - | AL10: - | AM10: - | AN10: - | AO10: - | AP10: - | AQ10: - | AR10: - | AS10: - | AT10: - | AU10: - | AV10: - | AW10: - | AX10: - | AY10: - | AZ10: - | BA10: - | BB10: - | BC10: - | BD10: - | BE10: - | BF10: - | BG10: - | BH10: - | BI10: - | BJ10: - | BK10: - | BL10: - | BM10: - | BN10: - | BO10: - | BP10: - | BQ10: - | BR10: - | BS10: - | BT10: - | BU10: -
C11: Ind Risk #2 > | F11: =LARGE(F100:F166,2) -> 0 | G11: =LARGE(G100:G166,2) -> 0 | H11: 0 | I11: =LARGE(I100:I166,2) -> 0.1556131769 | J11: =LARGE(J100:J166,2) -> 0 | K11: 0 | L11: 0 | M11: 0 | N11: 0.0003260748927 | O11: 0 | P11: 0 | Q11: 0 | R11: 0 | S11: 0 | T11: 0 | U11: 0 | V11: 0 | W11: 0 | X11: 0 | Y11: 0 | Z11: 0 | AA11: 0 | AB11: 0 | AC11: 0 | AD11: 0 | AE11: 0 | AF11: 0 | AG11: 0 | AH11: 0 | AI11: 0 | AJ11: 0 | AK11: 0 | AL11: 0 | AM11: 0 | AN11: 0 | AO11: 0 | AP11: 0 | AQ11: 0 | AR11: 0 | AS11: 0 | AT11: 0 | AU11: 0 | AV11: 0 | AW11: 0 | AX11: 0 | AY11: 0 | AZ11: 0 | BA11: 0 | BB11: 0 | BC11: 0 | BD11: 0 | BE11: 0 | BF11: 0 | BG11: 0 | BH11: 0 | BI11: 0 | BJ11: 0 | BK11: 0 | BL11: 0 | BM11: 0 | BN11: 0 | BO11: 0 | BP11: 0 | BQ11: 0 | BR11: 0 | BS11: 0 | BT11: 0 | BU11: 0
F12: =IF(F11>0,INDEX($C$100:$C$166,MATCH(F11,F100:F166,0)),"-") -> - | G12: =IF(G11>0,INDEX($C$100:$C$166,MATCH(G11,G100:G166,0)),"-") -> - | H12: =IF(H11>0,INDEX($C$100:$C$166,MATCH(H11,H100:H166,0)),"-") -> - | I12: =IF(I11>0,INDEX($C$100:$C$166,MATCH(I11,I100:I166,0)),"-") -> Cadmium and compounds | J12: =IF(J11>0,INDEX($C$100:$C$166,MATCH(J11,J100:J166,0)),"-") -> - | K12: - | L12: - | M12: - | N12: Chromium VI, chromate and dichromate particulate | O12: - | P12: - | Q12: - | R12: - | S12: - | T12: - | U12: - | V12: - | W12: - | X12: - | Y12: - | Z12: - | AA12: - | AB12: - | AC12: - | AD12: - | AE12: - | AF12: - | AG12: - | AH12: - | AI12: - | AJ12: - | AK12: - | AL12: - | AM12: - | AN12: - | AO12: - | AP12: - | AQ12: - | AR12: - | AS12: - | AT12: - | AU12: - | AV12: - | AW12: - | AX12: - | AY12: - | AZ12: - | BA12: - | BB12: - | BC12: - | BD12: - | BE12: - | BF12: - | BG12: - | BH12: - | BI12: - | BJ12: - | BK12: - | BL12: - | BM12: - | BN12: - | BO12: - | BP12: - | BQ12: - | BR12: - | BS12: - | BT12: - | BU12: -
C13: Ind Risk #3 > | F13: =LARGE(F100:F166,3) -> 0 | G13: =LARGE(G100:G166,3) -> 0 | H13: 0 | I13: =LARGE(I100:I166,3) -> 0.01723754819 | J13: =LARGE(J100:J166,3) -> 0 | K13: 0 | L13: 0 | M13: 0 | N13: 0 | O13: 0 | P13: 0 | Q13: 0 | R13: 0 | S13: 0 | T13: 0 | U13: 0 | V13: 0 | W13: 0 | X13: 0 | Y13: 0 | Z13: 0 | AA13: 0 | AB13: 0 | AC13: 0 | AD13: 0 | AE13: 0 | AF13: 0 | AG13: 0 | AH13: 0 | AI13: 0 | AJ13: 0 | AK13: 0 | AL13: 0 | AM13: 0 | AN13: 0 | AO13: 0 | AP13: 0 | AQ13: 0 | AR13: 0 | AS13: 0 | AT13: 0 | AU13: 0 | AV13: 0 | AW13: 0 | AX13: 0 | AY13: 0 | AZ13: 0 | BA13: 0 | BB13: 0 | BC13: 0 | BD13: 0 | BE13: 0 | BF13: 0 | BG13: 0 | BH13: 0 | BI13: 0 | BJ13: 0 | BK13: 0 | BL13: 0 | BM13: 0 | BN13: 0 | BO13: 0 | BP13: 0 | BQ13: 0 | BR13: 0 | BS13: 0 | BT13: 0 | BU13: 0
F14: =IF(F13>0,INDEX($C$100:$C$166,MATCH(F13,F100:F166,0)),"-") -> - | G14: =IF(G13>0,INDEX($C$100:$C$166,MATCH(G13,G100:G166,0)),"-") -> - | H14: =IF(H13>0,INDEX($C$100:$C$166,MATCH(H13,H100:H166,0)),"-") -> - | I14: =IF(I13>0,INDEX($C$100:$C$166,MATCH(I13,I100:I166,0)),"-") -> Chromium VI, chromate and dichromate particulate | J14: =IF(J13>0,INDEX($C$100:$C$166,MATCH(J13,J100:J166,0)),"-") -> - | K14: - | L14: - | M14: - | N14: - | O14: - | P14: - | Q14: - | R14: - | S14: - | T14: - | U14: - | V14: - | W14: - | X14: - | Y14: - | Z14: - | AA14: - | AB14: - | AC14: - | AD14: - | AE14: - | AF14: - | AG14: - | AH14: - | AI14: - | AJ14: - | AK14: - | AL14: - | AM14: - | AN14: - | AO14: - | AP14: - | AQ14: - | AR14: - | AS14: - | AT14: - | AU14: - | AV14: - | AW14: - | AX14: - | AY14: - | AZ14: - | BA14: - | BB14: - | BC14: - | BD14: - | BE14: - | BF14: - | BG14: - | BH14: - | BI14: - | BJ14: - | BK14: - | BL14: - | BM14: - | BN14: - | BO14: - | BP14: - | BQ14: - | BR14: - | BS14: - | BT14: - | BU14: -
F16: =F6 -> EU1RM1 | G16: =G6 -> EU1BF | H16: EU1RM2 | I16: EU4 | J16: =J6 -> EU4NG | K16: EU5 | L16: EU6 | M16: EU7 | N16: EU10 | O16: IMAGE | P16: SFL | Q16: 0 | R16: 0 | S16: 0 | T16: =T6 -> 0 | U16: 0 | V16: 0 | W16: 0 | X16: 0 | Y16: 0 | Z16: 0 | AA16: 0 | AB16: 0 | AC16: 0 | AD16: =AD6 -> 0 | AE16: 0 | AF16: 0 | AG16: 0 | AH16: 0 | AI16: 0 | AJ16: 0 | AK16: 0 | AL16: 0 | AM16: 0 | AN16: 0 | AO16: 0 | AP16: 0 | AQ16: 0 | AR16: 0 | AS16: 0 | AT16: 0 | AU16: 0 | AV16: 0 | AW16: 0 | AX16: 0 | AY16: 0 | AZ16: 0 | BA16: 0 | BB16: 0 | BC16: 0 | BD16: 0 | BE16: 0 | BF16: 0 | BG16: 0 | BH16: 0 | BI16: 0 | BJ16: =BJ6 -> 0 | BK16: 0 | BL16: 0
B17: Emissions Risk | D17: Sum Q/RBC> | F17: =SUM(F20:F89) -> 0 | G17: =SUM(G20:G89) -> 0 | H17: =SUM(H20:H89) -> 0 | I17: =SUM(I20:I89) -> 435761.4045 | J17: =SUM(J20:J89) -> 0 | K17: 0 | L17: 0 | M17: 0 | N17: 61.26949006 | O17: 32.19310345 | P17: 5.640425 | Q17: 0 | R17: 0 | S17: 0 | T17: =SUM(T20:T89) -> 0 | U17: 0 | V17: 0 | W17: 0 | X17: 0 | Y17: 0 | Z17: 0 | AA17: 0 | AB17: 0 | AC17: 0 | AD17: =SUM(AD20:AD89) -> 0 | AE17: 0 | AF17: 0 | AG17: 0 | AH17: 0 | AI17: 0 | AJ17: 0 | AK17: 0 | AL17: 0 | AM17: 0 | AN17: 0 | AO17: 0 | AP17: 0 | AQ17: 0 | AR17: 0 | AS17: 0 | AT17: 0 | AU17: 0 | AV17: 0 | AW17: 0 | AX17: 0 | AY17: 0 | AZ17: 0 | BA17: 0 | BB17: 0 | BC17: 0 | BD17: 0 | BE17: 0 | BF17: 0 | BG17: 0 | BH17: 0 | BI17: 0 | BJ17: =SUM(BJ20:BJ89) -> 0 | BK17: 0 | BL17: 0
B19: CAS | C19: POL | D19: RBC | E19: 1/RBC | F19: Emissions Risk (Q/RBC)
A20: 1 | B20: =AN_EMIS!B5 -> 75-07-0 | C20: =IF(B20=0,".",AN_EMIS!C5) -> Acetaldehyde | D20: =IF(B20=0,0,VLOOKUP(B20,RBC_Table!$A$10:$I$270,$A$3,)) -> 0.45 | E20: =IF(D20="--",0,IF(OR(LEN(D20)=0,D20=0),0,1/D20)) -> 2.222222222 | F20: =AN_EMIS!D5*$E20 -> 0 | G20: =AN_EMIS!E5*$E20 -> 0 | H20: =AN_EMIS!F5*$E20 -> 0 | I20: =AN_EMIS!G5*$E20 -> 0 | J20: =AN_EMIS!H5*$E20 -> 0 | K20: =AN_EMIS!I5*$E20 -> 0 | L20: =AN_EMIS!J5*$E20 -> 0 | M20: =AN_EMIS!K5*$E20 -> 0 | N20: =AN_EMIS!L5*$E20 -> 0 | O20: =AN_EMIS!M5*$E20 -> 0 | P20: =AN_EMIS!N5*$E20 -> 0 | Q20: =AN_EMIS!O5*$E20 -> 0 | R20: =AN_EMIS!P5*$E20 -> 0 | S20: =AN_EMIS!Q5*$E20 -> 0 | T20: =AN_EMIS!R5*$E20 -> 0 | U20: =AN_EMIS!S5*$E20 -> 0 | V20: =AN_EMIS!T5*$E20 -> 0 | W20: =AN_EMIS!U5*$E20 -> 0 | X20: =AN_EMIS!V5*$E20 -> 0 | Y20: =AN_EMIS!W5*$E20 -> 0 | Z20: =AN_EMIS!X5*$E20 -> 0 | AA20: =AN_EMIS!Y5*$E20 -> 0 | AB20: =AN_EMIS!Z5*$E20 -> 0 | AC20: =AN_EMIS!AA5*$E20 -> 0 | AD20: =AN_EMIS!AB5*$E20 -> 0 | AE20: =AN_EMIS!AC5*$E20 -> 0 | AF20: =AN_EMIS!AD5*$E20 -> 0 | AG20: =AN_EMIS!AE5*$E20 -> 0 | AH20: =AN_EMIS!AF5*$E20 -> 0 | AI20: =AN_EMIS!AG5*$E20 -> 0 | AJ20: =AN_EMIS!AH5*$E20 -> 0 | AK20: =AN_EMIS!AI5*$E20 -> 0 | AL20: =AN_EMIS!AJ5*$E20 -> 0 | AM20: =AN_EMIS!AK5*$E20 -> 0 | AN20: =AN_EMIS!AL5*$E20 -> 0 | AO20: =AN_EMIS!AM5*$E20 -> 0 | AP20: =AN_EMIS!AN5*$E20 -> 0 | AQ20: =AN_EMIS!AO5*$E20 -> 0 | AR20: =AN_EMIS!AP5*$E20 -> 0 | AS20: =AN_EMIS!AQ5*$E20 -> 0 | AT20: =AN_EMIS!AR5*$E20 -> 0 | AU20: =AN_EMIS!AS5*$E20 -> 0 | AV20: =AN_EMIS!AT5*$E20 -> 0 | AW20: =AN_EMIS!AU5*$E20 -> 0 | AX20: =AN_EMIS!AV5*$E20 -> 0 | AY20: =AN_EMIS!AW5*$E20 -> 0 | AZ20: =AN_EMIS!AX5*$E20 -> 0 | BA20: =AN_EMIS!AY5*$E20 -> 0 | BB20: =AN_EMIS!AZ5*$E20 -> 0 | BC20: =AN_EMIS!BA5*$E20 -> 0 | BD20: =AN_EMIS!BB5*$E20 -> 0 | BE20: =AN_EMIS!BC5*$E20 -> 0 | BF20: =AN_EMIS!BD5*$E20 -> 0 | BG20: =AN_EMIS!BE5*$E20 -> 0 | BH20: =AN_EMIS!BF5*$E20 -> 0 | BI20: =AN_EMIS!BG5*$E20 -> 0 | BJ20: =AN_EMIS!BH5*$E20 -> 0 | BK20: =AN_EMIS!BI5*$E20 -> 0 | BL20: =AN_EMIS!BJ5*$E20 -> 0
A21: =A20+1 -> 2 | B21: =AN_EMIS!B6 -> 107-02-8 | C21: =IF(B21=0,".",AN_EMIS!C6) -> Acrolein | D21: =IF(B21=0,0,VLOOKUP(B21,RBC_Table!$A$10:$I$270,$A$3,)) -> -- | E21: =IF(D21="--",0,IF(OR(LEN(D21)=0,D21=0),0,1/D21)) -> 0 | F21: =AN_EMIS!D6*$E21 -> 0 | G21: =AN_EMIS!E6*$E21 -> 0 | H21: =AN_EMIS!F6*$E21 -> 0 | I21: =AN_EMIS!G6*$E21 -> 0 | J21: =AN_EMIS!H6*$E21 -> 0 | K21: =AN_EMIS!I6*$E21 -> 0 | L21: =AN_EMIS!J6*$E21 -> 0 | M21: =AN_EMIS!K6*$E21 -> 0 | N21: =AN_EMIS!L6*$E21 -> 0 | O21: =AN_EMIS!M6*$E21 -> 0 | P21: =AN_EMIS!N6*$E21 -> 0 | Q21: =AN_EMIS!O6*$E21 -> 0 | R21: =AN_EMIS!P6*$E21 -> 0 | S21: =AN_EMIS!Q6*$E21 -> 0 | T21: =AN_EMIS!R6*$E21 -> 0 | U21: =AN_EMIS!S6*$E21 -> 0 | V21: =AN_EMIS!T6*$E21 -> 0 | W21: =AN_EMIS!U6*$E21 -> 0 | X21: =AN_EMIS!V6*$E21 -> 0 | Y21: =AN_EMIS!W6*$E21 -> 0 | Z21: =AN_EMIS!X6*$E21 -> 0 | AA21: =AN_EMIS!Y6*$E21 -> 0 | AB21: =AN_EMIS!Z6*$E21 -> 0 | AC21: =AN_EMIS!AA6*$E21 -> 0 | AD21: =AN_EMIS!AB6*$E21 -> 0 | AE21: =AN_EMIS!AC6*$E21 -> 0 | AF21: =AN_EMIS!AD6*$E21 -> 0 | AG21: =AN_EMIS!AE6*$E21 -> 0 | AH21: =AN_EMIS!AF6*$E21 -> 0 | AI21: =AN_EMIS!AG6*$E21 -> 0 | AJ21: =AN_EMIS!AH6*$E21 -> 0 | AK21: =AN_EMIS!AI6*$E21 -> 0 | AL21: =AN_EMIS!AJ6*$E21 -> 0 | AM21: =AN_EMIS!AK6*$E21 -> 0 | AN21: =AN_EMIS!AL6*$E21 -> 0 | AO21: =AN_EMIS!AM6*$E21 -> 0 | AP21: =AN_EMIS!AN6*$E21 -> 0 | AQ21: =AN_EMIS!AO6*$E21 -> 0 | AR21: =AN_EMIS!AP6*$E21 -> 0 | AS21: =AN_EMIS!AQ6*$E21 -> 0 | AT21: =AN_EMIS!AR6*$E21 -> 0 | AU21: =AN_EMIS!AS6*$E21 -> 0 | AV21: =AN_EMIS!AT6*$E21 -> 0 | AW21: =AN_EMIS!AU6*$E21 -> 0 | AX21: =AN_EMIS!AV6*$E21 -> 0 | AY21: =AN_EMIS!AW6*$E21 -> 0 | AZ21: =AN_EMIS!AX6*$E21 -> 0 | BA21: =AN_EMIS!AY6*$E21 -> 0 | BB21: =AN_EMIS!AZ6*$E21 -> 0 | BC21: =AN_EMIS!BA6*$E21 -> 0 | BD21: =AN_EMIS!BB6*$E21 -> 0 | BE21: =AN_EMIS!BC6*$E21 -> 0 | BF21: =AN_EMIS!BD6*$E21 -> 0 | BG21: =AN_EMIS!BE6*$E21 -> 0 | BH21: =AN_EMIS!BF6*$E21 -> 0 | BI21: =AN_EMIS!BG6*$E21 -> 0 | BJ21: =AN_EMIS!BH6*$E21 -> 0 | BK21: =AN_EMIS!BI6*$E21 -> 0 | BL21: =AN_EMIS!BJ6*$E21 -> 0
A22: =A21+1 -> 3 | B22: =AN_EMIS!B7 -> 7664-41-7 | C22: =IF(B22=0,".",AN_EMIS!C7) -> Ammonia | D22: =IF(B22=0,0,VLOOKUP(B22,RBC_Table!$A$10:$I$270,$A$3,)) -> -- | E22: 0 | F22: =AN_EMIS!D7*$E22 -> 0 | G22: =AN_EMIS!E7*$E22 -> 0 | H22: =AN_EMIS!F7*$E22 -> 0 | I22: =AN_EMIS!G7*$E22 -> 0 | J22: =AN_EMIS!H7*$E22 -> 0 | K22: =AN_EMIS!I7*$E22 -> 0 | L22: =AN_EMIS!J7*$E22 -> 0 | M22: =AN_EMIS!K7*$E22 -> 0 | N22: =AN_EMIS!L7*$E22 -> 0 | O22: =AN_EMIS!M7*$E22 -> 0 | P22: =AN_EMIS!N7*$E22 -> 0 | Q22: =AN_EMIS!O7*$E22 -> 0 | R22: =AN_EMIS!P7*$E22 -> 0 | S22: =AN_EMIS!Q7*$E22 -> 0 | T22: =AN_EMIS!R7*$E22 -> 0 | U22: =AN_EMIS!S7*$E22 -> 0 | V22: =AN_EMIS!T7*$E22 -> 0 | W22: =AN_EMIS!U7*$E22 -> 0 | X22: =AN_EMIS!V7*$E22 -> 0 | Y22: =AN_EMIS!W7*$E22 -> 0 | Z22: =AN_EMIS!X7*$E22 -> 0 | AA22: =AN_EMIS!Y7*$E22 -> 0 | AB22: =AN_EMIS!Z7*$E22 -> 0 | AC22: =AN_EMIS!AA7*$E22 -> 0 | AD22: =AN_EMIS!AB7*$E22 -> 0 | AE22: =AN_EMIS!AC7*$E22 -> 0 | AF22: =AN_EMIS!AD7*$E22 -> 0 | AG22: =AN_EMIS!AE7*$E22 -> 0 | AH22: =AN_EMIS!AF7*$E22 -> 0 | AI22: =AN_EMIS!AG7*$E22 -> 0 | AJ22: =AN_EMIS!AH7*$E22 -> 0 | AK22: =AN_EMIS!AI7*$E22 -> 0 | AL22: =AN_EMIS!AJ7*$E22 -> 0 | AM22: =AN_EMIS!AK7*$E22 -> 0 | AN22: =AN_EMIS!AL7*$E22 -> 0 | AO22: =AN_EMIS!AM7*$E22 -> 0 | AP22: =AN_EMIS!AN7*$E22 -> 0 | AQ22: =AN_EMIS!AO7*$E22 -> 0 | AR22: =AN_EMIS!AP7*$E22 -> 0 | AS22: =AN_EMIS!AQ7*$E22 -> 0 | AT22: =AN_EMIS!AR7*$E22 -> 0 | AU22: =AN_EMIS!AS7*$E22 -> 0 | AV22: =AN_EMIS!AT7*$E22 -> 0 | AW22: =AN_EMIS!AU7*$E22 -> 0 | AX22: =AN_EMIS!AV7*$E22 -> 0 | AY22: =AN_EMIS!AW7*$E22 -> 0 | AZ22: =AN_EMIS!AX7*$E22 -> 0 | BA22: =AN_EMIS!AY7*$E22 -> 0 | BB22: =AN_EMIS!AZ7*$E22 -> 0 | BC22: =AN_EMIS!BA7*$E22 -> 0 | BD22: =AN_EMIS!BB7*$E22 -> 0 | BE22: =AN_EMIS!BC7*$E22 -> 0 | BF22: =AN_EMIS!BD7*$E22 -> 0 | BG22: =AN_EMIS!BE7*$E22 -> 0 | BH22: =AN_EMIS!BF7*$E22 -> 0 | BI22: =AN_EMIS!BG7*$E22 -> 0 | BJ22: =AN_EMIS!BH7*$E22 -> 0 | BK22: =AN_EMIS!BI7*$E22 -> 0 | BL22: =AN_EMIS!BJ7*$E22 -> 0
A23: 4 | B23: =AN_EMIS!B8 -> 7440-36-0 | C23: =IF(B23=0,".",AN_EMIS!C8) -> Antimony and compounds | D23: =IF(B23=0,0,VLOOKUP(B23,RBC_Table!$A$10:$I$270,$A$3,)) -> -- | E23: 0 | F23: =AN_EMIS!D8*$E23 -> 0 | G23: =AN_EMIS!E8*$E23 -> 0 | H23: =AN_EMIS!F8*$E23 -> 0 | I23: =AN_EMIS!G8*$E23 -> 0 | J23: =AN_EMIS!H8*$E23 -> 0 | K23: =AN_EMIS!I8*$E23 -> 0 | L23: =AN_EMIS!J8*$E23 -> 0 | M23: =AN_EMIS!K8*$E23 -> 0 | N23: =AN_EMIS!L8*$E23 -> 0 | O23: =AN_EMIS!M8*$E23 -> 0 | P23: =AN_EMIS!N8*$E23 -> 0 | Q23: =AN_EMIS!O8*$E23 -> 0 | R23: =AN_EMIS!P8*$E23 -> 0 | S23: =AN_EMIS!Q8*$E23 -> 0 | T23: =AN_EMIS!R8*$E23 -> 0 | U23: =AN_EMIS!S8*$E23 -> 0 | V23: =AN_EMIS!T8*$E23 -> 0 | W23: =AN_EMIS!U8*$E23 -> 0 | X23: =AN_EMIS!V8*$E23 -> 0 | Y23: =AN_EMIS!W8*$E23 -> 0 | Z23: =AN_EMIS!X8*$E23 -> 0 | AA23: =AN_EMIS!Y8*$E23 -> 0 | AB23: =AN_EMIS!Z8*$E23 -> 0 | AC23: =AN_EMIS!AA8*$E23 -> 0 | AD23: =AN_EMIS!AB8*$E23 -> 0 | AE23: =AN_EMIS!AC8*$E23 -> 0 | AF23: =AN_EMIS!AD8*$E23 -> 0 | AG23: =AN_EMIS!AE8*$E23 -> 0 | AH23: =AN_EMIS!AF8*$E23 -> 0 | AI23: =AN_EMIS!AG8*$E23 -> 0 | AJ23: =AN_EMIS!AH8*$E23 -> 0 | AK23: =AN_EMIS!AI8*$E23 -> 0 | AL23: =AN_EMIS!AJ8*$E23 -> 0 | AM23: =AN_EMIS!AK8*$E23 -> 0 | AN23: =AN_EMIS!AL8*$E23 -> 0 | AO23: =AN_EMIS!AM8*$E23 -> 0 | AP23: =AN_EMIS!AN8*$E23 -> 0 | AQ23: =AN_EMIS!AO8*$E23 -> 0 | AR23: =AN_EMIS!AP8*$E23 -> 0 | AS23: =AN_EMIS!AQ8*$E23 -> 0 | AT23: =AN_EMIS!AR8*$E23 -> 0 | AU23: =AN_EMIS!AS8*$E23 -> 0 | AV23: =AN_EMIS!AT8*$E23 -> 0 | AW23: =AN_EMIS!AU8*$E23 -> 0 | AX23: =AN_EMIS!AV8*$E23 -> 0 | AY23: =AN_EMIS!AW8*$E23 -> 0 | AZ23: =AN_EMIS!AX8*$E23 -> 0 | BA23: =AN_EMIS!AY8*$E23 -> 0 | BB23: =AN_EMIS!AZ8*$E23 -> 0 | BC23: =AN_EMIS!BA8*$E23 -> 0 | BD23: =AN_EMIS!BB8*$E23 -> 0 | BE23: =AN_EMIS!BC8*$E23 -> 0 | BF23: =AN_EMIS!BD8*$E23 -> 0 | BG23: =AN_EMIS!BE8*$E23 -> 0 | BH23: =AN_EMIS!BF8*$E23 -> 0 | BI23: =AN_EMIS!BG8*$E23 -> 0 | BJ23: =AN_EMIS!BH8*$E23 -> 0 | BK23: =AN_EMIS!BI8*$E23 -> 0 | BL23: =AN_EMIS!BJ8*$E23 -> 0
A24: 5 | B24: =AN_EMIS!B9 -> 7440-38-2 | C24: =IF(B24=0,".",AN_EMIS!C9) -> Arsenic and compounds | D24: =IF(B24=0,0,VLOOKUP(B24,RBC_Table!$A$10:$I$270,$A$3,)) -> 9.1e-05 | E24: 10989.01099 | F24: =AN_EMIS!D9*$E24 -> 0 | G24: =AN_EMIS!E9*$E24 -> 0 | H24: =AN_EMIS!F9*$E24 -> 0 | I24: =AN_EMIS!G9*$E24 -> 427692.3077 | J24: =AN_EMIS!H9*$E24 -> 0 | K24: =AN_EMIS!I9*$E24 -> 0 | L24: =AN_EMIS!J9*$E24 -> 0 | M24: =AN_EMIS!K9*$E24 -> 0 | N24: =AN_EMIS!L9*$E24 -> 0 | O24: =AN_EMIS!M9*$E24 -> 0 | P24: =AN_EMIS!N9*$E24 -> 0 | Q24: =AN_EMIS!O9*$E24 -> 0 | R24: =AN_EMIS!P9*$E24 -> 0 | S24: =AN_EMIS!Q9*$E24 -> 0 | T24: =AN_EMIS!R9*$E24 -> 0 | U24: =AN_EMIS!S9*$E24 -> 0 | V24: =AN_EMIS!T9*$E24 -> 0 | W24: =AN_EMIS!U9*$E24 -> 0 | X24: =AN_EMIS!V9*$E24 -> 0 | Y24: =AN_EMIS!W9*$E24 -> 0 | Z24: =AN_EMIS!X9*$E24 -> 0 | AA24: =AN_EMIS!Y9*$E24 -> 0 | AB24: =AN_EMIS!Z9*$E24 -> 0 | AC24: =AN_EMIS!AA9*$E24 -> 0 | AD24: =AN_EMIS!AB9*$E24 -> 0 | AE24: =AN_EMIS!AC9*$E24 -> 0 | AF24: =AN_EMIS!AD9*$E24 -> 0 | AG24: =AN_EMIS!AE9*$E24 -> 0 | AH24: =AN_EMIS!AF9*$E24 -> 0 | AI24: =AN_EMIS!AG9*$E24 -> 0 | AJ24: =AN_EMIS!AH9*$E24 -> 0 | AK24: =AN_EMIS!AI9*$E24 -> 0 | AL24: =AN_EMIS!AJ9*$E24 -> 0 | AM24: =AN_EMIS!AK9*$E24 -> 0 | AN24: =AN_EMIS!AL9*$E24 -> 0 | AO24: =AN_EMIS!AM9*$E24 -> 0 | AP24: =AN_EMIS!AN9*$E24 -> 0 | AQ24: =AN_EMIS!AO9*$E24 -> 0 | AR24: =AN_EMIS!AP9*$E24 -> 0 | AS24: =AN_EMIS!AQ9*$E24 -> 0 | AT24: =AN_EMIS!AR9*$E24 -> 0 | AU24: =AN_EMIS!AS9*$E24 -> 0 | AV24: =AN_EMIS!AT9*$E24 -> 0 | AW24: =AN_EMIS!AU9*$E24 -> 0 | AX24: =AN_EMIS!AV9*$E24 -> 0 | AY24: =AN_EMIS!AW9*$E24 -> 0 | AZ24: =AN_EMIS!AX9*$E24 -> 0 | BA24: =AN_EMIS!AY9*$E24 -> 0 | BB24: =AN_EMIS!AZ9*$E24 -> 0 | BC24: =AN_EMIS!BA9*$E24 -> 0 | BD24: =AN_EMIS!BB9*$E24 -> 0 | BE24: =AN_EMIS!BC9*$E24 -> 0 | BF24: =AN_EMIS!BD9*$E24 -> 0 | BG24: =AN_EMIS!BE9*$E24 -> 0 | BH24: =AN_EMIS!BF9*$E24 -> 0 | BI24: =AN_EMIS!BG9*$E24 -> 0 | BJ24: =AN_EMIS!BH9*$E24 -> 0 | BK24: =AN_EMIS!BI9*$E24 -> 0 | BL24: =AN_EMIS!BJ9*$E24 -> 0
A25: 6 | B25: =AN_EMIS!B10 -> 71-43-2 | C25: =IF(B25=0,".",AN_EMIS!C10) -> Benzene | D25: =IF(B25=0,0,VLOOKUP(B25,RBC_Table!$A$10:$I$270,$A$3,)) -> 0.13 | E25: 7.692307692 | F25: =AN_EMIS!D10*$E25 -> 0 | G25: =AN_EMIS!E10*$E25 -> 0 | H25: =AN_EMIS!F10*$E25 -> 0 | I25: =AN_EMIS!G10*$E25 -> 0 | J25: =AN_EMIS!H10*$E25 -> 0 | K25: =AN_EMIS!I10*$E25 -> 0 | L25: =AN_EMIS!J10*$E25 -> 0 | M25: =AN_EMIS!K10*$E25 -> 0 | N25: =AN_EMIS!L10*$E25 -> 0 | O25: =AN_EMIS!M10*$E25 -> 0 | P25: =AN_EMIS!N10*$E25 -> 0 | Q25: =AN_EMIS!O10*$E25 -> 0 | R25: =AN_EMIS!P10*$E25 -> 0 | S25: =AN_EMIS!Q10*$E25 -> 0 | T25: =AN_EMIS!R10*$E25 -> 0 | U25: =AN_EMIS!S10*$E25 -> 0 | V25: =AN_EMIS!T10*$E25 -> 0 | W25: =AN_EMIS!U10*$E25 -> 0 | X25: =AN_EMIS!V10*$E25 -> 0 | Y25: =AN_EMIS!W10*$E25 -> 0 | Z25: =AN_EMIS!X10*$E25 -> 0 | AA25: =AN_EMIS!Y10*$E25 -> 0 | AB25: =AN_EMIS!Z10*$E25 -> 0 | AC25: =AN_EMIS!AA10*$E25 -> 0 | AD25: =AN_EMIS!AB10*$E25 -> 0 | AE25: =AN_EMIS!AC10*$E25 -> 0 | AF25: =AN_EMIS!AD10*$E25 -> 0 | AG25: =AN_EMIS!AE10*$E25 -> 0 | AH25: =AN_EMIS!AF10*$E25 -> 0 | AI25: =AN_EMIS!AG10*$E25 -> 0 | AJ25: =AN_EMIS!AH10*$E25 -> 0 | AK25: =AN_EMIS!AI10*$E25 -> 0 | AL25: =AN_EMIS!AJ10*$E25 -> 0 | AM25: =AN_EMIS!AK10*$E25 -> 0 | AN25: =AN_EMIS!AL10*$E25 -> 0 | AO25: =AN_EMIS!AM10*$E25 -> 0 | AP25: =AN_EMIS!AN10*$E25 -> 0 | AQ25: =AN_EMIS!AO10*$E25 -> 0 | AR25: =AN_EMIS!AP10*$E25 -> 0 | AS25: =AN_EMIS!AQ10*$E25 -> 0 | AT25: =AN_EMIS!AR10*$E25 -> 0 | AU25: =AN_EMIS!AS10*$E25 -> 0 | AV25: =AN_EMIS!AT10*$E25 -> 0 | AW25: =AN_EMIS!AU10*$E25 -> 0 | AX25: =AN_EMIS!AV10*$E25 -> 0 | AY25: =AN_EMIS!AW10*$E25 -> 0 | AZ25: =AN_EMIS!AX10*$E25 -> 0 | BA25: =AN_EMIS!AY10*$E25 -> 0 | BB25: =AN_EMIS!AZ10*$E25 -> 0 | BC25: =AN_EMIS!BA10*$E25 -> 0 | BD25: =AN_EMIS!BB10*$E25 -> 0 | BE25: =AN_EMIS!BC10*$E25 -> 0 | BF25: =AN_EMIS!BD10*$E25 -> 0 | BG25: =AN_EMIS!BE10*$E25 -> 0 | BH25: =AN_EMIS!BF10*$E25 -> 0 | BI25: =AN_EMIS!BG10*$E25 -> 0 | BJ25: =AN_EMIS!BH10*$E25 -> 0 | BK25: =AN_EMIS!BI10*$E25 -> 0 | BL25: =AN_EMIS!BJ10*$E25 -> 0
A26: 7 | B26: =AN_EMIS!B11 -> 7440-41-7 | C26: =IF(B26=0,".",AN_EMIS!C11) -> Beryllium and compounds | D26: =IF(B26=0,0,VLOOKUP(B26,RBC_Table!$A$10:$I$270,$A$3,)) -> 0.00042 | E26: 2380.952381 | F26: =AN_EMIS!D11*$E26 -> 0 | G26: =AN_EMIS!E11*$E26 -> 0 | H26: =AN_EMIS!F11*$E26 -> 0 | I26: =AN_EMIS!G11*$E26 -> 19.66666667 | J26: =AN_EMIS!H11*$E26 -> 0 | K26: =AN_EMIS!I11*$E26 -> 0 | L26: =AN_EMIS!J11*$E26 -> 0 | M26: =AN_EMIS!K11*$E26 -> 0 | N26: =AN_EMIS!L11*$E26 -> 0 | O26: =AN_EMIS!M11*$E26 -> 0 | P26: =AN_EMIS!N11*$E26 -> 0 | Q26: =AN_EMIS!O11*$E26 -> 0 | R26: =AN_EMIS!P11*$E26 -> 0 | S26: =AN_EMIS!Q11*$E26 -> 0 | T26: =AN_EMIS!R11*$E26 -> 0 | U26: =AN_EMIS!S11*$E26 -> 0 | V26: =AN_EMIS!T11*$E26 -> 0 | W26: =AN_EMIS!U11*$E26 -> 0 | X26: =AN_EMIS!V11*$E26 -> 0 | Y26: =AN_EMIS!W11*$E26 -> 0 | Z26: =AN_EMIS!X11*$E26 -> 0 | AA26: =AN_EMIS!Y11*$E26 -> 0 | AB26: =AN_EMIS!Z11*$E26 -> 0 | AC26: =AN_EMIS!AA11*$E26 -> 0 | AD26: =AN_EMIS!AB11*$E26 -> 0 | AE26: =AN_EMIS!AC11*$E26 -> 0 | AF26: =AN_EMIS!AD11*$E26 -> 0 | AG26: =AN_EMIS!AE11*$E26 -> 0 | AH26: =AN_EMIS!AF11*$E26 -> 0 | AI26: =AN_EMIS!AG11*$E26 -> 0 | AJ26: =AN_EMIS!AH11*$E26 -> 0 | AK26: =AN_EMIS!AI11*$E26 -> 0 | AL26: =AN_EMIS!AJ11*$E26 -> 0 | AM26: =AN_EMIS!AK11*$E26 -> 0 | AN26: =AN_EMIS!AL11*$E26 -> 0 | AO26: =AN_EMIS!AM11*$E26 -> 0 | AP26: =AN_EMIS!AN11*$E26 -> 0 | AQ26: =AN_EMIS!AO11*$E26 -> 0 | AR26: =AN_EMIS!AP11*$E26 -> 0 | AS26: =AN_EMIS!AQ11*$E26 -> 0 | AT26: =AN_EMIS!AR11*$E26 -> 0 | AU26: =AN_EMIS!AS11*$E26 -> 0 | AV26: =AN_EMIS!AT11*$E26 -> 0 | AW26: =AN_EMIS!AU11*$E26 -> 0 | AX26: =AN_EMIS!AV11*$E26 -> 0 | AY26: =AN_EMIS!AW11*$E26 -> 0 | AZ26: =AN_EMIS!AX11*$E26 -> 0 | BA26: =AN_EMIS!AY11*$E26 -> 0 | BB26: =AN_EMIS!AZ11*$E26 -> 0 | BC26: =AN_EMIS!BA11*$E26 -> 0 | BD26: =AN_EMIS!BB11*$E26 -> 0 | BE26: =AN_EMIS!BC11*$E26 -> 0 | BF26: =AN_EMIS!BD11*$E26 -> 0 | BG26: =AN_EMIS!BE11*$E26 -> 0 | BH26: =AN_EMIS!BF11*$E26 -> 0 | BI26: =AN_EMIS!BG11*$E26 -> 0 | BJ26: =AN_EMIS!BH11*$E26 -> 0 | BK26: =AN_EMIS!BI11*$E26 -> 0 | BL26: =AN_EMIS!BJ11*$E26 -> 0
A27: 8 | B27: =AN_EMIS!B12 -> 78-93-3 | C27: =IF(B27=0,".",AN_EMIS!C12) -> 2-Butanone (Methyl ethyl ketone) | D27: =IF(B27=0,0,VLOOKUP(B27,RBC_Table!$A$10:$I$270,$A$3,)) -> -- | E27: 0 | F27: =AN_EMIS!D12*$E27 -> 0 | G27: =AN_EMIS!E12*$E27 -> 0 | H27: =AN_EMIS!F12*$E27 -> 0 | I27: =AN_EMIS!G12*$E27 -> 0 | J27: =AN_EMIS!H12*$E27 -> 0 | K27: =AN_EMIS!I12*$E27 -> 0 | L27: =AN_EMIS!J12*$E27 -> 0 | M27: =AN_EMIS!K12*$E27 -> 0 | N27: =AN_EMIS!L12*$E27 -> 0 | O27: =AN_EMIS!M12*$E27 -> 0 | P27: =AN_EMIS!N12*$E27 -> 0 | Q27: =AN_EMIS!O12*$E27 -> 0 | R27: =AN_EMIS!P12*$E27 -> 0 | S27: =AN_EMIS!Q12*$E27 -> 0 | T27: =AN_EMIS!R12*$E27 -> 0 | U27: =AN_EMIS!S12*$E27 -> 0 | V27: =AN_EMIS!T12*$E27 -> 0 | W27: =AN_EMIS!U12*$E27 -> 0 | X27: =AN_EMIS!V12*$E27 -> 0 | Y27: =AN_EMIS!W12*$E27 -> 0 | Z27: =AN_EMIS!X12*$E27 -> 0 | AA27: =AN_EMIS!Y12*$E27 -> 0 | AB27: =AN_EMIS!Z12*$E27 -> 0 | AC27: =AN_EMIS!AA12*$E27 -> 0 | AD27: =AN_EMIS!AB12*$E27 -> 0 | AE27: =AN_EMIS!AC12*$E27 -> 0 | AF27: =AN_EMIS!AD12*$E27 -> 0 | AG27: =AN_EMIS!AE12*$E27 -> 0 | AH27: =AN_EMIS!AF12*$E27 -> 0 | AI27: =AN_EMIS!AG12*$E27 -> 0 | AJ27: =AN_EMIS!AH12*$E27 -> 0 | AK27: =AN_EMIS!AI12*$E27 -> 0 | AL27: =AN_EMIS!AJ12*$E27 -> 0 | AM27: =AN_EMIS!AK12*$E27 -> 0 | AN27: =AN_EMIS!AL12*$E27 -> 0 | AO27: =AN_EMIS!AM12*$E27 -> 0 | AP27: =AN_EMIS!AN12*$E27 -> 0 | AQ27: =AN_EMIS!AO12*$E27 -> 0 | AR27: =AN_EMIS!AP12*$E27 -> 0 | AS27: =AN_EMIS!AQ12*$E27 -> 0 | AT27: =AN_EMIS!AR12*$E27 -> 0 | AU27: =AN_EMIS!AS12*$E27 -> 0 | AV27: =AN_EMIS!AT12*$E27 -> 0 | AW27: =AN_EMIS!AU12*$E27 -> 0 | AX27: =AN_EMIS!AV12*$E27 -> 0 | AY27: =AN_EMIS!AW12*$E27 -> 0 | AZ27: =AN_EMIS!AX12*$E27 -> 0 | BA27: =AN_EMIS!AY12*$E27 -> 0 | BB27: =AN_EMIS!AZ12*$E27 -> 0 | BC27: =AN_EMIS!BA12*$E27 -> 0 | BD27: =AN_EMIS!BB12*$E27 -> 0 | BE27: =AN_EMIS!BC12*$E27 -> 0 | BF27: =AN_EMIS!BD12*$E27 -> 0 | BG27: =AN_EMIS!BE12*$E27 -> 0 | BH27: =AN_EMIS!BF12*$E27 -> 0 | BI27: =AN_EMIS!BG12*$E27 -> 0 | BJ27: =AN_EMIS!BH12*$E27 -> 0 | BK27: =AN_EMIS!BI12*$E27 -> 0 | BL27: =AN_EMIS!BJ12*$E27 -> 0
A28: 9 | B28: =AN_EMIS!B13 -> 7440-43-9 | C28: =IF(B28=0,".",AN_EMIS!C13) -> Cadmium and compounds | D28: =IF(B28=0,0,VLOOKUP(B28,RBC_Table!$A$10:$I$270,$A$3,)) -> 0.00056 | E28: 1785.714286 | F28: =AN_EMIS!D13*$E28 -> 0 | G28: =AN_EMIS!E13*$E28 -> 0 | H28: =AN_EMIS!F13*$E28 -> 0 | I28: =AN_EMIS!G13*$E28 -> 6712.5 | J28: =AN_EMIS!H13*$E28 -> 0 | K28: =AN_EMIS!I13*$E28 -> 0 | L28: =AN_EMIS!J13*$E28 -> 0 | M28: =AN_EMIS!K13*$E28 -> 0 | N28: =AN_EMIS!L13*$E28 -> 0 | O28: =AN_EMIS!M13*$E28 -> 0 | P28: =AN_EMIS!N13*$E28 -> 0 | Q28: =AN_EMIS!O13*$E28 -> 0 | R28: =AN_EMIS!P13*$E28 -> 0 | S28: =AN_EMIS!Q13*$E28 -> 0 | T28: =AN_EMIS!R13*$E28 -> 0 | U28: =AN_EMIS!S13*$E28 -> 0 | V28: =AN_EMIS!T13*$E28 -> 0 | W28: =AN_EMIS!U13*$E28 -> 0 | X28: =AN_EMIS!V13*$E28 -> 0 | Y28: =AN_EMIS!W13*$E28 -> 0 | Z28: =AN_EMIS!X13*$E28 -> 0 | AA28: =AN_EMIS!Y13*$E28 -> 0 | AB28: =AN_EMIS!Z13*$E28 -> 0 | AC28: =AN_EMIS!AA13*$E28 -> 0 | AD28: =AN_EMIS!AB13*$E28 -> 0 | AE28: =AN_EMIS!AC13*$E28 -> 0 | AF28: =AN_EMIS!AD13*$E28 -> 0 | AG28: =AN_EMIS!AE13*$E28 -> 0 | AH28: =AN_EMIS!AF13*$E28 -> 0 | AI28: =AN_EMIS!AG13*$E28 -> 0 | AJ28: =AN_EMIS!AH13*$E28 -> 0 | AK28: =AN_EMIS!AI13*$E28 -> 0 | AL28: =AN_EMIS!AJ13*$E28 -> 0 | AM28: =AN_EMIS!AK13*$E28 -> 0 | AN28: =AN_EMIS!AL13*$E28 -> 0 | AO28: =AN_EMIS!AM13*$E28 -> 0 | AP28: =AN_EMIS!AN13*$E28 -> 0 | AQ28: =AN_EMIS!AO13*$E28 -> 0 | AR28: =AN_EMIS!AP13*$E28 -> 0 | AS28: =AN_EMIS!AQ13*$E28 -> 0 | AT28: =AN_EMIS!AR13*$E28 -> 0 | AU28: =AN_EMIS!AS13*$E28 -> 0 | AV28: =AN_EMIS!AT13*$E28 -> 0 | AW28: =AN_EMIS!AU13*$E28 -> 0 | AX28: =AN_EMIS!AV13*$E28 -> 0 | AY28: =AN_EMIS!AW13*$E28 -> 0 | AZ28: =AN_EMIS!AX13*$E28 -> 0 | BA28: =AN_EMIS!AY13*$E28 -> 0 | BB28: =AN_EMIS!AZ13*$E28 -> 0 | BC28: =AN_EMIS!BA13*$E28 -> 0 | BD28: =AN_EMIS!BB13*$E28 -> 0 | BE28: =AN_EMIS!BC13*$E28 -> 0 | BF28: =AN_EMIS!BD13*$E28 -> 0 | BG28: =AN_EMIS!BE13*$E28 -> 0 | BH28: =AN_EMIS!BF13*$E28 -> 0 | BI28: =AN_EMIS!BG13*$E28 -> 0 | BJ28: =AN_EMIS!BH13*$E28 -> 0 | BK28: =AN_EMIS!BI13*$E28 -> 0 | BL28: =AN_EMIS!BJ13*$E28 -> 0
A29: 10 | B29: =AN_EMIS!B14 -> 18540-29-9 | C29: =IF(B29=0,".",AN_EMIS!C14) -> Chromium VI, chromate and dichromate particulate | D29: =IF(B29=0,0,VLOOKUP(B29,RBC_Table!$A$10:$I$270,$A$3,)) -> 4.5e-05 | E29: 22222.22222 | F29: =AN_EMIS!D14*$E29 -> 0 | G29: =AN_EMIS!E14*$E29 -> 0 | H29: =AN_EMIS!F14*$E29 -> 0 | I29: =AN_EMIS!G14*$E29 -> 743.5555556 | J29: =AN_EMIS!H14*$E29 -> 0 | K29: =AN_EMIS!I14*$E29 -> 0 | L29: =AN_EMIS!J14*$E29 -> 0 | M29: =AN_EMIS!K14*$E29 -> 0 | N29: =AN_EMIS!L14*$E29 -> 2.557911111 | O29: =AN_EMIS!M14*$E29 -> 0 | P29: =AN_EMIS!N14*$E29 -> 0 | Q29: =AN_EMIS!O14*$E29 -> 0 | R29: =AN_EMIS!P14*$E29 -> 0 | S29: =AN_EMIS!Q14*$E29 -> 0 | T29: =AN_EMIS!R14*$E29 -> 0 | U29: =AN_EMIS!S14*$E29 -> 0 | V29: =AN_EMIS!T14*$E29 -> 0 | W29: =AN_EMIS!U14*$E29 -> 0 | X29: =AN_EMIS!V14*$E29 -> 0 | Y29: =AN_EMIS!W14*$E29 -> 0 | Z29: =AN_EMIS!X14*$E29 -> 0 | AA29: =AN_EMIS!Y14*$E29 -> 0 | AB29: =AN_EMIS!Z14*$E29 -> 0 | AC29: =AN_EMIS!AA14*$E29 -> 0 | AD29: =AN_EMIS!AB14*$E29 -> 0 | AE29: =AN_EMIS!AC14*$E29 -> 0 | AF29: =AN_EMIS!AD14*$E29 -> 0 | AG29: =AN_EMIS!AE14*$E29 -> 0 | AH29: =AN_EMIS!AF14*$E29 -> 0 | AI29: =AN_EMIS!AG14*$E29 -> 0 | AJ29: =AN_EMIS!AH14*$E29 -> 0 | AK29: =AN_EMIS!AI14*$E29 -> 0 | AL29: =AN_EMIS!AJ14*$E29 -> 0 | AM29: =AN_EMIS!AK14*$E29 -> 0 | AN29: =AN_EMIS!AL14*$E29 -> 0 | AO29: =AN_EMIS!AM14*$E29 -> 0 | AP29: =AN_EMIS!AN14*$E29 -> 0 | AQ29: =AN_EMIS!AO14*$E29 -> 0 | AR29: =AN_EMIS!AP14*$E29 -> 0 | AS29: =AN_EMIS!AQ14*$E29 -> 0 | AT29: =AN_EMIS!AR14*$E29 -> 0 | AU29: =AN_EMIS!AS14*$E29 -> 0 | AV29: =AN_EMIS!AT14*$E29 -> 0 | AW29: =AN_EMIS!AU14*$E29 -> 0 | AX29: =AN_EMIS!AV14*$E29 -> 0 | AY29: =AN_EMIS!AW14*$E29 -> 0 | AZ29: =AN_EMIS!AX14*$E29 -> 0 | BA29: =AN_EMIS!AY14*$E29 -> 0 | BB29: =AN_EMIS!AZ14*$E29 -> 0 | BC29: =AN_EMIS!BA14*$E29 -> 0 | BD29: =AN_EMIS!BB14*$E29 -> 0 | BE29: =AN_EMIS!BC14*$E29 -> 0 | BF29: =AN_EMIS!BD14*$E29 -> 0 | BG29: =AN_EMIS!BE14*$E29 -> 0 | BH29: =AN_EMIS!BF14*$E29 -> 0 | BI29: =AN_EMIS!BG14*$E29 -> 0 | BJ29: =AN_EMIS!BH14*$E29 -> 0 | BK29: =AN_EMIS!BI14*$E29 -> 0 | BL29: =AN_EMIS!BJ14*$E29 -> 0
A30: 11 | B30: =AN_EMIS!B15 -> 7440-48-4 | C30: =IF(B30=0,".",AN_EMIS!C15) -> Cobalt and compounds | D30: =IF(B30=0,0,VLOOKUP(B30,RBC_Table!$A$10:$I$270,$A$3,)) -> -- | E30: 0 | F30: =AN_EMIS!D15*$E30 -> 0 | G30: =AN_EMIS!E15*$E30 -> 0 | H30: =AN_EMIS!F15*$E30 -> 0 | I30: =AN_EMIS!G15*$E30 -> 0 | J30: =AN_EMIS!H15*$E30 -> 0 | K30: =AN_EMIS!I15*$E30 -> 0 | L30: =AN_EMIS!J15*$E30 -> 0 | M30: =AN_EMIS!K15*$E30 -> 0 | N30: =AN_EMIS!L15*$E30 -> 0 | O30: =AN_EMIS!M15*$E30 -> 0 | P30: =AN_EMIS!N15*$E30 -> 0 | Q30: =AN_EMIS!O15*$E30 -> 0 | R30: =AN_EMIS!P15*$E30 -> 0 | S30: =AN_EMIS!Q15*$E30 -> 0 | T30: =AN_EMIS!R15*$E30 -> 0 | U30: =AN_EMIS!S15*$E30 -> 0 | V30: =AN_EMIS!T15*$E30 -> 0 | W30: =AN_EMIS!U15*$E30 -> 0 | X30: =AN_EMIS!V15*$E30 -> 0 | Y30: =AN_EMIS!W15*$E30 -> 0 | Z30: =AN_EMIS!X15*$E30 -> 0 | AA30: =AN_EMIS!Y15*$E30 -> 0 | AB30: =AN_EMIS!Z15*$E30 -> 0 | AC30: =AN_EMIS!AA15*$E30 -> 0 | AD30: =AN_EMIS!AB15*$E30 -> 0 | AE30: =AN_EMIS!AC15*$E30 -> 0 | AF30: =AN_EMIS!AD15*$E30 -> 0 | AG30: =AN_EMIS!AE15*$E30 -> 0 | AH30: =AN_EMIS!AF15*$E30 -> 0 | AI30: =AN_EMIS!AG15*$E30 -> 0 | AJ30: =AN_EMIS!AH15*$E30 -> 0 | AK30: =AN_EMIS!AI15*$E30 -> 0 | AL30: =AN_EMIS!AJ15*$E30 -> 0 | AM30: =AN_EMIS!AK15*$E30 -> 0 | AN30: =AN_EMIS!AL15*$E30 -> 0 | AO30: =AN_EMIS!AM15*$E30 -> 0 | AP30: =AN_EMIS!AN15*$E30 -> 0 | AQ30: =AN_EMIS!AO15*$E30 -> 0 | AR30: =AN_EMIS!AP15*$E30 -> 0 | AS30: =AN_EMIS!AQ15*$E30 -> 0 | AT30: =AN_EMIS!AR15*$E30 -> 0 | AU30: =AN_EMIS!AS15*$E30 -> 0 | AV30: =AN_EMIS!AT15*$E30 -> 0 | AW30: =AN_EMIS!AU15*$E30 -> 0 | AX30: =AN_EMIS!AV15*$E30 -> 0 | AY30: =AN_EMIS!AW15*$E30 -> 0 | AZ30: =AN_EMIS!AX15*$E30 -> 0 | BA30: =AN_EMIS!AY15*$E30 -> 0 | BB30: =AN_EMIS!AZ15*$E30 -> 0 | BC30: =AN_EMIS!BA15*$E30 -> 0 | BD30: =AN_EMIS!BB15*$E30 -> 0 | BE30: =AN_EMIS!BC15*$E30 -> 0 | BF30: =AN_EMIS!BD15*$E30 -> 0 | BG30: =AN_EMIS!BE15*$E30 -> 0 | BH30: =AN_EMIS!BF15*$E30 -> 0 | BI30: =AN_EMIS!BG15*$E30 -> 0 | BJ30: =AN_EMIS!BH15*$E30 -> 0 | BK30: =AN_EMIS!BI15*$E30 -> 0 | BL30: =AN_EMIS!BJ15*$E30 -> 0
A31: 12 | B31: =AN_EMIS!B16 -> 7440-50-8 | C31: =IF(B31=0,".",AN_EMIS!C16) -> Copper and compounds | D31: =IF(B31=0,0,VLOOKUP(B31,RBC_Table!$A$10:$I$270,$A$3,)) -> -- | E31: 0 | F31: =AN_EMIS!D16*$E31 -> 0 | G31: =AN_EMIS!E16*$E31 -> 0 | H31: =AN_EMIS!F16*$E31 -> 0 | I31: =AN_EMIS!G16*$E31 -> 0 | J31: =AN_EMIS!H16*$E31 -> 0 | K31: =AN_EMIS!I16*$E31 -> 0 | L31: =AN_EMIS!J16*$E31 -> 0 | M31: =AN_EMIS!K16*$E31 -> 0 | N31: =AN_EMIS!L16*$E31 -> 0 | O31: =AN_EMIS!M16*$E31 -> 0 | P31: =AN_EMIS!N16*$E31 -> 0 | Q31: =AN_EMIS!O16*$E31 -> 0 | R31: =AN_EMIS!P16*$E31 -> 0 | S31: =AN_EMIS!Q16*$E31 -> 0 | T31: =AN_EMIS!R16*$E31 -> 0 | U31: =AN_EMIS!S16*$E31 -> 0 | V31: =AN_EMIS!T16*$E31 -> 0 | W31: =AN_EMIS!U16*$E31 -> 0 | X31: =AN_EMIS!V16*$E31 -> 0 | Y31: =AN_EMIS!W16*$E31 -> 0 | Z31: =AN_EMIS!X16*$E31 -> 0 | AA31: =AN_EMIS!Y16*$E31 -> 0 | AB31: =AN_EMIS!Z16*$E31 -> 0 | AC31: =AN_EMIS!AA16*$E31 -> 0 | AD31: =AN_EMIS!AB16*$E31 -> 0 | AE31: =AN_EMIS!AC16*$E31 -> 0 | AF31: =AN_EMIS!AD16*$E31 -> 0 | AG31: =AN_EMIS!AE16*$E31 -> 0 | AH31: =AN_EMIS!AF16*$E31 -> 0 | AI31: =AN_EMIS!AG16*$E31 -> 0 | AJ31: =AN_EMIS!AH16*$E31 -> 0 | AK31: =AN_EMIS!AI16*$E31 -> 0 | AL31: =AN_EMIS!AJ16*$E31 -> 0 | AM31: =AN_EMIS!AK16*$E31 -> 0 | AN31: =AN_EMIS!AL16*$E31 -> 0 | AO31: =AN_EMIS!AM16*$E31 -> 0 | AP31: =AN_EMIS!AN16*$E31 -> 0 | AQ31: =AN_EMIS!AO16*$E31 -> 0 | AR31: =AN_EMIS!AP16*$E31 -> 0 | AS31: =AN_EMIS!AQ16*$E31 -> 0 | AT31: =AN_EMIS!AR16*$E31 -> 0 | AU31: =AN_EMIS!AS16*$E31 -> 0 | AV31: =AN_EMIS!AT16*$E31 -> 0 | AW31: =AN_EMIS!AU16*$E31 -> 0 | AX31: =AN_EMIS!AV16*$E31 -> 0 | AY31: =AN_EMIS!AW16*$E31 -> 0 | AZ31: =AN_EMIS!AX16*$E31 -> 0 | BA31: =AN_EMIS!AY16*$E31 -> 0 | BB31: =AN_EMIS!AZ16*$E31 -> 0 | BC31: =AN_EMIS!BA16*$E31 -> 0 | BD31: =AN_EMIS!BB16*$E31 -> 0 | BE31: =AN_EMIS!BC16*$E31 -> 0 | BF31: =AN_EMIS!BD16*$E31 -> 0 | BG31: =AN_EMIS!BE16*$E31 -> 0 | BH31: =AN_EMIS!BF16*$E31 -> 0 | BI31: =AN_EMIS!BG16*$E31 -> 0 | BJ31: =AN_EMIS!BH16*$E31 -> 0 | BK31: =AN_EMIS!BI16*$E31 -> 0 | BL31: =AN_EMIS!BJ16*$E31 -> 0
A32: 13 | B32: =AN_EMIS!B17 -> 100-41-4 | C32: =IF(B32=0,".",AN_EMIS!C17) -> Ethyl benzene | D32: =IF(B32=0,0,VLOOKUP(B32,RBC_Table!$A$10:$I$270,$A$3,)) -> 0.4 | E32: 2.5 | F32: =AN_EMIS!D17*$E32 -> 0 | G32: =AN_EMIS!E17*$E32 -> 0 | H32: =AN_EMIS!F17*$E32 -> 0 | I32: =AN_EMIS!G17*$E32 -> 0 | J32: =AN_EMIS!H17*$E32 -> 0 | K32: =AN_EMIS!I17*$E32 -> 0 | L32: =AN_EMIS!J17*$E32 -> 0 | M32: =AN_EMIS!K17*$E32 -> 0 | N32: =AN_EMIS!L17*$E32 -> 0 | O32: =AN_EMIS!M17*$E32 -> 0 | P32: =AN_EMIS!N17*$E32 -> 5.640425 | Q32: =AN_EMIS!O17*$E32 -> 0 | R32: =AN_EMIS!P17*$E32 -> 0 | S32: =AN_EMIS!Q17*$E32 -> 0 | T32: =AN_EMIS!R17*$E32 -> 0 | U32: =AN_EMIS!S17*$E32 -> 0 | V32: =AN_EMIS!T17*$E32 -> 0 | W32: =AN_EMIS!U17*$E32 -> 0 | X32: =AN_EMIS!V17*$E32 -> 0 | Y32: =AN_EMIS!W17*$E32 -> 0 | Z32: =AN_EMIS!X17*$E32 -> 0 | AA32: =AN_EMIS!Y17*$E32 -> 0 | AB32: =AN_EMIS!Z17*$E32 -> 0 | AC32: =AN_EMIS!AA17*$E32 -> 0 | AD32: =AN_EMIS!AB17*$E32 -> 0 | AE32: =AN_EMIS!AC17*$E32 -> 0 | AF32: =AN_EMIS!AD17*$E32 -> 0 | AG32: =AN_EMIS!AE17*$E32 -> 0 | AH32: =AN_EMIS!AF17*$E32 -> 0 | AI32: =AN_EMIS!AG17*$E32 -> 0 | AJ32: =AN_EMIS!AH17*$E32 -> 0 | AK32: =AN_EMIS!AI17*$E32 -> 0 | AL32: =AN_EMIS!AJ17*$E32 -> 0 | AM32: =AN_EMIS!AK17*$E32 -> 0 | AN32: =AN_EMIS!AL17*$E32 -> 0 | AO32: =AN_EMIS!AM17*$E32 -> 0 | AP32: =AN_EMIS!AN17*$E32 -> 0 | AQ32: =AN_EMIS!AO17*$E32 -> 0 | AR32: =AN_EMIS!AP17*$E32 -> 0 | AS32: =AN_EMIS!AQ17*$E32 -> 0 | AT32: =AN_EMIS!AR17*$E32 -> 0 | AU32: =AN_EMIS!AS17*$E32 -> 0 | AV32: =AN_EMIS!AT17*$E32 -> 0 | AW32: =AN_EMIS!AU17*$E32 -> 0 | AX32: =AN_EMIS!AV17*$E32 -> 0 | AY32: =AN_EMIS!AW17*$E32 -> 0 | AZ32: =AN_EMIS!AX17*$E32 -> 0 | BA32: =AN_EMIS!AY17*$E32 -> 0 | BB32: =AN_EMIS!AZ17*$E32 -> 0 | BC32: =AN_EMIS!BA17*$E32 -> 0 | BD32: =AN_EMIS!BB17*$E32 -> 0 | BE32: =AN_EMIS!BC17*$E32 -> 0 | BF32: =AN_EMIS!BD17*$E32 -> 0 | BG32: =AN_EMIS!BE17*$E32 -> 0 | BH32: =AN_EMIS!BF17*$E32 -> 0 | BI32: =AN_EMIS!BG17*$E32 -> 0 | BJ32: =AN_EMIS!BH17*$E32 -> 0 | BK32: =AN_EMIS!BI17*$E32 -> 0 | BL32: =AN_EMIS!BJ17*$E32 -> 0
A33: 14 | B33: =AN_EMIS!B18 -> 50-00-0 | C33: =IF(B33=0,".",AN_EMIS!C18) -> Formaldehyde | D33: =IF(B33=0,0,VLOOKUP(B33,RBC_Table!$A$10:$I$270,$A$3,)) -> 0.17 | E33: 5.882352941 | F33: =AN_EMIS!D18*$E33 -> 0 | G33: =AN_EMIS!E18*$E33 -> 0 | H33: =AN_EMIS!F18*$E33 -> 0 | I33: =AN_EMIS!G18*$E33 -> 107.0588235 | J33: =AN_EMIS!H18*$E33 -> 0 | K33: =AN_EMIS!I18*$E33 -> 0 | L33: =AN_EMIS!J18*$E33 -> 0 | M33: =AN_EMIS!K18*$E33 -> 0 | N33: =AN_EMIS!L18*$E33 -> 0 | O33: =AN_EMIS!M18*$E33 -> 0 | P33: =AN_EMIS!N18*$E33 -> 0 | Q33: =AN_EMIS!O18*$E33 -> 0 | R33: =AN_EMIS!P18*$E33 -> 0 | S33: =AN_EMIS!Q18*$E33 -> 0 | T33: =AN_EMIS!R18*$E33 -> 0 | U33: =AN_EMIS!S18*$E33 -> 0 | V33: =AN_EMIS!T18*$E33 -> 0 | W33: =AN_EMIS!U18*$E33 -> 0 | X33: =AN_EMIS!V18*$E33 -> 0 | Y33: =AN_EMIS!W18*$E33 -> 0 | Z33: =AN_EMIS!X18*$E33 -> 0 | AA33: =AN_EMIS!Y18*$E33 -> 0 | AB33: =AN_EMIS!Z18*$E33 -> 0 | AC33: =AN_EMIS!AA18*$E33 -> 0 | AD33: =AN_EMIS!AB18*$E33 -> 0 | AE33: =AN_EMIS!AC18*$E33 -> 0 | AF33: =AN_EMIS!AD18*$E33 -> 0 | AG33: =AN_EMIS!AE18*$E33 -> 0 | AH33: =AN_EMIS!AF18*$E33 -> 0 | AI33: =AN_EMIS!AG18*$E33 -> 0 | AJ33: =AN_EMIS!AH18*$E33 -> 0 | AK33: =AN_EMIS!AI18*$E33 -> 0 | AL33: =AN_EMIS!AJ18*$E33 -> 0 | AM33: =AN_EMIS!AK18*$E33 -> 0 | AN33: =AN_EMIS!AL18*$E33 -> 0 | AO33: =AN_EMIS!AM18*$E33 -> 0 | AP33: =AN_EMIS!AN18*$E33 -> 0 | AQ33: =AN_EMIS!AO18*$E33 -> 0 | AR33: =AN_EMIS!AP18*$E33 -> 0 | AS33: =AN_EMIS!AQ18*$E33 -> 0 | AT33: =AN_EMIS!AR18*$E33 -> 0 | AU33: =AN_EMIS!AS18*$E33 -> 0 | AV33: =AN_EMIS!AT18*$E33 -> 0 | AW33: =AN_EMIS!AU18*$E33 -> 0 | AX33: =AN_EMIS!AV18*$E33 -> 0 | AY33: =AN_EMIS!AW18*$E33 -> 0 | AZ33: =AN_EMIS!AX18*$E33 -> 0 | BA33: =AN_EMIS!AY18*$E33 -> 0 | BB33: =AN_EMIS!AZ18*$E33 -> 0 | BC33: =AN_EMIS!BA18*$E33 -> 0 | BD33: =AN_EMIS!BB18*$E33 -> 0 | BE33: =AN_EMIS!BC18*$E33 -> 0 | BF33: =AN_EMIS!BD18*$E33 -> 0 | BG33: =AN_EMIS!BE18*$E33 -> 0 | BH33: =AN_EMIS!BF18*$E33 -> 0 | BI33: =AN_EMIS!BG18*$E33 -> 0 | BJ33: =AN_EMIS!BH18*$E33 -> 0 | BK33: =AN_EMIS!BI18*$E33 -> 0 | BL33: =AN_EMIS!BJ18*$E33 -> 0
A34: 15 | B34: =AN_EMIS!B19 -> 110-54-3 | C34: =IF(B34=0,".",AN_EMIS!C19) -> Hexane | D34: =IF(B34=0,0,VLOOKUP(B34,RBC_Table!$A$10:$I$270,$A$3,)) -> -- | E34: 0 | F34: =AN_EMIS!D19*$E34 -> 0 | G34: =AN_EMIS!E19*$E34 -> 0 | H34: =AN_EMIS!F19*$E34 -> 0 | I34: =AN_EMIS!G19*$E34 -> 0 | J34: =AN_EMIS!H19*$E34 -> 0 | K34: =AN_EMIS!I19*$E34 -> 0 | L34: =AN_EMIS!J19*$E34 -> 0 | M34: =AN_EMIS!K19*$E34 -> 0 | N34: =AN_EMIS!L19*$E34 -> 0 | O34: =AN_EMIS!M19*$E34 -> 0 | P34: =AN_EMIS!N19*$E34 -> 0 | Q34: =AN_EMIS!O19*$E34 -> 0 | R34: =AN_EMIS!P19*$E34 -> 0 | S34: =AN_EMIS!Q19*$E34 -> 0 | T34: =AN_EMIS!R19*$E34 -> 0 | U34: =AN_EMIS!S19*$E34 -> 0 | V34: =AN_EMIS!T19*$E34 -> 0 | W34: =AN_EMIS!U19*$E34 -> 0 | X34: =AN_EMIS!V19*$E34 -> 0 | Y34: =AN_EMIS!W19*$E34 -> 0 | Z34: =AN_EMIS!X19*$E34 -> 0 | AA34: =AN_EMIS!Y19*$E34 -> 0 | AB34: =AN_EMIS!Z19*$E34 -> 0 | AC34: =AN_EMIS!AA19*$E34 -> 0 | AD34: =AN_EMIS!AB19*$E34 -> 0 | AE34: =AN_EMIS!AC19*$E34 -> 0 | AF34: =AN_EMIS!AD19*$E34 -> 0 | AG34: =AN_EMIS!AE19*$E34 -> 0 | AH34: =AN_EMIS!AF19*$E34 -> 0 | AI34: =AN_EMIS!AG19*$E34 -> 0 | AJ34: =AN_EMIS!AH19*$E34 -> 0 | AK34: =AN_EMIS!AI19*$E34 -> 0 | AL34: =AN_EMIS!AJ19*$E34 -> 0 | AM34: =AN_EMIS!AK19*$E34 -> 0 | AN34: =AN_EMIS!AL19*$E34 -> 0 | AO34: =AN_EMIS!AM19*$E34 -> 0 | AP34: =AN_EMIS!AN19*$E34 -> 0 | AQ34: =AN_EMIS!AO19*$E34 -> 0 | AR34: =AN_EMIS!AP19*$E34 -> 0 | AS34: =AN_EMIS!AQ19*$E34 -> 0 | AT34: =AN_EMIS!AR19*$E34 -> 0 | AU34: =AN_EMIS!AS19*$E34 -> 0 | AV34: =AN_EMIS!AT19*$E34 -> 0 | AW34: =AN_EMIS!AU19*$E34 -> 0 | AX34: =AN_EMIS!AV19*$E34 -> 0 | AY34: =AN_EMIS!AW19*$E34 -> 0 | AZ34: =AN_EMIS!AX19*$E34 -> 0 | BA34: =AN_EMIS!AY19*$E34 -> 0 | BB34: =AN_EMIS!AZ19*$E34 -> 0 | BC34: =AN_EMIS!BA19*$E34 -> 0 | BD34: =AN_EMIS!BB19*$E34 -> 0 | BE34: =AN_EMIS!BC19*$E34 -> 0 | BF34: =AN_EMIS!BD19*$E34 -> 0 | BG34: =AN_EMIS!BE19*$E34 -> 0 | BH34: =AN_EMIS!BF19*$E34 -> 0 | BI34: =AN_EMIS!BG19*$E34 -> 0 | BJ34: =AN_EMIS!BH19*$E34 -> 0 | BK34: =AN_EMIS!BI19*$E34 -> 0 | BL34: =AN_EMIS!BJ19*$E34 -> 0
A35: 16 | B35: =AN_EMIS!B20 -> 7647-01-0 | C35: =IF(B35=0,".",AN_EMIS!C20) -> Hydrochloric acid | D35: =IF(B35=0,0,VLOOKUP(B35,RBC_Table!$A$10:$I$270,$A$3,)) -> -- | E35: 0 | F35: =AN_EMIS!D20*$E35 -> 0 | G35: =AN_EMIS!E20*$E35 -> 0 | H35: =AN_EMIS!F20*$E35 -> 0 | I35: =AN_EMIS!G20*$E35 -> 0 | J35: =AN_EMIS!H20*$E35 -> 0 | K35: =AN_EMIS!I20*$E35 -> 0 | L35: =AN_EMIS!J20*$E35 -> 0 | M35: =AN_EMIS!K20*$E35 -> 0 | N35: =AN_EMIS!L20*$E35 -> 0 | O35: =AN_EMIS!M20*$E35 -> 0 | P35: =AN_EMIS!N20*$E35 -> 0 | Q35: =AN_EMIS!O20*$E35 -> 0 | R35: =AN_EMIS!P20*$E35 -> 0 | S35: =AN_EMIS!Q20*$E35 -> 0 | T35: =AN_EMIS!R20*$E35 -> 0 | U35: =AN_EMIS!S20*$E35 -> 0 | V35: =AN_EMIS!T20*$E35 -> 0 | W35: =AN_EMIS!U20*$E35 -> 0 | X35: =AN_EMIS!V20*$E35 -> 0 | Y35: =AN_EMIS!W20*$E35 -> 0 | Z35: =AN_EMIS!X20*$E35 -> 0 | AA35: =AN_EMIS!Y20*$E35 -> 0 | AB35: =AN_EMIS!Z20*$E35 -> 0 | AC35: =AN_EMIS!AA20*$E35 -> 0 | AD35: =AN_EMIS!AB20*$E35 -> 0 | AE35: =AN_EMIS!AC20*$E35 -> 0 | AF35: =AN_EMIS!AD20*$E35 -> 0 | AG35: =AN_EMIS!AE20*$E35 -> 0 | AH35: =AN_EMIS!AF20*$E35 -> 0 | AI35: =AN_EMIS!AG20*$E35 -> 0 | AJ35: =AN_EMIS!AH20*$E35 -> 0 | AK35: =AN_EMIS!AI20*$E35 -> 0 | AL35: =AN_EMIS!AJ20*$E35 -> 0 | AM35: =AN_EMIS!AK20*$E35 -> 0 | AN35: =AN_EMIS!AL20*$E35 -> 0 | AO35: =AN_EMIS!AM20*$E35 -> 0 | AP35: =AN_EMIS!AN20*$E35 -> 0 | AQ35: =AN_EMIS!AO20*$E35 -> 0 | AR35: =AN_EMIS!AP20*$E35 -> 0 | AS35: =AN_EMIS!AQ20*$E35 -> 0 | AT35: =AN_EMIS!AR20*$E35 -> 0 | AU35: =AN_EMIS!AS20*$E35 -> 0 | AV35: =AN_EMIS!AT20*$E35 -> 0 | AW35: =AN_EMIS!AU20*$E35 -> 0 | AX35: =AN_EMIS!AV20*$E35 -> 0 | AY35: =AN_EMIS!AW20*$E35 -> 0 | AZ35: =AN_EMIS!AX20*$E35 -> 0 | BA35: =AN_EMIS!AY20*$E35 -> 0 | BB35: =AN_EMIS!AZ20*$E35 -> 0 | BC35: =AN_EMIS!BA20*$E35 -> 0 | BD35: =AN_EMIS!BB20*$E35 -> 0 | BE35: =AN_EMIS!BC20*$E35 -> 0 | BF35: =AN_EMIS!BD20*$E35 -> 0 | BG35: =AN_EMIS!BE20*$E35 -> 0 | BH35: =AN_EMIS!BF20*$E35 -> 0 | BI35: =AN_EMIS!BG20*$E35 -> 0 | BJ35: =AN_EMIS!BH20*$E35 -> 0 | BK35: =AN_EMIS!BI20*$E35 -> 0 | BL35: =AN_EMIS!BJ20*$E35 -> 0
A36: 17 | B36: =AN_EMIS!B21 -> 67-63-0 | C36: =IF(B36=0,".",AN_EMIS!C21) -> Isopropyl alcohol | D36: =IF(B36=0,0,VLOOKUP(B36,RBC_Table!$A$10:$I$270,$A$3,)) -> -- | E36: 0 | F36: =AN_EMIS!D21*$E36 -> 0 | G36: =AN_EMIS!E21*$E36 -> 0 | H36: =AN_EMIS!F21*$E36 -> 0 | I36: =AN_EMIS!G21*$E36 -> 0 | J36: =AN_EMIS!H21*$E36 -> 0 | K36: =AN_EMIS!I21*$E36 -> 0 | L36: =AN_EMIS!J21*$E36 -> 0 | M36: =AN_EMIS!K21*$E36 -> 0 | N36: =AN_EMIS!L21*$E36 -> 0 | O36: =AN_EMIS!M21*$E36 -> 0 | P36: =AN_EMIS!N21*$E36 -> 0 | Q36: =AN_EMIS!O21*$E36 -> 0 | R36: =AN_EMIS!P21*$E36 -> 0 | S36: =AN_EMIS!Q21*$E36 -> 0 | T36: =AN_EMIS!R21*$E36 -> 0 | U36: =AN_EMIS!S21*$E36 -> 0 | V36: =AN_EMIS!T21*$E36 -> 0 | W36: =AN_EMIS!U21*$E36 -> 0 | X36: =AN_EMIS!V21*$E36 -> 0 | Y36: =AN_EMIS!W21*$E36 -> 0 | Z36: =AN_EMIS!X21*$E36 -> 0 | AA36: =AN_EMIS!Y21*$E36 -> 0 | AB36: =AN_EMIS!Z21*$E36 -> 0 | AC36: =AN_EMIS!AA21*$E36 -> 0 | AD36: =AN_EMIS!AB21*$E36 -> 0 | AE36: =AN_EMIS!AC21*$E36 -> 0 | AF36: =AN_EMIS!AD21*$E36 -> 0 | AG36: =AN_EMIS!AE21*$E36 -> 0 | AH36: =AN_EMIS!AF21*$E36 -> 0 | AI36: =AN_EMIS!AG21*$E36 -> 0 | AJ36: =AN_EMIS!AH21*$E36 -> 0 | AK36: =AN_EMIS!AI21*$E36 -> 0 | AL36: =AN_EMIS!AJ21*$E36 -> 0 | AM36: =AN_EMIS!AK21*$E36 -> 0 | AN36: =AN_EMIS!AL21*$E36 -> 0 | AO36: =AN_EMIS!AM21*$E36 -> 0 | AP36: =AN_EMIS!AN21*$E36 -> 0 | AQ36: =AN_EMIS!AO21*$E36 -> 0 | AR36: =AN_EMIS!AP21*$E36 -> 0 | AS36: =AN_EMIS!AQ21*$E36 -> 0 | AT36: =AN_EMIS!AR21*$E36 -> 0 | AU36: =AN_EMIS!AS21*$E36 -> 0 | AV36: =AN_EMIS!AT21*$E36 -> 0 | AW36: =AN_EMIS!AU21*$E36 -> 0 | AX36: =AN_EMIS!AV21*$E36 -> 0 | AY36: =AN_EMIS!AW21*$E36 -> 0 | AZ36: =AN_EMIS!AX21*$E36 -> 0 | BA36: =AN_EMIS!AY21*$E36 -> 0 | BB36: =AN_EMIS!AZ21*$E36 -> 0 | BC36: =AN_EMIS!BA21*$E36 -> 0 | BD36: =AN_EMIS!BB21*$E36 -> 0 | BE36: =AN_EMIS!BC21*$E36 -> 0 | BF36: =AN_EMIS!BD21*$E36 -> 0 | BG36: =AN_EMIS!BE21*$E36 -> 0 | BH36: =AN_EMIS!BF21*$E36 -> 0 | BI36: =AN_EMIS!BG21*$E36 -> 0 | BJ36: =AN_EMIS!BH21*$E36 -> 0 | BK36: =AN_EMIS!BI21*$E36 -> 0 | BL36: =AN_EMIS!BJ21*$E36 -> 0
A37: 18 | B37: =AN_EMIS!B22 -> 7439-92-1 | C37: =IF(B37=0,".",AN_EMIS!C22) -> Lead and compounds | D37: =IF(B37=0,0,VLOOKUP(B37,RBC_Table!$A$10:$I$270,$A$3,)) -> -- | E37: 0 | F37: =AN_EMIS!D22*$E37 -> 0 | G37: =AN_EMIS!E22*$E37 -> 0 | H37: =AN_EMIS!F22*$E37 -> 0 | I37: =AN_EMIS!G22*$E37 -> 0 | J37: =AN_EMIS!H22*$E37 -> 0 | K37: =AN_EMIS!I22*$E37 -> 0 | L37: =AN_EMIS!J22*$E37 -> 0 | M37: =AN_EMIS!K22*$E37 -> 0 | N37: =AN_EMIS!L22*$E37 -> 0 | O37: =AN_EMIS!M22*$E37 -> 0 | P37: =AN_EMIS!N22*$E37 -> 0 | Q37: =AN_EMIS!O22*$E37 -> 0 | R37: =AN_EMIS!P22*$E37 -> 0 | S37: =AN_EMIS!Q22*$E37 -> 0 | T37: =AN_EMIS!R22*$E37 -> 0 | U37: =AN_EMIS!S22*$E37 -> 0 | V37: =AN_EMIS!T22*$E37 -> 0 | W37: =AN_EMIS!U22*$E37 -> 0 | X37: =AN_EMIS!V22*$E37 -> 0 | Y37: =AN_EMIS!W22*$E37 -> 0 | Z37: =AN_EMIS!X22*$E37 -> 0 | AA37: =AN_EMIS!Y22*$E37 -> 0 | AB37: =AN_EMIS!Z22*$E37 -> 0 | AC37: =AN_EMIS!AA22*$E37 -> 0 | AD37: =AN_EMIS!AB22*$E37 -> 0 | AE37: =AN_EMIS!AC22*$E37 -> 0 | AF37: =AN_EMIS!AD22*$E37 -> 0 | AG37: =AN_EMIS!AE22*$E37 -> 0 | AH37: =AN_EMIS!AF22*$E37 -> 0 | AI37: =AN_EMIS!AG22*$E37 -> 0 | AJ37: =AN_EMIS!AH22*$E37 -> 0 | AK37: =AN_EMIS!AI22*$E37 -> 0 | AL37: =AN_EMIS!AJ22*$E37 -> 0 | AM37: =AN_EMIS!AK22*$E37 -> 0 | AN37: =AN_EMIS!AL22*$E37 -> 0 | AO37: =AN_EMIS!AM22*$E37 -> 0 | AP37: =AN_EMIS!AN22*$E37 -> 0 | AQ37: =AN_EMIS!AO22*$E37 -> 0 | AR37: =AN_EMIS!AP22*$E37 -> 0 | AS37: =AN_EMIS!AQ22*$E37 -> 0 | AT37: =AN_EMIS!AR22*$E37 -> 0 | AU37: =AN_EMIS!AS22*$E37 -> 0 | AV37: =AN_EMIS!AT22*$E37 -> 0 | AW37: =AN_EMIS!AU22*$E37 -> 0 | AX37: =AN_EMIS!AV22*$E37 -> 0 | AY37: =AN_EMIS!AW22*$E37 -> 0 | AZ37: =AN_EMIS!AX22*$E37 -> 0 | BA37: =AN_EMIS!AY22*$E37 -> 0 | BB37: =AN_EMIS!AZ22*$E37 -> 0 | BC37: =AN_EMIS!BA22*$E37 -> 0 | BD37: =AN_EMIS!BB22*$E37 -> 0 | BE37: =AN_EMIS!BC22*$E37 -> 0 | BF37: =AN_EMIS!BD22*$E37 -> 0 | BG37: =AN_EMIS!BE22*$E37 -> 0 | BH37: =AN_EMIS!BF22*$E37 -> 0 | BI37: =AN_EMIS!BG22*$E37 -> 0 | BJ37: =AN_EMIS!BH22*$E37 -> 0 | BK37: =AN_EMIS!BI22*$E37 -> 0 | BL37: =AN_EMIS!BJ22*$E37 -> 0
A38: 19 | B38: =AN_EMIS!B23 -> 7439-96-5 | C38: =IF(B38=0,".",AN_EMIS!C23) -> Manganese and compounds | D38: =IF(B38=0,0,VLOOKUP(B38,RBC_Table!$A$10:$I$270,$A$3,)) -> -- | E38: 0 | F38: =AN_EMIS!D23*$E38 -> 0 | G38: =AN_EMIS!E23*$E38 -> 0 | H38: =AN_EMIS!F23*$E38 -> 0 | I38: =AN_EMIS!G23*$E38 -> 0 | J38: =AN_EMIS!H23*$E38 -> 0 | K38: =AN_EMIS!I23*$E38 -> 0 | L38: =AN_EMIS!J23*$E38 -> 0 | M38: =AN_EMIS!K23*$E38 -> 0 | N38: =AN_EMIS!L23*$E38 -> 0 | O38: =AN_EMIS!M23*$E38 -> 0 | P38: =AN_EMIS!N23*$E38 -> 0 | Q38: =AN_EMIS!O23*$E38 -> 0 | R38: =AN_EMIS!P23*$E38 -> 0 | S38: =AN_EMIS!Q23*$E38 -> 0 | T38: =AN_EMIS!R23*$E38 -> 0 | U38: =AN_EMIS!S23*$E38 -> 0 | V38: =AN_EMIS!T23*$E38 -> 0 | W38: =AN_EMIS!U23*$E38 -> 0 | X38: =AN_EMIS!V23*$E38 -> 0 | Y38: =AN_EMIS!W23*$E38 -> 0 | Z38: =AN_EMIS!X23*$E38 -> 0 | AA38: =AN_EMIS!Y23*$E38 -> 0 | AB38: =AN_EMIS!Z23*$E38 -> 0 | AC38: =AN_EMIS!AA23*$E38 -> 0 | AD38: =AN_EMIS!AB23*$E38 -> 0 | AE38: =AN_EMIS!AC23*$E38 -> 0 | AF38: =AN_EMIS!AD23*$E38 -> 0 | AG38: =AN_EMIS!AE23*$E38 -> 0 | AH38: =AN_EMIS!AF23*$E38 -> 0 | AI38: =AN_EMIS!AG23*$E38 -> 0 | AJ38: =AN_EMIS!AH23*$E38 -> 0 | AK38: =AN_EMIS!AI23*$E38 -> 0 | AL38: =AN_EMIS!AJ23*$E38 -> 0 | AM38: =AN_EMIS!AK23*$E38 -> 0 | AN38: =AN_EMIS!AL23*$E38 -> 0 | AO38: =AN_EMIS!AM23*$E38 -> 0 | AP38: =AN_EMIS!AN23*$E38 -> 0 | AQ38: =AN_EMIS!AO23*$E38 -> 0 | AR38: =AN_EMIS!AP23*$E38 -> 0 | AS38: =AN_EMIS!AQ23*$E38 -> 0 | AT38: =AN_EMIS!AR23*$E38 -> 0 | AU38: =AN_EMIS!AS23*$E38 -> 0 | AV38: =AN_EMIS!AT23*$E38 -> 0 | AW38: =AN_EMIS!AU23*$E38 -> 0 | AX38: =AN_EMIS!AV23*$E38 -> 0 | AY38: =AN_EMIS!AW23*$E38 -> 0 | AZ38: =AN_EMIS!AX23*$E38 -> 0 | BA38: =AN_EMIS!AY23*$E38 -> 0 | BB38: =AN_EMIS!AZ23*$E38 -> 0 | BC38: =AN_EMIS!BA23*$E38 -> 0 | BD38: =AN_EMIS!BB23*$E38 -> 0 | BE38: =AN_EMIS!BC23*$E38 -> 0 | BF38: =AN_EMIS!BD23*$E38 -> 0 | BG38: =AN_EMIS!BE23*$E38 -> 0 | BH38: =AN_EMIS!BF23*$E38 -> 0 | BI38: =AN_EMIS!BG23*$E38 -> 0 | BJ38: =AN_EMIS!BH23*$E38 -> 0 | BK38: =AN_EMIS!BI23*$E38 -> 0 | BL38: =AN_EMIS!BJ23*$E38 -> 0
A39: 20 | B39: =AN_EMIS!B24 -> 7439-97-6 | C39: =IF(B39=0,".",AN_EMIS!C24) -> Mercury and compounds | D39: =IF(B39=0,0,VLOOKUP(B39,RBC_Table!$A$10:$I$270,$A$3,)) -> -- | E39: 0 | F39: =AN_EMIS!D24*$E39 -> 0 | G39: =AN_EMIS!E24*$E39 -> 0 | H39: =AN_EMIS!F24*$E39 -> 0 | I39: =AN_EMIS!G24*$E39 -> 0 | J39: =AN_EMIS!H24*$E39 -> 0 | K39: =AN_EMIS!I24*$E39 -> 0 | L39: =AN_EMIS!J24*$E39 -> 0 | M39: =AN_EMIS!K24*$E39 -> 0 | N39: =AN_EMIS!L24*$E39 -> 0 | O39: =AN_EMIS!M24*$E39 -> 0 | P39: =AN_EMIS!N24*$E39 -> 0 | Q39: =AN_EMIS!O24*$E39 -> 0 | R39: =AN_EMIS!P24*$E39 -> 0 | S39: =AN_EMIS!Q24*$E39 -> 0 | T39: =AN_EMIS!R24*$E39 -> 0 | U39: =AN_EMIS!S24*$E39 -> 0 | V39: =AN_EMIS!T24*$E39 -> 0 | W39: =AN_EMIS!U24*$E39 -> 0 | X39: =AN_EMIS!V24*$E39 -> 0 | Y39: =AN_EMIS!W24*$E39 -> 0 | Z39: =AN_EMIS!X24*$E39 -> 0 | AA39: =AN_EMIS!Y24*$E39 -> 0 | AB39: =AN_EMIS!Z24*$E39 -> 0 | AC39: =AN_EMIS!AA24*$E39 -> 0 | AD39: =AN_EMIS!AB24*$E39 -> 0 | AE39: =AN_EMIS!AC24*$E39 -> 0 | AF39: =AN_EMIS!AD24*$E39 -> 0 | AG39: =AN_EMIS!AE24*$E39 -> 0 | AH39: =AN_EMIS!AF24*$E39 -> 0 | AI39: =AN_EMIS!AG24*$E39 -> 0 | AJ39: =AN_EMIS!AH24*$E39 -> 0 | AK39: =AN_EMIS!AI24*$E39 -> 0 | AL39: =AN_EMIS!AJ24*$E39 -> 0 | AM39: =AN_EMIS!AK24*$E39 -> 0 | AN39: =AN_EMIS!AL24*$E39 -> 0 | AO39: =AN_EMIS!AM24*$E39 -> 0 | AP39: =AN_EMIS!AN24*$E39 -> 0 | AQ39: =AN_EMIS!AO24*$E39 -> 0 | AR39: =AN_EMIS!AP24*$E39 -> 0 | AS39: =AN_EMIS!AQ24*$E39 -> 0 | AT39: =AN_EMIS!AR24*$E39 -> 0 | AU39: =AN_EMIS!AS24*$E39 -> 0 | AV39: =AN_EMIS!AT24*$E39 -> 0 | AW39: =AN_EMIS!AU24*$E39 -> 0 | AX39: =AN_EMIS!AV24*$E39 -> 0 | AY39: =AN_EMIS!AW24*$E39 -> 0 | AZ39: =AN_EMIS!AX24*$E39 -> 0 | BA39: =AN_EMIS!AY24*$E39 -> 0 | BB39: =AN_EMIS!AZ24*$E39 -> 0 | BC39: =AN_EMIS!BA24*$E39 -> 0 | BD39: =AN_EMIS!BB24*$E39 -> 0 | BE39: =AN_EMIS!BC24*$E39 -> 0 | BF39: =AN_EMIS!BD24*$E39 -> 0 | BG39: =AN_EMIS!BE24*$E39 -> 0 | BH39: =AN_EMIS!BF24*$E39 -> 0 | BI39: =AN_EMIS!BG24*$E39 -> 0 | BJ39: =AN_EMIS!BH24*$E39 -> 0 | BK39: =AN_EMIS!BI24*$E39 -> 0 | BL39: =AN_EMIS!BJ24*$E39 -> 0
A40: 21 | B40: =AN_EMIS!B25 -> 108-10-1 | C40: =IF(B40=0,".",AN_EMIS!C25) -> Methyl isobutyl ketone (MIBK, Hexone) | D40: =IF(B40=0,0,VLOOKUP(B40,RBC_Table!$A$10:$I$270,$A$3,)) -> -- | E40: 0 | F40: =AN_EMIS!D25*$E40 -> 0 | G40: =AN_EMIS!E25*$E40 -> 0 | H40: =AN_EMIS!F25*$E40 -> 0 | I40: =AN_EMIS!G25*$E40 -> 0 | J40: =AN_EMIS!H25*$E40 -> 0 | K40: =AN_EMIS!I25*$E40 -> 0 | L40: =AN_EMIS!J25*$E40 -> 0 | M40: =AN_EMIS!K25*$E40 -> 0 | N40: =AN_EMIS!L25*$E40 -> 0 | O40: =AN_EMIS!M25*$E40 -> 0 | P40: =AN_EMIS!N25*$E40 -> 0 | Q40: =AN_EMIS!O25*$E40 -> 0 | R40: =AN_EMIS!P25*$E40 -> 0 | S40: =AN_EMIS!Q25*$E40 -> 0 | T40: =AN_EMIS!R25*$E40 -> 0 | U40: =AN_EMIS!S25*$E40 -> 0 | V40: =AN_EMIS!T25*$E40 -> 0 | W40: =AN_EMIS!U25*$E40 -> 0 | X40: =AN_EMIS!V25*$E40 -> 0 | Y40: =AN_EMIS!W25*$E40 -> 0 | Z40: =AN_EMIS!X25*$E40 -> 0 | AA40: =AN_EMIS!Y25*$E40 -> 0 | AB40: =AN_EMIS!Z25*$E40 -> 0 | AC40: =AN_EMIS!AA25*$E40 -> 0 | AD40: =AN_EMIS!AB25*$E40 -> 0 | AE40: =AN_EMIS!AC25*$E40 -> 0 | AF40: =AN_EMIS!AD25*$E40 -> 0 | AG40: =AN_EMIS!AE25*$E40 -> 0 | AH40: =AN_EMIS!AF25*$E40 -> 0 | AI40: =AN_EMIS!AG25*$E40 -> 0 | AJ40: =AN_EMIS!AH25*$E40 -> 0 | AK40: =AN_EMIS!AI25*$E40 -> 0 | AL40: =AN_EMIS!AJ25*$E40 -> 0 | AM40: =AN_EMIS!AK25*$E40 -> 0 | AN40: =AN_EMIS!AL25*$E40 -> 0 | AO40: =AN_EMIS!AM25*$E40 -> 0 | AP40: =AN_EMIS!AN25*$E40 -> 0 | AQ40: =AN_EMIS!AO25*$E40 -> 0 | AR40: =AN_EMIS!AP25*$E40 -> 0 | AS40: =AN_EMIS!AQ25*$E40 -> 0 | AT40: =AN_EMIS!AR25*$E40 -> 0 | AU40: =AN_EMIS!AS25*$E40 -> 0 | AV40: =AN_EMIS!AT25*$E40 -> 0 | AW40: =AN_EMIS!AU25*$E40 -> 0 | AX40: =AN_EMIS!AV25*$E40 -> 0 | AY40: =AN_EMIS!AW25*$E40 -> 0 | AZ40: =AN_EMIS!AX25*$E40 -> 0 | BA40: =AN_EMIS!AY25*$E40 -> 0 | BB40: =AN_EMIS!AZ25*$E40 -> 0 | BC40: =AN_EMIS!BA25*$E40 -> 0 | BD40: =AN_EMIS!BB25*$E40 -> 0 | BE40: =AN_EMIS!BC25*$E40 -> 0 | BF40: =AN_EMIS!BD25*$E40 -> 0 | BG40: =AN_EMIS!BE25*$E40 -> 0 | BH40: =AN_EMIS!BF25*$E40 -> 0 | BI40: =AN_EMIS!BG25*$E40 -> 0 | BJ40: =AN_EMIS!BH25*$E40 -> 0 | BK40: =AN_EMIS!BI25*$E40 -> 0 | BL40: =AN_EMIS!BJ25*$E40 -> 0
A41: 22 | B41: =AN_EMIS!B26 -> 91-20-3 | C41: =IF(B41=0,".",AN_EMIS!C26) -> Naphthalene | D41: =IF(B41=0,0,VLOOKUP(B41,RBC_Table!$A$10:$I$270,$A$3,)) -> 0.029 | E41: 34.48275862 | F41: =AN_EMIS!D26*$E41 -> 0 | G41: =AN_EMIS!E26*$E41 -> 0 | H41: =AN_EMIS!F26*$E41 -> 0 | I41: =AN_EMIS!G26*$E41 -> 0 | J41: =AN_EMIS!H26*$E41 -> 0 | K41: =AN_EMIS!I26*$E41 -> 0 | L41: =AN_EMIS!J26*$E41 -> 0 | M41: =AN_EMIS!K26*$E41 -> 0 | N41: =AN_EMIS!L26*$E41 -> 0 | O41: =AN_EMIS!M26*$E41 -> 32.19310345 | P41: =AN_EMIS!N26*$E41 -> 0 | Q41: =AN_EMIS!O26*$E41 -> 0 | R41: =AN_EMIS!P26*$E41 -> 0 | S41: =AN_EMIS!Q26*$E41 -> 0 | T41: =AN_EMIS!R26*$E41 -> 0 | U41: =AN_EMIS!S26*$E41 -> 0 | V41: =AN_EMIS!T26*$E41 -> 0 | W41: =AN_EMIS!U26*$E41 -> 0 | X41: =AN_EMIS!V26*$E41 -> 0 | Y41: =AN_EMIS!W26*$E41 -> 0 | Z41: =AN_EMIS!X26*$E41 -> 0 | AA41: =AN_EMIS!Y26*$E41 -> 0 | AB41: =AN_EMIS!Z26*$E41 -> 0 | AC41: =AN_EMIS!AA26*$E41 -> 0 | AD41: =AN_EMIS!AB26*$E41 -> 0 | AE41: =AN_EMIS!AC26*$E41 -> 0 | AF41: =AN_EMIS!AD26*$E41 -> 0 | AG41: =AN_EMIS!AE26*$E41 -> 0 | AH41: =AN_EMIS!AF26*$E41 -> 0 | AI41: =AN_EMIS!AG26*$E41 -> 0 | AJ41: =AN_EMIS!AH26*$E41 -> 0 | AK41: =AN_EMIS!AI26*$E41 -> 0 | AL41: =AN_EMIS!AJ26*$E41 -> 0 | AM41: =AN_EMIS!AK26*$E41 -> 0 | AN41: =AN_EMIS!AL26*$E41 -> 0 | AO41: =AN_EMIS!AM26*$E41 -> 0 | AP41: =AN_EMIS!AN26*$E41 -> 0 | AQ41: =AN_EMIS!AO26*$E41 -> 0 | AR41: =AN_EMIS!AP26*$E41 -> 0 | AS41: =AN_EMIS!AQ26*$E41 -> 0 | AT41: =AN_EMIS!AR26*$E41 -> 0 | AU41: =AN_EMIS!AS26*$E41 -> 0 | AV41: =AN_EMIS!AT26*$E41 -> 0 | AW41: =AN_EMIS!AU26*$E41 -> 0 | AX41: =AN_EMIS!AV26*$E41 -> 0 | AY41: =AN_EMIS!AW26*$E41 -> 0 | AZ41: =AN_EMIS!AX26*$E41 -> 0 | BA41: =AN_EMIS!AY26*$E41 -> 0 | BB41: =AN_EMIS!AZ26*$E41 -> 0 | BC41: =AN_EMIS!BA26*$E41 -> 0 | BD41: =AN_EMIS!BB26*$E41 -> 0 | BE41: =AN_EMIS!BC26*$E41 -> 0 | BF41: =AN_EMIS!BD26*$E41 -> 0 | BG41: =AN_EMIS!BE26*$E41 -> 0 | BH41: =AN_EMIS!BF26*$E41 -> 0 | BI41: =AN_EMIS!BG26*$E41 -> 0 | BJ41: =AN_EMIS!BH26*$E41 -> 0 | BK41: =AN_EMIS!BI26*$E41 -> 0 | BL41: =AN_EMIS!BJ26*$E41 -> 0
A42: 23 | B42: =AN_EMIS!B27 -> C365 | C42: =IF(B42=0,".",AN_EMIS!C27) -> Nickel compounds, insoluble | D42: =IF(B42=0,0,VLOOKUP(B42,RBC_Table!$A$10:$I$270,$A$3,)) -> 0.0038 | E42: 263.1578947 | F42: =AN_EMIS!D27*$E42 -> 0 | G42: =AN_EMIS!E27*$E42 -> 0 | H42: =AN_EMIS!F27*$E42 -> 0 | I42: =AN_EMIS!G27*$E42 -> 486.3157895 | J42: =AN_EMIS!H27*$E42 -> 0 | K42: =AN_EMIS!I27*$E42 -> 0 | L42: =AN_EMIS!J27*$E42 -> 0 | M42: =AN_EMIS!K27*$E42 -> 0 | N42: =AN_EMIS!L27*$E42 -> 58.71157895 | O42: =AN_EMIS!M27*$E42 -> 0 | P42: =AN_EMIS!N27*$E42 -> 0 | Q42: =AN_EMIS!O27*$E42 -> 0 | R42: =AN_EMIS!P27*$E42 -> 0 | S42: =AN_EMIS!Q27*$E42 -> 0 | T42: =AN_EMIS!R27*$E42 -> 0 | U42: =AN_EMIS!S27*$E42 -> 0 | V42: =AN_EMIS!T27*$E42 -> 0 | W42: =AN_EMIS!U27*$E42 -> 0 | X42: =AN_EMIS!V27*$E42 -> 0 | Y42: =AN_EMIS!W27*$E42 -> 0 | Z42: =AN_EMIS!X27*$E42 -> 0 | AA42: =AN_EMIS!Y27*$E42 -> 0 | AB42: =AN_EMIS!Z27*$E42 -> 0 | AC42: =AN_EMIS!AA27*$E42 -> 0 | AD42: =AN_EMIS!AB27*$E42 -> 0 | AE42: =AN_EMIS!AC27*$E42 -> 0 | AF42: =AN_EMIS!AD27*$E42 -> 0 | AG42: =AN_EMIS!AE27*$E42 -> 0 | AH42: =AN_EMIS!AF27*$E42 -> 0 | AI42: =AN_EMIS!AG27*$E42 -> 0 | AJ42: =AN_EMIS!AH27*$E42 -> 0 | AK42: =AN_EMIS!AI27*$E42 -> 0 | AL42: =AN_EMIS!AJ27*$E42 -> 0 | AM42: =AN_EMIS!AK27*$E42 -> 0 | AN42: =AN_EMIS!AL27*$E42 -> 0 | AO42: =AN_EMIS!AM27*$E42 -> 0 | AP42: =AN_EMIS!AN27*$E42 -> 0 | AQ42: =AN_EMIS!AO27*$E42 -> 0 | AR42: =AN_EMIS!AP27*$E42 -> 0 | AS42: =AN_EMIS!AQ27*$E42 -> 0 | AT42: =AN_EMIS!AR27*$E42 -> 0 | AU42: =AN_EMIS!AS27*$E42 -> 0 | AV42: =AN_EMIS!AT27*$E42 -> 0 | AW42: =AN_EMIS!AU27*$E42 -> 0 | AX42: =AN_EMIS!AV27*$E42 -> 0 | AY42: =AN_EMIS!AW27*$E42 -> 0 | AZ42: =AN_EMIS!AX27*$E42 -> 0 | BA42: =AN_EMIS!AY27*$E42 -> 0 | BB42: =AN_EMIS!AZ27*$E42 -> 0 | BC42: =AN_EMIS!BA27*$E42 -> 0 | BD42: =AN_EMIS!BB27*$E42 -> 0 | BE42: =AN_EMIS!BC27*$E42 -> 0 | BF42: =AN_EMIS!BD27*$E42 -> 0 | BG42: =AN_EMIS!BE27*$E42 -> 0 | BH42: =AN_EMIS!BF27*$E42 -> 0 | BI42: =AN_EMIS!BG27*$E42 -> 0 | BJ42: =AN_EMIS!BH27*$E42 -> 0 | BK42: =AN_EMIS!BI27*$E42 -> 0 | BL42: =AN_EMIS!BJ27*$E42 -> 0
A43: 24 | B43: =AN_EMIS!B28 -> 56-55-3 | C43: =IF(B43=0,".",AN_EMIS!C28) -> Benz[a]anthracene | D43: =IF(B43=0,0,VLOOKUP(B43,RBC_Table!$A$10:$I$270,$A$3,)) -> 0.00021 | E43: 4761.904762 | F43: =AN_EMIS!D28*$E43 -> 0 | G43: =AN_EMIS!E28*$E43 -> 0 | H43: =AN_EMIS!F28*$E43 -> 0 | I43: =AN_EMIS!G28*$E43 -> 0 | J43: =AN_EMIS!H28*$E43 -> 0 | K43: =AN_EMIS!I28*$E43 -> 0 | L43: =AN_EMIS!J28*$E43 -> 0 | M43: =AN_EMIS!K28*$E43 -> 0 | N43: =AN_EMIS!L28*$E43 -> 0 | O43: =AN_EMIS!M28*$E43 -> 0 | P43: =AN_EMIS!N28*$E43 -> 0 | Q43: =AN_EMIS!O28*$E43 -> 0 | R43: =AN_EMIS!P28*$E43 -> 0 | S43: =AN_EMIS!Q28*$E43 -> 0 | T43: =AN_EMIS!R28*$E43 -> 0 | U43: =AN_EMIS!S28*$E43 -> 0 | V43: =AN_EMIS!T28*$E43 -> 0 | W43: =AN_EMIS!U28*$E43 -> 0 | X43: =AN_EMIS!V28*$E43 -> 0 | Y43: =AN_EMIS!W28*$E43 -> 0 | Z43: =AN_EMIS!X28*$E43 -> 0 | AA43: =AN_EMIS!Y28*$E43 -> 0 | AB43: =AN_EMIS!Z28*$E43 -> 0 | AC43: =AN_EMIS!AA28*$E43 -> 0 | AD43: =AN_EMIS!AB28*$E43 -> 0 | AE43: =AN_EMIS!AC28*$E43 -> 0 | AF43: =AN_EMIS!AD28*$E43 -> 0 | AG43: =AN_EMIS!AE28*$E43 -> 0 | AH43: =AN_EMIS!AF28*$E43 -> 0 | AI43: =AN_EMIS!AG28*$E43 -> 0 | AJ43: =AN_EMIS!AH28*$E43 -> 0 | AK43: =AN_EMIS!AI28*$E43 -> 0 | AL43: =AN_EMIS!AJ28*$E43 -> 0 | AM43: =AN_EMIS!AK28*$E43 -> 0 | AN43: =AN_EMIS!AL28*$E43 -> 0 | AO43: =AN_EMIS!AM28*$E43 -> 0 | AP43: =AN_EMIS!AN28*$E43 -> 0 | AQ43: =AN_EMIS!AO28*$E43 -> 0 | AR43: =AN_EMIS!AP28*$E43 -> 0 | AS43: =AN_EMIS!AQ28*$E43 -> 0 | AT43: =AN_EMIS!AR28*$E43 -> 0 | AU43: =AN_EMIS!AS28*$E43 -> 0 | AV43: =AN_EMIS!AT28*$E43 -> 0 | AW43: =AN_EMIS!AU28*$E43 -> 0 | AX43: =AN_EMIS!AV28*$E43 -> 0 | AY43: =AN_EMIS!AW28*$E43 -> 0 | AZ43: =AN_EMIS!AX28*$E43 -> 0 | BA43: =AN_EMIS!AY28*$E43 -> 0 | BB43: =AN_EMIS!AZ28*$E43 -> 0 | BC43: =AN_EMIS!BA28*$E43 -> 0 | BD43: =AN_EMIS!BB28*$E43 -> 0 | BE43: =AN_EMIS!BC28*$E43 -> 0 | BF43: =AN_EMIS!BD28*$E43 -> 0 | BG43: =AN_EMIS!BE28*$E43 -> 0 | BH43: =AN_EMIS!BF28*$E43 -> 0 | BI43: =AN_EMIS!BG28*$E43 -> 0 | BJ43: =AN_EMIS!BH28*$E43 -> 0 | BK43: =AN_EMIS!BI28*$E43 -> 0 | BL43: =AN_EMIS!BJ28*$E43 -> 0
A44: 25 | B44: =AN_EMIS!B29 -> 50-32-8 | C44: =IF(B44=0,".",AN_EMIS!C29) -> Benzo[a]pyrene | D44: =IF(B44=0,0,VLOOKUP(B44,RBC_Table!$A$10:$I$270,$A$3,)) -> 4.3e-05 | E44: 23255.81395 | F44: =AN_EMIS!D29*$E44 -> 0 | G44: =AN_EMIS!E29*$E44 -> 0 | H44: =AN_EMIS!F29*$E44 -> 0 | I44: =AN_EMIS!G29*$E44 -> 0 | J44: =AN_EMIS!H29*$E44 -> 0 | K44: =AN_EMIS!I29*$E44 -> 0 | L44: =AN_EMIS!J29*$E44 -> 0 | M44: =AN_EMIS!K29*$E44 -> 0 | N44: =AN_EMIS!L29*$E44 -> 0 | O44: =AN_EMIS!M29*$E44 -> 0 | P44: =AN_EMIS!N29*$E44 -> 0 | Q44: =AN_EMIS!O29*$E44 -> 0 | R44: =AN_EMIS!P29*$E44 -> 0 | S44: =AN_EMIS!Q29*$E44 -> 0 | T44: =AN_EMIS!R29*$E44 -> 0 | U44: =AN_EMIS!S29*$E44 -> 0 | V44: =AN_EMIS!T29*$E44 -> 0 | W44: =AN_EMIS!U29*$E44 -> 0 | X44: =AN_EMIS!V29*$E44 -> 0 | Y44: =AN_EMIS!W29*$E44 -> 0 | Z44: =AN_EMIS!X29*$E44 -> 0 | AA44: =AN_EMIS!Y29*$E44 -> 0 | AB44: =AN_EMIS!Z29*$E44 -> 0 | AC44: =AN_EMIS!AA29*$E44 -> 0 | AD44: =AN_EMIS!AB29*$E44 -> 0 | AE44: =AN_EMIS!AC29*$E44 -> 0 | AF44: =AN_EMIS!AD29*$E44 -> 0 | AG44: =AN_EMIS!AE29*$E44 -> 0 | AH44: =AN_EMIS!AF29*$E44 -> 0 | AI44: =AN_EMIS!AG29*$E44 -> 0 | AJ44: =AN_EMIS!AH29*$E44 -> 0 | AK44: =AN_EMIS!AI29*$E44 -> 0 | AL44: =AN_EMIS!AJ29*$E44 -> 0 | AM44: =AN_EMIS!AK29*$E44 -> 0 | AN44: =AN_EMIS!AL29*$E44 -> 0 | AO44: =AN_EMIS!AM29*$E44 -> 0 | AP44: =AN_EMIS!AN29*$E44 -> 0 | AQ44: =AN_EMIS!AO29*$E44 -> 0 | AR44: =AN_EMIS!AP29*$E44 -> 0 | AS44: =AN_EMIS!AQ29*$E44 -> 0 | AT44: =AN_EMIS!AR29*$E44 -> 0 | AU44: =AN_EMIS!AS29*$E44 -> 0 | AV44: =AN_EMIS!AT29*$E44 -> 0 | AW44: =AN_EMIS!AU29*$E44 -> 0 | AX44: =AN_EMIS!AV29*$E44 -> 0 | AY44: =AN_EMIS!AW29*$E44 -> 0 | AZ44: =AN_EMIS!AX29*$E44 -> 0 | BA44: =AN_EMIS!AY29*$E44 -> 0 | BB44: =AN_EMIS!AZ29*$E44 -> 0 | BC44: =AN_EMIS!BA29*$E44 -> 0 | BD44: =AN_EMIS!BB29*$E44 -> 0 | BE44: =AN_EMIS!BC29*$E44 -> 0 | BF44: =AN_EMIS!BD29*$E44 -> 0 | BG44: =AN_EMIS!BE29*$E44 -> 0 | BH44: =AN_EMIS!BF29*$E44 -> 0 | BI44: =AN_EMIS!BG29*$E44 -> 0 | BJ44: =AN_EMIS!BH29*$E44 -> 0 | BK44: =AN_EMIS!BI29*$E44 -> 0 | BL44: =AN_EMIS!BJ29*$E44 -> 0
A45: 26 | B45: =AN_EMIS!B30 -> 205-99-2 | C45: =IF(B45=0,".",AN_EMIS!C30) -> Benzo[b]fluoranthene | D45: =IF(B45=0,0,VLOOKUP(B45,RBC_Table!$A$10:$I$270,$A$3,)) -> 5.3e-05 | E45: 18867.92453 | F45: =AN_EMIS!D30*$E45 -> 0 | G45: =AN_EMIS!E30*$E45 -> 0 | H45: =AN_EMIS!F30*$E45 -> 0 | I45: =AN_EMIS!G30*$E45 -> 0 | J45: =AN_EMIS!H30*$E45 -> 0 | K45: =AN_EMIS!I30*$E45 -> 0 | L45: =AN_EMIS!J30*$E45 -> 0 | M45: =AN_EMIS!K30*$E45 -> 0 | N45: =AN_EMIS!L30*$E45 -> 0 | O45: =AN_EMIS!M30*$E45 -> 0 | P45: =AN_EMIS!N30*$E45 -> 0 | Q45: =AN_EMIS!O30*$E45 -> 0 | R45: =AN_EMIS!P30*$E45 -> 0 | S45: =AN_EMIS!Q30*$E45 -> 0 | T45: =AN_EMIS!R30*$E45 -> 0 | U45: =AN_EMIS!S30*$E45 -> 0 | V45: =AN_EMIS!T30*$E45 -> 0 | W45: =AN_EMIS!U30*$E45 -> 0 | X45: =AN_EMIS!V30*$E45 -> 0 | Y45: =AN_EMIS!W30*$E45 -> 0 | Z45: =AN_EMIS!X30*$E45 -> 0 | AA45: =AN_EMIS!Y30*$E45 -> 0 | AB45: =AN_EMIS!Z30*$E45 -> 0 | AC45: =AN_EMIS!AA30*$E45 -> 0 | AD45: =AN_EMIS!AB30*$E45 -> 0 | AE45: =AN_EMIS!AC30*$E45 -> 0 | AF45: =AN_EMIS!AD30*$E45 -> 0 | AG45: =AN_EMIS!AE30*$E45 -> 0 | AH45: =AN_EMIS!AF30*$E45 -> 0 | AI45: =AN_EMIS!AG30*$E45 -> 0 | AJ45: =AN_EMIS!AH30*$E45 -> 0 | AK45: =AN_EMIS!AI30*$E45 -> 0 | AL45: =AN_EMIS!AJ30*$E45 -> 0 | AM45: =AN_EMIS!AK30*$E45 -> 0 | AN45: =AN_EMIS!AL30*$E45 -> 0 | AO45: =AN_EMIS!AM30*$E45 -> 0 | AP45: =AN_EMIS!AN30*$E45 -> 0 | AQ45: =AN_EMIS!AO30*$E45 -> 0 | AR45: =AN_EMIS!AP30*$E45 -> 0 | AS45: =AN_EMIS!AQ30*$E45 -> 0 | AT45: =AN_EMIS!AR30*$E45 -> 0 | AU45: =AN_EMIS!AS30*$E45 -> 0 | AV45: =AN_EMIS!AT30*$E45 -> 0 | AW45: =AN_EMIS!AU30*$E45 -> 0 | AX45: =AN_EMIS!AV30*$E45 -> 0 | AY45: =AN_EMIS!AW30*$E45 -> 0 | AZ45: =AN_EMIS!AX30*$E45 -> 0 | BA45: =AN_EMIS!AY30*$E45 -> 0 | BB45: =AN_EMIS!AZ30*$E45 -> 0 | BC45: =AN_EMIS!BA30*$E45 -> 0 | BD45: =AN_EMIS!BB30*$E45 -> 0 | BE45: =AN_EMIS!BC30*$E45 -> 0 | BF45: =AN_EMIS!BD30*$E45 -> 0 | BG45: =AN_EMIS!BE30*$E45 -> 0 | BH45: =AN_EMIS!BF30*$E45 -> 0 | BI45: =AN_EMIS!BG30*$E45 -> 0 | BJ45: =AN_EMIS!BH30*$E45 -> 0 | BK45: =AN_EMIS!BI30*$E45 -> 0 | BL45: =AN_EMIS!BJ30*$E45 -> 0
A46: 27 | B46: =AN_EMIS!B31 -> 191-24-2 | C46: =IF(B46=0,".",AN_EMIS!C31) -> Benzo[g,h,i]perylene | D46: =IF(B46=0,0,VLOOKUP(B46,RBC_Table!$A$10:$I$270,$A$3,)) -> 0.0047 | E46: 212.7659574 | F46: =AN_EMIS!D31*$E46 -> 0 | G46: =AN_EMIS!E31*$E46 -> 0 | H46: =AN_EMIS!F31*$E46 -> 0 | I46: =AN_EMIS!G31*$E46 -> 0 | J46: =AN_EMIS!H31*$E46 -> 0 | K46: =AN_EMIS!I31*$E46 -> 0 | L46: =AN_EMIS!J31*$E46 -> 0 | M46: =AN_EMIS!K31*$E46 -> 0 | N46: =AN_EMIS!L31*$E46 -> 0 | O46: =AN_EMIS!M31*$E46 -> 0 | P46: =AN_EMIS!N31*$E46 -> 0 | Q46: =AN_EMIS!O31*$E46 -> 0 | R46: =AN_EMIS!P31*$E46 -> 0 | S46: =AN_EMIS!Q31*$E46 -> 0 | T46: =AN_EMIS!R31*$E46 -> 0 | U46: =AN_EMIS!S31*$E46 -> 0 | V46: =AN_EMIS!T31*$E46 -> 0 | W46: =AN_EMIS!U31*$E46 -> 0 | X46: =AN_EMIS!V31*$E46 -> 0 | Y46: =AN_EMIS!W31*$E46 -> 0 | Z46: =AN_EMIS!X31*$E46 -> 0 | AA46: =AN_EMIS!Y31*$E46 -> 0 | AB46: =AN_EMIS!Z31*$E46 -> 0 | AC46: =AN_EMIS!AA31*$E46 -> 0 | AD46: =AN_EMIS!AB31*$E46 -> 0 | AE46: =AN_EMIS!AC31*$E46 -> 0 | AF46: =AN_EMIS!AD31*$E46 -> 0 | AG46: =AN_EMIS!AE31*$E46 -> 0 | AH46: =AN_EMIS!AF31*$E46 -> 0 | AI46: =AN_EMIS!AG31*$E46 -> 0 | AJ46: =AN_EMIS!AH31*$E46 -> 0 | AK46: =AN_EMIS!AI31*$E46 -> 0 | AL46: =AN_EMIS!AJ31*$E46 -> 0 | AM46: =AN_EMIS!AK31*$E46 -> 0 | AN46: =AN_EMIS!AL31*$E46 -> 0 | AO46: =AN_EMIS!AM31*$E46 -> 0 | AP46: =AN_EMIS!AN31*$E46 -> 0 | AQ46: =AN_EMIS!AO31*$E46 -> 0 | AR46: =AN_EMIS!AP31*$E46 -> 0 | AS46: =AN_EMIS!AQ31*$E46 -> 0 | AT46: =AN_EMIS!AR31*$E46 -> 0 | AU46: =AN_EMIS!AS31*$E46 -> 0 | AV46: =AN_EMIS!AT31*$E46 -> 0 | AW46: =AN_EMIS!AU31*$E46 -> 0 | AX46: =AN_EMIS!AV31*$E46 -> 0 | AY46: =AN_EMIS!AW31*$E46 -> 0 | AZ46: =AN_EMIS!AX31*$E46 -> 0 | BA46: =AN_EMIS!AY31*$E46 -> 0 | BB46: =AN_EMIS!AZ31*$E46 -> 0 | BC46: =AN_EMIS!BA31*$E46 -> 0 | BD46: =AN_EMIS!BB31*$E46 -> 0 | BE46: =AN_EMIS!BC31*$E46 -> 0 | BF46: =AN_EMIS!BD31*$E46 -> 0 | BG46: =AN_EMIS!BE31*$E46 -> 0 | BH46: =AN_EMIS!BF31*$E46 -> 0 | BI46: =AN_EMIS!BG31*$E46 -> 0 | BJ46: =AN_EMIS!BH31*$E46 -> 0 | BK46: =AN_EMIS!BI31*$E46 -> 0 | BL46: =AN_EMIS!BJ31*$E46 -> 0
A47: 28 | B47: =AN_EMIS!B32 -> 207-08-9 | C47: =IF(B47=0,".",AN_EMIS!C32) -> Benzo[k]fluoranthene | D47: =IF(B47=0,0,VLOOKUP(B47,RBC_Table!$A$10:$I$270,$A$3,)) -> 0.0014 | E47: 714.2857143 | F47: =AN_EMIS!D32*$E47 -> 0 | G47: =AN_EMIS!E32*$E47 -> 0 | H47: =AN_EMIS!F32*$E47 -> 0 | I47: =AN_EMIS!G32*$E47 -> 0 | J47: =AN_EMIS!H32*$E47 -> 0 | K47: =AN_EMIS!I32*$E47 -> 0 | L47: =AN_EMIS!J32*$E47 -> 0 | M47: =AN_EMIS!K32*$E47 -> 0 | N47: =AN_EMIS!L32*$E47 -> 0 | O47: =AN_EMIS!M32*$E47 -> 0 | P47: =AN_EMIS!N32*$E47 -> 0 | Q47: =AN_EMIS!O32*$E47 -> 0 | R47: =AN_EMIS!P32*$E47 -> 0 | S47: =AN_EMIS!Q32*$E47 -> 0 | T47: =AN_EMIS!R32*$E47 -> 0 | U47: =AN_EMIS!S32*$E47 -> 0 | V47: =AN_EMIS!T32*$E47 -> 0 | W47: =AN_EMIS!U32*$E47 -> 0 | X47: =AN_EMIS!V32*$E47 -> 0 | Y47: =AN_EMIS!W32*$E47 -> 0 | Z47: =AN_EMIS!X32*$E47 -> 0 | AA47: =AN_EMIS!Y32*$E47 -> 0 | AB47: =AN_EMIS!Z32*$E47 -> 0 | AC47: =AN_EMIS!AA32*$E47 -> 0 | AD47: =AN_EMIS!AB32*$E47 -> 0 | AE47: =AN_EMIS!AC32*$E47 -> 0 | AF47: =AN_EMIS!AD32*$E47 -> 0 | AG47: =AN_EMIS!AE32*$E47 -> 0 | AH47: =AN_EMIS!AF32*$E47 -> 0 | AI47: =AN_EMIS!AG32*$E47 -> 0 | AJ47: =AN_EMIS!AH32*$E47 -> 0 | AK47: =AN_EMIS!AI32*$E47 -> 0 | AL47: =AN_EMIS!AJ32*$E47 -> 0 | AM47: =AN_EMIS!AK32*$E47 -> 0 | AN47: =AN_EMIS!AL32*$E47 -> 0 | AO47: =AN_EMIS!AM32*$E47 -> 0 | AP47: =AN_EMIS!AN32*$E47 -> 0 | AQ47: =AN_EMIS!AO32*$E47 -> 0 | AR47: =AN_EMIS!AP32*$E47 -> 0 | AS47: =AN_EMIS!AQ32*$E47 -> 0 | AT47: =AN_EMIS!AR32*$E47 -> 0 | AU47: =AN_EMIS!AS32*$E47 -> 0 | AV47: =AN_EMIS!AT32*$E47 -> 0 | AW47: =AN_EMIS!AU32*$E47 -> 0 | AX47: =AN_EMIS!AV32*$E47 -> 0 | AY47: =AN_EMIS!AW32*$E47 -> 0 | AZ47: =AN_EMIS!AX32*$E47 -> 0 | BA47: =AN_EMIS!AY32*$E47 -> 0 | BB47: =AN_EMIS!AZ32*$E47 -> 0 | BC47: =AN_EMIS!BA32*$E47 -> 0 | BD47: =AN_EMIS!BB32*$E47 -> 0 | BE47: =AN_EMIS!BC32*$E47 -> 0 | BF47: =AN_EMIS!BD32*$E47 -> 0 | BG47: =AN_EMIS!BE32*$E47 -> 0 | BH47: =AN_EMIS!BF32*$E47 -> 0 | BI47: =AN_EMIS!BG32*$E47 -> 0 | BJ47: =AN_EMIS!BH32*$E47 -> 0 | BK47: =AN_EMIS!BI32*$E47 -> 0 | BL47: =AN_EMIS!BJ32*$E47 -> 0
A48: 29 | B48: =AN_EMIS!B33 -> 218-01-9 | C48: =IF(B48=0,".",AN_EMIS!C33) -> Chrysene | D48: =IF(B48=0,0,VLOOKUP(B48,RBC_Table!$A$10:$I$270,$A$3,)) -> 0.00043 | E48: 2325.581395 | F48: =AN_EMIS!D33*$E48 -> 0 | G48: =AN_EMIS!E33*$E48 -> 0 | H48: =AN_EMIS!F33*$E48 -> 0 | I48: =AN_EMIS!G33*$E48 -> 0 | J48: =AN_EMIS!H33*$E48 -> 0 | K48: =AN_EMIS!I33*$E48 -> 0 | L48: =AN_EMIS!J33*$E48 -> 0 | M48: =AN_EMIS!K33*$E48 -> 0 | N48: =AN_EMIS!L33*$E48 -> 0 | O48: =AN_EMIS!M33*$E48 -> 0 | P48: =AN_EMIS!N33*$E48 -> 0 | Q48: =AN_EMIS!O33*$E48 -> 0 | R48: =AN_EMIS!P33*$E48 -> 0 | S48: =AN_EMIS!Q33*$E48 -> 0 | T48: =AN_EMIS!R33*$E48 -> 0 | U48: =AN_EMIS!S33*$E48 -> 0 | V48: =AN_EMIS!T33*$E48 -> 0 | W48: =AN_EMIS!U33*$E48 -> 0 | X48: =AN_EMIS!V33*$E48 -> 0 | Y48: =AN_EMIS!W33*$E48 -> 0 | Z48: =AN_EMIS!X33*$E48 -> 0 | AA48: =AN_EMIS!Y33*$E48 -> 0 | AB48: =AN_EMIS!Z33*$E48 -> 0 | AC48: =AN_EMIS!AA33*$E48 -> 0 | AD48: =AN_EMIS!AB33*$E48 -> 0 | AE48: =AN_EMIS!AC33*$E48 -> 0 | AF48: =AN_EMIS!AD33*$E48 -> 0 | AG48: =AN_EMIS!AE33*$E48 -> 0 | AH48: =AN_EMIS!AF33*$E48 -> 0 | AI48: =AN_EMIS!AG33*$E48 -> 0 | AJ48: =AN_EMIS!AH33*$E48 -> 0 | AK48: =AN_EMIS!AI33*$E48 -> 0 | AL48: =AN_EMIS!AJ33*$E48 -> 0 | AM48: =AN_EMIS!AK33*$E48 -> 0 | AN48: =AN_EMIS!AL33*$E48 -> 0 | AO48: =AN_EMIS!AM33*$E48 -> 0 | AP48: =AN_EMIS!AN33*$E48 -> 0 | AQ48: =AN_EMIS!AO33*$E48 -> 0 | AR48: =AN_EMIS!AP33*$E48 -> 0 | AS48: =AN_EMIS!AQ33*$E48 -> 0 | AT48: =AN_EMIS!AR33*$E48 -> 0 | AU48: =AN_EMIS!AS33*$E48 -> 0 | AV48: =AN_EMIS!AT33*$E48 -> 0 | AW48: =AN_EMIS!AU33*$E48 -> 0 | AX48: =AN_EMIS!AV33*$E48 -> 0 | AY48: =AN_EMIS!AW33*$E48 -> 0 | AZ48: =AN_EMIS!AX33*$E48 -> 0 | BA48: =AN_EMIS!AY33*$E48 -> 0 | BB48: =AN_EMIS!AZ33*$E48 -> 0 | BC48: =AN_EMIS!BA33*$E48 -> 0 | BD48: =AN_EMIS!BB33*$E48 -> 0 | BE48: =AN_EMIS!BC33*$E48 -> 0 | BF48: =AN_EMIS!BD33*$E48 -> 0 | BG48: =AN_EMIS!BE33*$E48 -> 0 | BH48: =AN_EMIS!BF33*$E48 -> 0 | BI48: =AN_EMIS!BG33*$E48 -> 0 | BJ48: =AN_EMIS!BH33*$E48 -> 0 | BK48: =AN_EMIS!BI33*$E48 -> 0 | BL48: =AN_EMIS!BJ33*$E48 -> 0
A49: 30 | B49: =AN_EMIS!B34 -> 206-44-0 | C49: =IF(B49=0,".",AN_EMIS!C34) -> Fluoranthene | D49: =IF(B49=0,0,VLOOKUP(B49,RBC_Table!$A$10:$I$270,$A$3,)) -> 0.00053 | E49: 1886.792453 | F49: =AN_EMIS!D34*$E49 -> 0 | G49: =AN_EMIS!E34*$E49 -> 0 | H49: =AN_EMIS!F34*$E49 -> 0 | I49: =AN_EMIS!G34*$E49 -> 0 | J49: =AN_EMIS!H34*$E49 -> 0 | K49: =AN_EMIS!I34*$E49 -> 0 | L49: =AN_EMIS!J34*$E49 -> 0 | M49: =AN_EMIS!K34*$E49 -> 0 | N49: =AN_EMIS!L34*$E49 -> 0 | O49: =AN_EMIS!M34*$E49 -> 0 | P49: =AN_EMIS!N34*$E49 -> 0 | Q49: =AN_EMIS!O34*$E49 -> 0 | R49: =AN_EMIS!P34*$E49 -> 0 | S49: =AN_EMIS!Q34*$E49 -> 0 | T49: =AN_EMIS!R34*$E49 -> 0 | U49: =AN_EMIS!S34*$E49 -> 0 | V49: =AN_EMIS!T34*$E49 -> 0 | W49: =AN_EMIS!U34*$E49 -> 0 | X49: =AN_EMIS!V34*$E49 -> 0 | Y49: =AN_EMIS!W34*$E49 -> 0 | Z49: =AN_EMIS!X34*$E49 -> 0 | AA49: =AN_EMIS!Y34*$E49 -> 0 | AB49: =AN_EMIS!Z34*$E49 -> 0 | AC49: =AN_EMIS!AA34*$E49 -> 0 | AD49: =AN_EMIS!AB34*$E49 -> 0 | AE49: =AN_EMIS!AC34*$E49 -> 0 | AF49: =AN_EMIS!AD34*$E49 -> 0 | AG49: =AN_EMIS!AE34*$E49 -> 0 | AH49: =AN_EMIS!AF34*$E49 -> 0 | AI49: =AN_EMIS!AG34*$E49 -> 0 | AJ49: =AN_EMIS!AH34*$E49 -> 0 | AK49: =AN_EMIS!AI34*$E49 -> 0 | AL49: =AN_EMIS!AJ34*$E49 -> 0 | AM49: =AN_EMIS!AK34*$E49 -> 0 | AN49: =AN_EMIS!AL34*$E49 -> 0 | AO49: =AN_EMIS!AM34*$E49 -> 0 | AP49: =AN_EMIS!AN34*$E49 -> 0 | AQ49: =AN_EMIS!AO34*$E49 -> 0 | AR49: =AN_EMIS!AP34*$E49 -> 0 | AS49: =AN_EMIS!AQ34*$E49 -> 0 | AT49: =AN_EMIS!AR34*$E49 -> 0 | AU49: =AN_EMIS!AS34*$E49 -> 0 | AV49: =AN_EMIS!AT34*$E49 -> 0 | AW49: =AN_EMIS!AU34*$E49 -> 0 | AX49: =AN_EMIS!AV34*$E49 -> 0 | AY49: =AN_EMIS!AW34*$E49 -> 0 | AZ49: =AN_EMIS!AX34*$E49 -> 0 | BA49: =AN_EMIS!AY34*$E49 -> 0 | BB49: =AN_EMIS!AZ34*$E49 -> 0 | BC49: =AN_EMIS!BA34*$E49 -> 0 | BD49: =AN_EMIS!BB34*$E49 -> 0 | BE49: =AN_EMIS!BC34*$E49 -> 0 | BF49: =AN_EMIS!BD34*$E49 -> 0 | BG49: =AN_EMIS!BE34*$E49 -> 0 | BH49: =AN_EMIS!BF34*$E49 -> 0 | BI49: =AN_EMIS!BG34*$E49 -> 0 | BJ49: =AN_EMIS!BH34*$E49 -> 0 | BK49: =AN_EMIS!BI34*$E49 -> 0 | BL49: =AN_EMIS!BJ34*$E49 -> 0
A50: 31 | B50: =AN_EMIS!B35 -> 193-39-5 | C50: =IF(B50=0,".",AN_EMIS!C35) -> Indeno[1,2,3-cd]pyrene | D50: =IF(B50=0,0,VLOOKUP(B50,RBC_Table!$A$10:$I$270,$A$3,)) -> 0.00061 | E50: 1639.344262 | F50: =AN_EMIS!D35*$E50 -> 0 | G50: =AN_EMIS!E35*$E50 -> 0 | H50: =AN_EMIS!F35*$E50 -> 0 | I50: =AN_EMIS!G35*$E50 -> 0 | J50: =AN_EMIS!H35*$E50 -> 0 | K50: =AN_EMIS!I35*$E50 -> 0 | L50: =AN_EMIS!J35*$E50 -> 0 | M50: =AN_EMIS!K35*$E50 -> 0 | N50: =AN_EMIS!L35*$E50 -> 0 | O50: =AN_EMIS!M35*$E50 -> 0 | P50: =AN_EMIS!N35*$E50 -> 0 | Q50: =AN_EMIS!O35*$E50 -> 0 | R50: =AN_EMIS!P35*$E50 -> 0 | S50: =AN_EMIS!Q35*$E50 -> 0 | T50: =AN_EMIS!R35*$E50 -> 0 | U50: =AN_EMIS!S35*$E50 -> 0 | V50: =AN_EMIS!T35*$E50 -> 0 | W50: =AN_EMIS!U35*$E50 -> 0 | X50: =AN_EMIS!V35*$E50 -> 0 | Y50: =AN_EMIS!W35*$E50 -> 0 | Z50: =AN_EMIS!X35*$E50 -> 0 | AA50: =AN_EMIS!Y35*$E50 -> 0 | AB50: =AN_EMIS!Z35*$E50 -> 0 | AC50: =AN_EMIS!AA35*$E50 -> 0 | AD50: =AN_EMIS!AB35*$E50 -> 0 | AE50: =AN_EMIS!AC35*$E50 -> 0 | AF50: =AN_EMIS!AD35*$E50 -> 0 | AG50: =AN_EMIS!AE35*$E50 -> 0 | AH50: =AN_EMIS!AF35*$E50 -> 0 | AI50: =AN_EMIS!AG35*$E50 -> 0 | AJ50: =AN_EMIS!AH35*$E50 -> 0 | AK50: =AN_EMIS!AI35*$E50 -> 0 | AL50: =AN_EMIS!AJ35*$E50 -> 0 | AM50: =AN_EMIS!AK35*$E50 -> 0 | AN50: =AN_EMIS!AL35*$E50 -> 0 | AO50: =AN_EMIS!AM35*$E50 -> 0 | AP50: =AN_EMIS!AN35*$E50 -> 0 | AQ50: =AN_EMIS!AO35*$E50 -> 0 | AR50: =AN_EMIS!AP35*$E50 -> 0 | AS50: =AN_EMIS!AQ35*$E50 -> 0 | AT50: =AN_EMIS!AR35*$E50 -> 0 | AU50: =AN_EMIS!AS35*$E50 -> 0 | AV50: =AN_EMIS!AT35*$E50 -> 0 | AW50: =AN_EMIS!AU35*$E50 -> 0 | AX50: =AN_EMIS!AV35*$E50 -> 0 | AY50: =AN_EMIS!AW35*$E50 -> 0 | AZ50: =AN_EMIS!AX35*$E50 -> 0 | BA50: =AN_EMIS!AY35*$E50 -> 0 | BB50: =AN_EMIS!AZ35*$E50 -> 0 | BC50: =AN_EMIS!BA35*$E50 -> 0 | BD50: =AN_EMIS!BB35*$E50 -> 0 | BE50: =AN_EMIS!BC35*$E50 -> 0 | BF50: =AN_EMIS!BD35*$E50 -> 0 | BG50: =AN_EMIS!BE35*$E50 -> 0 | BH50: =AN_EMIS!BF35*$E50 -> 0 | BI50: =AN_EMIS!BG35*$E50 -> 0 | BJ50: =AN_EMIS!BH35*$E50 -> 0 | BK50: =AN_EMIS!BI35*$E50 -> 0 | BL50: =AN_EMIS!BJ35*$E50 -> 0
A51: 32 | B51: =AN_EMIS!B36 -> 7782-49-2 | C51: =IF(B51=0,".",AN_EMIS!C36) -> Selenium and compounds | D51: =IF(B51=0,0,VLOOKUP(B51,RBC_Table!$A$10:$I$270,$A$3,)) -> -- | E51: 0 | F51: =AN_EMIS!D36*$E51 -> 0 | G51: =AN_EMIS!E36*$E51 -> 0 | H51: =AN_EMIS!F36*$E51 -> 0 | I51: =AN_EMIS!G36*$E51 -> 0 | J51: =AN_EMIS!H36*$E51 -> 0 | K51: =AN_EMIS!I36*$E51 -> 0 | L51: =AN_EMIS!J36*$E51 -> 0 | M51: =AN_EMIS!K36*$E51 -> 0 | N51: =AN_EMIS!L36*$E51 -> 0 | O51: =AN_EMIS!M36*$E51 -> 0 | P51: =AN_EMIS!N36*$E51 -> 0 | Q51: =AN_EMIS!O36*$E51 -> 0 | R51: =AN_EMIS!P36*$E51 -> 0 | S51: =AN_EMIS!Q36*$E51 -> 0 | T51: =AN_EMIS!R36*$E51 -> 0 | U51: =AN_EMIS!S36*$E51 -> 0 | V51: =AN_EMIS!T36*$E51 -> 0 | W51: =AN_EMIS!U36*$E51 -> 0 | X51: =AN_EMIS!V36*$E51 -> 0 | Y51: =AN_EMIS!W36*$E51 -> 0 | Z51: =AN_EMIS!X36*$E51 -> 0 | AA51: =AN_EMIS!Y36*$E51 -> 0 | AB51: =AN_EMIS!Z36*$E51 -> 0 | AC51: =AN_EMIS!AA36*$E51 -> 0 | AD51: =AN_EMIS!AB36*$E51 -> 0 | AE51: =AN_EMIS!AC36*$E51 -> 0 | AF51: =AN_EMIS!AD36*$E51 -> 0 | AG51: =AN_EMIS!AE36*$E51 -> 0 | AH51: =AN_EMIS!AF36*$E51 -> 0 | AI51: =AN_EMIS!AG36*$E51 -> 0 | AJ51: =AN_EMIS!AH36*$E51 -> 0 | AK51: =AN_EMIS!AI36*$E51 -> 0 | AL51: =AN_EMIS!AJ36*$E51 -> 0 | AM51: =AN_EMIS!AK36*$E51 -> 0 | AN51: =AN_EMIS!AL36*$E51 -> 0 | AO51: =AN_EMIS!AM36*$E51 -> 0 | AP51: =AN_EMIS!AN36*$E51 -> 0 | AQ51: =AN_EMIS!AO36*$E51 -> 0 | AR51: =AN_EMIS!AP36*$E51 -> 0 | AS51: =AN_EMIS!AQ36*$E51 -> 0 | AT51: =AN_EMIS!AR36*$E51 -> 0 | AU51: =AN_EMIS!AS36*$E51 -> 0 | AV51: =AN_EMIS!AT36*$E51 -> 0 | AW51: =AN_EMIS!AU36*$E51 -> 0 | AX51: =AN_EMIS!AV36*$E51 -> 0 | AY51: =AN_EMIS!AW36*$E51 -> 0 | AZ51: =AN_EMIS!AX36*$E51 -> 0 | BA51: =AN_EMIS!AY36*$E51 -> 0 | BB51: =AN_EMIS!AZ36*$E51 -> 0 | BC51: =AN_EMIS!BA36*$E51 -> 0 | BD51: =AN_EMIS!BB36*$E51 -> 0 | BE51: =AN_EMIS!BC36*$E51 -> 0 | BF51: =AN_EMIS!BD36*$E51 -> 0 | BG51: =AN_EMIS!BE36*$E51 -> 0 | BH51: =AN_EMIS!BF36*$E51 -> 0 | BI51: =AN_EMIS!BG36*$E51 -> 0 | BJ51: =AN_EMIS!BH36*$E51 -> 0 | BK51: =AN_EMIS!BI36*$E51 -> 0 | BL51: =AN_EMIS!BJ36*$E51 -> 0
A52: 33 | B52: =AN_EMIS!B37 -> 7631-86-9 | C52: =IF(B52=0,".",AN_EMIS!C37) -> Silica, crystalline (respirable) | D52: =IF(B52=0,0,VLOOKUP(B52,RBC_Table!$A$10:$I$270,$A$3,)) -> -- | E52: 0 | F52: =AN_EMIS!D37*$E52 -> 0 | G52: =AN_EMIS!E37*$E52 -> 0 | H52: =AN_EMIS!F37*$E52 -> 0 | I52: =AN_EMIS!G37*$E52 -> 0 | J52: =AN_EMIS!H37*$E52 -> 0 | K52: =AN_EMIS!I37*$E52 -> 0 | L52: =AN_EMIS!J37*$E52 -> 0 | M52: =AN_EMIS!K37*$E52 -> 0 | N52: =AN_EMIS!L37*$E52 -> 0 | O52: =AN_EMIS!M37*$E52 -> 0 | P52: =AN_EMIS!N37*$E52 -> 0 | Q52: =AN_EMIS!O37*$E52 -> 0 | R52: =AN_EMIS!P37*$E52 -> 0 | S52: =AN_EMIS!Q37*$E52 -> 0 | T52: =AN_EMIS!R37*$E52 -> 0 | U52: =AN_EMIS!S37*$E52 -> 0 | V52: =AN_EMIS!T37*$E52 -> 0 | W52: =AN_EMIS!U37*$E52 -> 0 | X52: =AN_EMIS!V37*$E52 -> 0 | Y52: =AN_EMIS!W37*$E52 -> 0 | Z52: =AN_EMIS!X37*$E52 -> 0 | AA52: =AN_EMIS!Y37*$E52 -> 0 | AB52: =AN_EMIS!Z37*$E52 -> 0 | AC52: =AN_EMIS!AA37*$E52 -> 0 | AD52: =AN_EMIS!AB37*$E52 -> 0 | AE52: =AN_EMIS!AC37*$E52 -> 0 | AF52: =AN_EMIS!AD37*$E52 -> 0 | AG52: =AN_EMIS!AE37*$E52 -> 0 | AH52: =AN_EMIS!AF37*$E52 -> 0 | AI52: =AN_EMIS!AG37*$E52 -> 0 | AJ52: =AN_EMIS!AH37*$E52 -> 0 | AK52: =AN_EMIS!AI37*$E52 -> 0 | AL52: =AN_EMIS!AJ37*$E52 -> 0 | AM52: =AN_EMIS!AK37*$E52 -> 0 | AN52: =AN_EMIS!AL37*$E52 -> 0 | AO52: =AN_EMIS!AM37*$E52 -> 0 | AP52: =AN_EMIS!AN37*$E52 -> 0 | AQ52: =AN_EMIS!AO37*$E52 -> 0 | AR52: =AN_EMIS!AP37*$E52 -> 0 | AS52: =AN_EMIS!AQ37*$E52 -> 0 | AT52: =AN_EMIS!AR37*$E52 -> 0 | AU52: =AN_EMIS!AS37*$E52 -> 0 | AV52: =AN_EMIS!AT37*$E52 -> 0 | AW52: =AN_EMIS!AU37*$E52 -> 0 | AX52: =AN_EMIS!AV37*$E52 -> 0 | AY52: =AN_EMIS!AW37*$E52 -> 0 | AZ52: =AN_EMIS!AX37*$E52 -> 0 | BA52: =AN_EMIS!AY37*$E52 -> 0 | BB52: =AN_EMIS!AZ37*$E52 -> 0 | BC52: =AN_EMIS!BA37*$E52 -> 0 | BD52: =AN_EMIS!BB37*$E52 -> 0 | BE52: =AN_EMIS!BC37*$E52 -> 0 | BF52: =AN_EMIS!BD37*$E52 -> 0 | BG52: =AN_EMIS!BE37*$E52 -> 0 | BH52: =AN_EMIS!BF37*$E52 -> 0 | BI52: =AN_EMIS!BG37*$E52 -> 0 | BJ52: =AN_EMIS!BH37*$E52 -> 0 | BK52: =AN_EMIS!BI37*$E52 -> 0 | BL52: =AN_EMIS!BJ37*$E52 -> 0
A53: 34 | B53: =AN_EMIS!B38 -> 1310-73-2 | C53: =IF(B53=0,".",AN_EMIS!C38) -> Sodium hydroxide | D53: =IF(B53=0,0,VLOOKUP(B53,RBC_Table!$A$10:$I$270,$A$3,)) -> -- | E53: 0 | F53: =AN_EMIS!D38*$E53 -> 0 | G53: =AN_EMIS!E38*$E53 -> 0 | H53: =AN_EMIS!F38*$E53 -> 0 | I53: =AN_EMIS!G38*$E53 -> 0 | J53: =AN_EMIS!H38*$E53 -> 0 | K53: =AN_EMIS!I38*$E53 -> 0 | L53: =AN_EMIS!J38*$E53 -> 0 | M53: =AN_EMIS!K38*$E53 -> 0 | N53: =AN_EMIS!L38*$E53 -> 0 | O53: =AN_EMIS!M38*$E53 -> 0 | P53: =AN_EMIS!N38*$E53 -> 0 | Q53: =AN_EMIS!O38*$E53 -> 0 | R53: =AN_EMIS!P38*$E53 -> 0 | S53: =AN_EMIS!Q38*$E53 -> 0 | T53: =AN_EMIS!R38*$E53 -> 0 | U53: =AN_EMIS!S38*$E53 -> 0 | V53: =AN_EMIS!T38*$E53 -> 0 | W53: =AN_EMIS!U38*$E53 -> 0 | X53: =AN_EMIS!V38*$E53 -> 0 | Y53: =AN_EMIS!W38*$E53 -> 0 | Z53: =AN_EMIS!X38*$E53 -> 0 | AA53: =AN_EMIS!Y38*$E53 -> 0 | AB53: =AN_EMIS!Z38*$E53 -> 0 | AC53: =AN_EMIS!AA38*$E53 -> 0 | AD53: =AN_EMIS!AB38*$E53 -> 0 | AE53: =AN_EMIS!AC38*$E53 -> 0 | AF53: =AN_EMIS!AD38*$E53 -> 0 | AG53: =AN_EMIS!AE38*$E53 -> 0 | AH53: =AN_EMIS!AF38*$E53 -> 0 | AI53: =AN_EMIS!AG38*$E53 -> 0 | AJ53: =AN_EMIS!AH38*$E53 -> 0 | AK53: =AN_EMIS!AI38*$E53 -> 0 | AL53: =AN_EMIS!AJ38*$E53 -> 0 | AM53: =AN_EMIS!AK38*$E53 -> 0 | AN53: =AN_EMIS!AL38*$E53 -> 0 | AO53: =AN_EMIS!AM38*$E53 -> 0 | AP53: =AN_EMIS!AN38*$E53 -> 0 | AQ53: =AN_EMIS!AO38*$E53 -> 0 | AR53: =AN_EMIS!AP38*$E53 -> 0 | AS53: =AN_EMIS!AQ38*$E53 -> 0 | AT53: =AN_EMIS!AR38*$E53 -> 0 | AU53: =AN_EMIS!AS38*$E53 -> 0 | AV53: =AN_EMIS!AT38*$E53 -> 0 | AW53: =AN_EMIS!AU38*$E53 -> 0 | AX53: =AN_EMIS!AV38*$E53 -> 0 | AY53: =AN_EMIS!AW38*$E53 -> 0 | AZ53: =AN_EMIS!AX38*$E53 -> 0 | BA53: =AN_EMIS!AY38*$E53 -> 0 | BB53: =AN_EMIS!AZ38*$E53 -> 0 | BC53: =AN_EMIS!BA38*$E53 -> 0 | BD53: =AN_EMIS!BB38*$E53 -> 0 | BE53: =AN_EMIS!BC38*$E53 -> 0 | BF53: =AN_EMIS!BD38*$E53 -> 0 | BG53: =AN_EMIS!BE38*$E53 -> 0 | BH53: =AN_EMIS!BF38*$E53 -> 0 | BI53: =AN_EMIS!BG38*$E53 -> 0 | BJ53: =AN_EMIS!BH38*$E53 -> 0 | BK53: =AN_EMIS!BI38*$E53 -> 0 | BL53: =AN_EMIS!BJ38*$E53 -> 0
A54: 35 | B54: =AN_EMIS!B39 -> 108-88-3 | C54: =IF(B54=0,".",AN_EMIS!C39) -> Toluene | D54: =IF(B54=0,0,VLOOKUP(B54,RBC_Table!$A$10:$I$270,$A$3,)) -> -- | E54: 0 | F54: =AN_EMIS!D39*$E54 -> 0 | G54: =AN_EMIS!E39*$E54 -> 0 | H54: =AN_EMIS!F39*$E54 -> 0 | I54: =AN_EMIS!G39*$E54 -> 0 | J54: =AN_EMIS!H39*$E54 -> 0 | K54: =AN_EMIS!I39*$E54 -> 0 | L54: =AN_EMIS!J39*$E54 -> 0 | M54: =AN_EMIS!K39*$E54 -> 0 | N54: =AN_EMIS!L39*$E54 -> 0 | O54: =AN_EMIS!M39*$E54 -> 0 | P54: =AN_EMIS!N39*$E54 -> 0 | Q54: =AN_EMIS!O39*$E54 -> 0 | R54: =AN_EMIS!P39*$E54 -> 0 | S54: =AN_EMIS!Q39*$E54 -> 0 | T54: =AN_EMIS!R39*$E54 -> 0 | U54: =AN_EMIS!S39*$E54 -> 0 | V54: =AN_EMIS!T39*$E54 -> 0 | W54: =AN_EMIS!U39*$E54 -> 0 | X54: =AN_EMIS!V39*$E54 -> 0 | Y54: =AN_EMIS!W39*$E54 -> 0 | Z54: =AN_EMIS!X39*$E54 -> 0 | AA54: =AN_EMIS!Y39*$E54 -> 0 | AB54: =AN_EMIS!Z39*$E54 -> 0 | AC54: =AN_EMIS!AA39*$E54 -> 0 | AD54: =AN_EMIS!AB39*$E54 -> 0 | AE54: =AN_EMIS!AC39*$E54 -> 0 | AF54: =AN_EMIS!AD39*$E54 -> 0 | AG54: =AN_EMIS!AE39*$E54 -> 0 | AH54: =AN_EMIS!AF39*$E54 -> 0 | AI54: =AN_EMIS!AG39*$E54 -> 0 | AJ54: =AN_EMIS!AH39*$E54 -> 0 | AK54: =AN_EMIS!AI39*$E54 -> 0 | AL54: =AN_EMIS!AJ39*$E54 -> 0 | AM54: =AN_EMIS!AK39*$E54 -> 0 | AN54: =AN_EMIS!AL39*$E54 -> 0 | AO54: =AN_EMIS!AM39*$E54 -> 0 | AP54: =AN_EMIS!AN39*$E54 -> 0 | AQ54: =AN_EMIS!AO39*$E54 -> 0 | AR54: =AN_EMIS!AP39*$E54 -> 0 | AS54: =AN_EMIS!AQ39*$E54 -> 0 | AT54: =AN_EMIS!AR39*$E54 -> 0 | AU54: =AN_EMIS!AS39*$E54 -> 0 | AV54: =AN_EMIS!AT39*$E54 -> 0 | AW54: =AN_EMIS!AU39*$E54 -> 0 | AX54: =AN_EMIS!AV39*$E54 -> 0 | AY54: =AN_EMIS!AW39*$E54 -> 0 | AZ54: =AN_EMIS!AX39*$E54 -> 0 | BA54: =AN_EMIS!AY39*$E54 -> 0 | BB54: =AN_EMIS!AZ39*$E54 -> 0 | BC54: =AN_EMIS!BA39*$E54 -> 0 | BD54: =AN_EMIS!BB39*$E54 -> 0 | BE54: =AN_EMIS!BC39*$E54 -> 0 | BF54: =AN_EMIS!BD39*$E54 -> 0 | BG54: =AN_EMIS!BE39*$E54 -> 0 | BH54: =AN_EMIS!BF39*$E54 -> 0 | BI54: =AN_EMIS!BG39*$E54 -> 0 | BJ54: =AN_EMIS!BH39*$E54 -> 0 | BK54: =AN_EMIS!BI39*$E54 -> 0 | BL54: =AN_EMIS!BJ39*$E54 -> 0
A55: 36 | B55: =AN_EMIS!B40 -> 7440-62-2 | C55: =IF(B55=0,".",AN_EMIS!C40) -> Vanadium (fume or dust) | D55: =IF(B55=0,0,VLOOKUP(B55,RBC_Table!$A$10:$I$270,$A$3,)) -> -- | E55: 0 | F55: =AN_EMIS!D40*$E55 -> 0 | G55: =AN_EMIS!E40*$E55 -> 0 | H55: =AN_EMIS!F40*$E55 -> 0 | I55: =AN_EMIS!G40*$E55 -> 0 | J55: =AN_EMIS!H40*$E55 -> 0 | K55: =AN_EMIS!I40*$E55 -> 0 | L55: =AN_EMIS!J40*$E55 -> 0 | M55: =AN_EMIS!K40*$E55 -> 0 | N55: =AN_EMIS!L40*$E55 -> 0 | O55: =AN_EMIS!M40*$E55 -> 0 | P55: =AN_EMIS!N40*$E55 -> 0 | Q55: =AN_EMIS!O40*$E55 -> 0 | R55: =AN_EMIS!P40*$E55 -> 0 | S55: =AN_EMIS!Q40*$E55 -> 0 | T55: =AN_EMIS!R40*$E55 -> 0 | U55: =AN_EMIS!S40*$E55 -> 0 | V55: =AN_EMIS!T40*$E55 -> 0 | W55: =AN_EMIS!U40*$E55 -> 0 | X55: =AN_EMIS!V40*$E55 -> 0 | Y55: =AN_EMIS!W40*$E55 -> 0 | Z55: =AN_EMIS!X40*$E55 -> 0 | AA55: =AN_EMIS!Y40*$E55 -> 0 | AB55: =AN_EMIS!Z40*$E55 -> 0 | AC55: =AN_EMIS!AA40*$E55 -> 0 | AD55: =AN_EMIS!AB40*$E55 -> 0 | AE55: =AN_EMIS!AC40*$E55 -> 0 | AF55: =AN_EMIS!AD40*$E55 -> 0 | AG55: =AN_EMIS!AE40*$E55 -> 0 | AH55: =AN_EMIS!AF40*$E55 -> 0 | AI55: =AN_EMIS!AG40*$E55 -> 0 | AJ55: =AN_EMIS!AH40*$E55 -> 0 | AK55: =AN_EMIS!AI40*$E55 -> 0 | AL55: =AN_EMIS!AJ40*$E55 -> 0 | AM55: =AN_EMIS!AK40*$E55 -> 0 | AN55: =AN_EMIS!AL40*$E55 -> 0 | AO55: =AN_EMIS!AM40*$E55 -> 0 | AP55: =AN_EMIS!AN40*$E55 -> 0 | AQ55: =AN_EMIS!AO40*$E55 -> 0 | AR55: =AN_EMIS!AP40*$E55 -> 0 | AS55: =AN_EMIS!AQ40*$E55 -> 0 | AT55: =AN_EMIS!AR40*$E55 -> 0 | AU55: =AN_EMIS!AS40*$E55 -> 0 | AV55: =AN_EMIS!AT40*$E55 -> 0 | AW55: =AN_EMIS!AU40*$E55 -> 0 | AX55: =AN_EMIS!AV40*$E55 -> 0 | AY55: =AN_EMIS!AW40*$E55 -> 0 | AZ55: =AN_EMIS!AX40*$E55 -> 0 | BA55: =AN_EMIS!AY40*$E55 -> 0 | BB55: =AN_EMIS!AZ40*$E55 -> 0 | BC55: =AN_EMIS!BA40*$E55 -> 0 | BD55: =AN_EMIS!BB40*$E55 -> 0 | BE55: =AN_EMIS!BC40*$E55 -> 0 | BF55: =AN_EMIS!BD40*$E55 -> 0 | BG55: =AN_EMIS!BE40*$E55 -> 0 | BH55: =AN_EMIS!BF40*$E55 -> 0 | BI55: =AN_EMIS!BG40*$E55 -> 0 | BJ55: =AN_EMIS!BH40*$E55 -> 0 | BK55: =AN_EMIS!BI40*$E55 -> 0 | BL55: =AN_EMIS!BJ40*$E55 -> 0
A56: 37 | B56: =AN_EMIS!B41 -> 1330-20-7 | C56: =IF(B56=0,".",AN_EMIS!C41) -> Xylene (mixture), including m-xylene, o-xylene, p-xylene | D56: =IF(B56=0,0,VLOOKUP(B56,RBC_Table!$A$10:$I$270,$A$3,)) -> -- | E56: 0 | F56: =AN_EMIS!D41*$E56 -> 0 | G56: =AN_EMIS!E41*$E56 -> 0 | H56: =AN_EMIS!F41*$E56 -> 0 | I56: =AN_EMIS!G41*$E56 -> 0 | J56: =AN_EMIS!H41*$E56 -> 0 | K56: =AN_EMIS!I41*$E56 -> 0 | L56: =AN_EMIS!J41*$E56 -> 0 | M56: =AN_EMIS!K41*$E56 -> 0 | N56: =AN_EMIS!L41*$E56 -> 0 | O56: =AN_EMIS!M41*$E56 -> 0 | P56: =AN_EMIS!N41*$E56 -> 0 | Q56: =AN_EMIS!O41*$E56 -> 0 | R56: =AN_EMIS!P41*$E56 -> 0 | S56: =AN_EMIS!Q41*$E56 -> 0 | T56: =AN_EMIS!R41*$E56 -> 0 | U56: =AN_EMIS!S41*$E56 -> 0 | V56: =AN_EMIS!T41*$E56 -> 0 | W56: =AN_EMIS!U41*$E56 -> 0 | X56: =AN_EMIS!V41*$E56 -> 0 | Y56: =AN_EMIS!W41*$E56 -> 0 | Z56: =AN_EMIS!X41*$E56 -> 0 | AA56: =AN_EMIS!Y41*$E56 -> 0 | AB56: =AN_EMIS!Z41*$E56 -> 0 | AC56: =AN_EMIS!AA41*$E56 -> 0 | AD56: =AN_EMIS!AB41*$E56 -> 0 | AE56: =AN_EMIS!AC41*$E56 -> 0 | AF56: =AN_EMIS!AD41*$E56 -> 0 | AG56: =AN_EMIS!AE41*$E56 -> 0 | AH56: =AN_EMIS!AF41*$E56 -> 0 | AI56: =AN_EMIS!AG41*$E56 -> 0 | AJ56: =AN_EMIS!AH41*$E56 -> 0 | AK56: =AN_EMIS!AI41*$E56 -> 0 | AL56: =AN_EMIS!AJ41*$E56 -> 0 | AM56: =AN_EMIS!AK41*$E56 -> 0 | AN56: =AN_EMIS!AL41*$E56 -> 0 | AO56: =AN_EMIS!AM41*$E56 -> 0 | AP56: =AN_EMIS!AN41*$E56 -> 0 | AQ56: =AN_EMIS!AO41*$E56 -> 0 | AR56: =AN_EMIS!AP41*$E56 -> 0 | AS56: =AN_EMIS!AQ41*$E56 -> 0 | AT56: =AN_EMIS!AR41*$E56 -> 0 | AU56: =AN_EMIS!AS41*$E56 -> 0 | AV56: =AN_EMIS!AT41*$E56 -> 0 | AW56: =AN_EMIS!AU41*$E56 -> 0 | AX56: =AN_EMIS!AV41*$E56 -> 0 | AY56: =AN_EMIS!AW41*$E56 -> 0 | AZ56: =AN_EMIS!AX41*$E56 -> 0 | BA56: =AN_EMIS!AY41*$E56 -> 0 | BB56: =AN_EMIS!AZ41*$E56 -> 0 | BC56: =AN_EMIS!BA41*$E56 -> 0 | BD56: =AN_EMIS!BB41*$E56 -> 0 | BE56: =AN_EMIS!BC41*$E56 -> 0 | BF56: =AN_EMIS!BD41*$E56 -> 0 | BG56: =AN_EMIS!BE41*$E56 -> 0 | BH56: =AN_EMIS!BF41*$E56 -> 0 | BI56: =AN_EMIS!BG41*$E56 -> 0 | BJ56: =AN_EMIS!BH41*$E56 -> 0 | BK56: =AN_EMIS!BI41*$E56 -> 0 | BL56: =AN_EMIS!BJ41*$E56 -> 0
A57: 38 | B57: =AN_EMIS!B42 -> 0 | C57: =IF(B57=0,".",AN_EMIS!C42) -> . | D57: =IF(B57=0,0,VLOOKUP(B57,RBC_Table!$A$10:$I$270,$A$3,)) -> 0 | E57: 0 | F57: =AN_EMIS!D42*$E57 -> 0 | G57: =AN_EMIS!E42*$E57 -> 0 | H57: =AN_EMIS!F42*$E57 -> 0 | I57: =AN_EMIS!G42*$E57 -> 0 | J57: =AN_EMIS!H42*$E57 -> 0 | K57: =AN_EMIS!I42*$E57 -> 0 | L57: =AN_EMIS!J42*$E57 -> 0 | M57: =AN_EMIS!K42*$E57 -> 0 | N57: =AN_EMIS!L42*$E57 -> 0 | O57: =AN_EMIS!M42*$E57 -> 0 | P57: =AN_EMIS!N42*$E57 -> 0 | Q57: =AN_EMIS!O42*$E57 -> 0 | R57: =AN_EMIS!P42*$E57 -> 0 | S57: =AN_EMIS!Q42*$E57 -> 0 | T57: =AN_EMIS!R42*$E57 -> 0 | U57: =AN_EMIS!S42*$E57 -> 0 | V57: =AN_EMIS!T42*$E57 -> 0 | W57: =AN_EMIS!U42*$E57 -> 0 | X57: =AN_EMIS!V42*$E57 -> 0 | Y57: =AN_EMIS!W42*$E57 -> 0 | Z57: =AN_EMIS!X42*$E57 -> 0 | AA57: =AN_EMIS!Y42*$E57 -> 0 | AB57: =AN_EMIS!Z42*$E57 -> 0 | AC57: =AN_EMIS!AA42*$E57 -> 0 | AD57: =AN_EMIS!AB42*$E57 -> 0 | AE57: =AN_EMIS!AC42*$E57 -> 0 | AF57: =AN_EMIS!AD42*$E57 -> 0 | AG57: =AN_EMIS!AE42*$E57 -> 0 | AH57: =AN_EMIS!AF42*$E57 -> 0 | AI57: =AN_EMIS!AG42*$E57 -> 0 | AJ57: =AN_EMIS!AH42*$E57 -> 0 | AK57: =AN_EMIS!AI42*$E57 -> 0 | AL57: =AN_EMIS!AJ42*$E57 -> 0 | AM57: =AN_EMIS!AK42*$E57 -> 0 | AN57: =AN_EMIS!AL42*$E57 -> 0 | AO57: =AN_EMIS!AM42*$E57 -> 0 | AP57: =AN_EMIS!AN42*$E57 -> 0 | AQ57: =AN_EMIS!AO42*$E57 -> 0 | AR57: =AN_EMIS!AP42*$E57 -> 0 | AS57: =AN_EMIS!AQ42*$E57 -> 0 | AT57: =AN_EMIS!AR42*$E57 -> 0 | AU57: =AN_EMIS!AS42*$E57 -> 0 | AV57: =AN_EMIS!AT42*$E57 -> 0 | AW57: =AN_EMIS!AU42*$E57 -> 0 | AX57: =AN_EMIS!AV42*$E57 -> 0 | AY57: =AN_EMIS!AW42*$E57 -> 0 | AZ57: =AN_EMIS!AX42*$E57 -> 0 | BA57: =AN_EMIS!AY42*$E57 -> 0 | BB57: =AN_EMIS!AZ42*$E57 -> 0 | BC57: =AN_EMIS!BA42*$E57 -> 0 | BD57: =AN_EMIS!BB42*$E57 -> 0 | BE57: =AN_EMIS!BC42*$E57 -> 0 | BF57: =AN_EMIS!BD42*$E57 -> 0 | BG57: =AN_EMIS!BE42*$E57 -> 0 | BH57: =AN_EMIS!BF42*$E57 -> 0 | BI57: =AN_EMIS!BG42*$E57 -> 0 | BJ57: =AN_EMIS!BH42*$E57 -> 0 | BK57: =AN_EMIS!BI42*$E57 -> 0 | BL57: =AN_EMIS!BJ42*$E57 -> 0
A58: 39 | B58: =AN_EMIS!B43 -> 0 | C58: =IF(B58=0,".",AN_EMIS!C43) -> . | D58: =IF(B58=0,0,VLOOKUP(B58,RBC_Table!$A$10:$I$270,$A$3,)) -> 0 | E58: 0 | F58: =AN_EMIS!D43*$E58 -> 0 | G58: =AN_EMIS!E43*$E58 -> 0 | H58: =AN_EMIS!F43*$E58 -> 0 | I58: =AN_EMIS!G43*$E58 -> 0 | J58: =AN_EMIS!H43*$E58 -> 0 | K58: =AN_EMIS!I43*$E58 -> 0 | L58: =AN_EMIS!J43*$E58 -> 0 | M58: =AN_EMIS!K43*$E58 -> 0 | N58: =AN_EMIS!L43*$E58 -> 0 | O58: =AN_EMIS!M43*$E58 -> 0 | P58: =AN_EMIS!N43*$E58 -> 0 | Q58: =AN_EMIS!O43*$E58 -> 0 | R58: =AN_EMIS!P43*$E58 -> 0 | S58: =AN_EMIS!Q43*$E58 -> 0 | T58: =AN_EMIS!R43*$E58 -> 0 | U58: =AN_EMIS!S43*$E58 -> 0 | V58: =AN_EMIS!T43*$E58 -> 0 | W58: =AN_EMIS!U43*$E58 -> 0 | X58: =AN_EMIS!V43*$E58 -> 0 | Y58: =AN_EMIS!W43*$E58 -> 0 | Z58: =AN_EMIS!X43*$E58 -> 0 | AA58: =AN_EMIS!Y43*$E58 -> 0 | AB58: =AN_EMIS!Z43*$E58 -> 0 | AC58: =AN_EMIS!AA43*$E58 -> 0 | AD58: =AN_EMIS!AB43*$E58 -> 0 | AE58: =AN_EMIS!AC43*$E58 -> 0 | AF58: =AN_EMIS!AD43*$E58 -> 0 | AG58: =AN_EMIS!AE43*$E58 -> 0 | AH58: =AN_EMIS!AF43*$E58 -> 0 | AI58: =AN_EMIS!AG43*$E58 -> 0 | AJ58: =AN_EMIS!AH43*$E58 -> 0 | AK58: =AN_EMIS!AI43*$E58 -> 0 | AL58: =AN_EMIS!AJ43*$E58 -> 0 | AM58: =AN_EMIS!AK43*$E58 -> 0 | AN58: =AN_EMIS!AL43*$E58 -> 0 | AO58: =AN_EMIS!AM43*$E58 -> 0 | AP58: =AN_EMIS!AN43*$E58 -> 0 | AQ58: =AN_EMIS!AO43*$E58 -> 0 | AR58: =AN_EMIS!AP43*$E58 -> 0 | AS58: =AN_EMIS!AQ43*$E58 -> 0 | AT58: =AN_EMIS!AR43*$E58 -> 0 | AU58: =AN_EMIS!AS43*$E58 -> 0 | AV58: =AN_EMIS!AT43*$E58 -> 0 | AW58: =AN_EMIS!AU43*$E58 -> 0 | AX58: =AN_EMIS!AV43*$E58 -> 0 | AY58: =AN_EMIS!AW43*$E58 -> 0 | AZ58: =AN_EMIS!AX43*$E58 -> 0 | BA58: =AN_EMIS!AY43*$E58 -> 0 | BB58: =AN_EMIS!AZ43*$E58 -> 0 | BC58: =AN_EMIS!BA43*$E58 -> 0 | BD58: =AN_EMIS!BB43*$E58 -> 0 | BE58: =AN_EMIS!BC43*$E58 -> 0 | BF58: =AN_EMIS!BD43*$E58 -> 0 | BG58: =AN_EMIS!BE43*$E58 -> 0 | BH58: =AN_EMIS!BF43*$E58 -> 0 | BI58: =AN_EMIS!BG43*$E58 -> 0 | BJ58: =AN_EMIS!BH43*$E58 -> 0 | BK58: =AN_EMIS!BI43*$E58 -> 0 | BL58: =AN_EMIS!BJ43*$E58 -> 0
A59: 40 | B59: =AN_EMIS!B44 -> 0 | C59: =IF(B59=0,".",AN_EMIS!C44) -> . | D59: =IF(B59=0,0,VLOOKUP(B59,RBC_Table!$A$10:$I$270,$A$3,)) -> 0 | E59: 0 | F59: =AN_EMIS!D44*$E59 -> 0 | G59: =AN_EMIS!E44*$E59 -> 0 | H59: =AN_EMIS!F44*$E59 -> 0 | I59: =AN_EMIS!G44*$E59 -> 0 | J59: =AN_EMIS!H44*$E59 -> 0 | K59: =AN_EMIS!I44*$E59 -> 0 | L59: =AN_EMIS!J44*$E59 -> 0 | M59: =AN_EMIS!K44*$E59 -> 0 | N59: =AN_EMIS!L44*$E59 -> 0 | O59: =AN_EMIS!M44*$E59 -> 0 | P59: =AN_EMIS!N44*$E59 -> 0 | Q59: =AN_EMIS!O44*$E59 -> 0 | R59: =AN_EMIS!P44*$E59 -> 0 | S59: =AN_EMIS!Q44*$E59 -> 0 | T59: =AN_EMIS!R44*$E59 -> 0 | U59: =AN_EMIS!S44*$E59 -> 0 | V59: =AN_EMIS!T44*$E59 -> 0 | W59: =AN_EMIS!U44*$E59 -> 0 | X59: =AN_EMIS!V44*$E59 -> 0 | Y59: =AN_EMIS!W44*$E59 -> 0 | Z59: =AN_EMIS!X44*$E59 -> 0 | AA59: =AN_EMIS!Y44*$E59 -> 0 | AB59: =AN_EMIS!Z44*$E59 -> 0 | AC59: =AN_EMIS!AA44*$E59 -> 0 | AD59: =AN_EMIS!AB44*$E59 -> 0 | AE59: =AN_EMIS!AC44*$E59 -> 0 | AF59: =AN_EMIS!AD44*$E59 -> 0 | AG59: =AN_EMIS!AE44*$E59 -> 0 | AH59: =AN_EMIS!AF44*$E59 -> 0 | AI59: =AN_EMIS!AG44*$E59 -> 0 | AJ59: =AN_EMIS!AH44*$E59 -> 0 | AK59: =AN_EMIS!AI44*$E59 -> 0 | AL59: =AN_EMIS!AJ44*$E59 -> 0 | AM59: =AN_EMIS!AK44*$E59 -> 0 | AN59: =AN_EMIS!AL44*$E59 -> 0 | AO59: =AN_EMIS!AM44*$E59 -> 0 | AP59: =AN_EMIS!AN44*$E59 -> 0 | AQ59: =AN_EMIS!AO44*$E59 -> 0 | AR59: =AN_EMIS!AP44*$E59 -> 0 | AS59: =AN_EMIS!AQ44*$E59 -> 0 | AT59: =AN_EMIS!AR44*$E59 -> 0 | AU59: =AN_EMIS!AS44*$E59 -> 0 | AV59: =AN_EMIS!AT44*$E59 -> 0 | AW59: =AN_EMIS!AU44*$E59 -> 0 | AX59: =AN_EMIS!AV44*$E59 -> 0 | AY59: =AN_EMIS!AW44*$E59 -> 0 | AZ59: =AN_EMIS!AX44*$E59 -> 0 | BA59: =AN_EMIS!AY44*$E59 -> 0 | BB59: =AN_EMIS!AZ44*$E59 -> 0 | BC59: =AN_EMIS!BA44*$E59 -> 0 | BD59: =AN_EMIS!BB44*$E59 -> 0 | BE59: =AN_EMIS!BC44*$E59 -> 0 | BF59: =AN_EMIS!BD44*$E59 -> 0 | BG59: =AN_EMIS!BE44*$E59 -> 0 | BH59: =AN_EMIS!BF44*$E59 -> 0 | BI59: =AN_EMIS!BG44*$E59 -> 0 | BJ59: =AN_EMIS!BH44*$E59 -> 0 | BK59: =AN_EMIS!BI44*$E59 -> 0 | BL59: =AN_EMIS!BJ44*$E59 -> 0
A60: 41 | B60: =AN_EMIS!B45 -> 0 | C60: =IF(B60=0,".",AN_EMIS!C45) -> . | D60: =IF(B60=0,0,VLOOKUP(B60,RBC_Table!$A$10:$I$270,$A$3,)) -> 0 | E60: 0 | F60: =AN_EMIS!D45*$E60 -> 0 | G60: =AN_EMIS!E45*$E60 -> 0 | H60: =AN_EMIS!F45*$E60 -> 0 | I60: =AN_EMIS!G45*$E60 -> 0 | J60: =AN_EMIS!H45*$E60 -> 0 | K60: =AN_EMIS!I45*$E60 -> 0 | L60: =AN_EMIS!J45*$E60 -> 0 | M60: =AN_EMIS!K45*$E60 -> 0 | N60: =AN_EMIS!L45*$E60 -> 0 | O60: =AN_EMIS!M45*$E60 -> 0 | P60: =AN_EMIS!N45*$E60 -> 0 | Q60: =AN_EMIS!O45*$E60 -> 0 | R60: =AN_EMIS!P45*$E60 -> 0 | S60: =AN_EMIS!Q45*$E60 -> 0 | T60: =AN_EMIS!R45*$E60 -> 0 | U60: =AN_EMIS!S45*$E60 -> 0 | V60: =AN_EMIS!T45*$E60 -> 0 | W60: =AN_EMIS!U45*$E60 -> 0 | X60: =AN_EMIS!V45*$E60 -> 0 | Y60: =AN_EMIS!W45*$E60 -> 0 | Z60: =AN_EMIS!X45*$E60 -> 0 | AA60: =AN_EMIS!Y45*$E60 -> 0 | AB60: =AN_EMIS!Z45*$E60 -> 0 | AC60: =AN_EMIS!AA45*$E60 -> 0 | AD60: =AN_EMIS!AB45*$E60 -> 0 | AE60: =AN_EMIS!AC45*$E60 -> 0 | AF60: =AN_EMIS!AD45*$E60 -> 0 | AG60: =AN_EMIS!AE45*$E60 -> 0 | AH60: =AN_EMIS!AF45*$E60 -> 0 | AI60: =AN_EMIS!AG45*$E60 -> 0 | AJ60: =AN_EMIS!AH45*$E60 -> 0 | AK60: =AN_EMIS!AI45*$E60 -> 0 | AL60: =AN_EMIS!AJ45*$E60 -> 0 | AM60: =AN_EMIS!AK45*$E60 -> 0 | AN60: =AN_EMIS!AL45*$E60 -> 0 | AO60: =AN_EMIS!AM45*$E60 -> 0 | AP60: =AN_EMIS!AN45*$E60 -> 0 | AQ60: =AN_EMIS!AO45*$E60 -> 0 | AR60: =AN_EMIS!AP45*$E60 -> 0 | AS60: =AN_EMIS!AQ45*$E60 -> 0 | AT60: =AN_EMIS!AR45*$E60 -> 0 | AU60: =AN_EMIS!AS45*$E60 -> 0 | AV60: =AN_EMIS!AT45*$E60 -> 0 | AW60: =AN_EMIS!AU45*$E60 -> 0 | AX60: =AN_EMIS!AV45*$E60 -> 0 | AY60: =AN_EMIS!AW45*$E60 -> 0 | AZ60: =AN_EMIS!AX45*$E60 -> 0 | BA60: =AN_EMIS!AY45*$E60 -> 0 | BB60: =AN_EMIS!AZ45*$E60 -> 0 | BC60: =AN_EMIS!BA45*$E60 -> 0 | BD60: =AN_EMIS!BB45*$E60 -> 0 | BE60: =AN_EMIS!BC45*$E60 -> 0 | BF60: =AN_EMIS!BD45*$E60 -> 0 | BG60: =AN_EMIS!BE45*$E60 -> 0 | BH60: =AN_EMIS!BF45*$E60 -> 0 | BI60: =AN_EMIS!BG45*$E60 -> 0 | BJ60: =AN_EMIS!BH45*$E60 -> 0 | BK60: =AN_EMIS!BI45*$E60 -> 0 | BL60: =AN_EMIS!BJ45*$E60 -> 0
A61: 42 | B61: =AN_EMIS!B46 -> 0 | C61: =IF(B61=0,".",AN_EMIS!C46) -> . | D61: =IF(B61=0,0,VLOOKUP(B61,RBC_Table!$A$10:$I$270,$A$3,)) -> 0 | E61: 0 | F61: =AN_EMIS!D46*$E61 -> 0 | G61: =AN_EMIS!E46*$E61 -> 0 | H61: =AN_EMIS!F46*$E61 -> 0 | I61: =AN_EMIS!G46*$E61 -> 0 | J61: =AN_EMIS!H46*$E61 -> 0 | K61: =AN_EMIS!I46*$E61 -> 0 | L61: =AN_EMIS!J46*$E61 -> 0 | M61: =AN_EMIS!K46*$E61 -> 0 | N61: =AN_EMIS!L46*$E61 -> 0 | O61: =AN_EMIS!M46*$E61 -> 0 | P61: =AN_EMIS!N46*$E61 -> 0 | Q61: =AN_EMIS!O46*$E61 -> 0 | R61: =AN_EMIS!P46*$E61 -> 0 | S61: =AN_EMIS!Q46*$E61 -> 0 | T61: =AN_EMIS!R46*$E61 -> 0 | U61: =AN_EMIS!S46*$E61 -> 0 | V61: =AN_EMIS!T46*$E61 -> 0 | W61: =AN_EMIS!U46*$E61 -> 0 | X61: =AN_EMIS!V46*$E61 -> 0 | Y61: =AN_EMIS!W46*$E61 -> 0 | Z61: =AN_EMIS!X46*$E61 -> 0 | AA61: =AN_EMIS!Y46*$E61 -> 0 | AB61: =AN_EMIS!Z46*$E61 -> 0 | AC61: =AN_EMIS!AA46*$E61 -> 0 | AD61: =AN_EMIS!AB46*$E61 -> 0 | AE61: =AN_EMIS!AC46*$E61 -> 0 | AF61: =AN_EMIS!AD46*$E61 -> 0 | AG61: =AN_EMIS!AE46*$E61 -> 0 | AH61: =AN_EMIS!AF46*$E61 -> 0 | AI61: =AN_EMIS!AG46*$E61 -> 0 | AJ61: =AN_EMIS!AH46*$E61 -> 0 | AK61: =AN_EMIS!AI46*$E61 -> 0 | AL61: =AN_EMIS!AJ46*$E61 -> 0 | AM61: =AN_EMIS!AK46*$E61 -> 0 | AN61: =AN_EMIS!AL46*$E61 -> 0 | AO61: =AN_EMIS!AM46*$E61 -> 0 | AP61: =AN_EMIS!AN46*$E61 -> 0 | AQ61: =AN_EMIS!AO46*$E61 -> 0 | AR61: =AN_EMIS!AP46*$E61 -> 0 | AS61: =AN_EMIS!AQ46*$E61 -> 0 | AT61: =AN_EMIS!AR46*$E61 -> 0 | AU61: =AN_EMIS!AS46*$E61 -> 0 | AV61: =AN_EMIS!AT46*$E61 -> 0 | AW61: =AN_EMIS!AU46*$E61 -> 0 | AX61: =AN_EMIS!AV46*$E61 -> 0 | AY61: =AN_EMIS!AW46*$E61 -> 0 | AZ61: =AN_EMIS!AX46*$E61 -> 0 | BA61: =AN_EMIS!AY46*$E61 -> 0 | BB61: =AN_EMIS!AZ46*$E61 -> 0 | BC61: =AN_EMIS!BA46*$E61 -> 0 | BD61: =AN_EMIS!BB46*$E61 -> 0 | BE61: =AN_EMIS!BC46*$E61 -> 0 | BF61: =AN_EMIS!BD46*$E61 -> 0 | BG61: =AN_EMIS!BE46*$E61 -> 0 | BH61: =AN_EMIS!BF46*$E61 -> 0 | BI61: =AN_EMIS!BG46*$E61 -> 0 | BJ61: =AN_EMIS!BH46*$E61 -> 0 | BK61: =AN_EMIS!BI46*$E61 -> 0 | BL61: =AN_EMIS!BJ46*$E61 -> 0
A62: 43 | B62: =AN_EMIS!B47 -> 0 | C62: =IF(B62=0,".",AN_EMIS!C47) -> . | D62: =IF(B62=0,0,VLOOKUP(B62,RBC_Table!$A$10:$I$270,$A$3,)) -> 0 | E62: 0 | F62: =AN_EMIS!D47*$E62 -> 0 | G62: =AN_EMIS!E47*$E62 -> 0 | H62: =AN_EMIS!F47*$E62 -> 0 | I62: =AN_EMIS!G47*$E62 -> 0 | J62: =AN_EMIS!H47*$E62 -> 0 | K62: =AN_EMIS!I47*$E62 -> 0 | L62: =AN_EMIS!J47*$E62 -> 0 | M62: =AN_EMIS!K47*$E62 -> 0 | N62: =AN_EMIS!L47*$E62 -> 0 | O62: =AN_EMIS!M47*$E62 -> 0 | P62: =AN_EMIS!N47*$E62 -> 0 | Q62: =AN_EMIS!O47*$E62 -> 0 | R62: =AN_EMIS!P47*$E62 -> 0 | S62: =AN_EMIS!Q47*$E62 -> 0 | T62: =AN_EMIS!R47*$E62 -> 0 | U62: =AN_EMIS!S47*$E62 -> 0 | V62: =AN_EMIS!T47*$E62 -> 0 | W62: =AN_EMIS!U47*$E62 -> 0 | X62: =AN_EMIS!V47*$E62 -> 0 | Y62: =AN_EMIS!W47*$E62 -> 0 | Z62: =AN_EMIS!X47*$E62 -> 0 | AA62: =AN_EMIS!Y47*$E62 -> 0 | AB62: =AN_EMIS!Z47*$E62 -> 0 | AC62: =AN_EMIS!AA47*$E62 -> 0 | AD62: =AN_EMIS!AB47*$E62 -> 0 | AE62: =AN_EMIS!AC47*$E62 -> 0 | AF62: =AN_EMIS!AD47*$E62 -> 0 | AG62: =AN_EMIS!AE47*$E62 -> 0 | AH62: =AN_EMIS!AF47*$E62 -> 0 | AI62: =AN_EMIS!AG47*$E62 -> 0 | AJ62: =AN_EMIS!AH47*$E62 -> 0 | AK62: =AN_EMIS!AI47*$E62 -> 0 | AL62: =AN_EMIS!AJ47*$E62 -> 0 | AM62: =AN_EMIS!AK47*$E62 -> 0 | AN62: =AN_EMIS!AL47*$E62 -> 0 | AO62: =AN_EMIS!AM47*$E62 -> 0 | AP62: =AN_EMIS!AN47*$E62 -> 0 | AQ62: =AN_EMIS!AO47*$E62 -> 0 | AR62: =AN_EMIS!AP47*$E62 -> 0 | AS62: =AN_EMIS!AQ47*$E62 -> 0 | AT62: =AN_EMIS!AR47*$E62 -> 0 | AU62: =AN_EMIS!AS47*$E62 -> 0 | AV62: =AN_EMIS!AT47*$E62 -> 0 | AW62: =AN_EMIS!AU47*$E62 -> 0 | AX62: =AN_EMIS!AV47*$E62 -> 0 | AY62: =AN_EMIS!AW47*$E62 -> 0 | AZ62: =AN_EMIS!AX47*$E62 -> 0 | BA62: =AN_EMIS!AY47*$E62 -> 0 | BB62: =AN_EMIS!AZ47*$E62 -> 0 | BC62: =AN_EMIS!BA47*$E62 -> 0 | BD62: =AN_EMIS!BB47*$E62 -> 0 | BE62: =AN_EMIS!BC47*$E62 -> 0 | BF62: =AN_EMIS!BD47*$E62 -> 0 | BG62: =AN_EMIS!BE47*$E62 -> 0 | BH62: =AN_EMIS!BF47*$E62 -> 0 | BI62: =AN_EMIS!BG47*$E62 -> 0 | BJ62: =AN_EMIS!BH47*$E62 -> 0 | BK62: =AN_EMIS!BI47*$E62 -> 0 | BL62: =AN_EMIS!BJ47*$E62 -> 0
A63: 44 | B63: =AN_EMIS!B48 -> 0 | C63: =IF(B63=0,".",AN_EMIS!C48) -> . | D63: =IF(B63=0,0,VLOOKUP(B63,RBC_Table!$A$10:$I$270,$A$3,)) -> 0 | E63: 0 | F63: =AN_EMIS!D48*$E63 -> 0 | G63: =AN_EMIS!E48*$E63 -> 0 | H63: =AN_EMIS!F48*$E63 -> 0 | I63: =AN_EMIS!G48*$E63 -> 0 | J63: =AN_EMIS!H48*$E63 -> 0 | K63: =AN_EMIS!I48*$E63 -> 0 | L63: =AN_EMIS!J48*$E63 -> 0 | M63: =AN_EMIS!K48*$E63 -> 0 | N63: =AN_EMIS!L48*$E63 -> 0 | O63: =AN_EMIS!M48*$E63 -> 0 | P63: =AN_EMIS!N48*$E63 -> 0 | Q63: =AN_EMIS!O48*$E63 -> 0 | R63: =AN_EMIS!P48*$E63 -> 0 | S63: =AN_EMIS!Q48*$E63 -> 0 | T63: =AN_EMIS!R48*$E63 -> 0 | U63: =AN_EMIS!S48*$E63 -> 0 | V63: =AN_EMIS!T48*$E63 -> 0 | W63: =AN_EMIS!U48*$E63 -> 0 | X63: =AN_EMIS!V48*$E63 -> 0 | Y63: =AN_EMIS!W48*$E63 -> 0 | Z63: =AN_EMIS!X48*$E63 -> 0 | AA63: =AN_EMIS!Y48*$E63 -> 0 | AB63: =AN_EMIS!Z48*$E63 -> 0 | AC63: =AN_EMIS!AA48*$E63 -> 0 | AD63: =AN_EMIS!AB48*$E63 -> 0 | AE63: =AN_EMIS!AC48*$E63 -> 0 | AF63: =AN_EMIS!AD48*$E63 -> 0 | AG63: =AN_EMIS!AE48*$E63 -> 0 | AH63: =AN_EMIS!AF48*$E63 -> 0 | AI63: =AN_EMIS!AG48*$E63 -> 0 | AJ63: =AN_EMIS!AH48*$E63 -> 0 | AK63: =AN_EMIS!AI48*$E63 -> 0 | AL63: =AN_EMIS!AJ48*$E63 -> 0 | AM63: =AN_EMIS!AK48*$E63 -> 0 | AN63: =AN_EMIS!AL48*$E63 -> 0 | AO63: =AN_EMIS!AM48*$E63 -> 0 | AP63: =AN_EMIS!AN48*$E63 -> 0 | AQ63: =AN_EMIS!AO48*$E63 -> 0 | AR63: =AN_EMIS!AP48*$E63 -> 0 | AS63: =AN_EMIS!AQ48*$E63 -> 0 | AT63: =AN_EMIS!AR48*$E63 -> 0 | AU63: =AN_EMIS!AS48*$E63 -> 0 | AV63: =AN_EMIS!AT48*$E63 -> 0 | AW63: =AN_EMIS!AU48*$E63 -> 0 | AX63: =AN_EMIS!AV48*$E63 -> 0 | AY63: =AN_EMIS!AW48*$E63 -> 0 | AZ63: =AN_EMIS!AX48*$E63 -> 0 | BA63: =AN_EMIS!AY48*$E63 -> 0 | BB63: =AN_EMIS!AZ48*$E63 -> 0 | BC63: =AN_EMIS!BA48*$E63 -> 0 | BD63: =AN_EMIS!BB48*$E63 -> 0 | BE63: =AN_EMIS!BC48*$E63 -> 0 | BF63: =AN_EMIS!BD48*$E63 -> 0 | BG63: =AN_EMIS!BE48*$E63 -> 0 | BH63: =AN_EMIS!BF48*$E63 -> 0 | BI63: =AN_EMIS!BG48*$E63 -> 0 | BJ63: =AN_EMIS!BH48*$E63 -> 0 | BK63: =AN_EMIS!BI48*$E63 -> 0 | BL63: =AN_EMIS!BJ48*$E63 -> 0
A64: 45 | B64: =AN_EMIS!B49 -> 0 | C64: =IF(B64=0,".",AN_EMIS!C49) -> . | D64: =IF(B64=0,0,VLOOKUP(B64,RBC_Table!$A$10:$I$270,$A$3,)) -> 0 | E64: 0 | F64: =AN_EMIS!D49*$E64 -> 0 | G64: =AN_EMIS!E49*$E64 -> 0 | H64: =AN_EMIS!F49*$E64 -> 0 | I64: =AN_EMIS!G49*$E64 -> 0 | J64: =AN_EMIS!H49*$E64 -> 0 | K64: =AN_EMIS!I49*$E64 -> 0 | L64: =AN_EMIS!J49*$E64 -> 0 | M64: =AN_EMIS!K49*$E64 -> 0 | N64: =AN_EMIS!L49*$E64 -> 0 | O64: =AN_EMIS!M49*$E64 -> 0 | P64: =AN_EMIS!N49*$E64 -> 0 | Q64: =AN_EMIS!O49*$E64 -> 0 | R64: =AN_EMIS!P49*$E64 -> 0 | S64: =AN_EMIS!Q49*$E64 -> 0 | T64: =AN_EMIS!R49*$E64 -> 0 | U64: =AN_EMIS!S49*$E64 -> 0 | V64: =AN_EMIS!T49*$E64 -> 0 | W64: =AN_EMIS!U49*$E64 -> 0 | X64: =AN_EMIS!V49*$E64 -> 0 | Y64: =AN_EMIS!W49*$E64 -> 0 | Z64: =AN_EMIS!X49*$E64 -> 0 | AA64: =AN_EMIS!Y49*$E64 -> 0 | AB64: =AN_EMIS!Z49*$E64 -> 0 | AC64: =AN_EMIS!AA49*$E64 -> 0 | AD64: =AN_EMIS!AB49*$E64 -> 0 | AE64: =AN_EMIS!AC49*$E64 -> 0 | AF64: =AN_EMIS!AD49*$E64 -> 0 | AG64: =AN_EMIS!AE49*$E64 -> 0 | AH64: =AN_EMIS!AF49*$E64 -> 0 | AI64: =AN_EMIS!AG49*$E64 -> 0 | AJ64: =AN_EMIS!AH49*$E64 -> 0 | AK64: =AN_EMIS!AI49*$E64 -> 0 | AL64: =AN_EMIS!AJ49*$E64 -> 0 | AM64: =AN_EMIS!AK49*$E64 -> 0 | AN64: =AN_EMIS!AL49*$E64 -> 0 | AO64: =AN_EMIS!AM49*$E64 -> 0 | AP64: =AN_EMIS!AN49*$E64 -> 0 | AQ64: =AN_EMIS!AO49*$E64 -> 0 | AR64: =AN_EMIS!AP49*$E64 -> 0 | AS64: =AN_EMIS!AQ49*$E64 -> 0 | AT64: =AN_EMIS!AR49*$E64 -> 0 | AU64: =AN_EMIS!AS49*$E64 -> 0 | AV64: =AN_EMIS!AT49*$E64 -> 0 | AW64: =AN_EMIS!AU49*$E64 -> 0 | AX64: =AN_EMIS!AV49*$E64 -> 0 | AY64: =AN_EMIS!AW49*$E64 -> 0 | AZ64: =AN_EMIS!AX49*$E64 -> 0 | BA64: =AN_EMIS!AY49*$E64 -> 0 | BB64: =AN_EMIS!AZ49*$E64 -> 0 | BC64: =AN_EMIS!BA49*$E64 -> 0 | BD64: =AN_EMIS!BB49*$E64 -> 0 | BE64: =AN_EMIS!BC49*$E64 -> 0 | BF64: =AN_EMIS!BD49*$E64 -> 0 | BG64: =AN_EMIS!BE49*$E64 -> 0 | BH64: =AN_EMIS!BF49*$E64 -> 0 | BI64: =AN_EMIS!BG49*$E64 -> 0 | BJ64: =AN_EMIS!BH49*$E64 -> 0 | BK64: =AN_EMIS!BI49*$E64 -> 0 | BL64: =AN_EMIS!BJ49*$E64 -> 0
A65: 46 | B65: =AN_EMIS!B50 -> 0 | C65: =IF(B65=0,".",AN_EMIS!C50) -> . | D65: =IF(B65=0,0,VLOOKUP(B65,RBC_Table!$A$10:$I$270,$A$3,)) -> 0 | E65: 0 | F65: =AN_EMIS!D50*$E65 -> 0 | G65: =AN_EMIS!E50*$E65 -> 0 | H65: =AN_EMIS!F50*$E65 -> 0 | I65: =AN_EMIS!G50*$E65 -> 0 | J65: =AN_EMIS!H50*$E65 -> 0 | K65: =AN_EMIS!I50*$E65 -> 0 | L65: =AN_EMIS!J50*$E65 -> 0 | M65: =AN_EMIS!K50*$E65 -> 0 | N65: =AN_EMIS!L50*$E65 -> 0 | O65: =AN_EMIS!M50*$E65 -> 0 | P65: =AN_EMIS!N50*$E65 -> 0 | Q65: =AN_EMIS!O50*$E65 -> 0 | R65: =AN_EMIS!P50*$E65 -> 0 | S65: =AN_EMIS!Q50*$E65 -> 0 | T65: =AN_EMIS!R50*$E65 -> 0 | U65: =AN_EMIS!S50*$E65 -> 0 | V65: =AN_EMIS!T50*$E65 -> 0 | W65: =AN_EMIS!U50*$E65 -> 0 | X65: =AN_EMIS!V50*$E65 -> 0 | Y65: =AN_EMIS!W50*$E65 -> 0 | Z65: =AN_EMIS!X50*$E65 -> 0 | AA65: =AN_EMIS!Y50*$E65 -> 0 | AB65: =AN_EMIS!Z50*$E65 -> 0 | AC65: =AN_EMIS!AA50*$E65 -> 0 | AD65: =AN_EMIS!AB50*$E65 -> 0 | AE65: =AN_EMIS!AC50*$E65 -> 0 | AF65: =AN_EMIS!AD50*$E65 -> 0 | AG65: =AN_EMIS!AE50*$E65 -> 0 | AH65: =AN_EMIS!AF50*$E65 -> 0 | AI65: =AN_EMIS!AG50*$E65 -> 0 | AJ65: =AN_EMIS!AH50*$E65 -> 0 | AK65: =AN_EMIS!AI50*$E65 -> 0 | AL65: =AN_EMIS!AJ50*$E65 -> 0 | AM65: =AN_EMIS!AK50*$E65 -> 0 | AN65: =AN_EMIS!AL50*$E65 -> 0 | AO65: =AN_EMIS!AM50*$E65 -> 0 | AP65: =AN_EMIS!AN50*$E65 -> 0 | AQ65: =AN_EMIS!AO50*$E65 -> 0 | AR65: =AN_EMIS!AP50*$E65 -> 0 | AS65: =AN_EMIS!AQ50*$E65 -> 0 | AT65: =AN_EMIS!AR50*$E65 -> 0 | AU65: =AN_EMIS!AS50*$E65 -> 0 | AV65: =AN_EMIS!AT50*$E65 -> 0 | AW65: =AN_EMIS!AU50*$E65 -> 0 | AX65: =AN_EMIS!AV50*$E65 -> 0 | AY65: =AN_EMIS!AW50*$E65 -> 0 | AZ65: =AN_EMIS!AX50*$E65 -> 0 | BA65: =AN_EMIS!AY50*$E65 -> 0 | BB65: =AN_EMIS!AZ50*$E65 -> 0 | BC65: =AN_EMIS!BA50*$E65 -> 0 | BD65: =AN_EMIS!BB50*$E65 -> 0 | BE65: =AN_EMIS!BC50*$E65 -> 0 | BF65: =AN_EMIS!BD50*$E65 -> 0 | BG65: =AN_EMIS!BE50*$E65 -> 0 | BH65: =AN_EMIS!BF50*$E65 -> 0 | BI65: =AN_EMIS!BG50*$E65 -> 0 | BJ65: =AN_EMIS!BH50*$E65 -> 0 | BK65: =AN_EMIS!BI50*$E65 -> 0 | BL65: =AN_EMIS!BJ50*$E65 -> 0
A66: 47 | B66: =AN_EMIS!B51 -> 0 | C66: =IF(B66=0,".",AN_EMIS!C51) -> . | D66: =IF(B66=0,0,VLOOKUP(B66,RBC_Table!$A$10:$I$270,$A$3,)) -> 0 | E66: 0 | F66: =AN_EMIS!D51*$E66 -> 0 | G66: =AN_EMIS!E51*$E66 -> 0 | H66: =AN_EMIS!F51*$E66 -> 0 | I66: =AN_EMIS!G51*$E66 -> 0 | J66: =AN_EMIS!H51*$E66 -> 0 | K66: =AN_EMIS!I51*$E66 -> 0 | L66: =AN_EMIS!J51*$E66 -> 0 | M66: =AN_EMIS!K51*$E66 -> 0 | N66: =AN_EMIS!L51*$E66 -> 0 | O66: =AN_EMIS!M51*$E66 -> 0 | P66: =AN_EMIS!N51*$E66 -> 0 | Q66: =AN_EMIS!O51*$E66 -> 0 | R66: =AN_EMIS!P51*$E66 -> 0 | S66: =AN_EMIS!Q51*$E66 -> 0 | T66: =AN_EMIS!R51*$E66 -> 0 | U66: =AN_EMIS!S51*$E66 -> 0 | V66: =AN_EMIS!T51*$E66 -> 0 | W66: =AN_EMIS!U51*$E66 -> 0 | X66: =AN_EMIS!V51*$E66 -> 0 | Y66: =AN_EMIS!W51*$E66 -> 0 | Z66: =AN_EMIS!X51*$E66 -> 0 | AA66: =AN_EMIS!Y51*$E66 -> 0 | AB66: =AN_EMIS!Z51*$E66 -> 0 | AC66: =AN_EMIS!AA51*$E66 -> 0 | AD66: =AN_EMIS!AB51*$E66 -> 0 | AE66: =AN_EMIS!AC51*$E66 -> 0 | AF66: =AN_EMIS!AD51*$E66 -> 0 | AG66: =AN_EMIS!AE51*$E66 -> 0 | AH66: =AN_EMIS!AF51*$E66 -> 0 | AI66: =AN_EMIS!AG51*$E66 -> 0 | AJ66: =AN_EMIS!AH51*$E66 -> 0 | AK66: =AN_EMIS!AI51*$E66 -> 0 | AL66: =AN_EMIS!AJ51*$E66 -> 0 | AM66: =AN_EMIS!AK51*$E66 -> 0 | AN66: =AN_EMIS!AL51*$E66 -> 0 | AO66: =AN_EMIS!AM51*$E66 -> 0 | AP66: =AN_EMIS!AN51*$E66 -> 0 | AQ66: =AN_EMIS!AO51*$E66 -> 0 | AR66: =AN_EMIS!AP51*$E66 -> 0 | AS66: =AN_EMIS!AQ51*$E66 -> 0 | AT66: =AN_EMIS!AR51*$E66 -> 0 | AU66: =AN_EMIS!AS51*$E66 -> 0 | AV66: =AN_EMIS!AT51*$E66 -> 0 | AW66: =AN_EMIS!AU51*$E66 -> 0 | AX66: =AN_EMIS!AV51*$E66 -> 0 | AY66: =AN_EMIS!AW51*$E66 -> 0 | AZ66: =AN_EMIS!AX51*$E66 -> 0 | BA66: =AN_EMIS!AY51*$E66 -> 0 | BB66: =AN_EMIS!AZ51*$E66 -> 0 | BC66: =AN_EMIS!BA51*$E66 -> 0 | BD66: =AN_EMIS!BB51*$E66 -> 0 | BE66: =AN_EMIS!BC51*$E66 -> 0 | BF66: =AN_EMIS!BD51*$E66 -> 0 | BG66: =AN_EMIS!BE51*$E66 -> 0 | BH66: =AN_EMIS!BF51*$E66 -> 0 | BI66: =AN_EMIS!BG51*$E66 -> 0 | BJ66: =AN_EMIS!BH51*$E66 -> 0 | BK66: =AN_EMIS!BI51*$E66 -> 0 | BL66: =AN_EMIS!BJ51*$E66 -> 0
A67: 48 | B67: =AN_EMIS!B52 -> 0 | C67: =IF(B67=0,".",AN_EMIS!C52) -> . | D67: =IF(B67=0,0,VLOOKUP(B67,RBC_Table!$A$10:$I$270,$A$3,)) -> 0 | E67: 0 | F67: =AN_EMIS!D52*$E67 -> 0 | G67: =AN_EMIS!E52*$E67 -> 0 | H67: =AN_EMIS!F52*$E67 -> 0 | I67: =AN_EMIS!G52*$E67 -> 0 | J67: =AN_EMIS!H52*$E67 -> 0 | K67: =AN_EMIS!I52*$E67 -> 0 | L67: =AN_EMIS!J52*$E67 -> 0 | M67: =AN_EMIS!K52*$E67 -> 0 | N67: =AN_EMIS!L52*$E67 -> 0 | O67: =AN_EMIS!M52*$E67 -> 0 | P67: =AN_EMIS!N52*$E67 -> 0 | Q67: =AN_EMIS!O52*$E67 -> 0 | R67: =AN_EMIS!P52*$E67 -> 0 | S67: =AN_EMIS!Q52*$E67 -> 0 | T67: =AN_EMIS!R52*$E67 -> 0 | U67: =AN_EMIS!S52*$E67 -> 0 | V67: =AN_EMIS!T52*$E67 -> 0 | W67: =AN_EMIS!U52*$E67 -> 0 | X67: =AN_EMIS!V52*$E67 -> 0 | Y67: =AN_EMIS!W52*$E67 -> 0 | Z67: =AN_EMIS!X52*$E67 -> 0 | AA67: =AN_EMIS!Y52*$E67 -> 0 | AB67: =AN_EMIS!Z52*$E67 -> 0 | AC67: =AN_EMIS!AA52*$E67 -> 0 | AD67: =AN_EMIS!AB52*$E67 -> 0 | AE67: =AN_EMIS!AC52*$E67 -> 0 | AF67: =AN_EMIS!AD52*$E67 -> 0 | AG67: =AN_EMIS!AE52*$E67 -> 0 | AH67: =AN_EMIS!AF52*$E67 -> 0 | AI67: =AN_EMIS!AG52*$E67 -> 0 | AJ67: =AN_EMIS!AH52*$E67 -> 0 | AK67: =AN_EMIS!AI52*$E67 -> 0 | AL67: =AN_EMIS!AJ52*$E67 -> 0 | AM67: =AN_EMIS!AK52*$E67 -> 0 | AN67: =AN_EMIS!AL52*$E67 -> 0 | AO67: =AN_EMIS!AM52*$E67 -> 0 | AP67: =AN_EMIS!AN52*$E67 -> 0 | AQ67: =AN_EMIS!AO52*$E67 -> 0 | AR67: =AN_EMIS!AP52*$E67 -> 0 | AS67: =AN_EMIS!AQ52*$E67 -> 0 | AT67: =AN_EMIS!AR52*$E67 -> 0 | AU67: =AN_EMIS!AS52*$E67 -> 0 | AV67: =AN_EMIS!AT52*$E67 -> 0 | AW67: =AN_EMIS!AU52*$E67 -> 0 | AX67: =AN_EMIS!AV52*$E67 -> 0 | AY67: =AN_EMIS!AW52*$E67 -> 0 | AZ67: =AN_EMIS!AX52*$E67 -> 0 | BA67: =AN_EMIS!AY52*$E67 -> 0 | BB67: =AN_EMIS!AZ52*$E67 -> 0 | BC67: =AN_EMIS!BA52*$E67 -> 0 | BD67: =AN_EMIS!BB52*$E67 -> 0 | BE67: =AN_EMIS!BC52*$E67 -> 0 | BF67: =AN_EMIS!BD52*$E67 -> 0 | BG67: =AN_EMIS!BE52*$E67 -> 0 | BH67: =AN_EMIS!BF52*$E67 -> 0 | BI67: =AN_EMIS!BG52*$E67 -> 0 | BJ67: =AN_EMIS!BH52*$E67 -> 0 | BK67: =AN_EMIS!BI52*$E67 -> 0 | BL67: =AN_EMIS!BJ52*$E67 -> 0
A68: 49 | B68: =AN_EMIS!B53 -> 0 | C68: =IF(B68=0,".",AN_EMIS!C53) -> . | D68: =IF(B68=0,0,VLOOKUP(B68,RBC_Table!$A$10:$I$270,$A$3,)) -> 0 | E68: 0 | F68: =AN_EMIS!D53*$E68 -> 0 | G68: =AN_EMIS!E53*$E68 -> 0 | H68: =AN_EMIS!F53*$E68 -> 0 | I68: =AN_EMIS!G53*$E68 -> 0 | J68: =AN_EMIS!H53*$E68 -> 0 | K68: =AN_EMIS!I53*$E68 -> 0 | L68: =AN_EMIS!J53*$E68 -> 0 | M68: =AN_EMIS!K53*$E68 -> 0 | N68: =AN_EMIS!L53*$E68 -> 0 | O68: =AN_EMIS!M53*$E68 -> 0 | P68: =AN_EMIS!N53*$E68 -> 0 | Q68: =AN_EMIS!O53*$E68 -> 0 | R68: =AN_EMIS!P53*$E68 -> 0 | S68: =AN_EMIS!Q53*$E68 -> 0 | T68: =AN_EMIS!R53*$E68 -> 0 | U68: =AN_EMIS!S53*$E68 -> 0 | V68: =AN_EMIS!T53*$E68 -> 0 | W68: =AN_EMIS!U53*$E68 -> 0 | X68: =AN_EMIS!V53*$E68 -> 0 | Y68: =AN_EMIS!W53*$E68 -> 0 | Z68: =AN_EMIS!X53*$E68 -> 0 | AA68: =AN_EMIS!Y53*$E68 -> 0 | AB68: =AN_EMIS!Z53*$E68 -> 0 | AC68: =AN_EMIS!AA53*$E68 -> 0 | AD68: =AN_EMIS!AB53*$E68 -> 0 | AE68: =AN_EMIS!AC53*$E68 -> 0 | AF68: =AN_EMIS!AD53*$E68 -> 0 | AG68: =AN_EMIS!AE53*$E68 -> 0 | AH68: =AN_EMIS!AF53*$E68 -> 0 | AI68: =AN_EMIS!AG53*$E68 -> 0 | AJ68: =AN_EMIS!AH53*$E68 -> 0 | AK68: =AN_EMIS!AI53*$E68 -> 0 | AL68: =AN_EMIS!AJ53*$E68 -> 0 | AM68: =AN_EMIS!AK53*$E68 -> 0 | AN68: =AN_EMIS!AL53*$E68 -> 0 | AO68: =AN_EMIS!AM53*$E68 -> 0 | AP68: =AN_EMIS!AN53*$E68 -> 0 | AQ68: =AN_EMIS!AO53*$E68 -> 0 | AR68: =AN_EMIS!AP53*$E68 -> 0 | AS68: =AN_EMIS!AQ53*$E68 -> 0 | AT68: =AN_EMIS!AR53*$E68 -> 0 | AU68: =AN_EMIS!AS53*$E68 -> 0 | AV68: =AN_EMIS!AT53*$E68 -> 0 | AW68: =AN_EMIS!AU53*$E68 -> 0 | AX68: =AN_EMIS!AV53*$E68 -> 0 | AY68: =AN_EMIS!AW53*$E68 -> 0 | AZ68: =AN_EMIS!AX53*$E68 -> 0 | BA68: =AN_EMIS!AY53*$E68 -> 0 | BB68: =AN_EMIS!AZ53*$E68 -> 0 | BC68: =AN_EMIS!BA53*$E68 -> 0 | BD68: =AN_EMIS!BB53*$E68 -> 0 | BE68: =AN_EMIS!BC53*$E68 -> 0 | BF68: =AN_EMIS!BD53*$E68 -> 0 | BG68: =AN_EMIS!BE53*$E68 -> 0 | BH68: =AN_EMIS!BF53*$E68 -> 0 | BI68: =AN_EMIS!BG53*$E68 -> 0 | BJ68: =AN_EMIS!BH53*$E68 -> 0 | BK68: =AN_EMIS!BI53*$E68 -> 0 | BL68: =AN_EMIS!BJ53*$E68 -> 0
A69: 50 | B69: =AN_EMIS!B54 -> 0 | C69: =IF(B69=0,".",AN_EMIS!C54) -> . | D69: =IF(B69=0,0,VLOOKUP(B69,RBC_Table!$A$10:$I$270,$A$3,)) -> 0 | E69: 0 | F69: =AN_EMIS!D54*$E69 -> 0 | G69: =AN_EMIS!E54*$E69 -> 0 | H69: =AN_EMIS!F54*$E69 -> 0 | I69: =AN_EMIS!G54*$E69 -> 0 | J69: =AN_EMIS!H54*$E69 -> 0 | K69: =AN_EMIS!I54*$E69 -> 0 | L69: =AN_EMIS!J54*$E69 -> 0 | M69: =AN_EMIS!K54*$E69 -> 0 | N69: =AN_EMIS!L54*$E69 -> 0 | O69: =AN_EMIS!M54*$E69 -> 0 | P69: =AN_EMIS!N54*$E69 -> 0 | Q69: =AN_EMIS!O54*$E69 -> 0 | R69: =AN_EMIS!P54*$E69 -> 0 | S69: =AN_EMIS!Q54*$E69 -> 0 | T69: =AN_EMIS!R54*$E69 -> 0 | U69: =AN_EMIS!S54*$E69 -> 0 | V69: =AN_EMIS!T54*$E69 -> 0 | W69: =AN_EMIS!U54*$E69 -> 0 | X69: =AN_EMIS!V54*$E69 -> 0 | Y69: =AN_EMIS!W54*$E69 -> 0 | Z69: =AN_EMIS!X54*$E69 -> 0 | AA69: =AN_EMIS!Y54*$E69 -> 0 | AB69: =AN_EMIS!Z54*$E69 -> 0 | AC69: =AN_EMIS!AA54*$E69 -> 0 | AD69: =AN_EMIS!AB54*$E69 -> 0 | AE69: =AN_EMIS!AC54*$E69 -> 0 | AF69: =AN_EMIS!AD54*$E69 -> 0 | AG69: =AN_EMIS!AE54*$E69 -> 0 | AH69: =AN_EMIS!AF54*$E69 -> 0 | AI69: =AN_EMIS!AG54*$E69 -> 0 | AJ69: =AN_EMIS!AH54*$E69 -> 0 | AK69: =AN_EMIS!AI54*$E69 -> 0 | AL69: =AN_EMIS!AJ54*$E69 -> 0 | AM69: =AN_EMIS!AK54*$E69 -> 0 | AN69: =AN_EMIS!AL54*$E69 -> 0 | AO69: =AN_EMIS!AM54*$E69 -> 0 | AP69: =AN_EMIS!AN54*$E69 -> 0 | AQ69: =AN_EMIS!AO54*$E69 -> 0 | AR69: =AN_EMIS!AP54*$E69 -> 0 | AS69: =AN_EMIS!AQ54*$E69 -> 0 | AT69: =AN_EMIS!AR54*$E69 -> 0 | AU69: =AN_EMIS!AS54*$E69 -> 0 | AV69: =AN_EMIS!AT54*$E69 -> 0 | AW69: =AN_EMIS!AU54*$E69 -> 0 | AX69: =AN_EMIS!AV54*$E69 -> 0 | AY69: =AN_EMIS!AW54*$E69 -> 0 | AZ69: =AN_EMIS!AX54*$E69 -> 0 | BA69: =AN_EMIS!AY54*$E69 -> 0 | BB69: =AN_EMIS!AZ54*$E69 -> 0 | BC69: =AN_EMIS!BA54*$E69 -> 0 | BD69: =AN_EMIS!BB54*$E69 -> 0 | BE69: =AN_EMIS!BC54*$E69 -> 0 | BF69: =AN_EMIS!BD54*$E69 -> 0 | BG69: =AN_EMIS!BE54*$E69 -> 0 | BH69: =AN_EMIS!BF54*$E69 -> 0 | BI69: =AN_EMIS!BG54*$E69 -> 0 | BJ69: =AN_EMIS!BH54*$E69 -> 0 | BK69: =AN_EMIS!BI54*$E69 -> 0 | BL69: =AN_EMIS!BJ54*$E69 -> 0
A70: 51 | B70: =AN_EMIS!B55 -> 0 | C70: =IF(B70=0,".",AN_EMIS!C55) -> . | D70: =IF(B70=0,0,VLOOKUP(B70,RBC_Table!$A$10:$I$270,$A$3,)) -> 0 | E70: 0 | F70: =AN_EMIS!D55*$E70 -> 0 | G70: =AN_EMIS!E55*$E70 -> 0 | H70: =AN_EMIS!F55*$E70 -> 0 | I70: =AN_EMIS!G55*$E70 -> 0 | J70: =AN_EMIS!H55*$E70 -> 0 | K70: =AN_EMIS!I55*$E70 -> 0 | L70: =AN_EMIS!J55*$E70 -> 0 | M70: =AN_EMIS!K55*$E70 -> 0 | N70: =AN_EMIS!L55*$E70 -> 0 | O70: =AN_EMIS!M55*$E70 -> 0 | P70: =AN_EMIS!N55*$E70 -> 0 | Q70: =AN_EMIS!O55*$E70 -> 0 | R70: =AN_EMIS!P55*$E70 -> 0 | S70: =AN_EMIS!Q55*$E70 -> 0 | T70: =AN_EMIS!R55*$E70 -> 0 | U70: =AN_EMIS!S55*$E70 -> 0 | V70: =AN_EMIS!T55*$E70 -> 0 | W70: =AN_EMIS!U55*$E70 -> 0 | X70: =AN_EMIS!V55*$E70 -> 0 | Y70: =AN_EMIS!W55*$E70 -> 0 | Z70: =AN_EMIS!X55*$E70 -> 0 | AA70: =AN_EMIS!Y55*$E70 -> 0 | AB70: =AN_EMIS!Z55*$E70 -> 0 | AC70: =AN_EMIS!AA55*$E70 -> 0 | AD70: =AN_EMIS!AB55*$E70 -> 0 | AE70: =AN_EMIS!AC55*$E70 -> 0 | AF70: =AN_EMIS!AD55*$E70 -> 0 | AG70: =AN_EMIS!AE55*$E70 -> 0 | AH70: =AN_EMIS!AF55*$E70 -> 0 | AI70: =AN_EMIS!AG55*$E70 -> 0 | AJ70: =AN_EMIS!AH55*$E70 -> 0 | AK70: =AN_EMIS!AI55*$E70 -> 0 | AL70: =AN_EMIS!AJ55*$E70 -> 0 | AM70: =AN_EMIS!AK55*$E70 -> 0 | AN70: =AN_EMIS!AL55*$E70 -> 0 | AO70: =AN_EMIS!AM55*$E70 -> 0 | AP70: =AN_EMIS!AN55*$E70 -> 0 | AQ70: =AN_EMIS!AO55*$E70 -> 0 | AR70: =AN_EMIS!AP55*$E70 -> 0 | AS70: =AN_EMIS!AQ55*$E70 -> 0 | AT70: =AN_EMIS!AR55*$E70 -> 0 | AU70: =AN_EMIS!AS55*$E70 -> 0 | AV70: =AN_EMIS!AT55*$E70 -> 0 | AW70: =AN_EMIS!AU55*$E70 -> 0 | AX70: =AN_EMIS!AV55*$E70 -> 0 | AY70: =AN_EMIS!AW55*$E70 -> 0 | AZ70: =AN_EMIS!AX55*$E70 -> 0 | BA70: =AN_EMIS!AY55*$E70 -> 0 | BB70: =AN_EMIS!AZ55*$E70 -> 0 | BC70: =AN_EMIS!BA55*$E70 -> 0 | BD70: =AN_EMIS!BB55*$E70 -> 0 | BE70: =AN_EMIS!BC55*$E70 -> 0 | BF70: =AN_EMIS!BD55*$E70 -> 0 | BG70: =AN_EMIS!BE55*$E70 -> 0 | BH70: =AN_EMIS!BF55*$E70 -> 0 | BI70: =AN_EMIS!BG55*$E70 -> 0 | BJ70: =AN_EMIS!BH55*$E70 -> 0 | BK70: =AN_EMIS!BI55*$E70 -> 0 | BL70: =AN_EMIS!BJ55*$E70 -> 0
A71: 52 | B71: =AN_EMIS!B56 -> 0 | C71: =IF(B71=0,".",AN_EMIS!C56) -> . | D71: =IF(B71=0,0,VLOOKUP(B71,RBC_Table!$A$10:$I$270,$A$3,)) -> 0 | E71: 0 | F71: =AN_EMIS!D56*$E71 -> 0 | G71: =AN_EMIS!E56*$E71 -> 0 | H71: =AN_EMIS!F56*$E71 -> 0 | I71: =AN_EMIS!G56*$E71 -> 0 | J71: =AN_EMIS!H56*$E71 -> 0 | K71: =AN_EMIS!I56*$E71 -> 0 | L71: =AN_EMIS!J56*$E71 -> 0 | M71: =AN_EMIS!K56*$E71 -> 0 | N71: =AN_EMIS!L56*$E71 -> 0 | O71: =AN_EMIS!M56*$E71 -> 0 | P71: =AN_EMIS!N56*$E71 -> 0 | Q71: =AN_EMIS!O56*$E71 -> 0 | R71: =AN_EMIS!P56*$E71 -> 0 | S71: =AN_EMIS!Q56*$E71 -> 0 | T71: =AN_EMIS!R56*$E71 -> 0 | U71: =AN_EMIS!S56*$E71 -> 0 | V71: =AN_EMIS!T56*$E71 -> 0 | W71: =AN_EMIS!U56*$E71 -> 0 | X71: =AN_EMIS!V56*$E71 -> 0 | Y71: =AN_EMIS!W56*$E71 -> 0 | Z71: =AN_EMIS!X56*$E71 -> 0 | AA71: =AN_EMIS!Y56*$E71 -> 0 | AB71: =AN_EMIS!Z56*$E71 -> 0 | AC71: =AN_EMIS!AA56*$E71 -> 0 | AD71: =AN_EMIS!AB56*$E71 -> 0 | AE71: =AN_EMIS!AC56*$E71 -> 0 | AF71: =AN_EMIS!AD56*$E71 -> 0 | AG71: =AN_EMIS!AE56*$E71 -> 0 | AH71: =AN_EMIS!AF56*$E71 -> 0 | AI71: =AN_EMIS!AG56*$E71 -> 0 | AJ71: =AN_EMIS!AH56*$E71 -> 0 | AK71: =AN_EMIS!AI56*$E71 -> 0 | AL71: =AN_EMIS!AJ56*$E71 -> 0 | AM71: =AN_EMIS!AK56*$E71 -> 0 | AN71: =AN_EMIS!AL56*$E71 -> 0 | AO71: =AN_EMIS!AM56*$E71 -> 0 | AP71: =AN_EMIS!AN56*$E71 -> 0 | AQ71: =AN_EMIS!AO56*$E71 -> 0 | AR71: =AN_EMIS!AP56*$E71 -> 0 | AS71: =AN_EMIS!AQ56*$E71 -> 0 | AT71: =AN_EMIS!AR56*$E71 -> 0 | AU71: =AN_EMIS!AS56*$E71 -> 0 | AV71: =AN_EMIS!AT56*$E71 -> 0 | AW71: =AN_EMIS!AU56*$E71 -> 0 | AX71: =AN_EMIS!AV56*$E71 -> 0 | AY71: =AN_EMIS!AW56*$E71 -> 0 | AZ71: =AN_EMIS!AX56*$E71 -> 0 | BA71: =AN_EMIS!AY56*$E71 -> 0 | BB71: =AN_EMIS!AZ56*$E71 -> 0 | BC71: =AN_EMIS!BA56*$E71 -> 0 | BD71: =AN_EMIS!BB56*$E71 -> 0 | BE71: =AN_EMIS!BC56*$E71 -> 0 | BF71: =AN_EMIS!BD56*$E71 -> 0 | BG71: =AN_EMIS!BE56*$E71 -> 0 | BH71: =AN_EMIS!BF56*$E71 -> 0 | BI71: =AN_EMIS!BG56*$E71 -> 0 | BJ71: =AN_EMIS!BH56*$E71 -> 0 | BK71: =AN_EMIS!BI56*$E71 -> 0 | BL71: =AN_EMIS!BJ56*$E71 -> 0
A72: 53 | B72: =AN_EMIS!B57 -> 0 | C72: =IF(B72=0,".",AN_EMIS!C57) -> . | D72: =IF(B72=0,0,VLOOKUP(B72,RBC_Table!$A$10:$I$270,$A$3,)) -> 0 | E72: 0 | F72: =AN_EMIS!D57*$E72 -> 0 | G72: =AN_EMIS!E57*$E72 -> 0 | H72: =AN_EMIS!F57*$E72 -> 0 | I72: =AN_EMIS!G57*$E72 -> 0 | J72: =AN_EMIS!H57*$E72 -> 0 | K72: =AN_EMIS!I57*$E72 -> 0 | L72: =AN_EMIS!J57*$E72 -> 0 | M72: =AN_EMIS!K57*$E72 -> 0 | N72: =AN_EMIS!L57*$E72 -> 0 | O72: =AN_EMIS!M57*$E72 -> 0 | P72: =AN_EMIS!N57*$E72 -> 0 | Q72: =AN_EMIS!O57*$E72 -> 0 | R72: =AN_EMIS!P57*$E72 -> 0 | S72: =AN_EMIS!Q57*$E72 -> 0 | T72: =AN_EMIS!R57*$E72 -> 0 | U72: =AN_EMIS!S57*$E72 -> 0 | V72: =AN_EMIS!T57*$E72 -> 0 | W72: =AN_EMIS!U57*$E72 -> 0 | X72: =AN_EMIS!V57*$E72 -> 0 | Y72: =AN_EMIS!W57*$E72 -> 0 | Z72: =AN_EMIS!X57*$E72 -> 0 | AA72: =AN_EMIS!Y57*$E72 -> 0 | AB72: =AN_EMIS!Z57*$E72 -> 0 | AC72: =AN_EMIS!AA57*$E72 -> 0 | AD72: =AN_EMIS!AB57*$E72 -> 0 | AE72: =AN_EMIS!AC57*$E72 -> 0 | AF72: =AN_EMIS!AD57*$E72 -> 0 | AG72: =AN_EMIS!AE57*$E72 -> 0 | AH72: =AN_EMIS!AF57*$E72 -> 0 | AI72: =AN_EMIS!AG57*$E72 -> 0 | AJ72: =AN_EMIS!AH57*$E72 -> 0 | AK72: =AN_EMIS!AI57*$E72 -> 0 | AL72: =AN_EMIS!AJ57*$E72 -> 0 | AM72: =AN_EMIS!AK57*$E72 -> 0 | AN72: =AN_EMIS!AL57*$E72 -> 0 | AO72: =AN_EMIS!AM57*$E72 -> 0 | AP72: =AN_EMIS!AN57*$E72 -> 0 | AQ72: =AN_EMIS!AO57*$E72 -> 0 | AR72: =AN_EMIS!AP57*$E72 -> 0 | AS72: =AN_EMIS!AQ57*$E72 -> 0 | AT72: =AN_EMIS!AR57*$E72 -> 0 | AU72: =AN_EMIS!AS57*$E72 -> 0 | AV72: =AN_EMIS!AT57*$E72 -> 0 | AW72: =AN_EMIS!AU57*$E72 -> 0 | AX72: =AN_EMIS!AV57*$E72 -> 0 | AY72: =AN_EMIS!AW57*$E72 -> 0 | AZ72: =AN_EMIS!AX57*$E72 -> 0 | BA72: =AN_EMIS!AY57*$E72 -> 0 | BB72: =AN_EMIS!AZ57*$E72 -> 0 | BC72: =AN_EMIS!BA57*$E72 -> 0 | BD72: =AN_EMIS!BB57*$E72 -> 0 | BE72: =AN_EMIS!BC57*$E72 -> 0 | BF72: =AN_EMIS!BD57*$E72 -> 0 | BG72: =AN_EMIS!BE57*$E72 -> 0 | BH72: =AN_EMIS!BF57*$E72 -> 0 | BI72: =AN_EMIS!BG57*$E72 -> 0 | BJ72: =AN_EMIS!BH57*$E72 -> 0 | BK72: =AN_EMIS!BI57*$E72 -> 0 | BL72: =AN_EMIS!BJ57*$E72 -> 0
A73: 54 | B73: =AN_EMIS!B58 -> 0 | C73: =IF(B73=0,".",AN_EMIS!C58) -> . | D73: =IF(B73=0,0,VLOOKUP(B73,RBC_Table!$A$10:$I$270,$A$3,)) -> 0 | E73: 0 | F73: =AN_EMIS!D58*$E73 -> 0 | G73: =AN_EMIS!E58*$E73 -> 0 | H73: =AN_EMIS!F58*$E73 -> 0 | I73: =AN_EMIS!G58*$E73 -> 0 | J73: =AN_EMIS!H58*$E73 -> 0 | K73: =AN_EMIS!I58*$E73 -> 0 | L73: =AN_EMIS!J58*$E73 -> 0 | M73: =AN_EMIS!K58*$E73 -> 0 | N73: =AN_EMIS!L58*$E73 -> 0 | O73: =AN_EMIS!M58*$E73 -> 0 | P73: =AN_EMIS!N58*$E73 -> 0 | Q73: =AN_EMIS!O58*$E73 -> 0 | R73: =AN_EMIS!P58*$E73 -> 0 | S73: =AN_EMIS!Q58*$E73 -> 0 | T73: =AN_EMIS!R58*$E73 -> 0 | U73: =AN_EMIS!S58*$E73 -> 0 | V73: =AN_EMIS!T58*$E73 -> 0 | W73: =AN_EMIS!U58*$E73 -> 0 | X73: =AN_EMIS!V58*$E73 -> 0 | Y73: =AN_EMIS!W58*$E73 -> 0 | Z73: =AN_EMIS!X58*$E73 -> 0 | AA73: =AN_EMIS!Y58*$E73 -> 0 | AB73: =AN_EMIS!Z58*$E73 -> 0 | AC73: =AN_EMIS!AA58*$E73 -> 0 | AD73: =AN_EMIS!AB58*$E73 -> 0 | AE73: =AN_EMIS!AC58*$E73 -> 0 | AF73: =AN_EMIS!AD58*$E73 -> 0 | AG73: =AN_EMIS!AE58*$E73 -> 0 | AH73: =AN_EMIS!AF58*$E73 -> 0 | AI73: =AN_EMIS!AG58*$E73 -> 0 | AJ73: =AN_EMIS!AH58*$E73 -> 0 | AK73: =AN_EMIS!AI58*$E73 -> 0 | AL73: =AN_EMIS!AJ58*$E73 -> 0 | AM73: =AN_EMIS!AK58*$E73 -> 0 | AN73: =AN_EMIS!AL58*$E73 -> 0 | AO73: =AN_EMIS!AM58*$E73 -> 0 | AP73: =AN_EMIS!AN58*$E73 -> 0 | AQ73: =AN_EMIS!AO58*$E73 -> 0 | AR73: =AN_EMIS!AP58*$E73 -> 0 | AS73: =AN_EMIS!AQ58*$E73 -> 0 | AT73: =AN_EMIS!AR58*$E73 -> 0 | AU73: =AN_EMIS!AS58*$E73 -> 0 | AV73: =AN_EMIS!AT58*$E73 -> 0 | AW73: =AN_EMIS!AU58*$E73 -> 0 | AX73: =AN_EMIS!AV58*$E73 -> 0 | AY73: =AN_EMIS!AW58*$E73 -> 0 | AZ73: =AN_EMIS!AX58*$E73 -> 0 | BA73: =AN_EMIS!AY58*$E73 -> 0 | BB73: =AN_EMIS!AZ58*$E73 -> 0 | BC73: =AN_EMIS!BA58*$E73 -> 0 | BD73: =AN_EMIS!BB58*$E73 -> 0 | BE73: =AN_EMIS!BC58*$E73 -> 0 | BF73: =AN_EMIS!BD58*$E73 -> 0 | BG73: =AN_EMIS!BE58*$E73 -> 0 | BH73: =AN_EMIS!BF58*$E73 -> 0 | BI73: =AN_EMIS!BG58*$E73 -> 0 | BJ73: =AN_EMIS!BH58*$E73 -> 0 | BK73: =AN_EMIS!BI58*$E73 -> 0 | BL73: =AN_EMIS!BJ58*$E73 -> 0
A74: 55 | B74: =AN_EMIS!B59 -> 0 | C74: =IF(B74=0,".",AN_EMIS!C59) -> . | D74: =IF(B74=0,0,VLOOKUP(B74,RBC_Table!$A$10:$I$270,$A$3,)) -> 0 | E74: 0 | F74: =AN_EMIS!D59*$E74 -> 0 | G74: =AN_EMIS!E59*$E74 -> 0 | H74: =AN_EMIS!F59*$E74 -> 0 | I74: =AN_EMIS!G59*$E74 -> 0 | J74: =AN_EMIS!H59*$E74 -> 0 | K74: =AN_EMIS!I59*$E74 -> 0 | L74: =AN_EMIS!J59*$E74 -> 0 | M74: =AN_EMIS!K59*$E74 -> 0 | N74: =AN_EMIS!L59*$E74 -> 0 | O74: =AN_EMIS!M59*$E74 -> 0 | P74: =AN_EMIS!N59*$E74 -> 0 | Q74: =AN_EMIS!O59*$E74 -> 0 | R74: =AN_EMIS!P59*$E74 -> 0 | S74: =AN_EMIS!Q59*$E74 -> 0 | T74: =AN_EMIS!R59*$E74 -> 0 | U74: =AN_EMIS!S59*$E74 -> 0 | V74: =AN_EMIS!T59*$E74 -> 0 | W74: =AN_EMIS!U59*$E74 -> 0 | X74: =AN_EMIS!V59*$E74 -> 0 | Y74: =AN_EMIS!W59*$E74 -> 0 | Z74: =AN_EMIS!X59*$E74 -> 0 | AA74: =AN_EMIS!Y59*$E74 -> 0 | AB74: =AN_EMIS!Z59*$E74 -> 0 | AC74: =AN_EMIS!AA59*$E74 -> 0 | AD74: =AN_EMIS!AB59*$E74 -> 0 | AE74: =AN_EMIS!AC59*$E74 -> 0 | AF74: =AN_EMIS!AD59*$E74 -> 0 | AG74: =AN_EMIS!AE59*$E74 -> 0 | AH74: =AN_EMIS!AF59*$E74 -> 0 | AI74: =AN_EMIS!AG59*$E74 -> 0 | AJ74: =AN_EMIS!AH59*$E74 -> 0 | AK74: =AN_EMIS!AI59*$E74 -> 0 | AL74: =AN_EMIS!AJ59*$E74 -> 0 | AM74: =AN_EMIS!AK59*$E74 -> 0 | AN74: =AN_EMIS!AL59*$E74 -> 0 | AO74: =AN_EMIS!AM59*$E74 -> 0 | AP74: =AN_EMIS!AN59*$E74 -> 0 | AQ74: =AN_EMIS!AO59*$E74 -> 0 | AR74: =AN_EMIS!AP59*$E74 -> 0 | AS74: =AN_EMIS!AQ59*$E74 -> 0 | AT74: =AN_EMIS!AR59*$E74 -> 0 | AU74: =AN_EMIS!AS59*$E74 -> 0 | AV74: =AN_EMIS!AT59*$E74 -> 0 | AW74: =AN_EMIS!AU59*$E74 -> 0 | AX74: =AN_EMIS!AV59*$E74 -> 0 | AY74: =AN_EMIS!AW59*$E74 -> 0 | AZ74: =AN_EMIS!AX59*$E74 -> 0 | BA74: =AN_EMIS!AY59*$E74 -> 0 | BB74: =AN_EMIS!AZ59*$E74 -> 0 | BC74: =AN_EMIS!BA59*$E74 -> 0 | BD74: =AN_EMIS!BB59*$E74 -> 0 | BE74: =AN_EMIS!BC59*$E74 -> 0 | BF74: =AN_EMIS!BD59*$E74 -> 0 | BG74: =AN_EMIS!BE59*$E74 -> 0 | BH74: =AN_EMIS!BF59*$E74 -> 0 | BI74: =AN_EMIS!BG59*$E74 -> 0 | BJ74: =AN_EMIS!BH59*$E74 -> 0 | BK74: =AN_EMIS!BI59*$E74 -> 0 | BL74: =AN_EMIS!BJ59*$E74 -> 0
A75: 56 | B75: =AN_EMIS!B60 -> 0 | C75: =IF(B75=0,".",AN_EMIS!C60) -> . | D75: =IF(B75=0,0,VLOOKUP(B75,RBC_Table!$A$10:$I$270,$A$3,)) -> 0 | E75: 0 | F75: =AN_EMIS!D60*$E75 -> 0 | G75: =AN_EMIS!E60*$E75 -> 0 | H75: =AN_EMIS!F60*$E75 -> 0 | I75: =AN_EMIS!G60*$E75 -> 0 | J75: =AN_EMIS!H60*$E75 -> 0 | K75: =AN_EMIS!I60*$E75 -> 0 | L75: =AN_EMIS!J60*$E75 -> 0 | M75: =AN_EMIS!K60*$E75 -> 0 | N75: =AN_EMIS!L60*$E75 -> 0 | O75: =AN_EMIS!M60*$E75 -> 0 | P75: =AN_EMIS!N60*$E75 -> 0 | Q75: =AN_EMIS!O60*$E75 -> 0 | R75: =AN_EMIS!P60*$E75 -> 0 | S75: =AN_EMIS!Q60*$E75 -> 0 | T75: =AN_EMIS!R60*$E75 -> 0 | U75: =AN_EMIS!S60*$E75 -> 0 | V75: =AN_EMIS!T60*$E75 -> 0 | W75: =AN_EMIS!U60*$E75 -> 0 | X75: =AN_EMIS!V60*$E75 -> 0 | Y75: =AN_EMIS!W60*$E75 -> 0 | Z75: =AN_EMIS!X60*$E75 -> 0 | AA75: =AN_EMIS!Y60*$E75 -> 0 | AB75: =AN_EMIS!Z60*$E75 -> 0 | AC75: =AN_EMIS!AA60*$E75 -> 0 | AD75: =AN_EMIS!AB60*$E75 -> 0 | AE75: =AN_EMIS!AC60*$E75 -> 0 | AF75: =AN_EMIS!AD60*$E75 -> 0 | AG75: =AN_EMIS!AE60*$E75 -> 0 | AH75: =AN_EMIS!AF60*$E75 -> 0 | AI75: =AN_EMIS!AG60*$E75 -> 0 | AJ75: =AN_EMIS!AH60*$E75 -> 0 | AK75: =AN_EMIS!AI60*$E75 -> 0 | AL75: =AN_EMIS!AJ60*$E75 -> 0 | AM75: =AN_EMIS!AK60*$E75 -> 0 | AN75: =AN_EMIS!AL60*$E75 -> 0 | AO75: =AN_EMIS!AM60*$E75 -> 0 | AP75: =AN_EMIS!AN60*$E75 -> 0 | AQ75: =AN_EMIS!AO60*$E75 -> 0 | AR75: =AN_EMIS!AP60*$E75 -> 0 | AS75: =AN_EMIS!AQ60*$E75 -> 0 | AT75: =AN_EMIS!AR60*$E75 -> 0 | AU75: =AN_EMIS!AS60*$E75 -> 0 | AV75: =AN_EMIS!AT60*$E75 -> 0 | AW75: =AN_EMIS!AU60*$E75 -> 0 | AX75: =AN_EMIS!AV60*$E75 -> 0 | AY75: =AN_EMIS!AW60*$E75 -> 0 | AZ75: =AN_EMIS!AX60*$E75 -> 0 | BA75: =AN_EMIS!AY60*$E75 -> 0 | BB75: =AN_EMIS!AZ60*$E75 -> 0 | BC75: =AN_EMIS!BA60*$E75 -> 0 | BD75: =AN_EMIS!BB60*$E75 -> 0 | BE75: =AN_EMIS!BC60*$E75 -> 0 | BF75: =AN_EMIS!BD60*$E75 -> 0 | BG75: =AN_EMIS!BE60*$E75 -> 0 | BH75: =AN_EMIS!BF60*$E75 -> 0 | BI75: =AN_EMIS!BG60*$E75 -> 0 | BJ75: =AN_EMIS!BH60*$E75 -> 0 | BK75: =AN_EMIS!BI60*$E75 -> 0 | BL75: =AN_EMIS!BJ60*$E75 -> 0
A76: 57 | B76: =AN_EMIS!B61 -> 0 | C76: =IF(B76=0,".",AN_EMIS!C61) -> . | D76: =IF(B76=0,0,VLOOKUP(B76,RBC_Table!$A$10:$I$270,$A$3,)) -> 0 | E76: 0 | F76: =AN_EMIS!D61*$E76 -> 0 | G76: =AN_EMIS!E61*$E76 -> 0 | H76: =AN_EMIS!F61*$E76 -> 0 | I76: =AN_EMIS!G61*$E76 -> 0 | J76: =AN_EMIS!H61*$E76 -> 0 | K76: =AN_EMIS!I61*$E76 -> 0 | L76: =AN_EMIS!J61*$E76 -> 0 | M76: =AN_EMIS!K61*$E76 -> 0 | N76: =AN_EMIS!L61*$E76 -> 0 | O76: =AN_EMIS!M61*$E76 -> 0 | P76: =AN_EMIS!N61*$E76 -> 0 | Q76: =AN_EMIS!O61*$E76 -> 0 | R76: =AN_EMIS!P61*$E76 -> 0 | S76: =AN_EMIS!Q61*$E76 -> 0 | T76: =AN_EMIS!R61*$E76 -> 0 | U76: =AN_EMIS!S61*$E76 -> 0 | V76: =AN_EMIS!T61*$E76 -> 0 | W76: =AN_EMIS!U61*$E76 -> 0 | X76: =AN_EMIS!V61*$E76 -> 0 | Y76: =AN_EMIS!W61*$E76 -> 0 | Z76: =AN_EMIS!X61*$E76 -> 0 | AA76: =AN_EMIS!Y61*$E76 -> 0 | AB76: =AN_EMIS!Z61*$E76 -> 0 | AC76: =AN_EMIS!AA61*$E76 -> 0 | AD76: =AN_EMIS!AB61*$E76 -> 0 | AE76: =AN_EMIS!AC61*$E76 -> 0 | AF76: =AN_EMIS!AD61*$E76 -> 0 | AG76: =AN_EMIS!AE61*$E76 -> 0 | AH76: =AN_EMIS!AF61*$E76 -> 0 | AI76: =AN_EMIS!AG61*$E76 -> 0 | AJ76: =AN_EMIS!AH61*$E76 -> 0 | AK76: =AN_EMIS!AI61*$E76 -> 0 | AL76: =AN_EMIS!AJ61*$E76 -> 0 | AM76: =AN_EMIS!AK61*$E76 -> 0 | AN76: =AN_EMIS!AL61*$E76 -> 0 | AO76: =AN_EMIS!AM61*$E76 -> 0 | AP76: =AN_EMIS!AN61*$E76 -> 0 | AQ76: =AN_EMIS!AO61*$E76 -> 0 | AR76: =AN_EMIS!AP61*$E76 -> 0 | AS76: =AN_EMIS!AQ61*$E76 -> 0 | AT76: =AN_EMIS!AR61*$E76 -> 0 | AU76: =AN_EMIS!AS61*$E76 -> 0 | AV76: =AN_EMIS!AT61*$E76 -> 0 | AW76: =AN_EMIS!AU61*$E76 -> 0 | AX76: =AN_EMIS!AV61*$E76 -> 0 | AY76: =AN_EMIS!AW61*$E76 -> 0 | AZ76: =AN_EMIS!AX61*$E76 -> 0 | BA76: =AN_EMIS!AY61*$E76 -> 0 | BB76: =AN_EMIS!AZ61*$E76 -> 0 | BC76: =AN_EMIS!BA61*$E76 -> 0 | BD76: =AN_EMIS!BB61*$E76 -> 0 | BE76: =AN_EMIS!BC61*$E76 -> 0 | BF76: =AN_EMIS!BD61*$E76 -> 0 | BG76: =AN_EMIS!BE61*$E76 -> 0 | BH76: =AN_EMIS!BF61*$E76 -> 0 | BI76: =AN_EMIS!BG61*$E76 -> 0 | BJ76: =AN_EMIS!BH61*$E76 -> 0 | BK76: =AN_EMIS!BI61*$E76 -> 0 | BL76: =AN_EMIS!BJ61*$E76 -> 0
A77: 58 | B77: =AN_EMIS!B62 -> 0 | C77: =IF(B77=0,".",AN_EMIS!C62) -> . | D77: =IF(B77=0,0,VLOOKUP(B77,RBC_Table!$A$10:$I$270,$A$3,)) -> 0 | E77: 0 | F77: =AN_EMIS!D62*$E77 -> 0 | G77: =AN_EMIS!E62*$E77 -> 0 | H77: =AN_EMIS!F62*$E77 -> 0 | I77: =AN_EMIS!G62*$E77 -> 0 | J77: =AN_EMIS!H62*$E77 -> 0 | K77: =AN_EMIS!I62*$E77 -> 0 | L77: =AN_EMIS!J62*$E77 -> 0 | M77: =AN_EMIS!K62*$E77 -> 0 | N77: =AN_EMIS!L62*$E77 -> 0 | O77: =AN_EMIS!M62*$E77 -> 0 | P77: =AN_EMIS!N62*$E77 -> 0 | Q77: =AN_EMIS!O62*$E77 -> 0 | R77: =AN_EMIS!P62*$E77 -> 0 | S77: =AN_EMIS!Q62*$E77 -> 0 | T77: =AN_EMIS!R62*$E77 -> 0 | U77: =AN_EMIS!S62*$E77 -> 0 | V77: =AN_EMIS!T62*$E77 -> 0 | W77: =AN_EMIS!U62*$E77 -> 0 | X77: =AN_EMIS!V62*$E77 -> 0 | Y77: =AN_EMIS!W62*$E77 -> 0 | Z77: =AN_EMIS!X62*$E77 -> 0 | AA77: =AN_EMIS!Y62*$E77 -> 0 | AB77: =AN_EMIS!Z62*$E77 -> 0 | AC77: =AN_EMIS!AA62*$E77 -> 0 | AD77: =AN_EMIS!AB62*$E77 -> 0 | AE77: =AN_EMIS!AC62*$E77 -> 0 | AF77: =AN_EMIS!AD62*$E77 -> 0 | AG77: =AN_EMIS!AE62*$E77 -> 0 | AH77: =AN_EMIS!AF62*$E77 -> 0 | AI77: =AN_EMIS!AG62*$E77 -> 0 | AJ77: =AN_EMIS!AH62*$E77 -> 0 | AK77: =AN_EMIS!AI62*$E77 -> 0 | AL77: =AN_EMIS!AJ62*$E77 -> 0 | AM77: =AN_EMIS!AK62*$E77 -> 0 | AN77: =AN_EMIS!AL62*$E77 -> 0 | AO77: =AN_EMIS!AM62*$E77 -> 0 | AP77: =AN_EMIS!AN62*$E77 -> 0 | AQ77: =AN_EMIS!AO62*$E77 -> 0 | AR77: =AN_EMIS!AP62*$E77 -> 0 | AS77: =AN_EMIS!AQ62*$E77 -> 0 | AT77: =AN_EMIS!AR62*$E77 -> 0 | AU77: =AN_EMIS!AS62*$E77 -> 0 | AV77: =AN_EMIS!AT62*$E77 -> 0 | AW77: =AN_EMIS!AU62*$E77 -> 0 | AX77: =AN_EMIS!AV62*$E77 -> 0 | AY77: =AN_EMIS!AW62*$E77 -> 0 | AZ77: =AN_EMIS!AX62*$E77 -> 0 | BA77: =AN_EMIS!AY62*$E77 -> 0 | BB77: =AN_EMIS!AZ62*$E77 -> 0 | BC77: =AN_EMIS!BA62*$E77 -> 0 | BD77: =AN_EMIS!BB62*$E77 -> 0 | BE77: =AN_EMIS!BC62*$E77 -> 0 | BF77: =AN_EMIS!BD62*$E77 -> 0 | BG77: =AN_EMIS!BE62*$E77 -> 0 | BH77: =AN_EMIS!BF62*$E77 -> 0 | BI77: =AN_EMIS!BG62*$E77 -> 0 | BJ77: =AN_EMIS!BH62*$E77 -> 0 | BK77: =AN_EMIS!BI62*$E77 -> 0 | BL77: =AN_EMIS!BJ62*$E77 -> 0
A78: 59 | B78: =AN_EMIS!B63 -> 0 | C78: =IF(B78=0,".",AN_EMIS!C63) -> . | D78: =IF(B78=0,0,VLOOKUP(B78,RBC_Table!$A$10:$I$270,$A$3,)) -> 0 | E78: 0 | F78: =AN_EMIS!D63*$E78 -> 0 | G78: =AN_EMIS!E63*$E78 -> 0 | H78: =AN_EMIS!F63*$E78 -> 0 | I78: =AN_EMIS!G63*$E78 -> 0 | J78: =AN_EMIS!H63*$E78 -> 0 | K78: =AN_EMIS!I63*$E78 -> 0 | L78: =AN_EMIS!J63*$E78 -> 0 | M78: =AN_EMIS!K63*$E78 -> 0 | N78: =AN_EMIS!L63*$E78 -> 0 | O78: =AN_EMIS!M63*$E78 -> 0 | P78: =AN_EMIS!N63*$E78 -> 0 | Q78: =AN_EMIS!O63*$E78 -> 0 | R78: =AN_EMIS!P63*$E78 -> 0 | S78: =AN_EMIS!Q63*$E78 -> 0 | T78: =AN_EMIS!R63*$E78 -> 0 | U78: =AN_EMIS!S63*$E78 -> 0 | V78: =AN_EMIS!T63*$E78 -> 0 | W78: =AN_EMIS!U63*$E78 -> 0 | X78: =AN_EMIS!V63*$E78 -> 0 | Y78: =AN_EMIS!W63*$E78 -> 0 | Z78: =AN_EMIS!X63*$E78 -> 0 | AA78: =AN_EMIS!Y63*$E78 -> 0 | AB78: =AN_EMIS!Z63*$E78 -> 0 | AC78: =AN_EMIS!AA63*$E78 -> 0 | AD78: =AN_EMIS!AB63*$E78 -> 0 | AE78: =AN_EMIS!AC63*$E78 -> 0 | AF78: =AN_EMIS!AD63*$E78 -> 0 | AG78: =AN_EMIS!AE63*$E78 -> 0 | AH78: =AN_EMIS!AF63*$E78 -> 0 | AI78: =AN_EMIS!AG63*$E78 -> 0 | AJ78: =AN_EMIS!AH63*$E78 -> 0 | AK78: =AN_EMIS!AI63*$E78 -> 0 | AL78: =AN_EMIS!AJ63*$E78 -> 0 | AM78: =AN_EMIS!AK63*$E78 -> 0 | AN78: =AN_EMIS!AL63*$E78 -> 0 | AO78: =AN_EMIS!AM63*$E78 -> 0 | AP78: =AN_EMIS!AN63*$E78 -> 0 | AQ78: =AN_EMIS!AO63*$E78 -> 0 | AR78: =AN_EMIS!AP63*$E78 -> 0 | AS78: =AN_EMIS!AQ63*$E78 -> 0 | AT78: =AN_EMIS!AR63*$E78 -> 0 | AU78: =AN_EMIS!AS63*$E78 -> 0 | AV78: =AN_EMIS!AT63*$E78 -> 0 | AW78: =AN_EMIS!AU63*$E78 -> 0 | AX78: =AN_EMIS!AV63*$E78 -> 0 | AY78: =AN_EMIS!AW63*$E78 -> 0 | AZ78: =AN_EMIS!AX63*$E78 -> 0 | BA78: =AN_EMIS!AY63*$E78 -> 0 | BB78: =AN_EMIS!AZ63*$E78 -> 0 | BC78: =AN_EMIS!BA63*$E78 -> 0 | BD78: =AN_EMIS!BB63*$E78 -> 0 | BE78: =AN_EMIS!BC63*$E78 -> 0 | BF78: =AN_EMIS!BD63*$E78 -> 0 | BG78: =AN_EMIS!BE63*$E78 -> 0 | BH78: =AN_EMIS!BF63*$E78 -> 0 | BI78: =AN_EMIS!BG63*$E78 -> 0 | BJ78: =AN_EMIS!BH63*$E78 -> 0 | BK78: =AN_EMIS!BI63*$E78 -> 0 | BL78: =AN_EMIS!BJ63*$E78 -> 0
A79: 60 | B79: =AN_EMIS!B64 -> 0 | C79: =IF(B79=0,".",AN_EMIS!C64) -> . | D79: =IF(B79=0,0,VLOOKUP(B79,RBC_Table!$A$10:$I$270,$A$3,)) -> 0 | E79: 0 | F79: =AN_EMIS!D64*$E79 -> 0 | G79: =AN_EMIS!E64*$E79 -> 0 | H79: =AN_EMIS!F64*$E79 -> 0 | I79: =AN_EMIS!G64*$E79 -> 0 | J79: =AN_EMIS!H64*$E79 -> 0 | K79: =AN_EMIS!I64*$E79 -> 0 | L79: =AN_EMIS!J64*$E79 -> 0 | M79: =AN_EMIS!K64*$E79 -> 0 | N79: =AN_EMIS!L64*$E79 -> 0 | O79: =AN_EMIS!M64*$E79 -> 0 | P79: =AN_EMIS!N64*$E79 -> 0 | Q79: =AN_EMIS!O64*$E79 -> 0 | R79: =AN_EMIS!P64*$E79 -> 0 | S79: =AN_EMIS!Q64*$E79 -> 0 | T79: =AN_EMIS!R64*$E79 -> 0 | U79: =AN_EMIS!S64*$E79 -> 0 | V79: =AN_EMIS!T64*$E79 -> 0 | W79: =AN_EMIS!U64*$E79 -> 0 | X79: =AN_EMIS!V64*$E79 -> 0 | Y79: =AN_EMIS!W64*$E79 -> 0 | Z79: =AN_EMIS!X64*$E79 -> 0 | AA79: =AN_EMIS!Y64*$E79 -> 0 | AB79: =AN_EMIS!Z64*$E79 -> 0 | AC79: =AN_EMIS!AA64*$E79 -> 0 | AD79: =AN_EMIS!AB64*$E79 -> 0 | AE79: =AN_EMIS!AC64*$E79 -> 0 | AF79: =AN_EMIS!AD64*$E79 -> 0 | AG79: =AN_EMIS!AE64*$E79 -> 0 | AH79: =AN_EMIS!AF64*$E79 -> 0 | AI79: =AN_EMIS!AG64*$E79 -> 0 | AJ79: =AN_EMIS!AH64*$E79 -> 0 | AK79: =AN_EMIS!AI64*$E79 -> 0 | AL79: =AN_EMIS!AJ64*$E79 -> 0 | AM79: =AN_EMIS!AK64*$E79 -> 0 | AN79: =AN_EMIS!AL64*$E79 -> 0 | AO79: =AN_EMIS!AM64*$E79 -> 0 | AP79: =AN_EMIS!AN64*$E79 -> 0 | AQ79: =AN_EMIS!AO64*$E79 -> 0 | AR79: =AN_EMIS!AP64*$E79 -> 0 | AS79: =AN_EMIS!AQ64*$E79 -> 0 | AT79: =AN_EMIS!AR64*$E79 -> 0 | AU79: =AN_EMIS!AS64*$E79 -> 0 | AV79: =AN_EMIS!AT64*$E79 -> 0 | AW79: =AN_EMIS!AU64*$E79 -> 0 | AX79: =AN_EMIS!AV64*$E79 -> 0 | AY79: =AN_EMIS!AW64*$E79 -> 0 | AZ79: =AN_EMIS!AX64*$E79 -> 0 | BA79: =AN_EMIS!AY64*$E79 -> 0 | BB79: =AN_EMIS!AZ64*$E79 -> 0 | BC79: =AN_EMIS!BA64*$E79 -> 0 | BD79: =AN_EMIS!BB64*$E79 -> 0 | BE79: =AN_EMIS!BC64*$E79 -> 0 | BF79: =AN_EMIS!BD64*$E79 -> 0 | BG79: =AN_EMIS!BE64*$E79 -> 0 | BH79: =AN_EMIS!BF64*$E79 -> 0 | BI79: =AN_EMIS!BG64*$E79 -> 0 | BJ79: =AN_EMIS!BH64*$E79 -> 0 | BK79: =AN_EMIS!BI64*$E79 -> 0 | BL79: =AN_EMIS!BJ64*$E79 -> 0
A80: 61 | B80: =AN_EMIS!B65 -> 0 | C80: =IF(B80=0,".",AN_EMIS!C65) -> . | D80: =IF(B80=0,0,VLOOKUP(B80,RBC_Table!$A$10:$I$270,$A$3,)) -> 0 | E80: 0 | F80: =AN_EMIS!D65*$E80 -> 0 | G80: =AN_EMIS!E65*$E80 -> 0 | H80: =AN_EMIS!F65*$E80 -> 0 | I80: =AN_EMIS!G65*$E80 -> 0 | J80: =AN_EMIS!H65*$E80 -> 0 | K80: =AN_EMIS!I65*$E80 -> 0 | L80: =AN_EMIS!J65*$E80 -> 0 | M80: =AN_EMIS!K65*$E80 -> 0 | N80: =AN_EMIS!L65*$E80 -> 0 | O80: =AN_EMIS!M65*$E80 -> 0 | P80: =AN_EMIS!N65*$E80 -> 0 | Q80: =AN_EMIS!O65*$E80 -> 0 | R80: =AN_EMIS!P65*$E80 -> 0 | S80: =AN_EMIS!Q65*$E80 -> 0 | T80: =AN_EMIS!R65*$E80 -> 0 | U80: =AN_EMIS!S65*$E80 -> 0 | V80: =AN_EMIS!T65*$E80 -> 0 | W80: =AN_EMIS!U65*$E80 -> 0 | X80: =AN_EMIS!V65*$E80 -> 0 | Y80: =AN_EMIS!W65*$E80 -> 0 | Z80: =AN_EMIS!X65*$E80 -> 0 | AA80: =AN_EMIS!Y65*$E80 -> 0 | AB80: =AN_EMIS!Z65*$E80 -> 0 | AC80: =AN_EMIS!AA65*$E80 -> 0 | AD80: =AN_EMIS!AB65*$E80 -> 0 | AE80: =AN_EMIS!AC65*$E80 -> 0 | AF80: =AN_EMIS!AD65*$E80 -> 0 | AG80: =AN_EMIS!AE65*$E80 -> 0 | AH80: =AN_EMIS!AF65*$E80 -> 0 | AI80: =AN_EMIS!AG65*$E80 -> 0 | AJ80: =AN_EMIS!AH65*$E80 -> 0 | AK80: =AN_EMIS!AI65*$E80 -> 0 | AL80: =AN_EMIS!AJ65*$E80 -> 0 | AM80: =AN_EMIS!AK65*$E80 -> 0 | AN80: =AN_EMIS!AL65*$E80 -> 0 | AO80: =AN_EMIS!AM65*$E80 -> 0 | AP80: =AN_EMIS!AN65*$E80 -> 0 | AQ80: =AN_EMIS!AO65*$E80 -> 0 | AR80: =AN_EMIS!AP65*$E80 -> 0 | AS80: =AN_EMIS!AQ65*$E80 -> 0 | AT80: =AN_EMIS!AR65*$E80 -> 0 | AU80: =AN_EMIS!AS65*$E80 -> 0 | AV80: =AN_EMIS!AT65*$E80 -> 0 | AW80: =AN_EMIS!AU65*$E80 -> 0 | AX80: =AN_EMIS!AV65*$E80 -> 0 | AY80: =AN_EMIS!AW65*$E80 -> 0 | AZ80: =AN_EMIS!AX65*$E80 -> 0 | BA80: =AN_EMIS!AY65*$E80 -> 0 | BB80: =AN_EMIS!AZ65*$E80 -> 0 | BC80: =AN_EMIS!BA65*$E80 -> 0 | BD80: =AN_EMIS!BB65*$E80 -> 0 | BE80: =AN_EMIS!BC65*$E80 -> 0 | BF80: =AN_EMIS!BD65*$E80 -> 0 | BG80: =AN_EMIS!BE65*$E80 -> 0 | BH80: =AN_EMIS!BF65*$E80 -> 0 | BI80: =AN_EMIS!BG65*$E80 -> 0 | BJ80: =AN_EMIS!BH65*$E80 -> 0 | BK80: =AN_EMIS!BI65*$E80 -> 0 | BL80: =AN_EMIS!BJ65*$E80 -> 0
A81: 62 | B81: =AN_EMIS!B66 -> 0 | C81: =IF(B81=0,".",AN_EMIS!C66) -> . | D81: =IF(B81=0,0,VLOOKUP(B81,RBC_Table!$A$10:$I$270,$A$3,)) -> 0 | E81: 0 | F81: =AN_EMIS!D66*$E81 -> 0 | G81: =AN_EMIS!E66*$E81 -> 0 | H81: =AN_EMIS!F66*$E81 -> 0 | I81: =AN_EMIS!G66*$E81 -> 0 | J81: =AN_EMIS!H66*$E81 -> 0 | K81: =AN_EMIS!I66*$E81 -> 0 | L81: =AN_EMIS!J66*$E81 -> 0 | M81: =AN_EMIS!K66*$E81 -> 0 | N81: =AN_EMIS!L66*$E81 -> 0 | O81: =AN_EMIS!M66*$E81 -> 0 | P81: =AN_EMIS!N66*$E81 -> 0 | Q81: =AN_EMIS!O66*$E81 -> 0 | R81: =AN_EMIS!P66*$E81 -> 0 | S81: =AN_EMIS!Q66*$E81 -> 0 | T81: =AN_EMIS!R66*$E81 -> 0 | U81: =AN_EMIS!S66*$E81 -> 0 | V81: =AN_EMIS!T66*$E81 -> 0 | W81: =AN_EMIS!U66*$E81 -> 0 | X81: =AN_EMIS!V66*$E81 -> 0 | Y81: =AN_EMIS!W66*$E81 -> 0 | Z81: =AN_EMIS!X66*$E81 -> 0 | AA81: =AN_EMIS!Y66*$E81 -> 0 | AB81: =AN_EMIS!Z66*$E81 -> 0 | AC81: =AN_EMIS!AA66*$E81 -> 0 | AD81: =AN_EMIS!AB66*$E81 -> 0 | AE81: =AN_EMIS!AC66*$E81 -> 0 | AF81: =AN_EMIS!AD66*$E81 -> 0 | AG81: =AN_EMIS!AE66*$E81 -> 0 | AH81: =AN_EMIS!AF66*$E81 -> 0 | AI81: =AN_EMIS!AG66*$E81 -> 0 | AJ81: =AN_EMIS!AH66*$E81 -> 0 | AK81: =AN_EMIS!AI66*$E81 -> 0 | AL81: =AN_EMIS!AJ66*$E81 -> 0 | AM81: =AN_EMIS!AK66*$E81 -> 0 | AN81: =AN_EMIS!AL66*$E81 -> 0 | AO81: =AN_EMIS!AM66*$E81 -> 0 | AP81: =AN_EMIS!AN66*$E81 -> 0 | AQ81: =AN_EMIS!AO66*$E81 -> 0 | AR81: =AN_EMIS!AP66*$E81 -> 0 | AS81: =AN_EMIS!AQ66*$E81 -> 0 | AT81: =AN_EMIS!AR66*$E81 -> 0 | AU81: =AN_EMIS!AS66*$E81 -> 0 | AV81: =AN_EMIS!AT66*$E81 -> 0 | AW81: =AN_EMIS!AU66*$E81 -> 0 | AX81: =AN_EMIS!AV66*$E81 -> 0 | AY81: =AN_EMIS!AW66*$E81 -> 0 | AZ81: =AN_EMIS!AX66*$E81 -> 0 | BA81: =AN_EMIS!AY66*$E81 -> 0 | BB81: =AN_EMIS!AZ66*$E81 -> 0 | BC81: =AN_EMIS!BA66*$E81 -> 0 | BD81: =AN_EMIS!BB66*$E81 -> 0 | BE81: =AN_EMIS!BC66*$E81 -> 0 | BF81: =AN_EMIS!BD66*$E81 -> 0 | BG81: =AN_EMIS!BE66*$E81 -> 0 | BH81: =AN_EMIS!BF66*$E81 -> 0 | BI81: =AN_EMIS!BG66*$E81 -> 0 | BJ81: =AN_EMIS!BH66*$E81 -> 0 | BK81: =AN_EMIS!BI66*$E81 -> 0 | BL81: =AN_EMIS!BJ66*$E81 -> 0
A82: 63 | B82: =AN_EMIS!B67 -> 0 | C82: =IF(B82=0,".",AN_EMIS!C67) -> . | D82: =IF(B82=0,0,VLOOKUP(B82,RBC_Table!$A$10:$I$270,$A$3,)) -> 0 | E82: 0 | F82: =AN_EMIS!D67*$E82 -> 0 | G82: =AN_EMIS!E67*$E82 -> 0 | H82: =AN_EMIS!F67*$E82 -> 0 | I82: =AN_EMIS!G67*$E82 -> 0 | J82: =AN_EMIS!H67*$E82 -> 0 | K82: =AN_EMIS!I67*$E82 -> 0 | L82: =AN_EMIS!J67*$E82 -> 0 | M82: =AN_EMIS!K67*$E82 -> 0 | N82: =AN_EMIS!L67*$E82 -> 0 | O82: =AN_EMIS!M67*$E82 -> 0 | P82: =AN_EMIS!N67*$E82 -> 0 | Q82: =AN_EMIS!O67*$E82 -> 0 | R82: =AN_EMIS!P67*$E82 -> 0 | S82: =AN_EMIS!Q67*$E82 -> 0 | T82: =AN_EMIS!R67*$E82 -> 0 | U82: =AN_EMIS!S67*$E82 -> 0 | V82: =AN_EMIS!T67*$E82 -> 0 | W82: =AN_EMIS!U67*$E82 -> 0 | X82: =AN_EMIS!V67*$E82 -> 0 | Y82: =AN_EMIS!W67*$E82 -> 0 | Z82: =AN_EMIS!X67*$E82 -> 0 | AA82: =AN_EMIS!Y67*$E82 -> 0 | AB82: =AN_EMIS!Z67*$E82 -> 0 | AC82: =AN_EMIS!AA67*$E82 -> 0 | AD82: =AN_EMIS!AB67*$E82 -> 0 | AE82: =AN_EMIS!AC67*$E82 -> 0 | AF82: =AN_EMIS!AD67*$E82 -> 0 | AG82: =AN_EMIS!AE67*$E82 -> 0 | AH82: =AN_EMIS!AF67*$E82 -> 0 | AI82: =AN_EMIS!AG67*$E82 -> 0 | AJ82: =AN_EMIS!AH67*$E82 -> 0 | AK82: =AN_EMIS!AI67*$E82 -> 0 | AL82: =AN_EMIS!AJ67*$E82 -> 0 | AM82: =AN_EMIS!AK67*$E82 -> 0 | AN82: =AN_EMIS!AL67*$E82 -> 0 | AO82: =AN_EMIS!AM67*$E82 -> 0 | AP82: =AN_EMIS!AN67*$E82 -> 0 | AQ82: =AN_EMIS!AO67*$E82 -> 0 | AR82: =AN_EMIS!AP67*$E82 -> 0 | AS82: =AN_EMIS!AQ67*$E82 -> 0 | AT82: =AN_EMIS!AR67*$E82 -> 0 | AU82: =AN_EMIS!AS67*$E82 -> 0 | AV82: =AN_EMIS!AT67*$E82 -> 0 | AW82: =AN_EMIS!AU67*$E82 -> 0 | AX82: =AN_EMIS!AV67*$E82 -> 0 | AY82: =AN_EMIS!AW67*$E82 -> 0 | AZ82: =AN_EMIS!AX67*$E82 -> 0 | BA82: =AN_EMIS!AY67*$E82 -> 0 | BB82: =AN_EMIS!AZ67*$E82 -> 0 | BC82: =AN_EMIS!BA67*$E82 -> 0 | BD82: =AN_EMIS!BB67*$E82 -> 0 | BE82: =AN_EMIS!BC67*$E82 -> 0 | BF82: =AN_EMIS!BD67*$E82 -> 0 | BG82: =AN_EMIS!BE67*$E82 -> 0 | BH82: =AN_EMIS!BF67*$E82 -> 0 | BI82: =AN_EMIS!BG67*$E82 -> 0 | BJ82: =AN_EMIS!BH67*$E82 -> 0 | BK82: =AN_EMIS!BI67*$E82 -> 0 | BL82: =AN_EMIS!BJ67*$E82 -> 0
A83: 64 | B83: =AN_EMIS!B68 -> 0 | C83: =IF(B83=0,".",AN_EMIS!C68) -> . | D83: =IF(B83=0,0,VLOOKUP(B83,RBC_Table!$A$10:$I$270,$A$3,)) -> 0 | E83: 0 | F83: =AN_EMIS!D68*$E83 -> 0 | G83: =AN_EMIS!E68*$E83 -> 0 | H83: =AN_EMIS!F68*$E83 -> 0 | I83: =AN_EMIS!G68*$E83 -> 0 | J83: =AN_EMIS!H68*$E83 -> 0 | K83: =AN_EMIS!I68*$E83 -> 0 | L83: =AN_EMIS!J68*$E83 -> 0 | M83: =AN_EMIS!K68*$E83 -> 0 | N83: =AN_EMIS!L68*$E83 -> 0 | O83: =AN_EMIS!M68*$E83 -> 0 | P83: =AN_EMIS!N68*$E83 -> 0 | Q83: =AN_EMIS!O68*$E83 -> 0 | R83: =AN_EMIS!P68*$E83 -> 0 | S83: =AN_EMIS!Q68*$E83 -> 0 | T83: =AN_EMIS!R68*$E83 -> 0 | U83: =AN_EMIS!S68*$E83 -> 0 | V83: =AN_EMIS!T68*$E83 -> 0 | W83: =AN_EMIS!U68*$E83 -> 0 | X83: =AN_EMIS!V68*$E83 -> 0 | Y83: =AN_EMIS!W68*$E83 -> 0 | Z83: =AN_EMIS!X68*$E83 -> 0 | AA83: =AN_EMIS!Y68*$E83 -> 0 | AB83: =AN_EMIS!Z68*$E83 -> 0 | AC83: =AN_EMIS!AA68*$E83 -> 0 | AD83: =AN_EMIS!AB68*$E83 -> 0 | AE83: =AN_EMIS!AC68*$E83 -> 0 | AF83: =AN_EMIS!AD68*$E83 -> 0 | AG83: =AN_EMIS!AE68*$E83 -> 0 | AH83: =AN_EMIS!AF68*$E83 -> 0 | AI83: =AN_EMIS!AG68*$E83 -> 0 | AJ83: =AN_EMIS!AH68*$E83 -> 0 | AK83: =AN_EMIS!AI68*$E83 -> 0 | AL83: =AN_EMIS!AJ68*$E83 -> 0 | AM83: =AN_EMIS!AK68*$E83 -> 0 | AN83: =AN_EMIS!AL68*$E83 -> 0 | AO83: =AN_EMIS!AM68*$E83 -> 0 | AP83: =AN_EMIS!AN68*$E83 -> 0 | AQ83: =AN_EMIS!AO68*$E83 -> 0 | AR83: =AN_EMIS!AP68*$E83 -> 0 | AS83: =AN_EMIS!AQ68*$E83 -> 0 | AT83: =AN_EMIS!AR68*$E83 -> 0 | AU83: =AN_EMIS!AS68*$E83 -> 0 | AV83: =AN_EMIS!AT68*$E83 -> 0 | AW83: =AN_EMIS!AU68*$E83 -> 0 | AX83: =AN_EMIS!AV68*$E83 -> 0 | AY83: =AN_EMIS!AW68*$E83 -> 0 | AZ83: =AN_EMIS!AX68*$E83 -> 0 | BA83: =AN_EMIS!AY68*$E83 -> 0 | BB83: =AN_EMIS!AZ68*$E83 -> 0 | BC83: =AN_EMIS!BA68*$E83 -> 0 | BD83: =AN_EMIS!BB68*$E83 -> 0 | BE83: =AN_EMIS!BC68*$E83 -> 0 | BF83: =AN_EMIS!BD68*$E83 -> 0 | BG83: =AN_EMIS!BE68*$E83 -> 0 | BH83: =AN_EMIS!BF68*$E83 -> 0 | BI83: =AN_EMIS!BG68*$E83 -> 0 | BJ83: =AN_EMIS!BH68*$E83 -> 0 | BK83: =AN_EMIS!BI68*$E83 -> 0 | BL83: =AN_EMIS!BJ68*$E83 -> 0
A84: 65 | B84: =AN_EMIS!B69 -> 0 | C84: =IF(B84=0,".",AN_EMIS!C69) -> . | D84: =IF(B84=0,0,VLOOKUP(B84,RBC_Table!$A$10:$I$270,$A$3,)) -> 0 | E84: 0 | F84: =AN_EMIS!D69*$E84 -> 0 | G84: =AN_EMIS!E69*$E84 -> 0 | H84: =AN_EMIS!F69*$E84 -> 0 | I84: =AN_EMIS!G69*$E84 -> 0 | J84: =AN_EMIS!H69*$E84 -> 0 | K84: =AN_EMIS!I69*$E84 -> 0 | L84: =AN_EMIS!J69*$E84 -> 0 | M84: =AN_EMIS!K69*$E84 -> 0 | N84: =AN_EMIS!L69*$E84 -> 0 | O84: =AN_EMIS!M69*$E84 -> 0 | P84: =AN_EMIS!N69*$E84 -> 0 | Q84: =AN_EMIS!O69*$E84 -> 0 | R84: =AN_EMIS!P69*$E84 -> 0 | S84: =AN_EMIS!Q69*$E84 -> 0 | T84: =AN_EMIS!R69*$E84 -> 0 | U84: =AN_EMIS!S69*$E84 -> 0 | V84: =AN_EMIS!T69*$E84 -> 0 | W84: =AN_EMIS!U69*$E84 -> 0 | X84: =AN_EMIS!V69*$E84 -> 0 | Y84: =AN_EMIS!W69*$E84 -> 0 | Z84: =AN_EMIS!X69*$E84 -> 0 | AA84: =AN_EMIS!Y69*$E84 -> 0 | AB84: =AN_EMIS!Z69*$E84 -> 0 | AC84: =AN_EMIS!AA69*$E84 -> 0 | AD84: =AN_EMIS!AB69*$E84 -> 0 | AE84: =AN_EMIS!AC69*$E84 -> 0 | AF84: =AN_EMIS!AD69*$E84 -> 0 | AG84: =AN_EMIS!AE69*$E84 -> 0 | AH84: =AN_EMIS!AF69*$E84 -> 0 | AI84: =AN_EMIS!AG69*$E84 -> 0 | AJ84: =AN_EMIS!AH69*$E84 -> 0 | AK84: =AN_EMIS!AI69*$E84 -> 0 | AL84: =AN_EMIS!AJ69*$E84 -> 0 | AM84: =AN_EMIS!AK69*$E84 -> 0 | AN84: =AN_EMIS!AL69*$E84 -> 0 | AO84: =AN_EMIS!AM69*$E84 -> 0 | AP84: =AN_EMIS!AN69*$E84 -> 0 | AQ84: =AN_EMIS!AO69*$E84 -> 0 | AR84: =AN_EMIS!AP69*$E84 -> 0 | AS84: =AN_EMIS!AQ69*$E84 -> 0 | AT84: =AN_EMIS!AR69*$E84 -> 0 | AU84: =AN_EMIS!AS69*$E84 -> 0 | AV84: =AN_EMIS!AT69*$E84 -> 0 | AW84: =AN_EMIS!AU69*$E84 -> 0 | AX84: =AN_EMIS!AV69*$E84 -> 0 | AY84: =AN_EMIS!AW69*$E84 -> 0 | AZ84: =AN_EMIS!AX69*$E84 -> 0 | BA84: =AN_EMIS!AY69*$E84 -> 0 | BB84: =AN_EMIS!AZ69*$E84 -> 0 | BC84: =AN_EMIS!BA69*$E84 -> 0 | BD84: =AN_EMIS!BB69*$E84 -> 0 | BE84: =AN_EMIS!BC69*$E84 -> 0 | BF84: =AN_EMIS!BD69*$E84 -> 0 | BG84: =AN_EMIS!BE69*$E84 -> 0 | BH84: =AN_EMIS!BF69*$E84 -> 0 | BI84: =AN_EMIS!BG69*$E84 -> 0 | BJ84: =AN_EMIS!BH69*$E84 -> 0 | BK84: =AN_EMIS!BI69*$E84 -> 0 | BL84: =AN_EMIS!BJ69*$E84 -> 0
A85: 66 | B85: =AN_EMIS!B70 -> 0 | C85: =IF(B85=0,".",AN_EMIS!C70) -> . | D85: =IF(B85=0,0,VLOOKUP(B85,RBC_Table!$A$10:$I$270,$A$3,)) -> 0 | E85: =IF(D85="--",0,IF(OR(LEN(D85)=0,D85=0),0,1/D85)) -> 0 | F85: =AN_EMIS!D70*$E85 -> 0 | G85: =AN_EMIS!E70*$E85 -> 0 | H85: =AN_EMIS!F70*$E85 -> 0 | I85: =AN_EMIS!G70*$E85 -> 0 | J85: =AN_EMIS!H70*$E85 -> 0 | K85: =AN_EMIS!I70*$E85 -> 0 | L85: =AN_EMIS!J70*$E85 -> 0 | M85: =AN_EMIS!K70*$E85 -> 0 | N85: =AN_EMIS!L70*$E85 -> 0 | O85: =AN_EMIS!M70*$E85 -> 0 | P85: =AN_EMIS!N70*$E85 -> 0 | Q85: =AN_EMIS!O70*$E85 -> 0 | R85: =AN_EMIS!P70*$E85 -> 0 | S85: =AN_EMIS!Q70*$E85 -> 0 | T85: =AN_EMIS!R70*$E85 -> 0 | U85: =AN_EMIS!S70*$E85 -> 0 | V85: =AN_EMIS!T70*$E85 -> 0 | W85: =AN_EMIS!U70*$E85 -> 0 | X85: =AN_EMIS!V70*$E85 -> 0 | Y85: =AN_EMIS!W70*$E85 -> 0 | Z85: =AN_EMIS!X70*$E85 -> 0 | AA85: =AN_EMIS!Y70*$E85 -> 0 | AB85: =AN_EMIS!Z70*$E85 -> 0 | AC85: =AN_EMIS!AA70*$E85 -> 0 | AD85: =AN_EMIS!AB70*$E85 -> 0 | AE85: =AN_EMIS!AC70*$E85 -> 0 | AF85: =AN_EMIS!AD70*$E85 -> 0 | AG85: =AN_EMIS!AE70*$E85 -> 0 | AH85: =AN_EMIS!AF70*$E85 -> 0 | AI85: =AN_EMIS!AG70*$E85 -> 0 | AJ85: =AN_EMIS!AH70*$E85 -> 0 | AK85: =AN_EMIS!AI70*$E85 -> 0 | AL85: =AN_EMIS!AJ70*$E85 -> 0 | AM85: =AN_EMIS!AK70*$E85 -> 0 | AN85: =AN_EMIS!AL70*$E85 -> 0 | AO85: =AN_EMIS!AM70*$E85 -> 0 | AP85: =AN_EMIS!AN70*$E85 -> 0 | AQ85: =AN_EMIS!AO70*$E85 -> 0 | AR85: =AN_EMIS!AP70*$E85 -> 0 | AS85: =AN_EMIS!AQ70*$E85 -> 0 | AT85: =AN_EMIS!AR70*$E85 -> 0 | AU85: =AN_EMIS!AS70*$E85 -> 0 | AV85: =AN_EMIS!AT70*$E85 -> 0 | AW85: =AN_EMIS!AU70*$E85 -> 0 | AX85: =AN_EMIS!AV70*$E85 -> 0 | AY85: =AN_EMIS!AW70*$E85 -> 0 | AZ85: =AN_EMIS!AX70*$E85 -> 0 | BA85: =AN_EMIS!AY70*$E85 -> 0 | BB85: =AN_EMIS!AZ70*$E85 -> 0 | BC85: =AN_EMIS!BA70*$E85 -> 0 | BD85: =AN_EMIS!BB70*$E85 -> 0 | BE85: =AN_EMIS!BC70*$E85 -> 0 | BF85: =AN_EMIS!BD70*$E85 -> 0 | BG85: =AN_EMIS!BE70*$E85 -> 0 | BH85: =AN_EMIS!BF70*$E85 -> 0 | BI85: =AN_EMIS!BG70*$E85 -> 0 | BJ85: =AN_EMIS!BH70*$E85 -> 0 | BK85: =AN_EMIS!BI70*$E85 -> 0 | BL85: =AN_EMIS!BJ70*$E85 -> 0
A86: =A85+1 -> 67 | B86: =AN_EMIS!B71 -> 0 | C86: =IF(B86=0,".",AN_EMIS!C71) -> . | D86: =IF(B86=0,0,VLOOKUP(B86,RBC_Table!$A$10:$I$270,$A$3,)) -> 0 | E86: 0 | F86: =AN_EMIS!D71*$E86 -> 0 | G86: =AN_EMIS!E71*$E86 -> 0 | H86: =AN_EMIS!F71*$E86 -> 0 | I86: =AN_EMIS!G71*$E86 -> 0 | J86: =AN_EMIS!H71*$E86 -> 0 | K86: =AN_EMIS!I71*$E86 -> 0 | L86: =AN_EMIS!J71*$E86 -> 0 | M86: =AN_EMIS!K71*$E86 -> 0 | N86: =AN_EMIS!L71*$E86 -> 0 | O86: =AN_EMIS!M71*$E86 -> 0 | P86: =AN_EMIS!N71*$E86 -> 0 | Q86: =AN_EMIS!O71*$E86 -> 0 | R86: =AN_EMIS!P71*$E86 -> 0 | S86: =AN_EMIS!Q71*$E86 -> 0 | T86: =AN_EMIS!R71*$E86 -> 0 | U86: =AN_EMIS!S71*$E86 -> 0 | V86: =AN_EMIS!T71*$E86 -> 0 | W86: =AN_EMIS!U71*$E86 -> 0 | X86: =AN_EMIS!V71*$E86 -> 0 | Y86: =AN_EMIS!W71*$E86 -> 0 | Z86: =AN_EMIS!X71*$E86 -> 0 | AA86: =AN_EMIS!Y71*$E86 -> 0 | AB86: =AN_EMIS!Z71*$E86 -> 0 | AC86: =AN_EMIS!AA71*$E86 -> 0 | AD86: =AN_EMIS!AB71*$E86 -> 0 | AE86: =AN_EMIS!AC71*$E86 -> 0 | AF86: =AN_EMIS!AD71*$E86 -> 0 | AG86: =AN_EMIS!AE71*$E86 -> 0 | AH86: =AN_EMIS!AF71*$E86 -> 0 | AI86: =AN_EMIS!AG71*$E86 -> 0 | AJ86: =AN_EMIS!AH71*$E86 -> 0 | AK86: =AN_EMIS!AI71*$E86 -> 0 | AL86: =AN_EMIS!AJ71*$E86 -> 0 | AM86: =AN_EMIS!AK71*$E86 -> 0 | AN86: =AN_EMIS!AL71*$E86 -> 0 | AO86: =AN_EMIS!AM71*$E86 -> 0 | AP86: =AN_EMIS!AN71*$E86 -> 0 | AQ86: =AN_EMIS!AO71*$E86 -> 0 | AR86: =AN_EMIS!AP71*$E86 -> 0 | AS86: =AN_EMIS!AQ71*$E86 -> 0 | AT86: =AN_EMIS!AR71*$E86 -> 0 | AU86: =AN_EMIS!AS71*$E86 -> 0 | AV86: =AN_EMIS!AT71*$E86 -> 0 | AW86: =AN_EMIS!AU71*$E86 -> 0 | AX86: =AN_EMIS!AV71*$E86 -> 0 | AY86: =AN_EMIS!AW71*$E86 -> 0 | AZ86: =AN_EMIS!AX71*$E86 -> 0 | BA86: =AN_EMIS!AY71*$E86 -> 0 | BB86: =AN_EMIS!AZ71*$E86 -> 0 | BC86: =AN_EMIS!BA71*$E86 -> 0 | BD86: =AN_EMIS!BB71*$E86 -> 0 | BE86: =AN_EMIS!BC71*$E86 -> 0 | BF86: =AN_EMIS!BD71*$E86 -> 0 | BG86: =AN_EMIS!BE71*$E86 -> 0 | BH86: =AN_EMIS!BF71*$E86 -> 0 | BI86: =AN_EMIS!BG71*$E86 -> 0 | BJ86: =AN_EMIS!BH71*$E86 -> 0 | BK86: =AN_EMIS!BI71*$E86 -> 0 | BL86: =AN_EMIS!BJ71*$E86 -> 0
A87: 68 | B87: =AN_EMIS!B72 -> 0 | C87: =IF(B87=0,".",AN_EMIS!C72) -> . | D87: =IF(B87=0,0,VLOOKUP(B87,RBC_Table!$A$10:$I$270,$A$3,)) -> 0 | E87: 0 | F87: =AN_EMIS!D72*$E87 -> 0 | G87: =AN_EMIS!E72*$E87 -> 0 | H87: =AN_EMIS!F72*$E87 -> 0 | I87: =AN_EMIS!G72*$E87 -> 0 | J87: =AN_EMIS!H72*$E87 -> 0 | K87: =AN_EMIS!I72*$E87 -> 0 | L87: =AN_EMIS!J72*$E87 -> 0 | M87: =AN_EMIS!K72*$E87 -> 0 | N87: =AN_EMIS!L72*$E87 -> 0 | O87: =AN_EMIS!M72*$E87 -> 0 | P87: =AN_EMIS!N72*$E87 -> 0 | Q87: =AN_EMIS!O72*$E87 -> 0 | R87: =AN_EMIS!P72*$E87 -> 0 | S87: =AN_EMIS!Q72*$E87 -> 0 | T87: =AN_EMIS!R72*$E87 -> 0 | U87: =AN_EMIS!S72*$E87 -> 0 | V87: =AN_EMIS!T72*$E87 -> 0 | W87: =AN_EMIS!U72*$E87 -> 0 | X87: =AN_EMIS!V72*$E87 -> 0 | Y87: =AN_EMIS!W72*$E87 -> 0 | Z87: =AN_EMIS!X72*$E87 -> 0 | AA87: =AN_EMIS!Y72*$E87 -> 0 | AB87: =AN_EMIS!Z72*$E87 -> 0 | AC87: =AN_EMIS!AA72*$E87 -> 0 | AD87: =AN_EMIS!AB72*$E87 -> 0 | AE87: =AN_EMIS!AC72*$E87 -> 0 | AF87: =AN_EMIS!AD72*$E87 -> 0 | AG87: =AN_EMIS!AE72*$E87 -> 0 | AH87: =AN_EMIS!AF72*$E87 -> 0 | AI87: =AN_EMIS!AG72*$E87 -> 0 | AJ87: =AN_EMIS!AH72*$E87 -> 0 | AK87: =AN_EMIS!AI72*$E87 -> 0 | AL87: =AN_EMIS!AJ72*$E87 -> 0 | AM87: =AN_EMIS!AK72*$E87 -> 0 | AN87: =AN_EMIS!AL72*$E87 -> 0 | AO87: =AN_EMIS!AM72*$E87 -> 0 | AP87: =AN_EMIS!AN72*$E87 -> 0 | AQ87: =AN_EMIS!AO72*$E87 -> 0 | AR87: =AN_EMIS!AP72*$E87 -> 0 | AS87: =AN_EMIS!AQ72*$E87 -> 0 | AT87: =AN_EMIS!AR72*$E87 -> 0 | AU87: =AN_EMIS!AS72*$E87 -> 0 | AV87: =AN_EMIS!AT72*$E87 -> 0 | AW87: =AN_EMIS!AU72*$E87 -> 0 | AX87: =AN_EMIS!AV72*$E87 -> 0 | AY87: =AN_EMIS!AW72*$E87 -> 0 | AZ87: =AN_EMIS!AX72*$E87 -> 0 | BA87: =AN_EMIS!AY72*$E87 -> 0 | BB87: =AN_EMIS!AZ72*$E87 -> 0 | BC87: =AN_EMIS!BA72*$E87 -> 0 | BD87: =AN_EMIS!BB72*$E87 -> 0 | BE87: =AN_EMIS!BC72*$E87 -> 0 | BF87: =AN_EMIS!BD72*$E87 -> 0 | BG87: =AN_EMIS!BE72*$E87 -> 0 | BH87: =AN_EMIS!BF72*$E87 -> 0 | BI87: =AN_EMIS!BG72*$E87 -> 0 | BJ87: =AN_EMIS!BH72*$E87 -> 0 | BK87: =AN_EMIS!BI72*$E87 -> 0 | BL87: =AN_EMIS!BJ72*$E87 -> 0
A88: 69 | B88: =AN_EMIS!B73 -> 0 | C88: =IF(B88=0,".",AN_EMIS!C73) -> . | D88: =IF(B88=0,0,VLOOKUP(B88,RBC_Table!$A$10:$I$270,$A$3,)) -> 0 | E88: 0 | F88: =AN_EMIS!D73*$E88 -> 0 | G88: =AN_EMIS!E73*$E88 -> 0 | H88: =AN_EMIS!F73*$E88 -> 0 | I88: =AN_EMIS!G73*$E88 -> 0 | J88: =AN_EMIS!H73*$E88 -> 0 | K88: =AN_EMIS!I73*$E88 -> 0 | L88: =AN_EMIS!J73*$E88 -> 0 | M88: =AN_EMIS!K73*$E88 -> 0 | N88: =AN_EMIS!L73*$E88 -> 0 | O88: =AN_EMIS!M73*$E88 -> 0 | P88: =AN_EMIS!N73*$E88 -> 0 | Q88: =AN_EMIS!O73*$E88 -> 0 | R88: =AN_EMIS!P73*$E88 -> 0 | S88: =AN_EMIS!Q73*$E88 -> 0 | T88: =AN_EMIS!R73*$E88 -> 0 | U88: =AN_EMIS!S73*$E88 -> 0 | V88: =AN_EMIS!T73*$E88 -> 0 | W88: =AN_EMIS!U73*$E88 -> 0 | X88: =AN_EMIS!V73*$E88 -> 0 | Y88: =AN_EMIS!W73*$E88 -> 0 | Z88: =AN_EMIS!X73*$E88 -> 0 | AA88: =AN_EMIS!Y73*$E88 -> 0 | AB88: =AN_EMIS!Z73*$E88 -> 0 | AC88: =AN_EMIS!AA73*$E88 -> 0 | AD88: =AN_EMIS!AB73*$E88 -> 0 | AE88: =AN_EMIS!AC73*$E88 -> 0 | AF88: =AN_EMIS!AD73*$E88 -> 0 | AG88: =AN_EMIS!AE73*$E88 -> 0 | AH88: =AN_EMIS!AF73*$E88 -> 0 | AI88: =AN_EMIS!AG73*$E88 -> 0 | AJ88: =AN_EMIS!AH73*$E88 -> 0 | AK88: =AN_EMIS!AI73*$E88 -> 0 | AL88: =AN_EMIS!AJ73*$E88 -> 0 | AM88: =AN_EMIS!AK73*$E88 -> 0 | AN88: =AN_EMIS!AL73*$E88 -> 0 | AO88: =AN_EMIS!AM73*$E88 -> 0 | AP88: =AN_EMIS!AN73*$E88 -> 0 | AQ88: =AN_EMIS!AO73*$E88 -> 0 | AR88: =AN_EMIS!AP73*$E88 -> 0 | AS88: =AN_EMIS!AQ73*$E88 -> 0 | AT88: =AN_EMIS!AR73*$E88 -> 0 | AU88: =AN_EMIS!AS73*$E88 -> 0 | AV88: =AN_EMIS!AT73*$E88 -> 0 | AW88: =AN_EMIS!AU73*$E88 -> 0 | AX88: =AN_EMIS!AV73*$E88 -> 0 | AY88: =AN_EMIS!AW73*$E88 -> 0 | AZ88: =AN_EMIS!AX73*$E88 -> 0 | BA88: =AN_EMIS!AY73*$E88 -> 0 | BB88: =AN_EMIS!AZ73*$E88 -> 0 | BC88: =AN_EMIS!BA73*$E88 -> 0 | BD88: =AN_EMIS!BB73*$E88 -> 0 | BE88: =AN_EMIS!BC73*$E88 -> 0 | BF88: =AN_EMIS!BD73*$E88 -> 0 | BG88: =AN_EMIS!BE73*$E88 -> 0 | BH88: =AN_EMIS!BF73*$E88 -> 0 | BI88: =AN_EMIS!BG73*$E88 -> 0 | BJ88: =AN_EMIS!BH73*$E88 -> 0 | BK88: =AN_EMIS!BI73*$E88 -> 0 | BL88: =AN_EMIS!BJ73*$E88 -> 0
A89: 70 | B89: =AN_EMIS!B74 -> 0 | C89: =IF(B89=0,".",AN_EMIS!C74) -> . | D89: =IF(B89=0,0,VLOOKUP(B89,RBC_Table!$A$10:$I$270,$A$3,)) -> 0 | E89: 0 | F89: =AN_EMIS!D74*$E89 -> 0 | G89: =AN_EMIS!E74*$E89 -> 0 | H89: =AN_EMIS!F74*$E89 -> 0 | I89: =AN_EMIS!G74*$E89 -> 0 | J89: =AN_EMIS!H74*$E89 -> 0 | K89: =AN_EMIS!I74*$E89 -> 0 | L89: =AN_EMIS!J74*$E89 -> 0 | M89: =AN_EMIS!K74*$E89 -> 0 | N89: =AN_EMIS!L74*$E89 -> 0 | O89: =AN_EMIS!M74*$E89 -> 0 | P89: =AN_EMIS!N74*$E89 -> 0 | Q89: =AN_EMIS!O74*$E89 -> 0 | R89: =AN_EMIS!P74*$E89 -> 0 | S89: =AN_EMIS!Q74*$E89 -> 0 | T89: =AN_EMIS!R74*$E89 -> 0 | U89: =AN_EMIS!S74*$E89 -> 0 | V89: =AN_EMIS!T74*$E89 -> 0 | W89: =AN_EMIS!U74*$E89 -> 0 | X89: =AN_EMIS!V74*$E89 -> 0 | Y89: =AN_EMIS!W74*$E89 -> 0 | Z89: =AN_EMIS!X74*$E89 -> 0 | AA89: =AN_EMIS!Y74*$E89 -> 0 | AB89: =AN_EMIS!Z74*$E89 -> 0 | AC89: =AN_EMIS!AA74*$E89 -> 0 | AD89: =AN_EMIS!AB74*$E89 -> 0 | AE89: =AN_EMIS!AC74*$E89 -> 0 | AF89: =AN_EMIS!AD74*$E89 -> 0 | AG89: =AN_EMIS!AE74*$E89 -> 0 | AH89: =AN_EMIS!AF74*$E89 -> 0 | AI89: =AN_EMIS!AG74*$E89 -> 0 | AJ89: =AN_EMIS!AH74*$E89 -> 0 | AK89: =AN_EMIS!AI74*$E89 -> 0 | AL89: =AN_EMIS!AJ74*$E89 -> 0 | AM89: =AN_EMIS!AK74*$E89 -> 0 | AN89: =AN_EMIS!AL74*$E89 -> 0 | AO89: =AN_EMIS!AM74*$E89 -> 0 | AP89: =AN_EMIS!AN74*$E89 -> 0 | AQ89: =AN_EMIS!AO74*$E89 -> 0 | AR89: =AN_EMIS!AP74*$E89 -> 0 | AS89: =AN_EMIS!AQ74*$E89 -> 0 | AT89: =AN_EMIS!AR74*$E89 -> 0 | AU89: =AN_EMIS!AS74*$E89 -> 0 | AV89: =AN_EMIS!AT74*$E89 -> 0 | AW89: =AN_EMIS!AU74*$E89 -> 0 | AX89: =AN_EMIS!AV74*$E89 -> 0 | AY89: =AN_EMIS!AW74*$E89 -> 0 | AZ89: =AN_EMIS!AX74*$E89 -> 0 | BA89: =AN_EMIS!AY74*$E89 -> 0 | BB89: =AN_EMIS!AZ74*$E89 -> 0 | BC89: =AN_EMIS!BA74*$E89 -> 0 | BD89: =AN_EMIS!BB74*$E89 -> 0 | BE89: =AN_EMIS!BC74*$E89 -> 0 | BF89: =AN_EMIS!BD74*$E89 -> 0 | BG89: =AN_EMIS!BE74*$E89 -> 0 | BH89: =AN_EMIS!BF74*$E89 -> 0 | BI89: =AN_EMIS!BG74*$E89 -> 0 | BJ89: =AN_EMIS!BH74*$E89 -> 0 | BK89: =AN_EMIS!BI74*$E89 -> 0 | BL89: =AN_EMIS!BJ74*$E89 -> 0
B95: Risk for each coumpound at selected receptor (Recp #, or 0 for individual max)
B96: Receptor > | C96: 0 | F96: =F6 -> EU1RM1 | G96: =G6 -> EU1BF | H96: EU1RM2 | I96: EU4 | J96: EU4NG | K96: EU5 | L96: EU6 | M96: EU7 | N96: EU10 | O96: IMAGE | P96: SFL | Q96: 0 | R96: 0 | S96: 0 | T96: 0 | U96: 0 | V96: 0 | W96: 0 | X96: 0 | Y96: 0 | Z96: 0 | AA96: 0 | AB96: 0 | AC96: 0 | AD96: 0 | AE96: 0 | AF96: 0 | AG96: 0 | AH96: 0 | AI96: 0 | AJ96: 0 | AK96: 0 | AL96: 0 | AM96: 0 | AN96: 0 | AO96: 0 | AP96: 0 | AQ96: 0 | AR96: 0 | AS96: 0 | AT96: 0 | AU96: 0 | AV96: 0 | AW96: 0 | AX96: 0 | AY96: 0 | AZ96: 0 | BA96: 0 | BB96: 0 | BC96: 0 | BD96: 0 | BE96: 0 | BF96: 0 | BG96: 0 | BH96: 0 | BI96: 0 | BJ96: 0 | BK96: 0 | BL96: 0 | BM96: 0 | BN96: 0 | BO96: 0 | BP96: 0 | BQ96: 0 | BR96: 0 | BS96: =BS6 -> 0 | BT96: 0 | BU96: 0
B97: Unit Conc at Sel. Recp> | C97: =IF(C96=0,"IND",INDEX('AN Unit CONC'!A$86:A$17845,$C$96)) -> IND | D97: =IF(C96=0,"IND",INDEX('AN Unit CONC'!B$86:B$17845,$C$96)) -> IND | E97: =IF(C96=0,1,INDEX(C180:C17924,C96)) -> 1 | F97: =IF($C$96=0,IF(F8>0,INDEX('AN Unit CONC'!D$86:D$17845,F$8),0),INDEX('AN Unit CONC'!D$86:D$17845,$C$96)) -> 0 | G97: =IF($C$96=0,IF(G8>0,INDEX('AN Unit CONC'!E$86:E$17845,G$8),0),INDEX('AN Unit CONC'!E$86:E$17845,$C$96)) -> 0 | H97: =IF($C$96=0,IF(H8>0,INDEX('AN Unit CONC'!F$86:F$17845,H$8),0),INDEX('AN Unit CONC'!F$86:F$17845,$C$96)) -> 0 | I97: =IF($C$96=0,IF(I8>0,INDEX('AN Unit CONC'!G$86:G$17845,I$8),0),INDEX('AN Unit CONC'!G$86:G$17845,$C$96)) -> 2.318259619e-05 | J97: =IF($C$96=0,IF(J8>0,INDEX('AN Unit CONC'!H$86:H$17845,J$8),0),INDEX('AN Unit CONC'!H$86:H$17845,$C$96)) -> 0 | K97: =IF($C$96=0,IF(K8>0,INDEX('AN Unit CONC'!I$86:I$17845,K$8),0),INDEX('AN Unit CONC'!I$86:I$17845,$C$96)) -> 0 | L97: =IF($C$96=0,IF(L8>0,INDEX('AN Unit CONC'!J$86:J$17845,L$8),0),INDEX('AN Unit CONC'!J$86:J$17845,$C$96)) -> 0 | M97: =IF($C$96=0,IF(M8>0,INDEX('AN Unit CONC'!K$86:K$17845,M$8),0),INDEX('AN Unit CONC'!K$86:K$17845,$C$96)) -> 0 | N97: =IF($C$96=0,IF(N8>0,INDEX('AN Unit CONC'!L$86:L$17845,N$8),0),INDEX('AN Unit CONC'!L$86:L$17845,$C$96)) -> 0.0001274770227 | O97: =IF($C$96=0,IF(O8>0,INDEX('AN Unit CONC'!M$86:M$17845,O$8),0),INDEX('AN Unit CONC'!M$86:M$17845,$C$96)) -> 0.0002375321108 | P97: =IF($C$96=0,IF(P8>0,INDEX('AN Unit CONC'!N$86:N$17845,P$8),0),INDEX('AN Unit CONC'!N$86:N$17845,$C$96)) -> 5.445177994e-05 | Q97: =IF($C$96=0,IF(Q8>0,INDEX('AN Unit CONC'!O$86:O$17845,Q$8),0),INDEX('AN Unit CONC'!O$86:O$17845,$C$96)) -> 0 | R97: =IF($C$96=0,IF(R8>0,INDEX('AN Unit CONC'!P$86:P$17845,R$8),0),INDEX('AN Unit CONC'!P$86:P$17845,$C$96)) -> 0 | S97: =IF($C$96=0,IF(S8>0,INDEX('AN Unit CONC'!Q$86:Q$17845,S$8),0),INDEX('AN Unit CONC'!Q$86:Q$17845,$C$96)) -> 0 | T97: =IF($C$96=0,IF(T8>0,INDEX('AN Unit CONC'!R$86:R$17845,T$8),0),INDEX('AN Unit CONC'!R$86:R$17845,$C$96)) -> 0 | U97: =IF($C$96=0,IF(U8>0,INDEX('AN Unit CONC'!S$86:S$17845,U$8),0),INDEX('AN Unit CONC'!S$86:S$17845,$C$96)) -> 0 | V97: =IF($C$96=0,IF(V8>0,INDEX('AN Unit CONC'!T$86:T$17845,V$8),0),INDEX('AN Unit CONC'!T$86:T$17845,$C$96)) -> 0 | W97: =IF($C$96=0,IF(W8>0,INDEX('AN Unit CONC'!U$86:U$17845,W$8),0),INDEX('AN Unit CONC'!U$86:U$17845,$C$96)) -> 0 | X97: =IF($C$96=0,IF(X8>0,INDEX('AN Unit CONC'!V$86:V$17845,X$8),0),INDEX('AN Unit CONC'!V$86:V$17845,$C$96)) -> 0 | Y97: =IF($C$96=0,IF(Y8>0,INDEX('AN Unit CONC'!W$86:W$17845,Y$8),0),INDEX('AN Unit CONC'!W$86:W$17845,$C$96)) -> 0 | Z97: =IF($C$96=0,IF(Z8>0,INDEX('AN Unit CONC'!X$86:X$17845,Z$8),0),INDEX('AN Unit CONC'!X$86:X$17845,$C$96)) -> 0 | AA97: =IF($C$96=0,IF(AA8>0,INDEX('AN Unit CONC'!Y$86:Y$17845,AA$8),0),INDEX('AN Unit CONC'!Y$86:Y$17845,$C$96)) -> 0 | AB97: =IF($C$96=0,IF(AB8>0,INDEX('AN Unit CONC'!Z$86:Z$17845,AB$8),0),INDEX('AN Unit CONC'!Z$86:Z$17845,$C$96)) -> 0 | AC97: =IF($C$96=0,IF(AC8>0,INDEX('AN Unit CONC'!AA$86:AA$17845,AC$8),0),INDEX('AN Unit CONC'!AA$86:AA$17845,$C$96)) -> 0 | AD97: =IF($C$96=0,IF(AD8>0,INDEX('AN Unit CONC'!AB$86:AB$17845,AD$8),0),INDEX('AN Unit CONC'!AB$86:AB$17845,$C$96)) -> 0 | AE97: =IF($C$96=0,IF(AE8>0,INDEX('AN Unit CONC'!AC$86:AC$17845,AE$8),0),INDEX('AN Unit CONC'!AC$86:AC$17845,$C$96)) -> 0 | AF97: =IF($C$96=0,IF(AF8>0,INDEX('AN Unit CONC'!AD$86:AD$17845,AF$8),0),INDEX('AN Unit CONC'!AD$86:AD$17845,$C$96)) -> 0 | AG97: =IF($C$96=0,IF(AG8>0,INDEX('AN Unit CONC'!AE$86:AE$17845,AG$8),0),INDEX('AN Unit CONC'!AE$86:AE$17845,$C$96)) -> 0 | AH97: =IF($C$96=0,IF(AH8>0,INDEX('AN Unit CONC'!AF$86:AF$17845,AH$8),0),INDEX('AN Unit CONC'!AF$86:AF$17845,$C$96)) -> 0 | AI97: =IF($C$96=0,IF(AI8>0,INDEX('AN Unit CONC'!AG$86:AG$17845,AI$8),0),INDEX('AN Unit CONC'!AG$86:AG$17845,$C$96)) -> 0 | AJ97: =IF($C$96=0,IF(AJ8>0,INDEX('AN Unit CONC'!AH$86:AH$17845,AJ$8),0),INDEX('AN Unit CONC'!AH$86:AH$17845,$C$96)) -> 0 | AK97: =IF($C$96=0,IF(AK8>0,INDEX('AN Unit CONC'!AI$86:AI$17845,AK$8),0),INDEX('AN Unit CONC'!AI$86:AI$17845,$C$96)) -> 0 | AL97: =IF($C$96=0,IF(AL8>0,INDEX('AN Unit CONC'!AJ$86:AJ$17845,AL$8),0),INDEX('AN Unit CONC'!AJ$86:AJ$17845,$C$96)) -> 0 | AM97: =IF($C$96=0,IF(AM8>0,INDEX('AN Unit CONC'!AK$86:AK$17845,AM$8),0),INDEX('AN Unit CONC'!AK$86:AK$17845,$C$96)) -> 0 | AN97: =IF($C$96=0,IF(AN8>0,INDEX('AN Unit CONC'!AL$86:AL$17845,AN$8),0),INDEX('AN Unit CONC'!AL$86:AL$17845,$C$96)) -> 0 | AO97: =IF($C$96=0,IF(AO8>0,INDEX('AN Unit CONC'!AM$86:AM$17845,AO$8),0),INDEX('AN Unit CONC'!AM$86:AM$17845,$C$96)) -> 0 | AP97: =IF($C$96=0,IF(AP8>0,INDEX('AN Unit CONC'!AN$86:AN$17845,AP$8),0),INDEX('AN Unit CONC'!AN$86:AN$17845,$C$96)) -> 0 | AQ97: =IF($C$96=0,IF(AQ8>0,INDEX('AN Unit CONC'!AO$86:AO$17845,AQ$8),0),INDEX('AN Unit CONC'!AO$86:AO$17845,$C$96)) -> 0 | AR97: =IF($C$96=0,IF(AR8>0,INDEX('AN Unit CONC'!AP$86:AP$17845,AR$8),0),INDEX('AN Unit CONC'!AP$86:AP$17845,$C$96)) -> 0 | AS97: =IF($C$96=0,IF(AS8>0,INDEX('AN Unit CONC'!AQ$86:AQ$17845,AS$8),0),INDEX('AN Unit CONC'!AQ$86:AQ$17845,$C$96)) -> 0 | AT97: =IF($C$96=0,IF(AT8>0,INDEX('AN Unit CONC'!AR$86:AR$17845,AT$8),0),INDEX('AN Unit CONC'!AR$86:AR$17845,$C$96)) -> 0 | AU97: =IF($C$96=0,IF(AU8>0,INDEX('AN Unit CONC'!AS$86:AS$17845,AU$8),0),INDEX('AN Unit CONC'!AS$86:AS$17845,$C$96)) -> 0 | AV97: =IF($C$96=0,IF(AV8>0,INDEX('AN Unit CONC'!AT$86:AT$17845,AV$8),0),INDEX('AN Unit CONC'!AT$86:AT$17845,$C$96)) -> 0 | AW97: =IF($C$96=0,IF(AW8>0,INDEX('AN Unit CONC'!AU$86:AU$17845,AW$8),0),INDEX('AN Unit CONC'!AU$86:AU$17845,$C$96)) -> 0 | AX97: =IF($C$96=0,IF(AX8>0,INDEX('AN Unit CONC'!AV$86:AV$17845,AX$8),0),INDEX('AN Unit CONC'!AV$86:AV$17845,$C$96)) -> 0 | AY97: =IF($C$96=0,IF(AY8>0,INDEX('AN Unit CONC'!AW$86:AW$17845,AY$8),0),INDEX('AN Unit CONC'!AW$86:AW$17845,$C$96)) -> 0 | AZ97: =IF($C$96=0,IF(AZ8>0,INDEX('AN Unit CONC'!AX$86:AX$17845,AZ$8),0),INDEX('AN Unit CONC'!AX$86:AX$17845,$C$96)) -> 0 | BA97: =IF($C$96=0,IF(BA8>0,INDEX('AN Unit CONC'!AY$86:AY$17845,BA$8),0),INDEX('AN Unit CONC'!AY$86:AY$17845,$C$96)) -> 0 | BB97: =IF($C$96=0,IF(BB8>0,INDEX('AN Unit CONC'!AZ$86:AZ$17845,BB$8),0),INDEX('AN Unit CONC'!AZ$86:AZ$17845,$C$96)) -> 0 | BC97: =IF($C$96=0,IF(BC8>0,INDEX('AN Unit CONC'!BA$86:BA$17845,BC$8),0),INDEX('AN Unit CONC'!BA$86:BA$17845,$C$96)) -> 0 | BD97: =IF($C$96=0,IF(BD8>0,INDEX('AN Unit CONC'!BB$86:BB$17845,BD$8),0),INDEX('AN Unit CONC'!BB$86:BB$17845,$C$96)) -> 0 | BE97: =IF($C$96=0,IF(BE8>0,INDEX('AN Unit CONC'!BC$86:BC$17845,BE$8),0),INDEX('AN Unit CONC'!BC$86:BC$17845,$C$96)) -> 0 | BF97: =IF($C$96=0,IF(BF8>0,INDEX('AN Unit CONC'!BD$86:BD$17845,BF$8),0),INDEX('AN Unit CONC'!BD$86:BD$17845,$C$96)) -> 0 | BG97: =IF($C$96=0,IF(BG8>0,INDEX('AN Unit CONC'!BE$86:BE$17845,BG$8),0),INDEX('AN Unit CONC'!BE$86:BE$17845,$C$96)) -> 0 | BH97: =IF($C$96=0,IF(BH8>0,INDEX('AN Unit CONC'!BF$86:BF$17845,BH$8),0),INDEX('AN Unit CONC'!BF$86:BF$17845,$C$96)) -> 0 | BI97: =IF($C$96=0,IF(BI8>0,INDEX('AN Unit CONC'!BG$86:BG$17845,BI$8),0),INDEX('AN Unit CONC'!BG$86:BG$17845,$C$96)) -> 0 | BJ97: =IF($C$96=0,IF(BJ8>0,INDEX('AN Unit CONC'!BH$86:BH$17845,BJ$8),0),INDEX('AN Unit CONC'!BH$86:BH$17845,$C$96)) -> 0 | BK97: =IF($C$96=0,IF(BK8>0,INDEX('AN Unit CONC'!BI$86:BI$17845,BK$8),0),INDEX('AN Unit CONC'!BI$86:BI$17845,$C$96)) -> 0 | BL97: =IF($C$96=0,IF(BL8>0,INDEX('AN Unit CONC'!BJ$86:BJ$17845,BL$8),0),INDEX('AN Unit CONC'!BJ$86:BJ$17845,$C$96)) -> 0 | BM97: =IF($C$96=0,IF(BM8>0,INDEX('AN Unit CONC'!BK$86:BK$17845,BM$8),0),INDEX('AN Unit CONC'!BK$86:BK$17845,$C$96)) -> 0 | BN97: =IF($C$96=0,IF(BN8>0,INDEX('AN Unit CONC'!BL$86:BL$17845,BN$8),0),INDEX('AN Unit CONC'!BL$86:BL$17845,$C$96)) -> 0 | BO97: =IF($C$96=0,IF(BO8>0,INDEX('AN Unit CONC'!BM$86:BM$17845,BO$8),0),INDEX('AN Unit CONC'!BM$86:BM$17845,$C$96)) -> 0 | BP97: =IF($C$96=0,IF(BP8>0,INDEX('AN Unit CONC'!BN$86:BN$17845,BP$8),0),INDEX('AN Unit CONC'!BN$86:BN$17845,$C$96)) -> 0 | BQ97: =IF($C$96=0,IF(BQ8>0,INDEX('AN Unit CONC'!BO$86:BO$17845,BQ$8),0),INDEX('AN Unit CONC'!BO$86:BO$17845,$C$96)) -> 0 | BR97: =IF($C$96=0,IF(BR8>0,INDEX('AN Unit CONC'!BP$86:BP$17845,BR$8),0),INDEX('AN Unit CONC'!BP$86:BP$17845,$C$96)) -> 0 | BS97: =IF($C$96=0,IF(BS8>0,INDEX('AN Unit CONC'!BQ$86:BQ$17845,BS$8),0),INDEX('AN Unit CONC'!BQ$86:BQ$17845,$C$96)) -> 0 | BT97: =IF($C$96=0,IF(BT8>0,INDEX('AN Unit CONC'!BR$86:BR$17845,BT$8),0),INDEX('AN Unit CONC'!BR$86:BR$17845,$C$96)) -> 0 | BU97: =IF($C$96=0,IF(BU8>0,INDEX('AN Unit CONC'!BS$86:BS$17845,BU$8),0),INDEX('AN Unit CONC'!BS$86:BS$17845,$C$96)) -> 0
D98: Risk > | F98: =SUM(F100:F169) -> 0 | G98: =SUM(G100:G169) -> 0 | H98: =SUM(H100:H169) -> 0 | I98: =SUM(I100:I169) -> 10.10208068 | J98: =SUM(J100:J169) -> 0 | K98: 0 | L98: 0 | M98: 0 | N98: 0.007810452172 | O98: 0.007646895814 | P98: 0.0003071311808 | Q98: 0 | R98: 0 | S98: 0 | T98: 0 | U98: 0 | V98: 0 | W98: 0 | X98: 0 | Y98: 0 | Z98: 0 | AA98: 0 | AB98: 0 | AC98: 0 | AD98: 0 | AE98: 0 | AF98: 0 | AG98: 0 | AH98: 0 | AI98: 0 | AJ98: 0 | AK98: 0 | AL98: 0 | AM98: 0 | AN98: 0 | AO98: 0 | AP98: 0 | AQ98: 0 | AR98: 0 | AS98: 0 | AT98: 0 | AU98: 0 | AV98: 0 | AW98: 0 | AX98: 0 | AY98: 0 | AZ98: 0 | BA98: 0 | BB98: 0 | BC98: 0 | BD98: 0 | BE98: 0 | BF98: 0 | BG98: 0 | BH98: 0 | BI98: 0
F99: =IF(F96=0,".",IF($C96=0,F8,$C96)) -> 0 | G99: =IF(G96=0,".",IF($C96=0,G8,$C96)) -> 0 | H99: 0 | I99: 1784 | J99: 0 | K99: 0 | L99: 0 | M99: 0 | N99: 95 | O99: 112 | P99: 95 | Q99: . | R99: . | S99: . | T99: . | U99: . | V99: . | W99: . | X99: . | Y99: . | Z99: . | AA99: . | AB99: . | AC99: . | AD99: . | AE99: . | AF99: . | AG99: . | AH99: . | AI99: . | AJ99: . | AK99: . | AL99: . | AM99: . | AN99: . | AO99: . | AP99: . | AQ99: . | AR99: . | AS99: . | AT99: . | AU99: . | AV99: . | AW99: . | AX99: . | AY99: . | AZ99: . | BA99: . | BB99: . | BC99: . | BD99: . | BE99: . | BF99: . | BG99: . | BH99: . | BI99: . | BJ99: . | BK99: . | BL99: . | BM99: . | BN99: . | BO99: . | BP99: . | BQ99: . | BR99: . | BS99: =IF(BS96=0,".",IF($C96=0,BS8,$C96)) -> . | BT99: . | BU99: .
A100: 1 | B100: =B20 -> 75-07-0 | C100: Acetaldehyde | F100: =$E20*F$97*AN_EMIS!D5 -> 0 | G100: =$E20*G$97*AN_EMIS!E5 -> 0 | H100: =$E20*H$97*AN_EMIS!F5 -> 0 | I100: =$E20*I$97*AN_EMIS!G5 -> 0 | J100: =$E20*J$97*AN_EMIS!H5 -> 0 | K100: =$E20*K$97*AN_EMIS!I5 -> 0 | L100: =$E20*L$97*AN_EMIS!J5 -> 0 | M100: =$E20*M$97*AN_EMIS!K5 -> 0 | N100: =$E20*N$97*AN_EMIS!L5 -> 0 | O100: =$E20*O$97*AN_EMIS!M5 -> 0 | P100: =$E20*P$97*AN_EMIS!N5 -> 0 | Q100: =$E20*Q$97*AN_EMIS!O5 -> 0 | R100: =$E20*R$97*AN_EMIS!P5 -> 0 | S100: =$E20*S$97*AN_EMIS!Q5 -> 0 | T100: =$E20*T$97*AN_EMIS!R5 -> 0 | U100: =$E20*U$97*AN_EMIS!S5 -> 0 | V100: =$E20*V$97*AN_EMIS!T5 -> 0 | W100: =$E20*W$97*AN_EMIS!U5 -> 0 | X100: =$E20*X$97*AN_EMIS!V5 -> 0 | Y100: =$E20*Y$97*AN_EMIS!W5 -> 0 | Z100: =$E20*Z$97*AN_EMIS!X5 -> 0 | AA100: =$E20*AA$97*AN_EMIS!Y5 -> 0 | AB100: =$E20*AB$97*AN_EMIS!Z5 -> 0 | AC100: =$E20*AC$97*AN_EMIS!AA5 -> 0 | AD100: =$E20*AD$97*AN_EMIS!AB5 -> 0 | AE100: =$E20*AE$97*AN_EMIS!AC5 -> 0 | AF100: =$E20*AF$97*AN_EMIS!AD5 -> 0 | AG100: =$E20*AG$97*AN_EMIS!AE5 -> 0 | AH100: =$E20*AH$97*AN_EMIS!AF5 -> 0 | AI100: =$E20*AI$97*AN_EMIS!AG5 -> 0 | AJ100: =$E20*AJ$97*AN_EMIS!AH5 -> 0 | AK100: =$E20*AK$97*AN_EMIS!AI5 -> 0 | AL100: =$E20*AL$97*AN_EMIS!AJ5 -> 0 | AM100: =$E20*AM$97*AN_EMIS!AK5 -> 0 | AN100: =$E20*AN$97*AN_EMIS!AL5 -> 0 | AO100: =$E20*AO$97*AN_EMIS!AM5 -> 0 | AP100: =$E20*AP$97*AN_EMIS!AN5 -> 0 | AQ100: =$E20*AQ$97*AN_EMIS!AO5 -> 0 | AR100: =$E20*AR$97*AN_EMIS!AP5 -> 0 | AS100: =$E20*AS$97*AN_EMIS!AQ5 -> 0 | AT100: =$E20*AT$97*AN_EMIS!AR5 -> 0 | AU100: =$E20*AU$97*AN_EMIS!AS5 -> 0 | AV100: =$E20*AV$97*AN_EMIS!AT5 -> 0 | AW100: =$E20*AW$97*AN_EMIS!AU5 -> 0 | AX100: =$E20*AX$97*AN_EMIS!AV5 -> 0 | AY100: =$E20*AY$97*AN_EMIS!AW5 -> 0 | AZ100: =$E20*AZ$97*AN_EMIS!AX5 -> 0 | BA100: =$E20*BA$97*AN_EMIS!AY5 -> 0 | BB100: =$E20*BB$97*AN_EMIS!AZ5 -> 0 | BC100: =$E20*BC$97*AN_EMIS!BA5 -> 0 | BD100: =$E20*BD$97*AN_EMIS!BB5 -> 0 | BE100: =$E20*BE$97*AN_EMIS!BC5 -> 0 | BF100: =$E20*BF$97*AN_EMIS!BD5 -> 0 | BG100: =$E20*BG$97*AN_EMIS!BE5 -> 0 | BH100: =$E20*BH$97*AN_EMIS!BF5 -> 0 | BI100: =$E20*BI$97*AN_EMIS!BG5 -> 0 | BJ100: =$E20*BJ$97*AN_EMIS!BH5 -> 0 | BK100: =$E20*BK$97*AN_EMIS!BI5 -> 0 | BL100: =$E20*BL$97*AN_EMIS!BJ5 -> 0 | BM100: =$E20*BM$97*AN_EMIS!BK5 -> 0 | BN100: =$E20*BN$97*AN_EMIS!BL5 -> 0 | BO100: =$E20*BO$97*AN_EMIS!BM5 -> 0 | BP100: =$E20*BP$97*AN_EMIS!BN5 -> 0 | BQ100: =$E20*BQ$97*AN_EMIS!BO5 -> 0 | BR100: =$E20*BR$97*AN_EMIS!BP5 -> 0 | BS100: =$E20*BS$97*AN_EMIS!BQ5 -> 0 | BT100: =$E20*BT$97*AN_EMIS!BR5 -> 0 | BU100: =$E20*BU$97*AN_EMIS!BS5 -> 0
A101: =A100+1 -> 2 | B101: 107-02-8 | C101: Acrolein | F101: =$E21*F$97*AN_EMIS!D6 -> 0 | G101: =$E21*G$97*AN_EMIS!E6 -> 0 | H101: =$E21*H$97*AN_EMIS!F6 -> 0 | I101: =$E21*I$97*AN_EMIS!G6 -> 0 | J101: =$E21*J$97*AN_EMIS!H6 -> 0 | K101: =$E21*K$97*AN_EMIS!I6 -> 0 | L101: =$E21*L$97*AN_EMIS!J6 -> 0 | M101: =$E21*M$97*AN_EMIS!K6 -> 0 | N101: =$E21*N$97*AN_EMIS!L6 -> 0 | O101: =$E21*O$97*AN_EMIS!M6 -> 0 | P101: =$E21*P$97*AN_EMIS!N6 -> 0 | Q101: =$E21*Q$97*AN_EMIS!O6 -> 0 | R101: =$E21*R$97*AN_EMIS!P6 -> 0 | S101: =$E21*S$97*AN_EMIS!Q6 -> 0 | T101: =$E21*T$97*AN_EMIS!R6 -> 0 | U101: =$E21*U$97*AN_EMIS!S6 -> 0 | V101: =$E21*V$97*AN_EMIS!T6 -> 0 | W101: =$E21*W$97*AN_EMIS!U6 -> 0 | X101: =$E21*X$97*AN_EMIS!V6 -> 0 | Y101: =$E21*Y$97*AN_EMIS!W6 -> 0 | Z101: =$E21*Z$97*AN_EMIS!X6 -> 0 | AA101: =$E21*AA$97*AN_EMIS!Y6 -> 0 | AB101: =$E21*AB$97*AN_EMIS!Z6 -> 0 | AC101: =$E21*AC$97*AN_EMIS!AA6 -> 0 | AD101: =$E21*AD$97*AN_EMIS!AB6 -> 0 | AE101: =$E21*AE$97*AN_EMIS!AC6 -> 0 | AF101: =$E21*AF$97*AN_EMIS!AD6 -> 0 | AG101: =$E21*AG$97*AN_EMIS!AE6 -> 0 | AH101: =$E21*AH$97*AN_EMIS!AF6 -> 0 | AI101: =$E21*AI$97*AN_EMIS!AG6 -> 0 | AJ101: =$E21*AJ$97*AN_EMIS!AH6 -> 0 | AK101: =$E21*AK$97*AN_EMIS!AI6 -> 0 | AL101: =$E21*AL$97*AN_EMIS!AJ6 -> 0 | AM101: =$E21*AM$97*AN_EMIS!AK6 -> 0 | AN101: =$E21*AN$97*AN_EMIS!AL6 -> 0 | AO101: =$E21*AO$97*AN_EMIS!AM6 -> 0 | AP101: =$E21*AP$97*AN_EMIS!AN6 -> 0 | AQ101: =$E21*AQ$97*AN_EMIS!AO6 -> 0 | AR101: =$E21*AR$97*AN_EMIS!AP6 -> 0 | AS101: =$E21*AS$97*AN_EMIS!AQ6 -> 0 | AT101: =$E21*AT$97*AN_EMIS!AR6 -> 0 | AU101: =$E21*AU$97*AN_EMIS!AS6 -> 0 | AV101: =$E21*AV$97*AN_EMIS!AT6 -> 0 | AW101: =$E21*AW$97*AN_EMIS!AU6 -> 0 | AX101: =$E21*AX$97*AN_EMIS!AV6 -> 0 | AY101: =$E21*AY$97*AN_EMIS!AW6 -> 0 | AZ101: =$E21*AZ$97*AN_EMIS!AX6 -> 0 | BA101: =$E21*BA$97*AN_EMIS!AY6 -> 0 | BB101: =$E21*BB$97*AN_EMIS!AZ6 -> 0 | BC101: =$E21*BC$97*AN_EMIS!BA6 -> 0 | BD101: =$E21*BD$97*AN_EMIS!BB6 -> 0 | BE101: =$E21*BE$97*AN_EMIS!BC6 -> 0 | BF101: =$E21*BF$97*AN_EMIS!BD6 -> 0 | BG101: =$E21*BG$97*AN_EMIS!BE6 -> 0 | BH101: =$E21*BH$97*AN_EMIS!BF6 -> 0 | BI101: =$E21*BI$97*AN_EMIS!BG6 -> 0 | BJ101: =$E21*BJ$97*AN_EMIS!BH6 -> 0 | BK101: =$E21*BK$97*AN_EMIS!BI6 -> 0 | BL101: =$E21*BL$97*AN_EMIS!BJ6 -> 0 | BM101: =$E21*BM$97*AN_EMIS!BK6 -> 0 | BN101: =$E21*BN$97*AN_EMIS!BL6 -> 0 | BO101: =$E21*BO$97*AN_EMIS!BM6 -> 0 | BP101: =$E21*BP$97*AN_EMIS!BN6 -> 0 | BQ101: =$E21*BQ$97*AN_EMIS!BO6 -> 0 | BR101: =$E21*BR$97*AN_EMIS!BP6 -> 0 | BS101: =$E21*BS$97*AN_EMIS!BQ6 -> 0 | BT101: =$E21*BT$97*AN_EMIS!BR6 -> 0 | BU101: =$E21*BU$97*AN_EMIS!BS6 -> 0
A102: 3 | B102: 7664-41-7 | C102: Ammonia | F102: =$E22*F$97*AN_EMIS!D7 -> 0 | G102: =$E22*G$97*AN_EMIS!E7 -> 0 | H102: =$E22*H$97*AN_EMIS!F7 -> 0 | I102: =$E22*I$97*AN_EMIS!G7 -> 0 | J102: =$E22*J$97*AN_EMIS!H7 -> 0 | K102: =$E22*K$97*AN_EMIS!I7 -> 0 | L102: =$E22*L$97*AN_EMIS!J7 -> 0 | M102: =$E22*M$97*AN_EMIS!K7 -> 0 | N102: =$E22*N$97*AN_EMIS!L7 -> 0 | O102: =$E22*O$97*AN_EMIS!M7 -> 0 | P102: =$E22*P$97*AN_EMIS!N7 -> 0 | Q102: =$E22*Q$97*AN_EMIS!O7 -> 0 | R102: =$E22*R$97*AN_EMIS!P7 -> 0 | S102: =$E22*S$97*AN_EMIS!Q7 -> 0 | T102: =$E22*T$97*AN_EMIS!R7 -> 0 | U102: =$E22*U$97*AN_EMIS!S7 -> 0 | V102: =$E22*V$97*AN_EMIS!T7 -> 0 | W102: =$E22*W$97*AN_EMIS!U7 -> 0 | X102: =$E22*X$97*AN_EMIS!V7 -> 0 | Y102: =$E22*Y$97*AN_EMIS!W7 -> 0 | Z102: =$E22*Z$97*AN_EMIS!X7 -> 0 | AA102: =$E22*AA$97*AN_EMIS!Y7 -> 0 | AB102: =$E22*AB$97*AN_EMIS!Z7 -> 0 | AC102: =$E22*AC$97*AN_EMIS!AA7 -> 0 | AD102: =$E22*AD$97*AN_EMIS!AB7 -> 0 | AE102: =$E22*AE$97*AN_EMIS!AC7 -> 0 | AF102: =$E22*AF$97*AN_EMIS!AD7 -> 0 | AG102: =$E22*AG$97*AN_EMIS!AE7 -> 0 | AH102: =$E22*AH$97*AN_EMIS!AF7 -> 0 | AI102: =$E22*AI$97*AN_EMIS!AG7 -> 0 | AJ102: =$E22*AJ$97*AN_EMIS!AH7 -> 0 | AK102: =$E22*AK$97*AN_EMIS!AI7 -> 0 | AL102: =$E22*AL$97*AN_EMIS!AJ7 -> 0 | AM102: =$E22*AM$97*AN_EMIS!AK7 -> 0 | AN102: =$E22*AN$97*AN_EMIS!AL7 -> 0 | AO102: =$E22*AO$97*AN_EMIS!AM7 -> 0 | AP102: =$E22*AP$97*AN_EMIS!AN7 -> 0 | AQ102: =$E22*AQ$97*AN_EMIS!AO7 -> 0 | AR102: =$E22*AR$97*AN_EMIS!AP7 -> 0 | AS102: =$E22*AS$97*AN_EMIS!AQ7 -> 0 | AT102: =$E22*AT$97*AN_EMIS!AR7 -> 0 | AU102: =$E22*AU$97*AN_EMIS!AS7 -> 0 | AV102: =$E22*AV$97*AN_EMIS!AT7 -> 0 | AW102: =$E22*AW$97*AN_EMIS!AU7 -> 0 | AX102: =$E22*AX$97*AN_EMIS!AV7 -> 0 | AY102: =$E22*AY$97*AN_EMIS!AW7 -> 0 | AZ102: =$E22*AZ$97*AN_EMIS!AX7 -> 0 | BA102: =$E22*BA$97*AN_EMIS!AY7 -> 0 | BB102: =$E22*BB$97*AN_EMIS!AZ7 -> 0 | BC102: =$E22*BC$97*AN_EMIS!BA7 -> 0 | BD102: =$E22*BD$97*AN_EMIS!BB7 -> 0 | BE102: =$E22*BE$97*AN_EMIS!BC7 -> 0 | BF102: =$E22*BF$97*AN_EMIS!BD7 -> 0 | BG102: =$E22*BG$97*AN_EMIS!BE7 -> 0 | BH102: =$E22*BH$97*AN_EMIS!BF7 -> 0 | BI102: =$E22*BI$97*AN_EMIS!BG7 -> 0 | BJ102: =$E22*BJ$97*AN_EMIS!BH7 -> 0 | BK102: =$E22*BK$97*AN_EMIS!BI7 -> 0 | BL102: =$E22*BL$97*AN_EMIS!BJ7 -> 0 | BM102: =$E22*BM$97*AN_EMIS!BK7 -> 0 | BN102: =$E22*BN$97*AN_EMIS!BL7 -> 0 | BO102: =$E22*BO$97*AN_EMIS!BM7 -> 0 | BP102: =$E22*BP$97*AN_EMIS!BN7 -> 0 | BQ102: =$E22*BQ$97*AN_EMIS!BO7 -> 0 | BR102: =$E22*BR$97*AN_EMIS!BP7 -> 0 | BS102: =$E22*BS$97*AN_EMIS!BQ7 -> 0 | BT102: =$E22*BT$97*AN_EMIS!BR7 -> 0 | BU102: =$E22*BU$97*AN_EMIS!BS7 -> 0
A103: 4 | B103: 7440-36-0 | C103: Antimony and compounds | F103: =$E23*F$97*AN_EMIS!D8 -> 0 | G103: =$E23*G$97*AN_EMIS!E8 -> 0 | H103: =$E23*H$97*AN_EMIS!F8 -> 0 | I103: =$E23*I$97*AN_EMIS!G8 -> 0 | J103: =$E23*J$97*AN_EMIS!H8 -> 0 | K103: =$E23*K$97*AN_EMIS!I8 -> 0 | L103: =$E23*L$97*AN_EMIS!J8 -> 0 | M103: =$E23*M$97*AN_EMIS!K8 -> 0 | N103: =$E23*N$97*AN_EMIS!L8 -> 0 | O103: =$E23*O$97*AN_EMIS!M8 -> 0 | P103: =$E23*P$97*AN_EMIS!N8 -> 0 | Q103: =$E23*Q$97*AN_EMIS!O8 -> 0 | R103: =$E23*R$97*AN_EMIS!P8 -> 0 | S103: =$E23*S$97*AN_EMIS!Q8 -> 0 | T103: =$E23*T$97*AN_EMIS!R8 -> 0 | U103: =$E23*U$97*AN_EMIS!S8 -> 0 | V103: =$E23*V$97*AN_EMIS!T8 -> 0 | W103: =$E23*W$97*AN_EMIS!U8 -> 0 | X103: =$E23*X$97*AN_EMIS!V8 -> 0 | Y103: =$E23*Y$97*AN_EMIS!W8 -> 0 | Z103: =$E23*Z$97*AN_EMIS!X8 -> 0 | AA103: =$E23*AA$97*AN_EMIS!Y8 -> 0 | AB103: =$E23*AB$97*AN_EMIS!Z8 -> 0 | AC103: =$E23*AC$97*AN_EMIS!AA8 -> 0 | AD103: =$E23*AD$97*AN_EMIS!AB8 -> 0 | AE103: =$E23*AE$97*AN_EMIS!AC8 -> 0 | AF103: =$E23*AF$97*AN_EMIS!AD8 -> 0 | AG103: =$E23*AG$97*AN_EMIS!AE8 -> 0 | AH103: =$E23*AH$97*AN_EMIS!AF8 -> 0 | AI103: =$E23*AI$97*AN_EMIS!AG8 -> 0 | AJ103: =$E23*AJ$97*AN_EMIS!AH8 -> 0 | AK103: =$E23*AK$97*AN_EMIS!AI8 -> 0 | AL103: =$E23*AL$97*AN_EMIS!AJ8 -> 0 | AM103: =$E23*AM$97*AN_EMIS!AK8 -> 0 | AN103: =$E23*AN$97*AN_EMIS!AL8 -> 0 | AO103: =$E23*AO$97*AN_EMIS!AM8 -> 0 | AP103: =$E23*AP$97*AN_EMIS!AN8 -> 0 | AQ103: =$E23*AQ$97*AN_EMIS!AO8 -> 0 | AR103: =$E23*AR$97*AN_EMIS!AP8 -> 0 | AS103: =$E23*AS$97*AN_EMIS!AQ8 -> 0 | AT103: =$E23*AT$97*AN_EMIS!AR8 -> 0 | AU103: =$E23*AU$97*AN_EMIS!AS8 -> 0 | AV103: =$E23*AV$97*AN_EMIS!AT8 -> 0 | AW103: =$E23*AW$97*AN_EMIS!AU8 -> 0 | AX103: =$E23*AX$97*AN_EMIS!AV8 -> 0 | AY103: =$E23*AY$97*AN_EMIS!AW8 -> 0 | AZ103: =$E23*AZ$97*AN_EMIS!AX8 -> 0 | BA103: =$E23*BA$97*AN_EMIS!AY8 -> 0 | BB103: =$E23*BB$97*AN_EMIS!AZ8 -> 0 | BC103: =$E23*BC$97*AN_EMIS!BA8 -> 0 | BD103: =$E23*BD$97*AN_EMIS!BB8 -> 0 | BE103: =$E23*BE$97*AN_EMIS!BC8 -> 0 | BF103: =$E23*BF$97*AN_EMIS!BD8 -> 0 | BG103: =$E23*BG$97*AN_EMIS!BE8 -> 0 | BH103: =$E23*BH$97*AN_EMIS!BF8 -> 0 | BI103: =$E23*BI$97*AN_EMIS!BG8 -> 0 | BJ103: =$E23*BJ$97*AN_EMIS!BH8 -> 0 | BK103: =$E23*BK$97*AN_EMIS!BI8 -> 0 | BL103: =$E23*BL$97*AN_EMIS!BJ8 -> 0 | BM103: =$E23*BM$97*AN_EMIS!BK8 -> 0 | BN103: =$E23*BN$97*AN_EMIS!BL8 -> 0 | BO103: =$E23*BO$97*AN_EMIS!BM8 -> 0 | BP103: =$E23*BP$97*AN_EMIS!BN8 -> 0 | BQ103: =$E23*BQ$97*AN_EMIS!BO8 -> 0 | BR103: =$E23*BR$97*AN_EMIS!BP8 -> 0 | BS103: =$E23*BS$97*AN_EMIS!BQ8 -> 0 | BT103: =$E23*BT$97*AN_EMIS!BR8 -> 0 | BU103: =$E23*BU$97*AN_EMIS!BS8 -> 0
A104: 5 | B104: 7440-38-2 | C104: Arsenic and compounds | F104: =$E24*F$97*AN_EMIS!D9 -> 0 | G104: =$E24*G$97*AN_EMIS!E9 -> 0 | H104: =$E24*H$97*AN_EMIS!F9 -> 0 | I104: =$E24*I$97*AN_EMIS!G9 -> 9.915018062 | J104: =$E24*J$97*AN_EMIS!H9 -> 0 | K104: =$E24*K$97*AN_EMIS!I9 -> 0 | L104: =$E24*L$97*AN_EMIS!J9 -> 0 | M104: =$E24*M$97*AN_EMIS!K9 -> 0 | N104: =$E24*N$97*AN_EMIS!L9 -> 0 | O104: =$E24*O$97*AN_EMIS!M9 -> 0 | P104: =$E24*P$97*AN_EMIS!N9 -> 0 | Q104: =$E24*Q$97*AN_EMIS!O9 -> 0 | R104: =$E24*R$97*AN_EMIS!P9 -> 0 | S104: =$E24*S$97*AN_EMIS!Q9 -> 0 | T104: =$E24*T$97*AN_EMIS!R9 -> 0 | U104: =$E24*U$97*AN_EMIS!S9 -> 0 | V104: =$E24*V$97*AN_EMIS!T9 -> 0 | W104: =$E24*W$97*AN_EMIS!U9 -> 0 | X104: =$E24*X$97*AN_EMIS!V9 -> 0 | Y104: =$E24*Y$97*AN_EMIS!W9 -> 0 | Z104: =$E24*Z$97*AN_EMIS!X9 -> 0 | AA104: =$E24*AA$97*AN_EMIS!Y9 -> 0 | AB104: =$E24*AB$97*AN_EMIS!Z9 -> 0 | AC104: =$E24*AC$97*AN_EMIS!AA9 -> 0 | AD104: =$E24*AD$97*AN_EMIS!AB9 -> 0 | AE104: =$E24*AE$97*AN_EMIS!AC9 -> 0 | AF104: =$E24*AF$97*AN_EMIS!AD9 -> 0 | AG104: =$E24*AG$97*AN_EMIS!AE9 -> 0 | AH104: =$E24*AH$97*AN_EMIS!AF9 -> 0 | AI104: =$E24*AI$97*AN_EMIS!AG9 -> 0 | AJ104: =$E24*AJ$97*AN_EMIS!AH9 -> 0 | AK104: =$E24*AK$97*AN_EMIS!AI9 -> 0 | AL104: =$E24*AL$97*AN_EMIS!AJ9 -> 0 | AM104: =$E24*AM$97*AN_EMIS!AK9 -> 0 | AN104: =$E24*AN$97*AN_EMIS!AL9 -> 0 | AO104: =$E24*AO$97*AN_EMIS!AM9 -> 0 | AP104: =$E24*AP$97*AN_EMIS!AN9 -> 0 | AQ104: =$E24*AQ$97*AN_EMIS!AO9 -> 0 | AR104: =$E24*AR$97*AN_EMIS!AP9 -> 0 | AS104: =$E24*AS$97*AN_EMIS!AQ9 -> 0 | AT104: =$E24*AT$97*AN_EMIS!AR9 -> 0 | AU104: =$E24*AU$97*AN_EMIS!AS9 -> 0 | AV104: =$E24*AV$97*AN_EMIS!AT9 -> 0 | AW104: =$E24*AW$97*AN_EMIS!AU9 -> 0 | AX104: =$E24*AX$97*AN_EMIS!AV9 -> 0 | AY104: =$E24*AY$97*AN_EMIS!AW9 -> 0 | AZ104: =$E24*AZ$97*AN_EMIS!AX9 -> 0 | BA104: =$E24*BA$97*AN_EMIS!AY9 -> 0 | BB104: =$E24*BB$97*AN_EMIS!AZ9 -> 0 | BC104: =$E24*BC$97*AN_EMIS!BA9 -> 0 | BD104: =$E24*BD$97*AN_EMIS!BB9 -> 0 | BE104: =$E24*BE$97*AN_EMIS!BC9 -> 0 | BF104: =$E24*BF$97*AN_EMIS!BD9 -> 0 | BG104: =$E24*BG$97*AN_EMIS!BE9 -> 0 | BH104: =$E24*BH$97*AN_EMIS!BF9 -> 0 | BI104: =$E24*BI$97*AN_EMIS!BG9 -> 0 | BJ104: =$E24*BJ$97*AN_EMIS!BH9 -> 0 | BK104: =$E24*BK$97*AN_EMIS!BI9 -> 0 | BL104: =$E24*BL$97*AN_EMIS!BJ9 -> 0 | BM104: =$E24*BM$97*AN_EMIS!BK9 -> 0 | BN104: =$E24*BN$97*AN_EMIS!BL9 -> 0 | BO104: =$E24*BO$97*AN_EMIS!BM9 -> 0 | BP104: =$E24*BP$97*AN_EMIS!BN9 -> 0 | BQ104: =$E24*BQ$97*AN_EMIS!BO9 -> 0 | BR104: =$E24*BR$97*AN_EMIS!BP9 -> 0 | BS104: =$E24*BS$97*AN_EMIS!BQ9 -> 0 | BT104: =$E24*BT$97*AN_EMIS!BR9 -> 0 | BU104: =$E24*BU$97*AN_EMIS!BS9 -> 0
A105: 6 | B105: 71-43-2 | C105: Benzene | F105: =$E25*F$97*AN_EMIS!D10 -> 0 | G105: =$E25*G$97*AN_EMIS!E10 -> 0 | H105: =$E25*H$97*AN_EMIS!F10 -> 0 | I105: =$E25*I$97*AN_EMIS!G10 -> 0 | J105: =$E25*J$97*AN_EMIS!H10 -> 0 | K105: =$E25*K$97*AN_EMIS!I10 -> 0 | L105: =$E25*L$97*AN_EMIS!J10 -> 0 | M105: =$E25*M$97*AN_EMIS!K10 -> 0 | N105: =$E25*N$97*AN_EMIS!L10 -> 0 | O105: =$E25*O$97*AN_EMIS!M10 -> 0 | P105: =$E25*P$97*AN_EMIS!N10 -> 0 | Q105: =$E25*Q$97*AN_EMIS!O10 -> 0 | R105: =$E25*R$97*AN_EMIS!P10 -> 0 | S105: =$E25*S$97*AN_EMIS!Q10 -> 0 | T105: =$E25*T$97*AN_EMIS!R10 -> 0 | U105: =$E25*U$97*AN_EMIS!S10 -> 0 | V105: =$E25*V$97*AN_EMIS!T10 -> 0 | W105: =$E25*W$97*AN_EMIS!U10 -> 0 | X105: =$E25*X$97*AN_EMIS!V10 -> 0 | Y105: =$E25*Y$97*AN_EMIS!W10 -> 0 | Z105: =$E25*Z$97*AN_EMIS!X10 -> 0 | AA105: =$E25*AA$97*AN_EMIS!Y10 -> 0 | AB105: =$E25*AB$97*AN_EMIS!Z10 -> 0 | AC105: =$E25*AC$97*AN_EMIS!AA10 -> 0 | AD105: =$E25*AD$97*AN_EMIS!AB10 -> 0 | AE105: =$E25*AE$97*AN_EMIS!AC10 -> 0 | AF105: =$E25*AF$97*AN_EMIS!AD10 -> 0 | AG105: =$E25*AG$97*AN_EMIS!AE10 -> 0 | AH105: =$E25*AH$97*AN_EMIS!AF10 -> 0 | AI105: =$E25*AI$97*AN_EMIS!AG10 -> 0 | AJ105: =$E25*AJ$97*AN_EMIS!AH10 -> 0 | AK105: =$E25*AK$97*AN_EMIS!AI10 -> 0 | AL105: =$E25*AL$97*AN_EMIS!AJ10 -> 0 | AM105: =$E25*AM$97*AN_EMIS!AK10 -> 0 | AN105: =$E25*AN$97*AN_EMIS!AL10 -> 0 | AO105: =$E25*AO$97*AN_EMIS!AM10 -> 0 | AP105: =$E25*AP$97*AN_EMIS!AN10 -> 0 | AQ105: =$E25*AQ$97*AN_EMIS!AO10 -> 0 | AR105: =$E25*AR$97*AN_EMIS!AP10 -> 0 | AS105: =$E25*AS$97*AN_EMIS!AQ10 -> 0 | AT105: =$E25*AT$97*AN_EMIS!AR10 -> 0 | AU105: =$E25*AU$97*AN_EMIS!AS10 -> 0 | AV105: =$E25*AV$97*AN_EMIS!AT10 -> 0 | AW105: =$E25*AW$97*AN_EMIS!AU10 -> 0 | AX105: =$E25*AX$97*AN_EMIS!AV10 -> 0 | AY105: =$E25*AY$97*AN_EMIS!AW10 -> 0 | AZ105: =$E25*AZ$97*AN_EMIS!AX10 -> 0 | BA105: =$E25*BA$97*AN_EMIS!AY10 -> 0 | BB105: =$E25*BB$97*AN_EMIS!AZ10 -> 0 | BC105: =$E25*BC$97*AN_EMIS!BA10 -> 0 | BD105: =$E25*BD$97*AN_EMIS!BB10 -> 0 | BE105: =$E25*BE$97*AN_EMIS!BC10 -> 0 | BF105: =$E25*BF$97*AN_EMIS!BD10 -> 0 | BG105: =$E25*BG$97*AN_EMIS!BE10 -> 0 | BH105: =$E25*BH$97*AN_EMIS!BF10 -> 0 | BI105: =$E25*BI$97*AN_EMIS!BG10 -> 0 | BJ105: =$E25*BJ$97*AN_EMIS!BH10 -> 0 | BK105: =$E25*BK$97*AN_EMIS!BI10 -> 0 | BL105: =$E25*BL$97*AN_EMIS!BJ10 -> 0 | BM105: =$E25*BM$97*AN_EMIS!BK10 -> 0 | BN105: =$E25*BN$97*AN_EMIS!BL10 -> 0 | BO105: =$E25*BO$97*AN_EMIS!BM10 -> 0 | BP105: =$E25*BP$97*AN_EMIS!BN10 -> 0 | BQ105: =$E25*BQ$97*AN_EMIS!BO10 -> 0 | BR105: =$E25*BR$97*AN_EMIS!BP10 -> 0 | BS105: =$E25*BS$97*AN_EMIS!BQ10 -> 0 | BT105: =$E25*BT$97*AN_EMIS!BR10 -> 0 | BU105: =$E25*BU$97*AN_EMIS!BS10 -> 0
A106: 7 | B106: 7440-41-7 | C106: Beryllium and compounds | F106: =$E26*F$97*AN_EMIS!D11 -> 0 | G106: =$E26*G$97*AN_EMIS!E11 -> 0 | H106: =$E26*H$97*AN_EMIS!F11 -> 0 | I106: =$E26*I$97*AN_EMIS!G11 -> 0.0004559243917 | J106: =$E26*J$97*AN_EMIS!H11 -> 0 | K106: =$E26*K$97*AN_EMIS!I11 -> 0 | L106: =$E26*L$97*AN_EMIS!J11 -> 0 | M106: =$E26*M$97*AN_EMIS!K11 -> 0 | N106: =$E26*N$97*AN_EMIS!L11 -> 0 | O106: =$E26*O$97*AN_EMIS!M11 -> 0 | P106: =$E26*P$97*AN_EMIS!N11 -> 0 | Q106: =$E26*Q$97*AN_EMIS!O11 -> 0 | R106: =$E26*R$97*AN_EMIS!P11 -> 0 | S106: =$E26*S$97*AN_EMIS!Q11 -> 0 | T106: =$E26*T$97*AN_EMIS!R11 -> 0 | U106: =$E26*U$97*AN_EMIS!S11 -> 0 | V106: =$E26*V$97*AN_EMIS!T11 -> 0 | W106: =$E26*W$97*AN_EMIS!U11 -> 0 | X106: =$E26*X$97*AN_EMIS!V11 -> 0 | Y106: =$E26*Y$97*AN_EMIS!W11 -> 0 | Z106: =$E26*Z$97*AN_EMIS!X11 -> 0 | AA106: =$E26*AA$97*AN_EMIS!Y11 -> 0 | AB106: =$E26*AB$97*AN_EMIS!Z11 -> 0 | AC106: =$E26*AC$97*AN_EMIS!AA11 -> 0 | AD106: =$E26*AD$97*AN_EMIS!AB11 -> 0 | AE106: =$E26*AE$97*AN_EMIS!AC11 -> 0 | AF106: =$E26*AF$97*AN_EMIS!AD11 -> 0 | AG106: =$E26*AG$97*AN_EMIS!AE11 -> 0 | AH106: =$E26*AH$97*AN_EMIS!AF11 -> 0 | AI106: =$E26*AI$97*AN_EMIS!AG11 -> 0 | AJ106: =$E26*AJ$97*AN_EMIS!AH11 -> 0 | AK106: =$E26*AK$97*AN_EMIS!AI11 -> 0 | AL106: =$E26*AL$97*AN_EMIS!AJ11 -> 0 | AM106: =$E26*AM$97*AN_EMIS!AK11 -> 0 | AN106: =$E26*AN$97*AN_EMIS!AL11 -> 0 | AO106: =$E26*AO$97*AN_EMIS!AM11 -> 0 | AP106: =$E26*AP$97*AN_EMIS!AN11 -> 0 | AQ106: =$E26*AQ$97*AN_EMIS!AO11 -> 0 | AR106: =$E26*AR$97*AN_EMIS!AP11 -> 0 | AS106: =$E26*AS$97*AN_EMIS!AQ11 -> 0 | AT106: =$E26*AT$97*AN_EMIS!AR11 -> 0 | AU106: =$E26*AU$97*AN_EMIS!AS11 -> 0 | AV106: =$E26*AV$97*AN_EMIS!AT11 -> 0 | AW106: =$E26*AW$97*AN_EMIS!AU11 -> 0 | AX106: =$E26*AX$97*AN_EMIS!AV11 -> 0 | AY106: =$E26*AY$97*AN_EMIS!AW11 -> 0 | AZ106: =$E26*AZ$97*AN_EMIS!AX11 -> 0 | BA106: =$E26*BA$97*AN_EMIS!AY11 -> 0 | BB106: =$E26*BB$97*AN_EMIS!AZ11 -> 0 | BC106: =$E26*BC$97*AN_EMIS!BA11 -> 0 | BD106: =$E26*BD$97*AN_EMIS!BB11 -> 0 | BE106: =$E26*BE$97*AN_EMIS!BC11 -> 0 | BF106: =$E26*BF$97*AN_EMIS!BD11 -> 0 | BG106: =$E26*BG$97*AN_EMIS!BE11 -> 0 | BH106: =$E26*BH$97*AN_EMIS!BF11 -> 0 | BI106: =$E26*BI$97*AN_EMIS!BG11 -> 0 | BJ106: =$E26*BJ$97*AN_EMIS!BH11 -> 0 | BK106: =$E26*BK$97*AN_EMIS!BI11 -> 0 | BL106: =$E26*BL$97*AN_EMIS!BJ11 -> 0 | BM106: =$E26*BM$97*AN_EMIS!BK11 -> 0 | BN106: =$E26*BN$97*AN_EMIS!BL11 -> 0 | BO106: =$E26*BO$97*AN_EMIS!BM11 -> 0 | BP106: =$E26*BP$97*AN_EMIS!BN11 -> 0 | BQ106: =$E26*BQ$97*AN_EMIS!BO11 -> 0 | BR106: =$E26*BR$97*AN_EMIS!BP11 -> 0 | BS106: =$E26*BS$97*AN_EMIS!BQ11 -> 0 | BT106: =$E26*BT$97*AN_EMIS!BR11 -> 0 | BU106: =$E26*BU$97*AN_EMIS!BS11 -> 0
A107: 8 | B107: 78-93-3 | C107: 2-Butanone (Methyl ethyl ketone) | F107: =$E27*F$97*AN_EMIS!D12 -> 0 | G107: =$E27*G$97*AN_EMIS!E12 -> 0 | H107: =$E27*H$97*AN_EMIS!F12 -> 0 | I107: =$E27*I$97*AN_EMIS!G12 -> 0 | J107: =$E27*J$97*AN_EMIS!H12 -> 0 | K107: =$E27*K$97*AN_EMIS!I12 -> 0 | L107: =$E27*L$97*AN_EMIS!J12 -> 0 | M107: =$E27*M$97*AN_EMIS!K12 -> 0 | N107: =$E27*N$97*AN_EMIS!L12 -> 0 | O107: =$E27*O$97*AN_EMIS!M12 -> 0 | P107: =$E27*P$97*AN_EMIS!N12 -> 0 | Q107: =$E27*Q$97*AN_EMIS!O12 -> 0 | R107: =$E27*R$97*AN_EMIS!P12 -> 0 | S107: =$E27*S$97*AN_EMIS!Q12 -> 0 | T107: =$E27*T$97*AN_EMIS!R12 -> 0 | U107: =$E27*U$97*AN_EMIS!S12 -> 0 | V107: =$E27*V$97*AN_EMIS!T12 -> 0 | W107: =$E27*W$97*AN_EMIS!U12 -> 0 | X107: =$E27*X$97*AN_EMIS!V12 -> 0 | Y107: =$E27*Y$97*AN_EMIS!W12 -> 0 | Z107: =$E27*Z$97*AN_EMIS!X12 -> 0 | AA107: =$E27*AA$97*AN_EMIS!Y12 -> 0 | AB107: =$E27*AB$97*AN_EMIS!Z12 -> 0 | AC107: =$E27*AC$97*AN_EMIS!AA12 -> 0 | AD107: =$E27*AD$97*AN_EMIS!AB12 -> 0 | AE107: =$E27*AE$97*AN_EMIS!AC12 -> 0 | AF107: =$E27*AF$97*AN_EMIS!AD12 -> 0 | AG107: =$E27*AG$97*AN_EMIS!AE12 -> 0 | AH107: =$E27*AH$97*AN_EMIS!AF12 -> 0 | AI107: =$E27*AI$97*AN_EMIS!AG12 -> 0 | AJ107: =$E27*AJ$97*AN_EMIS!AH12 -> 0 | AK107: =$E27*AK$97*AN_EMIS!AI12 -> 0 | AL107: =$E27*AL$97*AN_EMIS!AJ12 -> 0 | AM107: =$E27*AM$97*AN_EMIS!AK12 -> 0 | AN107: =$E27*AN$97*AN_EMIS!AL12 -> 0 | AO107: =$E27*AO$97*AN_EMIS!AM12 -> 0 | AP107: =$E27*AP$97*AN_EMIS!AN12 -> 0 | AQ107: =$E27*AQ$97*AN_EMIS!AO12 -> 0 | AR107: =$E27*AR$97*AN_EMIS!AP12 -> 0 | AS107: =$E27*AS$97*AN_EMIS!AQ12 -> 0 | AT107: =$E27*AT$97*AN_EMIS!AR12 -> 0 | AU107: =$E27*AU$97*AN_EMIS!AS12 -> 0 | AV107: =$E27*AV$97*AN_EMIS!AT12 -> 0 | AW107: =$E27*AW$97*AN_EMIS!AU12 -> 0 | AX107: =$E27*AX$97*AN_EMIS!AV12 -> 0 | AY107: =$E27*AY$97*AN_EMIS!AW12 -> 0 | AZ107: =$E27*AZ$97*AN_EMIS!AX12 -> 0 | BA107: =$E27*BA$97*AN_EMIS!AY12 -> 0 | BB107: =$E27*BB$97*AN_EMIS!AZ12 -> 0 | BC107: =$E27*BC$97*AN_EMIS!BA12 -> 0 | BD107: =$E27*BD$97*AN_EMIS!BB12 -> 0 | BE107: =$E27*BE$97*AN_EMIS!BC12 -> 0 | BF107: =$E27*BF$97*AN_EMIS!BD12 -> 0 | BG107: =$E27*BG$97*AN_EMIS!BE12 -> 0 | BH107: =$E27*BH$97*AN_EMIS!BF12 -> 0 | BI107: =$E27*BI$97*AN_EMIS!BG12 -> 0 | BJ107: =$E27*BJ$97*AN_EMIS!BH12 -> 0 | BK107: =$E27*BK$97*AN_EMIS!BI12 -> 0 | BL107: =$E27*BL$97*AN_EMIS!BJ12 -> 0 | BM107: =$E27*BM$97*AN_EMIS!BK12 -> 0 | BN107: =$E27*BN$97*AN_EMIS!BL12 -> 0 | BO107: =$E27*BO$97*AN_EMIS!BM12 -> 0 | BP107: =$E27*BP$97*AN_EMIS!BN12 -> 0 | BQ107: =$E27*BQ$97*AN_EMIS!BO12 -> 0 | BR107: =$E27*BR$97*AN_EMIS!BP12 -> 0 | BS107: =$E27*BS$97*AN_EMIS!BQ12 -> 0 | BT107: =$E27*BT$97*AN_EMIS!BR12 -> 0 | BU107: =$E27*BU$97*AN_EMIS!BS12 -> 0
A108: 9 | B108: 7440-43-9 | C108: Cadmium and compounds | F108: =$E28*F$97*AN_EMIS!D13 -> 0 | G108: =$E28*G$97*AN_EMIS!E13 -> 0 | H108: =$E28*H$97*AN_EMIS!F13 -> 0 | I108: =$E28*I$97*AN_EMIS!G13 -> 0.1556131769 | J108: =$E28*J$97*AN_EMIS!H13 -> 0 | K108: =$E28*K$97*AN_EMIS!I13 -> 0 | L108: =$E28*L$97*AN_EMIS!J13 -> 0 | M108: =$E28*M$97*AN_EMIS!K13 -> 0 | N108: =$E28*N$97*AN_EMIS!L13 -> 0 | O108: =$E28*O$97*AN_EMIS!M13 -> 0 | P108: =$E28*P$97*AN_EMIS!N13 -> 0 | Q108: =$E28*Q$97*AN_EMIS!O13 -> 0 | R108: =$E28*R$97*AN_EMIS!P13 -> 0 | S108: =$E28*S$97*AN_EMIS!Q13 -> 0 | T108: =$E28*T$97*AN_EMIS!R13 -> 0 | U108: =$E28*U$97*AN_EMIS!S13 -> 0 | V108: =$E28*V$97*AN_EMIS!T13 -> 0 | W108: =$E28*W$97*AN_EMIS!U13 -> 0 | X108: =$E28*X$97*AN_EMIS!V13 -> 0 | Y108: =$E28*Y$97*AN_EMIS!W13 -> 0 | Z108: =$E28*Z$97*AN_EMIS!X13 -> 0 | AA108: =$E28*AA$97*AN_EMIS!Y13 -> 0 | AB108: =$E28*AB$97*AN_EMIS!Z13 -> 0 | AC108: =$E28*AC$97*AN_EMIS!AA13 -> 0 | AD108: =$E28*AD$97*AN_EMIS!AB13 -> 0 | AE108: =$E28*AE$97*AN_EMIS!AC13 -> 0 | AF108: =$E28*AF$97*AN_EMIS!AD13 -> 0 | AG108: =$E28*AG$97*AN_EMIS!AE13 -> 0 | AH108: =$E28*AH$97*AN_EMIS!AF13 -> 0 | AI108: =$E28*AI$97*AN_EMIS!AG13 -> 0 | AJ108: =$E28*AJ$97*AN_EMIS!AH13 -> 0 | AK108: =$E28*AK$97*AN_EMIS!AI13 -> 0 | AL108: =$E28*AL$97*AN_EMIS!AJ13 -> 0 | AM108: =$E28*AM$97*AN_EMIS!AK13 -> 0 | AN108: =$E28*AN$97*AN_EMIS!AL13 -> 0 | AO108: =$E28*AO$97*AN_EMIS!AM13 -> 0 | AP108: =$E28*AP$97*AN_EMIS!AN13 -> 0 | AQ108: =$E28*AQ$97*AN_EMIS!AO13 -> 0 | AR108: =$E28*AR$97*AN_EMIS!AP13 -> 0 | AS108: =$E28*AS$97*AN_EMIS!AQ13 -> 0 | AT108: =$E28*AT$97*AN_EMIS!AR13 -> 0 | AU108: =$E28*AU$97*AN_EMIS!AS13 -> 0 | AV108: =$E28*AV$97*AN_EMIS!AT13 -> 0 | AW108: =$E28*AW$97*AN_EMIS!AU13 -> 0 | AX108: =$E28*AX$97*AN_EMIS!AV13 -> 0 | AY108: =$E28*AY$97*AN_EMIS!AW13 -> 0 | AZ108: =$E28*AZ$97*AN_EMIS!AX13 -> 0 | BA108: =$E28*BA$97*AN_EMIS!AY13 -> 0 | BB108: =$E28*BB$97*AN_EMIS!AZ13 -> 0 | BC108: =$E28*BC$97*AN_EMIS!BA13 -> 0 | BD108: =$E28*BD$97*AN_EMIS!BB13 -> 0 | BE108: =$E28*BE$97*AN_EMIS!BC13 -> 0 | BF108: =$E28*BF$97*AN_EMIS!BD13 -> 0 | BG108: =$E28*BG$97*AN_EMIS!BE13 -> 0 | BH108: =$E28*BH$97*AN_EMIS!BF13 -> 0 | BI108: =$E28*BI$97*AN_EMIS!BG13 -> 0 | BJ108: =$E28*BJ$97*AN_EMIS!BH13 -> 0 | BK108: =$E28*BK$97*AN_EMIS!BI13 -> 0 | BL108: =$E28*BL$97*AN_EMIS!BJ13 -> 0 | BM108: =$E28*BM$97*AN_EMIS!BK13 -> 0 | BN108: =$E28*BN$97*AN_EMIS!BL13 -> 0 | BO108: =$E28*BO$97*AN_EMIS!BM13 -> 0 | BP108: =$E28*BP$97*AN_EMIS!BN13 -> 0 | BQ108: =$E28*BQ$97*AN_EMIS!BO13 -> 0 | BR108: =$E28*BR$97*AN_EMIS!BP13 -> 0 | BS108: =$E28*BS$97*AN_EMIS!BQ13 -> 0 | BT108: =$E28*BT$97*AN_EMIS!BR13 -> 0 | BU108: =$E28*BU$97*AN_EMIS!BS13 -> 0
A109: 10 | B109: 18540-29-9 | C109: Chromium VI, chromate and dichromate particulate | F109: =$E29*F$97*AN_EMIS!D14 -> 0 | G109: =$E29*G$97*AN_EMIS!E14 -> 0 | H109: =$E29*H$97*AN_EMIS!F14 -> 0 | I109: =$E29*I$97*AN_EMIS!G14 -> 0.01723754819 | J109: =$E29*J$97*AN_EMIS!H14 -> 0 | K109: =$E29*K$97*AN_EMIS!I14 -> 0 | L109: =$E29*L$97*AN_EMIS!J14 -> 0 | M109: =$E29*M$97*AN_EMIS!K14 -> 0 | N109: =$E29*N$97*AN_EMIS!L14 -> 0.0003260748927 | O109: =$E29*O$97*AN_EMIS!M14 -> 0 | P109: =$E29*P$97*AN_EMIS!N14 -> 0 | Q109: =$E29*Q$97*AN_EMIS!O14 -> 0 | R109: =$E29*R$97*AN_EMIS!P14 -> 0 | S109: =$E29*S$97*AN_EMIS!Q14 -> 0 | T109: =$E29*T$97*AN_EMIS!R14 -> 0 | U109: =$E29*U$97*AN_EMIS!S14 -> 0 | V109: =$E29*V$97*AN_EMIS!T14 -> 0 | W109: =$E29*W$97*AN_EMIS!U14 -> 0 | X109: =$E29*X$97*AN_EMIS!V14 -> 0 | Y109: =$E29*Y$97*AN_EMIS!W14 -> 0 | Z109: =$E29*Z$97*AN_EMIS!X14 -> 0 | AA109: =$E29*AA$97*AN_EMIS!Y14 -> 0 | AB109: =$E29*AB$97*AN_EMIS!Z14 -> 0 | AC109: =$E29*AC$97*AN_EMIS!AA14 -> 0 | AD109: =$E29*AD$97*AN_EMIS!AB14 -> 0 | AE109: =$E29*AE$97*AN_EMIS!AC14 -> 0 | AF109: =$E29*AF$97*AN_EMIS!AD14 -> 0 | AG109: =$E29*AG$97*AN_EMIS!AE14 -> 0 | AH109: =$E29*AH$97*AN_EMIS!AF14 -> 0 | AI109: =$E29*AI$97*AN_EMIS!AG14 -> 0 | AJ109: =$E29*AJ$97*AN_EMIS!AH14 -> 0 | AK109: =$E29*AK$97*AN_EMIS!AI14 -> 0 | AL109: =$E29*AL$97*AN_EMIS!AJ14 -> 0 | AM109: =$E29*AM$97*AN_EMIS!AK14 -> 0 | AN109: =$E29*AN$97*AN_EMIS!AL14 -> 0 | AO109: =$E29*AO$97*AN_EMIS!AM14 -> 0 | AP109: =$E29*AP$97*AN_EMIS!AN14 -> 0 | AQ109: =$E29*AQ$97*AN_EMIS!AO14 -> 0 | AR109: =$E29*AR$97*AN_EMIS!AP14 -> 0 | AS109: =$E29*AS$97*AN_EMIS!AQ14 -> 0 | AT109: =$E29*AT$97*AN_EMIS!AR14 -> 0 | AU109: =$E29*AU$97*AN_EMIS!AS14 -> 0 | AV109: =$E29*AV$97*AN_EMIS!AT14 -> 0 | AW109: =$E29*AW$97*AN_EMIS!AU14 -> 0 | AX109: =$E29*AX$97*AN_EMIS!AV14 -> 0 | AY109: =$E29*AY$97*AN_EMIS!AW14 -> 0 | AZ109: =$E29*AZ$97*AN_EMIS!AX14 -> 0 | BA109: =$E29*BA$97*AN_EMIS!AY14 -> 0 | BB109: =$E29*BB$97*AN_EMIS!AZ14 -> 0 | BC109: =$E29*BC$97*AN_EMIS!BA14 -> 0 | BD109: =$E29*BD$97*AN_EMIS!BB14 -> 0 | BE109: =$E29*BE$97*AN_EMIS!BC14 -> 0 | BF109: =$E29*BF$97*AN_EMIS!BD14 -> 0 | BG109: =$E29*BG$97*AN_EMIS!BE14 -> 0 | BH109: =$E29*BH$97*AN_EMIS!BF14 -> 0 | BI109: =$E29*BI$97*AN_EMIS!BG14 -> 0 | BJ109: =$E29*BJ$97*AN_EMIS!BH14 -> 0 | BK109: =$E29*BK$97*AN_EMIS!BI14 -> 0 | BL109: =$E29*BL$97*AN_EMIS!BJ14 -> 0 | BM109: =$E29*BM$97*AN_EMIS!BK14 -> 0 | BN109: =$E29*BN$97*AN_EMIS!BL14 -> 0 | BO109: =$E29*BO$97*AN_EMIS!BM14 -> 0 | BP109: =$E29*BP$97*AN_EMIS!BN14 -> 0 | BQ109: =$E29*BQ$97*AN_EMIS!BO14 -> 0 | BR109: =$E29*BR$97*AN_EMIS!BP14 -> 0 | BS109: =$E29*BS$97*AN_EMIS!BQ14 -> 0 | BT109: =$E29*BT$97*AN_EMIS!BR14 -> 0 | BU109: =$E29*BU$97*AN_EMIS!BS14 -> 0
A110: 11 | B110: 7440-48-4 | C110: Cobalt and compounds | F110: =$E30*F$97*AN_EMIS!D15 -> 0 | G110: =$E30*G$97*AN_EMIS!E15 -> 0 | H110: =$E30*H$97*AN_EMIS!F15 -> 0 | I110: =$E30*I$97*AN_EMIS!G15 -> 0 | J110: =$E30*J$97*AN_EMIS!H15 -> 0 | K110: =$E30*K$97*AN_EMIS!I15 -> 0 | L110: =$E30*L$97*AN_EMIS!J15 -> 0 | M110: =$E30*M$97*AN_EMIS!K15 -> 0 | N110: =$E30*N$97*AN_EMIS!L15 -> 0 | O110: =$E30*O$97*AN_EMIS!M15 -> 0 | P110: =$E30*P$97*AN_EMIS!N15 -> 0 | Q110: =$E30*Q$97*AN_EMIS!O15 -> 0 | R110: =$E30*R$97*AN_EMIS!P15 -> 0 | S110: =$E30*S$97*AN_EMIS!Q15 -> 0 | T110: =$E30*T$97*AN_EMIS!R15 -> 0 | U110: =$E30*U$97*AN_EMIS!S15 -> 0 | V110: =$E30*V$97*AN_EMIS!T15 -> 0 | W110: =$E30*W$97*AN_EMIS!U15 -> 0 | X110: =$E30*X$97*AN_EMIS!V15 -> 0 | Y110: =$E30*Y$97*AN_EMIS!W15 -> 0 | Z110: =$E30*Z$97*AN_EMIS!X15 -> 0 | AA110: =$E30*AA$97*AN_EMIS!Y15 -> 0 | AB110: =$E30*AB$97*AN_EMIS!Z15 -> 0 | AC110: =$E30*AC$97*AN_EMIS!AA15 -> 0 | AD110: =$E30*AD$97*AN_EMIS!AB15 -> 0 | AE110: =$E30*AE$97*AN_EMIS!AC15 -> 0 | AF110: =$E30*AF$97*AN_EMIS!AD15 -> 0 | AG110: =$E30*AG$97*AN_EMIS!AE15 -> 0 | AH110: =$E30*AH$97*AN_EMIS!AF15 -> 0 | AI110: =$E30*AI$97*AN_EMIS!AG15 -> 0 | AJ110: =$E30*AJ$97*AN_EMIS!AH15 -> 0 | AK110: =$E30*AK$97*AN_EMIS!AI15 -> 0 | AL110: =$E30*AL$97*AN_EMIS!AJ15 -> 0 | AM110: =$E30*AM$97*AN_EMIS!AK15 -> 0 | AN110: =$E30*AN$97*AN_EMIS!AL15 -> 0 | AO110: =$E30*AO$97*AN_EMIS!AM15 -> 0 | AP110: =$E30*AP$97*AN_EMIS!AN15 -> 0 | AQ110: =$E30*AQ$97*AN_EMIS!AO15 -> 0 | AR110: =$E30*AR$97*AN_EMIS!AP15 -> 0 | AS110: =$E30*AS$97*AN_EMIS!AQ15 -> 0 | AT110: =$E30*AT$97*AN_EMIS!AR15 -> 0 | AU110: =$E30*AU$97*AN_EMIS!AS15 -> 0 | AV110: =$E30*AV$97*AN_EMIS!AT15 -> 0 | AW110: =$E30*AW$97*AN_EMIS!AU15 -> 0 | AX110: =$E30*AX$97*AN_EMIS!AV15 -> 0 | AY110: =$E30*AY$97*AN_EMIS!AW15 -> 0 | AZ110: =$E30*AZ$97*AN_EMIS!AX15 -> 0 | BA110: =$E30*BA$97*AN_EMIS!AY15 -> 0 | BB110: =$E30*BB$97*AN_EMIS!AZ15 -> 0 | BC110: =$E30*BC$97*AN_EMIS!BA15 -> 0 | BD110: =$E30*BD$97*AN_EMIS!BB15 -> 0 | BE110: =$E30*BE$97*AN_EMIS!BC15 -> 0 | BF110: =$E30*BF$97*AN_EMIS!BD15 -> 0 | BG110: =$E30*BG$97*AN_EMIS!BE15 -> 0 | BH110: =$E30*BH$97*AN_EMIS!BF15 -> 0 | BI110: =$E30*BI$97*AN_EMIS!BG15 -> 0 | BJ110: =$E30*BJ$97*AN_EMIS!BH15 -> 0 | BK110: =$E30*BK$97*AN_EMIS!BI15 -> 0 | BL110: =$E30*BL$97*AN_EMIS!BJ15 -> 0 | BM110: =$E30*BM$97*AN_EMIS!BK15 -> 0 | BN110: =$E30*BN$97*AN_EMIS!BL15 -> 0 | BO110: =$E30*BO$97*AN_EMIS!BM15 -> 0 | BP110: =$E30*BP$97*AN_EMIS!BN15 -> 0 | BQ110: =$E30*BQ$97*AN_EMIS!BO15 -> 0 | BR110: =$E30*BR$97*AN_EMIS!BP15 -> 0 | BS110: =$E30*BS$97*AN_EMIS!BQ15 -> 0 | BT110: =$E30*BT$97*AN_EMIS!BR15 -> 0 | BU110: =$E30*BU$97*AN_EMIS!BS15 -> 0
A111: 12 | B111: 7440-50-8 | C111: Copper and compounds | F111: =$E31*F$97*AN_EMIS!D16 -> 0 | G111: =$E31*G$97*AN_EMIS!E16 -> 0 | H111: =$E31*H$97*AN_EMIS!F16 -> 0 | I111: =$E31*I$97*AN_EMIS!G16 -> 0 | J111: =$E31*J$97*AN_EMIS!H16 -> 0 | K111: =$E31*K$97*AN_EMIS!I16 -> 0 | L111: =$E31*L$97*AN_EMIS!J16 -> 0 | M111: =$E31*M$97*AN_EMIS!K16 -> 0 | N111: =$E31*N$97*AN_EMIS!L16 -> 0 | O111: =$E31*O$97*AN_EMIS!M16 -> 0 | P111: =$E31*P$97*AN_EMIS!N16 -> 0 | Q111: =$E31*Q$97*AN_EMIS!O16 -> 0 | R111: =$E31*R$97*AN_EMIS!P16 -> 0 | S111: =$E31*S$97*AN_EMIS!Q16 -> 0 | T111: =$E31*T$97*AN_EMIS!R16 -> 0 | U111: =$E31*U$97*AN_EMIS!S16 -> 0 | V111: =$E31*V$97*AN_EMIS!T16 -> 0 | W111: =$E31*W$97*AN_EMIS!U16 -> 0 | X111: =$E31*X$97*AN_EMIS!V16 -> 0 | Y111: =$E31*Y$97*AN_EMIS!W16 -> 0 | Z111: =$E31*Z$97*AN_EMIS!X16 -> 0 | AA111: =$E31*AA$97*AN_EMIS!Y16 -> 0 | AB111: =$E31*AB$97*AN_EMIS!Z16 -> 0 | AC111: =$E31*AC$97*AN_EMIS!AA16 -> 0 | AD111: =$E31*AD$97*AN_EMIS!AB16 -> 0 | AE111: =$E31*AE$97*AN_EMIS!AC16 -> 0 | AF111: =$E31*AF$97*AN_EMIS!AD16 -> 0 | AG111: =$E31*AG$97*AN_EMIS!AE16 -> 0 | AH111: =$E31*AH$97*AN_EMIS!AF16 -> 0 | AI111: =$E31*AI$97*AN_EMIS!AG16 -> 0 | AJ111: =$E31*AJ$97*AN_EMIS!AH16 -> 0 | AK111: =$E31*AK$97*AN_EMIS!AI16 -> 0 | AL111: =$E31*AL$97*AN_EMIS!AJ16 -> 0 | AM111: =$E31*AM$97*AN_EMIS!AK16 -> 0 | AN111: =$E31*AN$97*AN_EMIS!AL16 -> 0 | AO111: =$E31*AO$97*AN_EMIS!AM16 -> 0 | AP111: =$E31*AP$97*AN_EMIS!AN16 -> 0 | AQ111: =$E31*AQ$97*AN_EMIS!AO16 -> 0 | AR111: =$E31*AR$97*AN_EMIS!AP16 -> 0 | AS111: =$E31*AS$97*AN_EMIS!AQ16 -> 0 | AT111: =$E31*AT$97*AN_EMIS!AR16 -> 0 | AU111: =$E31*AU$97*AN_EMIS!AS16 -> 0 | AV111: =$E31*AV$97*AN_EMIS!AT16 -> 0 | AW111: =$E31*AW$97*AN_EMIS!AU16 -> 0 | AX111: =$E31*AX$97*AN_EMIS!AV16 -> 0 | AY111: =$E31*AY$97*AN_EMIS!AW16 -> 0 | AZ111: =$E31*AZ$97*AN_EMIS!AX16 -> 0 | BA111: =$E31*BA$97*AN_EMIS!AY16 -> 0 | BB111: =$E31*BB$97*AN_EMIS!AZ16 -> 0 | BC111: =$E31*BC$97*AN_EMIS!BA16 -> 0 | BD111: =$E31*BD$97*AN_EMIS!BB16 -> 0 | BE111: =$E31*BE$97*AN_EMIS!BC16 -> 0 | BF111: =$E31*BF$97*AN_EMIS!BD16 -> 0 | BG111: =$E31*BG$97*AN_EMIS!BE16 -> 0 | BH111: =$E31*BH$97*AN_EMIS!BF16 -> 0 | BI111: =$E31*BI$97*AN_EMIS!BG16 -> 0 | BJ111: =$E31*BJ$97*AN_EMIS!BH16 -> 0 | BK111: =$E31*BK$97*AN_EMIS!BI16 -> 0 | BL111: =$E31*BL$97*AN_EMIS!BJ16 -> 0 | BM111: =$E31*BM$97*AN_EMIS!BK16 -> 0 | BN111: =$E31*BN$97*AN_EMIS!BL16 -> 0 | BO111: =$E31*BO$97*AN_EMIS!BM16 -> 0 | BP111: =$E31*BP$97*AN_EMIS!BN16 -> 0 | BQ111: =$E31*BQ$97*AN_EMIS!BO16 -> 0 | BR111: =$E31*BR$97*AN_EMIS!BP16 -> 0 | BS111: =$E31*BS$97*AN_EMIS!BQ16 -> 0 | BT111: =$E31*BT$97*AN_EMIS!BR16 -> 0 | BU111: =$E31*BU$97*AN_EMIS!BS16 -> 0
A112: 13 | B112: 100-41-4 | C112: Ethyl benzene | F112: =$E32*F$97*AN_EMIS!D17 -> 0 | G112: =$E32*G$97*AN_EMIS!E17 -> 0 | H112: =$E32*H$97*AN_EMIS!F17 -> 0 | I112: =$E32*I$97*AN_EMIS!G17 -> 0 | J112: =$E32*J$97*AN_EMIS!H17 -> 0 | K112: =$E32*K$97*AN_EMIS!I17 -> 0 | L112: =$E32*L$97*AN_EMIS!J17 -> 0 | M112: =$E32*M$97*AN_EMIS!K17 -> 0 | N112: =$E32*N$97*AN_EMIS!L17 -> 0 | O112: =$E32*O$97*AN_EMIS!M17 -> 0 | P112: =$E32*P$97*AN_EMIS!N17 -> 0.0003071311808 | Q112: =$E32*Q$97*AN_EMIS!O17 -> 0 | R112: =$E32*R$97*AN_EMIS!P17 -> 0 | S112: =$E32*S$97*AN_EMIS!Q17 -> 0 | T112: =$E32*T$97*AN_EMIS!R17 -> 0 | U112: =$E32*U$97*AN_EMIS!S17 -> 0 | V112: =$E32*V$97*AN_EMIS!T17 -> 0 | W112: =$E32*W$97*AN_EMIS!U17 -> 0 | X112: =$E32*X$97*AN_EMIS!V17 -> 0 | Y112: =$E32*Y$97*AN_EMIS!W17 -> 0 | Z112: =$E32*Z$97*AN_EMIS!X17 -> 0 | AA112: =$E32*AA$97*AN_EMIS!Y17 -> 0 | AB112: =$E32*AB$97*AN_EMIS!Z17 -> 0 | AC112: =$E32*AC$97*AN_EMIS!AA17 -> 0 | AD112: =$E32*AD$97*AN_EMIS!AB17 -> 0 | AE112: =$E32*AE$97*AN_EMIS!AC17 -> 0 | AF112: =$E32*AF$97*AN_EMIS!AD17 -> 0 | AG112: =$E32*AG$97*AN_EMIS!AE17 -> 0 | AH112: =$E32*AH$97*AN_EMIS!AF17 -> 0 | AI112: =$E32*AI$97*AN_EMIS!AG17 -> 0 | AJ112: =$E32*AJ$97*AN_EMIS!AH17 -> 0 | AK112: =$E32*AK$97*AN_EMIS!AI17 -> 0 | AL112: =$E32*AL$97*AN_EMIS!AJ17 -> 0 | AM112: =$E32*AM$97*AN_EMIS!AK17 -> 0 | AN112: =$E32*AN$97*AN_EMIS!AL17 -> 0 | AO112: =$E32*AO$97*AN_EMIS!AM17 -> 0 | AP112: =$E32*AP$97*AN_EMIS!AN17 -> 0 | AQ112: =$E32*AQ$97*AN_EMIS!AO17 -> 0 | AR112: =$E32*AR$97*AN_EMIS!AP17 -> 0 | AS112: =$E32*AS$97*AN_EMIS!AQ17 -> 0 | AT112: =$E32*AT$97*AN_EMIS!AR17 -> 0 | AU112: =$E32*AU$97*AN_EMIS!AS17 -> 0 | AV112: =$E32*AV$97*AN_EMIS!AT17 -> 0 | AW112: =$E32*AW$97*AN_EMIS!AU17 -> 0 | AX112: =$E32*AX$97*AN_EMIS!AV17 -> 0 | AY112: =$E32*AY$97*AN_EMIS!AW17 -> 0 | AZ112: =$E32*AZ$97*AN_EMIS!AX17 -> 0 | BA112: =$E32*BA$97*AN_EMIS!AY17 -> 0 | BB112: =$E32*BB$97*AN_EMIS!AZ17 -> 0 | BC112: =$E32*BC$97*AN_EMIS!BA17 -> 0 | BD112: =$E32*BD$97*AN_EMIS!BB17 -> 0 | BE112: =$E32*BE$97*AN_EMIS!BC17 -> 0 | BF112: =$E32*BF$97*AN_EMIS!BD17 -> 0 | BG112: =$E32*BG$97*AN_EMIS!BE17 -> 0 | BH112: =$E32*BH$97*AN_EMIS!BF17 -> 0 | BI112: =$E32*BI$97*AN_EMIS!BG17 -> 0 | BJ112: =$E32*BJ$97*AN_EMIS!BH17 -> 0 | BK112: =$E32*BK$97*AN_EMIS!BI17 -> 0 | BL112: =$E32*BL$97*AN_EMIS!BJ17 -> 0 | BM112: =$E32*BM$97*AN_EMIS!BK17 -> 0 | BN112: =$E32*BN$97*AN_EMIS!BL17 -> 0 | BO112: =$E32*BO$97*AN_EMIS!BM17 -> 0 | BP112: =$E32*BP$97*AN_EMIS!BN17 -> 0 | BQ112: =$E32*BQ$97*AN_EMIS!BO17 -> 0 | BR112: =$E32*BR$97*AN_EMIS!BP17 -> 0 | BS112: =$E32*BS$97*AN_EMIS!BQ17 -> 0 | BT112: =$E32*BT$97*AN_EMIS!BR17 -> 0 | BU112: =$E32*BU$97*AN_EMIS!BS17 -> 0
A113: 14 | B113: 50-00-0 | C113: Formaldehyde | F113: =$E33*F$97*AN_EMIS!D18 -> 0 | G113: =$E33*G$97*AN_EMIS!E18 -> 0 | H113: =$E33*H$97*AN_EMIS!F18 -> 0 | I113: =$E33*I$97*AN_EMIS!G18 -> 0.002481901474 | J113: =$E33*J$97*AN_EMIS!H18 -> 0 | K113: =$E33*K$97*AN_EMIS!I18 -> 0 | L113: =$E33*L$97*AN_EMIS!J18 -> 0 | M113: =$E33*M$97*AN_EMIS!K18 -> 0 | N113: =$E33*N$97*AN_EMIS!L18 -> 0 | O113: =$E33*O$97*AN_EMIS!M18 -> 0 | P113: =$E33*P$97*AN_EMIS!N18 -> 0 | Q113: =$E33*Q$97*AN_EMIS!O18 -> 0 | R113: =$E33*R$97*AN_EMIS!P18 -> 0 | S113: =$E33*S$97*AN_EMIS!Q18 -> 0 | T113: =$E33*T$97*AN_EMIS!R18 -> 0 | U113: =$E33*U$97*AN_EMIS!S18 -> 0 | V113: =$E33*V$97*AN_EMIS!T18 -> 0 | W113: =$E33*W$97*AN_EMIS!U18 -> 0 | X113: =$E33*X$97*AN_EMIS!V18 -> 0 | Y113: =$E33*Y$97*AN_EMIS!W18 -> 0 | Z113: =$E33*Z$97*AN_EMIS!X18 -> 0 | AA113: =$E33*AA$97*AN_EMIS!Y18 -> 0 | AB113: =$E33*AB$97*AN_EMIS!Z18 -> 0 | AC113: =$E33*AC$97*AN_EMIS!AA18 -> 0 | AD113: =$E33*AD$97*AN_EMIS!AB18 -> 0 | AE113: =$E33*AE$97*AN_EMIS!AC18 -> 0 | AF113: =$E33*AF$97*AN_EMIS!AD18 -> 0 | AG113: =$E33*AG$97*AN_EMIS!AE18 -> 0 | AH113: =$E33*AH$97*AN_EMIS!AF18 -> 0 | AI113: =$E33*AI$97*AN_EMIS!AG18 -> 0 | AJ113: =$E33*AJ$97*AN_EMIS!AH18 -> 0 | AK113: =$E33*AK$97*AN_EMIS!AI18 -> 0 | AL113: =$E33*AL$97*AN_EMIS!AJ18 -> 0 | AM113: =$E33*AM$97*AN_EMIS!AK18 -> 0 | AN113: =$E33*AN$97*AN_EMIS!AL18 -> 0 | AO113: =$E33*AO$97*AN_EMIS!AM18 -> 0 | AP113: =$E33*AP$97*AN_EMIS!AN18 -> 0 | AQ113: =$E33*AQ$97*AN_EMIS!AO18 -> 0 | AR113: =$E33*AR$97*AN_EMIS!AP18 -> 0 | AS113: =$E33*AS$97*AN_EMIS!AQ18 -> 0 | AT113: =$E33*AT$97*AN_EMIS!AR18 -> 0 | AU113: =$E33*AU$97*AN_EMIS!AS18 -> 0 | AV113: =$E33*AV$97*AN_EMIS!AT18 -> 0 | AW113: =$E33*AW$97*AN_EMIS!AU18 -> 0 | AX113: =$E33*AX$97*AN_EMIS!AV18 -> 0 | AY113: =$E33*AY$97*AN_EMIS!AW18 -> 0 | AZ113: =$E33*AZ$97*AN_EMIS!AX18 -> 0 | BA113: =$E33*BA$97*AN_EMIS!AY18 -> 0 | BB113: =$E33*BB$97*AN_EMIS!AZ18 -> 0 | BC113: =$E33*BC$97*AN_EMIS!BA18 -> 0 | BD113: =$E33*BD$97*AN_EMIS!BB18 -> 0 | BE113: =$E33*BE$97*AN_EMIS!BC18 -> 0 | BF113: =$E33*BF$97*AN_EMIS!BD18 -> 0 | BG113: =$E33*BG$97*AN_EMIS!BE18 -> 0 | BH113: =$E33*BH$97*AN_EMIS!BF18 -> 0 | BI113: =$E33*BI$97*AN_EMIS!BG18 -> 0 | BJ113: =$E33*BJ$97*AN_EMIS!BH18 -> 0 | BK113: =$E33*BK$97*AN_EMIS!BI18 -> 0 | BL113: =$E33*BL$97*AN_EMIS!BJ18 -> 0 | BM113: =$E33*BM$97*AN_EMIS!BK18 -> 0 | BN113: =$E33*BN$97*AN_EMIS!BL18 -> 0 | BO113: =$E33*BO$97*AN_EMIS!BM18 -> 0 | BP113: =$E33*BP$97*AN_EMIS!BN18 -> 0 | BQ113: =$E33*BQ$97*AN_EMIS!BO18 -> 0 | BR113: =$E33*BR$97*AN_EMIS!BP18 -> 0 | BS113: =$E33*BS$97*AN_EMIS!BQ18 -> 0 | BT113: =$E33*BT$97*AN_EMIS!BR18 -> 0 | BU113: =$E33*BU$97*AN_EMIS!BS18 -> 0
A114: 15 | B114: 110-54-3 | C114: Hexane | F114: =$E34*F$97*AN_EMIS!D19 -> 0 | G114: =$E34*G$97*AN_EMIS!E19 -> 0 | H114: =$E34*H$97*AN_EMIS!F19 -> 0 | I114: =$E34*I$97*AN_EMIS!G19 -> 0 | J114: =$E34*J$97*AN_EMIS!H19 -> 0 | K114: =$E34*K$97*AN_EMIS!I19 -> 0 | L114: =$E34*L$97*AN_EMIS!J19 -> 0 | M114: =$E34*M$97*AN_EMIS!K19 -> 0 | N114: =$E34*N$97*AN_EMIS!L19 -> 0 | O114: =$E34*O$97*AN_EMIS!M19 -> 0 | P114: =$E34*P$97*AN_EMIS!N19 -> 0 | Q114: =$E34*Q$97*AN_EMIS!O19 -> 0 | R114: =$E34*R$97*AN_EMIS!P19 -> 0 | S114: =$E34*S$97*AN_EMIS!Q19 -> 0 | T114: =$E34*T$97*AN_EMIS!R19 -> 0 | U114: =$E34*U$97*AN_EMIS!S19 -> 0 | V114: =$E34*V$97*AN_EMIS!T19 -> 0 | W114: =$E34*W$97*AN_EMIS!U19 -> 0 | X114: =$E34*X$97*AN_EMIS!V19 -> 0 | Y114: =$E34*Y$97*AN_EMIS!W19 -> 0 | Z114: =$E34*Z$97*AN_EMIS!X19 -> 0 | AA114: =$E34*AA$97*AN_EMIS!Y19 -> 0 | AB114: =$E34*AB$97*AN_EMIS!Z19 -> 0 | AC114: =$E34*AC$97*AN_EMIS!AA19 -> 0 | AD114: =$E34*AD$97*AN_EMIS!AB19 -> 0 | AE114: =$E34*AE$97*AN_EMIS!AC19 -> 0 | AF114: =$E34*AF$97*AN_EMIS!AD19 -> 0 | AG114: =$E34*AG$97*AN_EMIS!AE19 -> 0 | AH114: =$E34*AH$97*AN_EMIS!AF19 -> 0 | AI114: =$E34*AI$97*AN_EMIS!AG19 -> 0 | AJ114: =$E34*AJ$97*AN_EMIS!AH19 -> 0 | AK114: =$E34*AK$97*AN_EMIS!AI19 -> 0 | AL114: =$E34*AL$97*AN_EMIS!AJ19 -> 0 | AM114: =$E34*AM$97*AN_EMIS!AK19 -> 0 | AN114: =$E34*AN$97*AN_EMIS!AL19 -> 0 | AO114: =$E34*AO$97*AN_EMIS!AM19 -> 0 | AP114: =$E34*AP$97*AN_EMIS!AN19 -> 0 | AQ114: =$E34*AQ$97*AN_EMIS!AO19 -> 0 | AR114: =$E34*AR$97*AN_EMIS!AP19 -> 0 | AS114: =$E34*AS$97*AN_EMIS!AQ19 -> 0 | AT114: =$E34*AT$97*AN_EMIS!AR19 -> 0 | AU114: =$E34*AU$97*AN_EMIS!AS19 -> 0 | AV114: =$E34*AV$97*AN_EMIS!AT19 -> 0 | AW114: =$E34*AW$97*AN_EMIS!AU19 -> 0 | AX114: =$E34*AX$97*AN_EMIS!AV19 -> 0 | AY114: =$E34*AY$97*AN_EMIS!AW19 -> 0 | AZ114: =$E34*AZ$97*AN_EMIS!AX19 -> 0 | BA114: =$E34*BA$97*AN_EMIS!AY19 -> 0 | BB114: =$E34*BB$97*AN_EMIS!AZ19 -> 0 | BC114: =$E34*BC$97*AN_EMIS!BA19 -> 0 | BD114: =$E34*BD$97*AN_EMIS!BB19 -> 0 | BE114: =$E34*BE$97*AN_EMIS!BC19 -> 0 | BF114: =$E34*BF$97*AN_EMIS!BD19 -> 0 | BG114: =$E34*BG$97*AN_EMIS!BE19 -> 0 | BH114: =$E34*BH$97*AN_EMIS!BF19 -> 0 | BI114: =$E34*BI$97*AN_EMIS!BG19 -> 0 | BJ114: =$E34*BJ$97*AN_EMIS!BH19 -> 0 | BK114: =$E34*BK$97*AN_EMIS!BI19 -> 0 | BL114: =$E34*BL$97*AN_EMIS!BJ19 -> 0 | BM114: =$E34*BM$97*AN_EMIS!BK19 -> 0 | BN114: =$E34*BN$97*AN_EMIS!BL19 -> 0 | BO114: =$E34*BO$97*AN_EMIS!BM19 -> 0 | BP114: =$E34*BP$97*AN_EMIS!BN19 -> 0 | BQ114: =$E34*BQ$97*AN_EMIS!BO19 -> 0 | BR114: =$E34*BR$97*AN_EMIS!BP19 -> 0 | BS114: =$E34*BS$97*AN_EMIS!BQ19 -> 0 | BT114: =$E34*BT$97*AN_EMIS!BR19 -> 0 | BU114: =$E34*BU$97*AN_EMIS!BS19 -> 0
